Workbook

Sheet PAINEL GERAL
A1: 1. | B1: Premissas Gerais
B3: Início do Projeto | C3: 2026-01-01
B4: Prazo do Projeto (anos) | C4: 15
B5: Término do Projeto | C5: =EDATE(C3,12*C4-1) -> 2040-12-01
B6: Projeção | C6: Constantes
A8: 2. | B8: Demanda e Receitas
B10: Visitas | C10: 1 | D10: =C10+1 -> 2 | E10: =D10+1 -> 3 | F10: =E10+1 -> 4 | G10: =F10+1 -> 5 | H10: =G10+1 -> 6 | I10: =H10+1 -> 7 | J10: =I10+1 -> 8 | K10: =J10+1 -> 9 | L10: =K10+1 -> 10 | M10: =L10+1 -> 11 | N10: =M10+1 -> 12 | O10: =N10+1 -> 13 | P10: =O10+1 -> 14 | Q10: =P10+1 -> 15
B11: Autoguiadas | C11: =SUMIFS(DEMANDA!$24:$24,DEMANDA!$3:$3,'PAINEL GERAL'!C10) -> 91679 | D11: =SUMIFS(DEMANDA!$24:$24,DEMANDA!$3:$3,'PAINEL GERAL'!D10) -> 93747.7825 | E11: =SUMIFS(DEMANDA!$24:$24,DEMANDA!$3:$3,'PAINEL GERAL'!E10) -> 95845.53074 | F11: =SUMIFS(DEMANDA!$24:$24,DEMANDA!$3:$3,'PAINEL GERAL'!F10) -> 97973.55109 | G11: =SUMIFS(DEMANDA!$24:$24,DEMANDA!$3:$3,'PAINEL GERAL'!G10) -> 99908.11332 | H11: =SUMIFS(DEMANDA!$24:$24,DEMANDA!$3:$3,'PAINEL GERAL'!H10) -> 101839.4569 | I11: =SUMIFS(DEMANDA!$24:$24,DEMANDA!$3:$3,'PAINEL GERAL'!I10) -> 103756.382 | J11: =SUMIFS(DEMANDA!$24:$24,DEMANDA!$3:$3,'PAINEL GERAL'!J10) -> 105657.982 | K11: =SUMIFS(DEMANDA!$24:$24,DEMANDA!$3:$3,'PAINEL GERAL'!K10) -> 107543.4258 | L11: =SUMIFS(DEMANDA!$24:$24,DEMANDA!$3:$3,'PAINEL GERAL'!L10) -> 109411.0895 | M11: =SUMIFS(DEMANDA!$24:$24,DEMANDA!$3:$3,'PAINEL GERAL'!M10) -> 111258.2358 | N11: =SUMIFS(DEMANDA!$24:$24,DEMANDA!$3:$3,'PAINEL GERAL'!N10) -> 113082.013 | O11: =SUMIFS(DEMANDA!$24:$24,DEMANDA!$3:$3,'PAINEL GERAL'!O10) -> 114880.7026 | P11: =SUMIFS(DEMANDA!$24:$24,DEMANDA!$3:$3,'PAINEL GERAL'!P10) -> 116652.9799 | Q11: =SUMIFS(DEMANDA!$24:$24,DEMANDA!$3:$3,'PAINEL GERAL'!Q10) -> 118396.3755
B12: Guiadas | C12: =SUMIFS(DEMANDA!$13:$13,DEMANDA!$3:$3,'PAINEL GERAL'!C$10) -> 6530 | D12: =SUMIFS(DEMANDA!$13:$13,DEMANDA!$3:$3,'PAINEL GERAL'!D$10) -> 6677.352717 | E12: =SUMIFS(DEMANDA!$13:$13,DEMANDA!$3:$3,'PAINEL GERAL'!E$10) -> 6826.76857 | F12: =SUMIFS(DEMANDA!$13:$13,DEMANDA!$3:$3,'PAINEL GERAL'!F$10) -> 6978.340608 | G12: =SUMIFS(DEMANDA!$13:$13,DEMANDA!$3:$3,'PAINEL GERAL'!G$10) -> 7116.133248 | H12: =SUMIFS(DEMANDA!$13:$13,DEMANDA!$3:$3,'PAINEL GERAL'!H$10) -> 7253.69663 | I12: =SUMIFS(DEMANDA!$13:$13,DEMANDA!$3:$3,'PAINEL GERAL'!I$10) -> 7390.233039 | J12: =SUMIFS(DEMANDA!$13:$13,DEMANDA!$3:$3,'PAINEL GERAL'!J$10) -> 7525.677882 | K12: =SUMIFS(DEMANDA!$13:$13,DEMANDA!$3:$3,'PAINEL GERAL'!K$10) -> 7659.971973 | L12: =SUMIFS(DEMANDA!$13:$13,DEMANDA!$3:$3,'PAINEL GERAL'!L$10) -> 7792.999645 | M12: =SUMIFS(DEMANDA!$13:$13,DEMANDA!$3:$3,'PAINEL GERAL'!M$10) -> 7924.56593 | N12: =SUMIFS(DEMANDA!$13:$13,DEMANDA!$3:$3,'PAINEL GERAL'!N$10) -> 8054.467709 | O12: =SUMIFS(DEMANDA!$13:$13,DEMANDA!$3:$3,'PAINEL GERAL'!O$10) -> 8182.582576 | P12: =SUMIFS(DEMANDA!$13:$13,DEMANDA!$3:$3,'PAINEL GERAL'!P$10) -> 8308.816183 | Q12: =SUMIFS(DEMANDA!$13:$13,DEMANDA!$3:$3,'PAINEL GERAL'!Q$10) -> 8432.992635
B14: Resumo
B15: Área e visitação | E15: valor
B16: Visitas Autoguiadas | C16: [média/ano] | E16: =AVERAGE(DEMANDA!J21:T21) -> 101692.7772
B17: Visitas Guiadas | C17: [média/ano] | E17: =AVERAGE(DEMANDA!J10:T10) -> 7243.249113 | F17: Ramp - Up
B18: Adesão ao camping | E18: valor | F18: 3 primeiros anos | G18: 4° ao 7° ano
B19: Cenário Otimista | C19: [taxa de adesão] | E19: 0.1 | F19: 0.18 | G19: 0.12
B20: Cenário Moderado | C20: [taxa de adesão] | E20: 0.08 | F20: 0.15 | G20: 0.09
B21: Cenário Pessimista | C21: [taxa de adesão] | E21: 0.05 | F21: 0.12 | G21: 0.06
B23: Demanda pelo Camping | C23: 1 | D23: =C23+1 -> 2 | E23: =D23+1 -> 3 | F23: =E23+1 -> 4 | G23: =F23+1 -> 5 | H23: =G23+1 -> 6 | I23: =H23+1 -> 7 | J23: =I23+1 -> 8 | K23: =J23+1 -> 9 | L23: =K23+1 -> 10 | M23: =L23+1 -> 11 | N23: =M23+1 -> 12 | O23: =N23+1 -> 13 | P23: =O23+1 -> 14 | Q23: =P23+1 -> 15
B24: Otimista | C24: =DEMANDA!J54 -> 770.54 | D24: =DEMANDA!K54 -> 929.7545923 | E24: =DEMANDA!L54 -> 1121.659922 | F24: =DEMANDA!M54 -> 1284.151336 | G24: =DEMANDA!N54 -> 1466.648825 | H24: =DEMANDA!O54 -> 1674.401013 | I24: =DEMANDA!P54 -> 1910.628475 | J24: =DEMANDA!Q54 -> 1945.645608 | K24: =DEMANDA!R54 -> 1980.365232 | L24: =DEMANDA!S54 -> 2014.757444 | M24: =DEMANDA!T54 -> 2048.771837 | N24: =DEMANDA!U54 -> 2082.355898 | O24: =DEMANDA!V54 -> 2115.477981 | P24: =DEMANDA!W54 -> 2148.113694 | Q24: =DEMANDA!X54 -> 2180.217562
B25: Moderado | C25: =DEMANDA!J55 -> 600.76 | D25: =DEMANDA!K55 -> 706.4639174 | E25: =DEMANDA!L55 -> 830.6129319 | F25: =DEMANDA!M55 -> 925.469625 | G25: =DEMANDA!N55 -> 1028.680661 | H25: =DEMANDA!O55 -> 1142.937257 | I25: =DEMANDA!P55 -> 1269.251348 | J25: =DEMANDA!Q55 -> 1292.513611 | K25: =DEMANDA!R55 -> 1315.578237 | L25: =DEMANDA!S55 -> 1338.425358 | M25: =DEMANDA!T55 -> 1361.021491 | N25: =DEMANDA!U55 -> 1383.331749 | O25: =DEMANDA!V55 -> 1405.33511 | P25: =DEMANDA!W55 -> 1427.01537 | Q25: =DEMANDA!X55 -> 1448.34232
B26: Pessimista | C26: =DEMANDA!J56 -> 438.816 | D26: =DEMANDA!K56 -> 502.5642749 | E26: =DEMANDA!L56 -> 575.4670988 | F26: =DEMANDA!M56 -> 623.5386049 | G26: =DEMANDA!N56 -> 674.0018994 | H26: =DEMANDA!O56 -> 728.2530336 | I26: =DEMANDA!P56 -> 786.4786051 | J26: =DEMANDA!Q56 -> 800.8928287 | K26: =DEMANDA!R56 -> 815.1845877 | L26: =DEMANDA!S56 -> 829.3415726 | M26: =DEMANDA!T56 -> 843.3430348 | N26: =DEMANDA!U56 -> 857.1673579 | O26: =DEMANDA!V56 -> 870.8015156 | P26: =DEMANDA!W56 -> 884.2354669 | Q26: =DEMANDA!X56 -> 897.4504931
B28: Resumo
E29: valor
B30: Demanda pelo Camping | C30: Pessimista | D30: [média/ano] | E30: =IF(C30="Otimista",AVERAGE(C24:Q24),IF(C30="Moderada", AVERAGE(C25:Q25),AVERAGE(C26:Q26))) -> 741.8357583
B32: Anual
B33: 1900-01-01 | C33: =EDATE(B33,1) -> 1900-02-01 | D33: =EDATE(C33,1) -> 1900-03-01 | E33: 1900-04-01 | F33: 1900-05-01 | G33: 1900-06-01 | H33: 1900-07-01 | I33: 1900-08-01 | J33: 1900-09-01 | K33: 1900-10-01 | L33: 1900-11-01 | M33: 1900-12-01
B34: =DEMANDA!J17 -> 0.07971184715 | C34: =DEMANDA!K17 -> 0.1082139222 | D34: =DEMANDA!L17 -> 0.07673635581 | E34: =DEMANDA!M17 -> 0.06412966878 | F34: =DEMANDA!N17 -> 0.1385169525 | G34: =DEMANDA!O17 -> 0.09819121447 | H34: =DEMANDA!P17 -> 0.1060214549 | I34: =DEMANDA!Q17 -> 0.06326834234 | J34: =DEMANDA!R17 -> 0.07086367551 | K34: =DEMANDA!S17 -> 0.07039386109 | L34: =DEMANDA!T17 -> 0.05692584762 | M34: =DEMANDA!U17 -> 0.06702685772
B36: Receitas | C36: 1 | D36: =C36+1 -> 2 | E36: 3 | F36: 4 | G36: 5 | H36: 6 | I36: 7 | J36: 8 | K36: 9 | L36: 10 | M36: 11 | N36: 12 | O36: 13 | P36: 14 | Q36: 15
B37: Total | C37: =SUM(C38:C41) -> 161787.28 | D37: =SUM(D38:D41) -> 172625.5934 | E37: 184938.9355 | F37: 195005.4255 | G37: 205481.0368 | H37: 216814.1668 | I37: 229069.7066 | J37: 231722.685 | K37: 237430.6092 | L37: 241553.9717 | M37: 245632.0366 | N37: 249658.5081 | O37: 253629.5919 | P37: 257542.3637 | Q37: 258406.2845
B38: Receita - Camping | C38: =SUMIFS(RECEITA!12:12,RECEITA!$3:$3,'PAINEL GERAL'!C$36) -> 45057 | D38: =SUMIFS(RECEITA!12:12,RECEITA!$3:$3,'PAINEL GERAL'!D$36) -> 52984.79381 | E38: =SUMIFS(RECEITA!12:12,RECEITA!$3:$3,'PAINEL GERAL'!E$36) -> 62295.96989 | F38: =SUMIFS(RECEITA!12:12,RECEITA!$3:$3,'PAINEL GERAL'!F$36) -> 69410.22187 | G38: =SUMIFS(RECEITA!12:12,RECEITA!$3:$3,'PAINEL GERAL'!G$36) -> 77151.04961 | H38: =SUMIFS(RECEITA!12:12,RECEITA!$3:$3,'PAINEL GERAL'!H$36) -> 85720.29431 | I38: =SUMIFS(RECEITA!12:12,RECEITA!$3:$3,'PAINEL GERAL'!I$36) -> 95193.85107 | J38: =SUMIFS(RECEITA!12:12,RECEITA!$3:$3,'PAINEL GERAL'!J$36) -> 95393.21339 | K38: =SUMIFS(RECEITA!12:12,RECEITA!$3:$3,'PAINEL GERAL'!K$36) -> 98668.36775 | L38: =SUMIFS(RECEITA!12:12,RECEITA!$3:$3,'PAINEL GERAL'!L$36) -> 100381.9019 | M38: =SUMIFS(RECEITA!12:12,RECEITA!$3:$3,'PAINEL GERAL'!M$36) -> 102076.6118 | N38: =SUMIFS(RECEITA!12:12,RECEITA!$3:$3,'PAINEL GERAL'!N$36) -> 103749.8812 | O38: =SUMIFS(RECEITA!12:12,RECEITA!$3:$3,'PAINEL GERAL'!O$36) -> 105400.1333 | P38: =SUMIFS(RECEITA!12:12,RECEITA!$3:$3,'PAINEL GERAL'!P$36) -> 107026.1528 | Q38: =SUMIFS(RECEITA!12:12,RECEITA!$3:$3,'PAINEL GERAL'!Q$36) -> 105640.5872
B39: Receita - Alimentação | C39: =SUMIFS(RECEITA!13:13,RECEITA!$3:$3,'PAINEL GERAL'!C$36) -> 78360 | D39: =SUMIFS(RECEITA!13:13,RECEITA!$3:$3,'PAINEL GERAL'!D$36) -> 80128.2326 | E39: =SUMIFS(RECEITA!13:13,RECEITA!$3:$3,'PAINEL GERAL'!E$36) -> 81921.22284 | F39: =SUMIFS(RECEITA!13:13,RECEITA!$3:$3,'PAINEL GERAL'!F$36) -> 83740.0873 | G39: =SUMIFS(RECEITA!13:13,RECEITA!$3:$3,'PAINEL GERAL'!G$36) -> 85393.59897 | H39: =SUMIFS(RECEITA!13:13,RECEITA!$3:$3,'PAINEL GERAL'!H$36) -> 87044.35956 | I39: =SUMIFS(RECEITA!13:13,RECEITA!$3:$3,'PAINEL GERAL'!I$36) -> 88682.79646 | J39: =SUMIFS(RECEITA!13:13,RECEITA!$3:$3,'PAINEL GERAL'!J$36) -> 90308.13459 | K39: =SUMIFS(RECEITA!13:13,RECEITA!$3:$3,'PAINEL GERAL'!K$36) -> 91919.66368 | L39: =SUMIFS(RECEITA!13:13,RECEITA!$3:$3,'PAINEL GERAL'!L$36) -> 93515.99574 | M39: =SUMIFS(RECEITA!13:13,RECEITA!$3:$3,'PAINEL GERAL'!M$36) -> 95094.79117 | N39: =SUMIFS(RECEITA!13:13,RECEITA!$3:$3,'PAINEL GERAL'!N$36) -> 96653.61251 | O39: =SUMIFS(RECEITA!13:13,RECEITA!$3:$3,'PAINEL GERAL'!O$36) -> 98190.99091 | P39: =SUMIFS(RECEITA!13:13,RECEITA!$3:$3,'PAINEL GERAL'!P$36) -> 99705.79419 | Q39: =SUMIFS(RECEITA!13:13,RECEITA!$3:$3,'PAINEL GERAL'!Q$36) -> 101195.9116
B40: Receita - Varejo | C40: =SUMIFS(RECEITA!14:14,RECEITA!$3:$3,'PAINEL GERAL'!C$36) -> 32650 | D40: =SUMIFS(RECEITA!14:14,RECEITA!$3:$3,'PAINEL GERAL'!D$36) -> 33386.76358 | E40: =SUMIFS(RECEITA!14:14,RECEITA!$3:$3,'PAINEL GERAL'!E$36) -> 34133.84285 | F40: =SUMIFS(RECEITA!14:14,RECEITA!$3:$3,'PAINEL GERAL'!F$36) -> 34891.70304 | G40: =SUMIFS(RECEITA!14:14,RECEITA!$3:$3,'PAINEL GERAL'!G$36) -> 35580.66624 | H40: =SUMIFS(RECEITA!14:14,RECEITA!$3:$3,'PAINEL GERAL'!H$36) -> 36268.48315 | I40: =SUMIFS(RECEITA!14:14,RECEITA!$3:$3,'PAINEL GERAL'!I$36) -> 36951.16519 | J40: =SUMIFS(RECEITA!14:14,RECEITA!$3:$3,'PAINEL GERAL'!J$36) -> 37628.38941 | K40: =SUMIFS(RECEITA!14:14,RECEITA!$3:$3,'PAINEL GERAL'!K$36) -> 38299.85987 | L40: =SUMIFS(RECEITA!14:14,RECEITA!$3:$3,'PAINEL GERAL'!L$36) -> 38964.99823 | M40: =SUMIFS(RECEITA!14:14,RECEITA!$3:$3,'PAINEL GERAL'!M$36) -> 39622.82965 | N40: =SUMIFS(RECEITA!14:14,RECEITA!$3:$3,'PAINEL GERAL'!N$36) -> 40272.33854 | O40: =SUMIFS(RECEITA!14:14,RECEITA!$3:$3,'PAINEL GERAL'!O$36) -> 40912.91288 | P40: =SUMIFS(RECEITA!14:14,RECEITA!$3:$3,'PAINEL GERAL'!P$36) -> 41544.08091 | Q40: =SUMIFS(RECEITA!14:14,RECEITA!$3:$3,'PAINEL GERAL'!Q$36) -> 42164.96318
B41: Receita - Internet | C41: =SUMIFS(RECEITA!15:15,RECEITA!$3:$3,'PAINEL GERAL'!C$36) -> 5720.28 | D41: =SUMIFS(RECEITA!15:15,RECEITA!$3:$3,'PAINEL GERAL'!D$36) -> 6125.803382 | E41: =SUMIFS(RECEITA!15:15,RECEITA!$3:$3,'PAINEL GERAL'!E$36) -> 6587.899937 | F41: =SUMIFS(RECEITA!15:15,RECEITA!$3:$3,'PAINEL GERAL'!F$36) -> 6963.41324 | G41: =SUMIFS(RECEITA!15:15,RECEITA!$3:$3,'PAINEL GERAL'!G$36) -> 7355.721933 | H41: =SUMIFS(RECEITA!15:15,RECEITA!$3:$3,'PAINEL GERAL'!H$36) -> 7781.02975 | I41: =SUMIFS(RECEITA!15:15,RECEITA!$3:$3,'PAINEL GERAL'!I$36) -> 8241.893866 | J41: =SUMIFS(RECEITA!15:15,RECEITA!$3:$3,'PAINEL GERAL'!J$36) -> 8392.947564 | K41: =SUMIFS(RECEITA!15:15,RECEITA!$3:$3,'PAINEL GERAL'!K$36) -> 8542.717894 | L41: =SUMIFS(RECEITA!15:15,RECEITA!$3:$3,'PAINEL GERAL'!L$36) -> 8691.075862 | M41: =SUMIFS(RECEITA!15:15,RECEITA!$3:$3,'PAINEL GERAL'!M$36) -> 8837.80403 | N41: =SUMIFS(RECEITA!15:15,RECEITA!$3:$3,'PAINEL GERAL'!N$36) -> 8982.675872 | O41: =SUMIFS(RECEITA!15:15,RECEITA!$3:$3,'PAINEL GERAL'!O$36) -> 9125.554876 | P41: =SUMIFS(RECEITA!15:15,RECEITA!$3:$3,'PAINEL GERAL'!P$36) -> 9266.335821 | Q41: =SUMIFS(RECEITA!15:15,RECEITA!$3:$3,'PAINEL GERAL'!Q$36) -> 9404.822542
B43: VALORES - RECEITAS
D45: média | E45: 1 | F45: 15 | G45: Total | H45: % (Total)
B47: Receitas | D47: =SUM(D48:D52) -> 222753.213 | E47: =SUM(E48:E52) -> 161787.28 | F47: =SUM(F48:F52) -> 258406.2845 | G47: =SUM(G48:G52) -> 3341298.195 | H47: =SUM(H48:H51) -> 1
B48: Receita - Camping | C48: [R$] | D48: =AVERAGE(C38:Q38) -> 87076.66865 | E48: =C38 -> 45057 | F48: =Q38 -> 105640.5872 | G48: =SUM(C38:Q38) -> 1306150.03 | H48: =G48/$G$47 -> 0.3909109434
B49: Receita - Alimentação | C49: [R$] | D49: =AVERAGE(C39:Q39) -> 90123.67948 | E49: =C39 -> 78360 | F49: =Q39 -> 101195.9116 | G49: =SUM(C39:Q39) -> 1351855.192 | H49: =G49/$G$47 -> 0.4045898071
B50: Receita - Varejo | C50: [R$] | D50: =AVERAGE(C40:Q40) -> 37551.53311 | E50: =C40 -> 32650 | F50: 42164.96318 | G50: =SUM(C40:Q40) -> 563272.9967 | H50: 0.1685790863
B51: Receita - Internet | C51: [R$] | D51: =AVERAGE(C41:Q41) -> 8001.331771 | E51: =C41 -> 5720.28 | F51: 9404.822542 | G51: =SUM(C41:Q41) -> 120019.9766 | H51: 0.03592016323
A55: 3. | B55: OPEX
B57: OPEX | C57: 1 | D57: =C57+1 -> 2 | E57: =D57+1 -> 3 | F57: =E57+1 -> 4 | G57: =F57+1 -> 5 | H57: =G57+1 -> 6 | I57: =H57+1 -> 7 | J57: =I57+1 -> 8 | K57: =J57+1 -> 9 | L57: =K57+1 -> 10 | M57: =L57+1 -> 11 | N57: =M57+1 -> 12 | O57: =N57+1 -> 13 | P57: =O57+1 -> 14 | Q57: =P57+1 -> 15
B58: Total | C58: =SUM(C59:C63) -> 183051.0468 | D58: =SUM(D59:D63) -> 184875.9179 | E58: 186772.6544 | F58: 188611.9033 | G58: 190330.2954 | H58: 193576.4518 | I58: 195344.8178 | J58: 198266.386 | K58: 199783.5884 | L58: 201232.9075 | M58: 202666.3051 | N58: 204081.568 | O58: 208477.3628 | P58: 211352.6615 | Q58: 212601.0697
B59: Operacional | C59: =SUMIFS(OPEX!8:8,OPEX!$3:$3,'PAINEL GERAL'!C$57) -> 49641.5 | D59: =SUMIFS(OPEX!8:8,OPEX!$3:$3,'PAINEL GERAL'!D$57) -> 49657.7088 | E59: =SUMIFS(OPEX!8:8,OPEX!$3:$3,'PAINEL GERAL'!E$57) -> 49674.14454 | F59: =SUMIFS(OPEX!8:8,OPEX!$3:$3,'PAINEL GERAL'!F$57) -> 49690.81747 | G59: =SUMIFS(OPEX!8:8,OPEX!$3:$3,'PAINEL GERAL'!G$57) -> 49705.97466 | H59: =SUMIFS(OPEX!8:8,OPEX!$3:$3,'PAINEL GERAL'!H$57) -> 51221.10663 | I59: =SUMIFS(OPEX!8:8,OPEX!$3:$3,'PAINEL GERAL'!I$57) -> 51236.12563 | J59: =SUMIFS(OPEX!8:8,OPEX!$3:$3,'PAINEL GERAL'!J$57) -> 52751.02457 | K59: =SUMIFS(OPEX!8:8,OPEX!$3:$3,'PAINEL GERAL'!K$57) -> 52765.79692 | L59: =SUMIFS(OPEX!8:8,OPEX!$3:$3,'PAINEL GERAL'!L$57) -> 52780.42996 | M59: =SUMIFS(OPEX!8:8,OPEX!$3:$3,'PAINEL GERAL'!M$57) -> 52794.90225 | N59: =SUMIFS(OPEX!8:8,OPEX!$3:$3,'PAINEL GERAL'!N$57) -> 52809.19145 | O59: =SUMIFS(OPEX!8:8,OPEX!$3:$3,'PAINEL GERAL'!O$57) -> 55823.28408 | P59: =SUMIFS(OPEX!8:8,OPEX!$3:$3,'PAINEL GERAL'!P$57) -> 57337.16978 | Q59: =SUMIFS(OPEX!8:8,OPEX!$3:$3,'PAINEL GERAL'!Q$57) -> 57350.82919
B60: Pessoal | C60: =SUMIFS(OPEX!9:9,OPEX!$3:$3,'PAINEL GERAL'!C$57) -> 64405.992 | D60: =SUMIFS(OPEX!9:9,OPEX!$3:$3,'PAINEL GERAL'!D$57) -> 64405.992 | E60: =SUMIFS(OPEX!9:9,OPEX!$3:$3,'PAINEL GERAL'!E$57) -> 64405.992 | F60: =SUMIFS(OPEX!9:9,OPEX!$3:$3,'PAINEL GERAL'!F$57) -> 64405.992 | G60: =SUMIFS(OPEX!9:9,OPEX!$3:$3,'PAINEL GERAL'!G$57) -> 64405.992 | H60: =SUMIFS(OPEX!9:9,OPEX!$3:$3,'PAINEL GERAL'!H$57) -> 64405.992 | I60: =SUMIFS(OPEX!9:9,OPEX!$3:$3,'PAINEL GERAL'!I$57) -> 64405.992 | J60: =SUMIFS(OPEX!9:9,OPEX!$3:$3,'PAINEL GERAL'!J$57) -> 64405.992 | K60: =SUMIFS(OPEX!9:9,OPEX!$3:$3,'PAINEL GERAL'!K$57) -> 64405.992 | L60: =SUMIFS(OPEX!9:9,OPEX!$3:$3,'PAINEL GERAL'!L$57) -> 64405.992 | M60: =SUMIFS(OPEX!9:9,OPEX!$3:$3,'PAINEL GERAL'!M$57) -> 64405.992 | N60: =SUMIFS(OPEX!9:9,OPEX!$3:$3,'PAINEL GERAL'!N$57) -> 64405.992 | O60: =SUMIFS(OPEX!9:9,OPEX!$3:$3,'PAINEL GERAL'!O$57) -> 64405.992 | P60: =SUMIFS(OPEX!9:9,OPEX!$3:$3,'PAINEL GERAL'!P$57) -> 64405.992 | Q60: =SUMIFS(OPEX!9:9,OPEX!$3:$3,'PAINEL GERAL'!Q$57) -> 64405.992
B61: Seguros e Garantias | C61: =SUMIFS(OPEX!10:10,OPEX!$3:$3,'PAINEL GERAL'!C$57) -> 1617.8728 | D61: =SUMIFS(OPEX!10:10,OPEX!$3:$3,'PAINEL GERAL'!D$57) -> 1726.255934 | E61: =SUMIFS(OPEX!10:10,OPEX!$3:$3,'PAINEL GERAL'!E$57) -> 1849.389355 | F61: =SUMIFS(OPEX!10:10,OPEX!$3:$3,'PAINEL GERAL'!F$57) -> 1950.054255 | G61: =SUMIFS(OPEX!10:10,OPEX!$3:$3,'PAINEL GERAL'!G$57) -> 2054.810368 | H61: =SUMIFS(OPEX!10:10,OPEX!$3:$3,'PAINEL GERAL'!H$57) -> 2168.141668 | I61: =SUMIFS(OPEX!10:10,OPEX!$3:$3,'PAINEL GERAL'!I$57) -> 2290.697066 | J61: =SUMIFS(OPEX!10:10,OPEX!$3:$3,'PAINEL GERAL'!J$57) -> 2317.22685 | K61: =SUMIFS(OPEX!10:10,OPEX!$3:$3,'PAINEL GERAL'!K$57) -> 2374.306092 | L61: =SUMIFS(OPEX!10:10,OPEX!$3:$3,'PAINEL GERAL'!L$57) -> 2415.539717 | M61: =SUMIFS(OPEX!10:10,OPEX!$3:$3,'PAINEL GERAL'!M$57) -> 2456.320366 | N61: =SUMIFS(OPEX!10:10,OPEX!$3:$3,'PAINEL GERAL'!N$57) -> 2496.585081 | O61: =SUMIFS(OPEX!10:10,OPEX!$3:$3,'PAINEL GERAL'!O$57) -> 2536.295919 | P61: =SUMIFS(OPEX!10:10,OPEX!$3:$3,'PAINEL GERAL'!P$57) -> 2575.423637 | Q61: =SUMIFS(OPEX!10:10,OPEX!$3:$3,'PAINEL GERAL'!Q$57) -> 2584.062845
B62: Comercial | C62: =SUMIFS(OPEX!11:11,OPEX!$3:$3,'PAINEL GERAL'!C$57) -> 4044.682 | D62: =SUMIFS(OPEX!11:11,OPEX!$3:$3,'PAINEL GERAL'!D$57) -> 4315.639834 | E62: =SUMIFS(OPEX!11:11,OPEX!$3:$3,'PAINEL GERAL'!E$57) -> 4623.473388 | F62: =SUMIFS(OPEX!11:11,OPEX!$3:$3,'PAINEL GERAL'!F$57) -> 4875.135636 | G62: =SUMIFS(OPEX!11:11,OPEX!$3:$3,'PAINEL GERAL'!G$57) -> 5137.025919 | H62: =SUMIFS(OPEX!11:11,OPEX!$3:$3,'PAINEL GERAL'!H$57) -> 5420.354169 | I62: =SUMIFS(OPEX!11:11,OPEX!$3:$3,'PAINEL GERAL'!I$57) -> 5726.742665 | J62: =SUMIFS(OPEX!11:11,OPEX!$3:$3,'PAINEL GERAL'!J$57) -> 5793.067124 | K62: =SUMIFS(OPEX!11:11,OPEX!$3:$3,'PAINEL GERAL'!K$57) -> 5935.76523 | L62: =SUMIFS(OPEX!11:11,OPEX!$3:$3,'PAINEL GERAL'!L$57) -> 6038.849292 | M62: =SUMIFS(OPEX!11:11,OPEX!$3:$3,'PAINEL GERAL'!M$57) -> 6140.800916 | N62: =SUMIFS(OPEX!11:11,OPEX!$3:$3,'PAINEL GERAL'!N$57) -> 6241.462702 | O62: =SUMIFS(OPEX!11:11,OPEX!$3:$3,'PAINEL GERAL'!O$57) -> 6340.739798 | P62: =SUMIFS(OPEX!11:11,OPEX!$3:$3,'PAINEL GERAL'!P$57) -> 6438.559093 | Q62: =SUMIFS(OPEX!11:11,OPEX!$3:$3,'PAINEL GERAL'!Q$57) -> 6460.157113
B63: UGC's | C63: =SUMIFS(OPEX!12:12,OPEX!$3:$3,'PAINEL GERAL'!C$57) -> 63341 | D63: =SUMIFS(OPEX!12:12,OPEX!$3:$3,'PAINEL GERAL'!D$57) -> 64770.32135 | E63: =SUMIFS(OPEX!12:12,OPEX!$3:$3,'PAINEL GERAL'!E$57) -> 66219.65513 | F63: =SUMIFS(OPEX!12:12,OPEX!$3:$3,'PAINEL GERAL'!F$57) -> 67689.9039 | G63: =SUMIFS(OPEX!12:12,OPEX!$3:$3,'PAINEL GERAL'!G$57) -> 69026.4925 | H63: =SUMIFS(OPEX!12:12,OPEX!$3:$3,'PAINEL GERAL'!H$57) -> 70360.85731 | I63: =SUMIFS(OPEX!12:12,OPEX!$3:$3,'PAINEL GERAL'!I$57) -> 71685.26047 | J63: =SUMIFS(OPEX!12:12,OPEX!$3:$3,'PAINEL GERAL'!J$57) -> 72999.07546 | K63: =SUMIFS(OPEX!12:12,OPEX!$3:$3,'PAINEL GERAL'!K$57) -> 74301.72814 | L63: =SUMIFS(OPEX!12:12,OPEX!$3:$3,'PAINEL GERAL'!L$57) -> 75592.09656 | M63: =SUMIFS(OPEX!12:12,OPEX!$3:$3,'PAINEL GERAL'!M$57) -> 76868.28953 | N63: =SUMIFS(OPEX!12:12,OPEX!$3:$3,'PAINEL GERAL'!N$57) -> 78128.33677 | O63: =SUMIFS(OPEX!12:12,OPEX!$3:$3,'PAINEL GERAL'!O$57) -> 79371.05099 | P63: =SUMIFS(OPEX!12:12,OPEX!$3:$3,'PAINEL GERAL'!P$57) -> 80595.51697 | Q63: =SUMIFS(OPEX!12:12,OPEX!$3:$3,'PAINEL GERAL'!Q$57) -> 81800.02856
B66: VALORES - OPEX
D68: média | E68: 1 | F68: 15 | G68: Total | H68: % (Total)
B70: OPEX | D70: =SUM(D71:D76) -> 197401.6624 | E70: =SUM(E71:E76) -> 183051.0468 | F70: =SUM(F71:F76) -> 212601.0697 | G70: =SUM(G71:G76) -> 2961024.936 | H70: =SUM(H71:H76) -> 1
B71: Operacional | C71: [R$] | D71: =AVERAGE(C59:Q59) -> 52349.33373 | E71: =C59 -> 49641.5 | F71: =Q59 -> 57350.82919 | G71: =SUM(C59:Q59) -> 785240.0059 | H71: =G71/$G$70 -> 0.2651919598
B72: Pessoal | C72: [R$] | D72: =AVERAGE(C60:Q60) -> 64405.992 | E72: =C60 -> 64405.992 | F72: 64405.992 | G72: =SUM(C60:Q60) -> 966089.88 | H72: =G72/$G$70 -> 0.3262687417
B73: Seguros e Garantias | C73: [R$] | D73: =AVERAGE(C61:Q61) -> 2227.53213 | E73: =C61 -> 1617.8728 | F73: 2584.062845 | G73: =SUM(C61:Q61) -> 33412.98195 | H73: 0.01128426226
B74: Comercial | C74: [R$] | D74: =AVERAGE(C62:Q62) -> 5568.830325 | E74: =C62 -> 4044.682 | F74: 6460.157113 | G74: =SUM(C62:Q62) -> 83532.45488 | H74: 0.02821065566
B75: UGC's | C75: [R$] | D75: =AVERAGE(C63:Q63) -> 72849.97424 | E75: =C63 -> 63341 | F75: 81800.02856 | G75: =SUM(C63:Q63) -> 1092749.614 | H75: 0.3690443806
A78: 4. | B78: CAPEX
D80: Total
B81: CapEx | D81: =SUM(CAPEX!K7:K12) -> 38500
A83: 5. | B83: Análise do valor
B85: Resumo - Indicadores | F85: Valor do Contrato
B86: Receita | D86: Valor
B87: Receita - Total | C87: [R$ mil] | D87: =G47/1000 -> 3341.298195 | F87: Total | G87: [R$] | H87: =H90+H92 -> 2999524.936
B88: Receita - Média Anual | C88: [R$ mil] | D88: =(G47/1000)/15 -> 222.753213
B89: OPEX | D89: Valor | F89: CAPEX | G89: [R$]
B90: OPEX - Total | C90: [R$ mil] | D90: =G70/1000 -> 2961.024936 | F90: Obrigatório | G90: [R$] | H90: =D81 -> 38500 | I90: Sim
B91: OPEX - Média Anual | C91: [R$ mil] | D91: =D90/15 -> 197.4016624 | F91: OPEX | G91: [R$]
B92: Indicador | D92: Projeto | F92: Opex Total | G92: [R$] | H92: =G70 -> 2961024.936 | I92: Sim
B93: Prazo | C93: [anos] | D93: 15
B94: Custo de Capital | C94: [% Real] | D94: =F133 -> 0.09764222874
B95: TIR | C95: [% Real] | D95: =IRR(DFC!E17:S17) -> 0.09764228619
B96: VPL | C96: [R$ mil] | D96: =NPV($D$94,DFC!E17:S17) -> 0.04433135004
B97: Payback simples | C97: [anos] | D97: =SUM(DFC!E20:S20) -> 10.08756387
B98: Payback descontado | C98: [anos] | D98: =SUM(DFC!E27:S27) -> 0
A103: 6. | B103: Custo do Capital
B105: Custo de Capital | G105: Fonte:
B107: Taxa Livre de Risco Nominal (EUA) (US$) | C107: [1] | F107: 0.0435 | G107: T-Bond10 (10 anos)
B108: Prêmio pelo Risco País (US$) | C108: [2] | D108: + | F108: 0.0228 | G108: EMBI+
B109: Taxa Livre de Risco País (Nominal US$) | D109: = | F109: =F108+F107 -> 0.0663
B111: Beta Desalavancado | C111: [3] | F111: 0.86 | G111: Beta desalavancado dos EUA para o setor de recreação. Fonte: Damodaran em jan/24
B112: Dívida / capital próprio | E112: D/E | F112: =F129/F130 -> 0
B113: Beta Alavancado | F113: =F111*(1+(1-F126)*F112) -> 0.86 | G113: -
B114: Retorno de Mercado | C114: [4] | F114: 0.1093 | G114: S&P 500 (SPY) - Média anualizada
B115: Prêmio pelo Risco de Mercado | C115: [4.1.] | D115: x | F115: =F114-F107 -> 0.0658
B116: Prêmio por tamanho/liquidez | C116: [5] | D116: + | F116: 0
B117: Prêmio pelo Risco da empresa (Nominal US$) | D117: = | F117: =F113*F115+F116 -> 0.056588
B119: Custo do Capital Próprio (Nominal US$) | D119: = | F119: =SUM(F109,F117) -> 0.122888
B120: Inflação americana de longo prazo | D120: ÷ | F120: 0.023 | G120: CPI
B121: Inflação brasileira de longo prazo | D121: x | F121: 0.05 | G121: IPCA
B122: Custo de Capital Proprio Nominal (R$) | C122: [6] | D122: = | E122: Ke | F122: =((1+F119)/(1+F120)*(1+F121)-1) -> 0.1525243402
B123: Custo de Capital Proprio Real (R$ e US$) | D123: = | F123: =(1+F122)/(1+F121)-1 -> 0.09764222874
B125: Custo Nominal da Dívida antes de Impostos (R$) | F125: 0.14 | G125: TPB - Taxa Preferencial Brasileira
B126: Alíquota de Impostos | D126: x | F126: 0.34
B127: Custo Nominal da Dívida após Impostos (R$) | C127: [7] | D127: = | E127: Kd | F127: =F125*(1-F126) -> 0.0924
B129: Estrutura target para dívida | E129: D | F129: 0 | G129: =(1+F127)/(1+F121)-1 -> 0.04038095238
B130: Estrutura target para capital próprio | E130: E | F130: 1
B131: Dívida / capital próprio | E131: D/E | F131: =F129/F130 -> 0
B132: WACC Nominal (R$) | D132: = | F132: =F129*F127+F130*F122 -> 0.1525243402
B133: WACC Moeda Constante (R$ e US$) | D133: = | F133: =(1+F132)/(1+F121)-1 -> 0.09764222874
A135: 7. | B135: Análise de sensibilidade
C138: VPL RECEITAS | D138: =NPV($F$133,DRE!E17:S17) -> 1551045.126 | G138: VPL | I138: Variação na demanda
C139: VPL CUSTIS | D139: =NPV($F$133,DRE!E19:S19)+DFC!$E$13 -> -1555039.052 | I139: -0.2 | J139: -0.1 | K139: -0.05 | L139: 0 | M139: 0.05 | N139: 0.1 | O139: 0.2
G140: Variação nos custos | H140: =TRANSPOSE(I139:O139) -> -0.2 | I140: =($D$138*I$139)+($D$139*$H140) -> 798.7852099 | J140: =($D$138*J$139)+($D$139*$H140) -> 155903.2978 | K140: =($D$138*K$139)+($D$139*$H140) -> 233455.5541 | L140: =($D$138*L$139)+($D$139*$H140) -> 311007.8103 | M140: =($D$138*M$139)+($D$139*$H140) -> 388560.0666 | N140: =($D$138*N$139)+($D$139*$H140) -> 466112.3229 | O140: =($D$138*O$139)+($D$139*$H140) -> 621216.8355
H141: -0.1 | I141: =($D$138*I$139)+($D$139*$H141) -> -154705.12 | J141: =($D$138*J$139)+($D$139*$H141) -> 399.3926049 | K141: =($D$138*K$139)+($D$139*$H141) -> 77951.64889 | L141: =($D$138*L$139)+($D$139*$H141) -> 155503.9052 | M141: =($D$138*M$139)+($D$139*$H141) -> 233056.1614 | N141: =($D$138*N$139)+($D$139*$H141) -> 310608.4177 | O141: =($D$138*O$139)+($D$139*$H141) -> 465712.9303
H142: -0.05 | I142: =($D$138*I$139)+($D$139*$H142) -> -232457.0725 | J142: =($D$138*J$139)+($D$139*$H142) -> -77352.55998 | K142: =($D$138*K$139)+($D$139*$H142) -> 199.6963025 | L142: =($D$138*L$139)+($D$139*$H142) -> 77751.95258 | M142: =($D$138*M$139)+($D$139*$H142) -> 155304.2089 | N142: =($D$138*N$139)+($D$139*$H142) -> 232856.4651 | O142: =($D$138*O$139)+($D$139*$H142) -> 387960.9777
H143: 0 | I143: =($D$138*I$139)+($D$139*$H143) -> -310209.0251 | J143: =($D$138*J$139)+($D$139*$H143) -> -155104.5126 | K143: =($D$138*K$139)+($D$139*$H143) -> -77552.25628 | L143: =($D$138*L$139)+($D$139*$H143) -> 0 | M143: =($D$138*M$139)+($D$139*$H143) -> 77552.25628 | N143: =($D$138*N$139)+($D$139*$H143) -> 155104.5126 | O143: =($D$138*O$139)+($D$139*$H143) -> 310209.0251
H144: 0.05 | I144: =($D$138*I$139)+($D$139*$H144) -> -387960.9777 | J144: =($D$138*J$139)+($D$139*$H144) -> -232856.4651 | K144: =($D$138*K$139)+($D$139*$H144) -> -155304.2089 | L144: =($D$138*L$139)+($D$139*$H144) -> -77751.95258 | M144: =($D$138*M$139)+($D$139*$H144) -> -199.6963025 | N144: =($D$138*N$139)+($D$139*$H144) -> 77352.55998 | O144: =($D$138*O$139)+($D$139*$H144) -> 232457.0725
H145: 0.1 | I145: =($D$138*I$139)+($D$139*$H145) -> -465712.9303 | J145: =($D$138*J$139)+($D$139*$H145) -> -310608.4177 | K145: =($D$138*K$139)+($D$139*$H145) -> -233056.1614 | L145: =($D$138*L$139)+($D$139*$H145) -> -155503.9052 | M145: =($D$138*M$139)+($D$139*$H145) -> -77951.64889 | N145: =($D$138*N$139)+($D$139*$H145) -> -399.3926049 | O145: =($D$138*O$139)+($D$139*$H145) -> 154705.12
H146: 0.2 | I146: =($D$138*I$139)+($D$139*$H146) -> -621216.8355 | J146: =($D$138*J$139)+($D$139*$H146) -> -466112.3229 | K146: =($D$138*K$139)+($D$139*$H146) -> -388560.0666 | L146: =($D$138*L$139)+($D$139*$H146) -> -311007.8103 | M146: =($D$138*M$139)+($D$139*$H146) -> -233455.5541 | N146: =($D$138*N$139)+($D$139*$H146) -> -155903.2978 | O146: =($D$138*O$139)+($D$139*$H146) -> -798.7852099

Sheet PREMISSÁRIO
A1: 1. | B1: Premissas Gerais
B3: Início do Projeto | C3: 2026-01-01
B4: Prazo do Projeto (anos) | C4: 15
B5: Término do Projeto | C5: =EDATE(C3,12*C4-1) -> 2040-12-01
B6: Projeção | C6: Constantes
A8: 2. | B8: Demanda e Receitas
B10: premissas | C10: objeto | D10: fonte | E10: dado | F10: dado ajustado
B11: Receita Pernoite (Inteira) | C11: R$/ Pernoite | D11: Pesquisas de mercado | E11: =RECEITA!D27 -> 75
B12: Ticket médio por visitante - Alimentação | C12: R$ | D12: EVE Peixe Boi | E12: =RECEITA!E32 -> 30
B13: Ticket médio por visitante - Souvenirs | C13: R$ | D13: EVE Peixe Boi | E13: =RECEITA!E36 -> 25
A15: 3. | B15: OPEX
A17: 3.1. | B17: Equipes e Salários
B18: cargo/função | C18: código | D18: tipo/local | E18: salário | F18: benefícios | G18: encargos | H18: valor mensal
B19: Vigilante | C19: CBO 5173-30 | D19: Média/Brasil | E19: 2394.17 | F19: 0.26 | G19: 0.85 | H19: =E19*(1+SUM(F19:G19)) -> 5051.6987
B20: Auxiliar de escritório | C20: CBO 4221-05 | D20: Média/Brasil | E20: 1736.15 | F20: 0.26 | G20: 0.38 | H20: =E20*(1+SUM(F20:G20)) -> 2847.286
B21: Zelador | C21: CBO 5143-20 | D21: Média/Brasil | E21: 1518 | F21: 0.26 | G21: 0.4 | H21: =E21*(1+SUM(F21:G21)) -> 2519.88
A24: 3.2. | B24: Operacional
B25: objeto | C25: fonte | D25: dado | E25: dado ajustado
B26: Fossa séptica - manutenção mensal | C26: Pré-Projeto | D26: 300
B27: Fossa séptica - manutenção anual | C27: Pré-Projeto | D27: 1500
B28: Caminhão Pipa 20000L | C28: Pré-Projeto | D28: 1500
B29: Tratamento de madeira - manutenção semestral | C29: Pré-Projeto | D29: 2000
B30: Internet e conectividade - mensal | C30: Starlink | D30: 579
B31: CFTV- mensal | C31: EVE Peixe Boi | D31: 646
B32: Câmeras - mensal | C32: EVE Peixe Boi | D32: 22.6
B33: Material e insumos - sanitários - mensal | C33: EVE Peixe Boi | D33: 50
B34: Saponáceos e descartáveis - mensal | C34: EVE Peixe Boi | D34: 0.11
B35: Material e insumos - áreas verdes - mensal | C35: EVE Peixe Boi | D35: 0.3
A37: 4. | B37: CAPEX
B38: objeto | C38: fonte | D38: dado | E38: dado ajustado
B39: Contêiner | C39: - | D39: 18000

Sheet AUXILIARES
A1: Ano | B1: PIB Brasil | C1: Cres. PIB | D1: Pop Brasil | E1: Cres. POP | F1: Visitas Guiadas FLONA (PIB) | G1: Cres. Visitantes
A2: 2016 | B2: 8069998252 | D2: 203871925 | F2: 876 | I2: TABELA SIMPLES NACIONAL
A3: 2017 | B3: 8176764328 | C3: 0.01305725255 | D3: 205211557 | E3: =(D3-D2)/D2 -> 0.006570948894 | F3: 801 | I3: Faixa | J3: Receita Bruta Total em 12 meses | K3: Alíquota | L3: Valor a Deduzir (em R$)
A4: 2018 | B4: 8322637804 | C4: 0.01752731274 | D4: 206529038 | E4: =(D4-D3)/D3 -> 0.006420111125 | F4: 805 | I4: 1ª Faixa | J4: Até R$ 180.000,00 | K4: 0.045 | L4: 0
A5: 2019 | B5: 8424257212 | C5: 0.01206271426 | D5: 207900099 | E5: 0.006638587064 | F5: 1237 | I5: 2ª Faixa | J5: De R$ 180.000,01 a R$ 360.000,00 | K5: 0.078 | L5: 5940
A6: 2020 | B6: 8148194303 | C6: -0.03388025599 | D6: 209164889 | E6: 0.006083643087 | F6: - | I6: 3ª Faixa | J6: De R$ 360.000,01 a R$ 720.000,00 | K6: 0.1 | L6: 13860
A7: 2021 | B7: 8536292797 | C7: 0.04546452469 | D7: 210103642 | E7: 0.004488100295 | F7: 110 | I7: 4ª Faixa | J7: De R$ 720.000,01 a R$ 1.800.000,00 | K7: 0.112 | L7: 22500
A8: 2022 | B8: 8793832751 | C8: 0.02928642845 | D8: 210862983 | E8: 0.003614125832 | F8: 1770 | I8: 5ª Faixa | J8: De R$ 1.800.000,01 a R$ 3.600.000,00 | K8: 0.147 | L8: 85500
A9: 2023 | B9: 9049557408 | C9: 0.02825825009 | D9: 211695158 | E9: 0.003946520096 | F9: 1599 | I9: 6ª Faixa | J9: De R$ 3.600.000,01 a R$ 4.800.000,00 | K9: 0.3 | L9: 720000
A10: 2024 | B10: 9322854041 | C10: 0.02931469618 | D10: 212583750 | E10: 0.004197507437 | F10: 6379 | G10: =(F10-F9)/F10 -> 0.7493337514
A11: 2025 | B11: 9510644290 | C11: 0.01974527101 | D11: 213421037 | E11: 0.003938621837 | F11: 6529.980985 | G11: =(F11-F10)/F11 -> 0.02312119824
A12: 2026 | B12: 9682311420 | C12: 0.01772997397 | D12: 214211951 | E12: 0.003705885845 | F12: 6669.867393 | G12: 0.02097289193
A13: 2027 | B13: 9875957648 | C13: 0.01960784314 | D13: 214959713 | E13: 0.003490757619 | F13: 6823.851005 | G13: 0.02256550029
A14: 2028 | B14: 1.00734768e+10 | C14: 0.01960784314 | D14: 215667282 | E14: 0.003291635396 | F14: 6980.039941 | G14: 0.02237651045
A15: 2029 | B15: 1.027494634e+10 | C15: 0.01960784314 | D15: 216337693 | E15: 0.003108542908 | F15: 7138.533984 | G15: 0.02220260391
A16: 2030 | B16: 1.04549283e+10 | C16: 0.01721503524 | D16: 216973093 | E16: 0.002937074863 | F16: 7282.329107 | G16: 0.01974576006
A17: 2031 | B17: 1.063574626e+10 | C17: 0.01700096659 | D17: 217562970 | E17: 0.002718664291 | F17: 7425.88027 | G17: 0.01933119819
A18: 2032 | B18: 1.081680661e+10 | C18: 0.01673879895 | D18: 218096284 | E18: 0.002451308695 | F18: 7568.3392 | G18: 0.01882301066
A19: 2033 | B19: 1.099809321e+10 | C19: 0.01648345676 | D19: 218574144 | E19: 0.002191050628 | F19: 7709.637952 | G19: 0.01832754706
A20: 2034 | B20: 1.117959286e+10 | C20: 0.01623490733 | D20: 218997707 | E20: 0.00193784586 | F20: 7849.714404 | G20: 0.01784478325
A21: 2035 | B21: 1.136124736e+10 | C21: 0.01598895715 | D21: 219367247 | E21: 0.001687414928 | F21: 7988.446563 | G21: 0.01736660038
A22: 2036 | B22: 1.15429363e+10 | C22: 0.01574027089 | D22: 219681891 | E22: 0.001434325335 | F22: 8125.628497 | G22: 0.01688262431
A23: 2037 | B23: 1.172453251e+10 | C23: 0.01548856679 | D23: 219940741 | E23: 0.001178294664 | F23: 8261.045953 | G23: 0.01639228943
A24: 2038 | B24: 1.19059702e+10 | C24: 0.01523921915 | D24: 220144140 | E24: 0.0009247900097 | F24: 8394.570517 | G24: 0.01590606257
A25: 2039 | B25: 1.208720383e+10 | C25: 0.01499384302 | D25: 220292836 | E25: 0.0006754483676 | F25: 8526.103661 | G25: 0.01542711061
A26: 2040 | B26: 1.226812386e+10 | C26: 0.01474716319 | D26: 220386440 | E26: 0.000424907145 | F26: 8655.460767 | G26: 0.01494514379
A27: 2041 | B27: 1.244865787e+10 | C27: 0.01450228725 | D27: 220425299 | E27: 0.0001763221004 | F27: 8782.510625 | G27: 0.01446623451
A28: 2042 | B28: 1.262875685e+10 | C28: 0.01426102206 | D28: 220410205 | E28: -6.847671328e-05 | F28: 8907.156764 | G28: 0.01399393122
A29: 2043 | B29: 1.280835622e+10 | C29: 0.01402204669 | D29: 220341694 | E29: -0.0003108340651 | F29: 9029.283823 | G29: 0.01352566403
A30: 2044 | B30: 1.298738869e+10 | C30: 0.01378510113 | D30: 220220282 | E30: -0.0005510169128 | F30: 9153.753414 | G30: 0.01359765607
A31: 2045 | B31: 1.316573783e+10 | C31: 0.01354646024 | D31: 220045691 | E31: -0.0007928016367 | F31: 9277.754371 | G31: 0.0133654063
A32: 2046 | B32: 1.334326486e+10 | C32: 0.01330461683 | D32: 219817347 | E32: -0.001037711754 | F32: 9401.191338 | G32: 0.01312992816
A33: 2047 | B33: 1.351985951e+10 | C33: 0.01306187049 | D33: 219535230 | E33: -0.001283415544 | F33: 9523.988481 | G33: 0.01289345781
A34: 2048 | B34: 1.369544502e+10 | C34: 0.01282072308 | D34: 219199916 | E34: -0.001527381277 | F34: 9646.0929 | G34: 0.01265843282
A35: 2049 | B35: 1.386990742e+10 | C35: 0.01257848359 | D35: 218811421 | E35: -0.001772331884 | F35: 9767.426122 | G35: 0.01242223076
A36: 2050 | B36: 1.404310693e+10 | C36: 0.01233341799 | D36: 218369418 | E36: -0.002020017959 | F36: 9887.891871 | G36: 0.01218315801
A37: 2051 | B37: 1.421492457e+10 | C37: 0.01208712983 | D37: 217873978 | E37: -0.002268815865 | F37: 10007.4081 | G37: 0.01194277595
A38: 2052 | B38: 1.43852575e+10 | C38: 0.0118407985 | D38: 217325473 | E38: -0.002517533324 | F38: 10125.90381 | G38: =(F38-F37)/F38 -> 0.0117022347
A39: 2053 | B39: 1.455400112e+10 | C39: 0.01159431128 | D39: 216724289 | E39: -0.002766284098 | F39: 10243.30669 | G39: 0.01146142397
A40: 2054 | B40: 1.472099455e+10 | C40: 0.01134389548 | D40: 216070026 | E40: -0.003018872518 | F40: 10359.50569 | G40: 0.01121665492
A41: 2055 | B41: 1.488609445e+10 | C41: 0.01109088075 | D41: 215362623 | E41: -0.003273952492 | F41: 10474.40173 | G41: 0.01096922241
A42: 2056 | B42: 1.504922644e+10 | C42: 0.01083989218 | D42: 214603069 | E42: -0.003526860833 | F42: 10587.94312 | G42: 0.01072364898
A43: 2057 | B43: 1.521038285e+10 | C43: 0.01059515833 | D43: 213793298 | E43: -0.003773343055 | F43: 10700.12405 | G43: 0.01048407787
A44: 2058 | B44: 1.536947506e+10 | C44: 0.01035118039 | D44: 212934075 | E44: -0.004018942633 | F44: 10810.88296 | G44: 0.01024513119
A45: 2059 | B45: 1.552637534e+10 | C45: 0.01010540298 | D45: 212025649 | E45: -0.004266231227 | F45: 10920.13129 | G45: 0.01000430544
A46: 2060 | B46: 1.568100945e+10 | C46: 0.009861234329 | D46: 211069036 | E46: -0.00451177961 | F46: 11027.81727 | G46: 0.009764939967

Sheet DEMANDA
C1: ANO | J1: 2026 | K1: 2026 | L1: 2026 | M1: 2026 | N1: 2026 | O1: 2026 | P1: 2026 | Q1: 2026 | R1: 2026 | S1: 2026 | T1: 2026 | U1: 2026 | V1: =(2025+V3) -> 2027 | W1: =(2025+W3) -> 2027 | X1: 2027 | Y1: 2027 | Z1: 2027 | AA1: 2027 | AB1: 2027 | AC1: 2027 | AD1: 2027 | AE1: 2027 | AF1: 2027 | AG1: 2027 | AH1: 2028 | AI1: 2028 | AJ1: 2028 | AK1: 2028 | AL1: 2028 | AM1: 2028 | AN1: 2028 | AO1: 2028 | AP1: 2028 | AQ1: 2028 | AR1: 2028 | AS1: 2028 | AT1: 2029 | AU1: 2029 | AV1: 2029 | AW1: 2029 | AX1: 2029 | AY1: 2029 | AZ1: 2029 | BA1: 2029 | BB1: 2029 | BC1: 2029 | BD1: 2029 | BE1: 2029 | BF1: 2030 | BG1: 2030 | BH1: 2030 | BI1: 2030 | BJ1: 2030 | BK1: 2030 | BL1: 2030 | BM1: 2030 | BN1: 2030 | BO1: 2030 | BP1: 2030 | BQ1: 2030 | BR1: 2031 | BS1: 2031 | BT1: 2031 | BU1: 2031 | BV1: 2031 | BW1: 2031 | BX1: 2031 | BY1: 2031 | BZ1: 2031 | CA1: 2031 | CB1: 2031 | CC1: 2031 | CD1: 2032 | CE1: 2032 | CF1: 2032 | CG1: 2032 | CH1: 2032 | CI1: =(2025+CI3) -> 2032 | CJ1: 2032 | CK1: 2032 | CL1: 2032 | CM1: 2032 | CN1: 2032 | CO1: 2032 | CP1: 2033 | CQ1: 2033 | CR1: 2033 | CS1: 2033 | CT1: 2033 | CU1: 2033 | CV1: 2033 | CW1: 2033 | CX1: 2033 | CY1: 2033 | CZ1: 2033 | DA1: 2033 | DB1: 2034 | DC1: 2034 | DD1: 2034 | DE1: 2034 | DF1: 2034 | DG1: 2034 | DH1: 2034 | DI1: 2034 | DJ1: 2034 | DK1: 2034 | DL1: 2034 | DM1: 2034 | DN1: 2035 | DO1: 2035 | DP1: 2035 | DQ1: 2035 | DR1: 2035 | DS1: 2035 | DT1: 2035 | DU1: 2035 | DV1: 2035 | DW1: 2035 | DX1: 2035 | DY1: 2035 | DZ1: 2036 | EA1: 2036 | EB1: 2036 | EC1: 2036 | ED1: 2036 | EE1: 2036 | EF1: 2036 | EG1: 2036 | EH1: 2036 | EI1: 2036 | EJ1: 2036 | EK1: 2036 | EL1: 2037 | EM1: 2037 | EN1: 2037 | EO1: 2037 | EP1: 2037 | EQ1: 2037 | ER1: 2037 | ES1: 2037 | ET1: 2037 | EU1: =(2025+EU3) -> 2037 | EV1: 2037 | EW1: 2037 | EX1: 2038 | EY1: 2038 | EZ1: 2038 | FA1: 2038 | FB1: 2038 | FC1: 2038 | FD1: 2038 | FE1: 2038 | FF1: 2038 | FG1: 2038 | FH1: 2038 | FI1: 2038 | FJ1: 2039 | FK1: 2039 | FL1: 2039 | FM1: 2039 | FN1: 2039 | FO1: 2039 | FP1: 2039 | FQ1: 2039 | FR1: 2039 | FS1: 2039 | FT1: 2039 | FU1: 2039 | FV1: 2040 | FW1: 2040 | FX1: 2040 | FY1: 2040 | FZ1: 2040 | GA1: 2040 | GB1: 2040 | GC1: 2040 | GD1: 2040 | GE1: 2040 | GF1: 2040 | GG1: 2040
C2: MÊS - ANO | J2: 2026-01-01 | K2: =EDATE(J2,1) -> 2026-02-01 | L2: =EDATE(K2,1) -> 2026-03-01 | M2: 2026-04-01 | N2: 2026-05-01 | O2: 2026-06-01 | P2: 2026-07-01 | Q2: 2026-08-01 | R2: 2026-09-01 | S2: 2026-10-01 | T2: 2026-11-01 | U2: 2026-12-01 | V2: 2027-01-01 | W2: 2027-02-01 | X2: 2027-03-01 | Y2: 2027-04-01 | Z2: 2027-05-01 | AA2: 2027-06-01 | AB2: 2027-07-01 | AC2: 2027-08-01 | AD2: 2027-09-01 | AE2: 2027-10-01 | AF2: 2027-11-01 | AG2: 2027-12-01 | AH2: 2028-01-01 | AI2: 2028-02-01 | AJ2: 2028-03-01 | AK2: 2028-04-01 | AL2: 2028-05-01 | AM2: 2028-06-01 | AN2: 2028-07-01 | AO2: 2028-08-01 | AP2: 2028-09-01 | AQ2: 2028-10-01 | AR2: 2028-11-01 | AS2: 2028-12-01 | AT2: 2029-01-01 | AU2: 2029-02-01 | AV2: 2029-03-01 | AW2: 2029-04-01 | AX2: 2029-05-01 | AY2: 2029-06-01 | AZ2: 2029-07-01 | BA2: 2029-08-01 | BB2: 2029-09-01 | BC2: 2029-10-01 | BD2: 2029-11-01 | BE2: 2029-12-01 | BF2: 2030-01-01 | BG2: 2030-02-01 | BH2: 2030-03-01 | BI2: 2030-04-01 | BJ2: 2030-05-01 | BK2: 2030-06-01 | BL2: 2030-07-01 | BM2: 2030-08-01 | BN2: 2030-09-01 | BO2: 2030-10-01 | BP2: 2030-11-01 | BQ2: 2030-12-01 | BR2: 2031-01-01 | BS2: 2031-02-01 | BT2: 2031-03-01 | BU2: 2031-04-01 | BV2: 2031-05-01 | BW2: 2031-06-01 | BX2: =EDATE(BW2,1) -> 2031-07-01 | BY2: 2031-08-01 | BZ2: 2031-09-01 | CA2: 2031-10-01 | CB2: 2031-11-01 | CC2: 2031-12-01 | CD2: 2032-01-01 | CE2: 2032-02-01 | CF2: 2032-03-01 | CG2: 2032-04-01 | CH2: 2032-05-01 | CI2: 2032-06-01 | CJ2: 2032-07-01 | CK2: 2032-08-01 | CL2: 2032-09-01 | CM2: 2032-10-01 | CN2: 2032-11-01 | CO2: 2032-12-01 | CP2: 2033-01-01 | CQ2: 2033-02-01 | CR2: 2033-03-01 | CS2: 2033-04-01 | CT2: 2033-05-01 | CU2: 2033-06-01 | CV2: 2033-07-01 | CW2: 2033-08-01 | CX2: 2033-09-01 | CY2: 2033-10-01 | CZ2: 2033-11-01 | DA2: 2033-12-01 | DB2: 2034-01-01 | DC2: 2034-02-01 | DD2: 2034-03-01 | DE2: 2034-04-01 | DF2: 2034-05-01 | DG2: 2034-06-01 | DH2: 2034-07-01 | DI2: 2034-08-01 | DJ2: 2034-09-01 | DK2: 2034-10-01 | DL2: 2034-11-01 | DM2: 2034-12-01 | DN2: 2035-01-01 | DO2: 2035-02-01 | DP2: 2035-03-01 | DQ2: 2035-04-01 | DR2: 2035-05-01 | DS2: 2035-06-01 | DT2: 2035-07-01 | DU2: 2035-08-01 | DV2: 2035-09-01 | DW2: 2035-10-01 | DX2: 2035-11-01 | DY2: 2035-12-01 | DZ2: 2036-01-01 | EA2: 2036-02-01 | EB2: 2036-03-01 | EC2: 2036-04-01 | ED2: 2036-05-01 | EE2: 2036-06-01 | EF2: 2036-07-01 | EG2: 2036-08-01 | EH2: 2036-09-01 | EI2: 2036-10-01 | EJ2: =EDATE(EI2,1) -> 2036-11-01 | EK2: 2036-12-01 | EL2: 2037-01-01 | EM2: 2037-02-01 | EN2: 2037-03-01 | EO2: 2037-04-01 | EP2: 2037-05-01 | EQ2: 2037-06-01 | ER2: 2037-07-01 | ES2: 2037-08-01 | ET2: 2037-09-01 | EU2: 2037-10-01 | EV2: 2037-11-01 | EW2: 2037-12-01 | EX2: 2038-01-01 | EY2: 2038-02-01 | EZ2: 2038-03-01 | FA2: 2038-04-01 | FB2: 2038-05-01 | FC2: 2038-06-01 | FD2: 2038-07-01 | FE2: 2038-08-01 | FF2: 2038-09-01 | FG2: 2038-10-01 | FH2: 2038-11-01 | FI2: 2038-12-01 | FJ2: 2039-01-01 | FK2: 2039-02-01 | FL2: 2039-03-01 | FM2: 2039-04-01 | FN2: 2039-05-01 | FO2: 2039-06-01 | FP2: 2039-07-01 | FQ2: 2039-08-01 | FR2: 2039-09-01 | FS2: 2039-10-01 | FT2: 2039-11-01 | FU2: 2039-12-01 | FV2: 2040-01-01 | FW2: 2040-02-01 | FX2: 2040-03-01 | FY2: 2040-04-01 | FZ2: 2040-05-01 | GA2: 2040-06-01 | GB2: 2040-07-01 | GC2: 2040-08-01 | GD2: 2040-09-01 | GE2: 2040-10-01 | GF2: 2040-11-01 | GG2: 2040-12-01
C3: ANO OPERAÇÃO | J3: =ROUNDUP(J4/12,0) -> 1 | K3: =ROUNDUP(K4/12,0) -> 1 | L3: 1 | M3: 1 | N3: 1 | O3: 1 | P3: 1 | Q3: 1 | R3: 1 | S3: 1 | T3: 1 | U3: 1 | V3: 2 | W3: 2 | X3: 2 | Y3: 2 | Z3: 2 | AA3: 2 | AB3: 2 | AC3: 2 | AD3: 2 | AE3: 2 | AF3: 2 | AG3: 2 | AH3: 3 | AI3: 3 | AJ3: 3 | AK3: 3 | AL3: 3 | AM3: 3 | AN3: 3 | AO3: 3 | AP3: 3 | AQ3: 3 | AR3: 3 | AS3: 3 | AT3: 4 | AU3: 4 | AV3: 4 | AW3: 4 | AX3: 4 | AY3: 4 | AZ3: 4 | BA3: 4 | BB3: 4 | BC3: 4 | BD3: 4 | BE3: 4 | BF3: 5 | BG3: 5 | BH3: 5 | BI3: 5 | BJ3: 5 | BK3: 5 | BL3: 5 | BM3: 5 | BN3: 5 | BO3: 5 | BP3: 5 | BQ3: 5 | BR3: 6 | BS3: 6 | BT3: 6 | BU3: 6 | BV3: 6 | BW3: =ROUNDUP(BW4/12,0) -> 6 | BX3: 6 | BY3: 6 | BZ3: 6 | CA3: 6 | CB3: 6 | CC3: 6 | CD3: 7 | CE3: 7 | CF3: 7 | CG3: 7 | CH3: 7 | CI3: 7 | CJ3: 7 | CK3: 7 | CL3: 7 | CM3: 7 | CN3: 7 | CO3: 7 | CP3: 8 | CQ3: 8 | CR3: 8 | CS3: 8 | CT3: 8 | CU3: 8 | CV3: 8 | CW3: 8 | CX3: 8 | CY3: 8 | CZ3: 8 | DA3: 8 | DB3: 9 | DC3: 9 | DD3: 9 | DE3: 9 | DF3: 9 | DG3: 9 | DH3: 9 | DI3: 9 | DJ3: 9 | DK3: 9 | DL3: 9 | DM3: 9 | DN3: 10 | DO3: 10 | DP3: 10 | DQ3: 10 | DR3: 10 | DS3: 10 | DT3: 10 | DU3: 10 | DV3: 10 | DW3: 10 | DX3: 10 | DY3: 10 | DZ3: 11 | EA3: 11 | EB3: 11 | EC3: 11 | ED3: 11 | EE3: 11 | EF3: 11 | EG3: 11 | EH3: 11 | EI3: =ROUNDUP(EI4/12,0) -> 11 | EJ3: 11 | EK3: 11 | EL3: 12 | EM3: 12 | EN3: 12 | EO3: 12 | EP3: 12 | EQ3: 12 | ER3: 12 | ES3: 12 | ET3: 12 | EU3: 12 | EV3: 12 | EW3: 12 | EX3: 13 | EY3: 13 | EZ3: 13 | FA3: 13 | FB3: 13 | FC3: 13 | FD3: 13 | FE3: 13 | FF3: 13 | FG3: 13 | FH3: 13 | FI3: 13 | FJ3: 14 | FK3: 14 | FL3: 14 | FM3: 14 | FN3: 14 | FO3: 14 | FP3: 14 | FQ3: 14 | FR3: 14 | FS3: 14 | FT3: 14 | FU3: 14 | FV3: 15 | FW3: 15 | FX3: 15 | FY3: 15 | FZ3: 15 | GA3: 15 | GB3: 15 | GC3: 15 | GD3: 15 | GE3: 15 | GF3: 15 | GG3: 15
C4: MÊS | J4: 1 | K4: 2 | L4: 3 | M4: 4 | N4: 5 | O4: 6 | P4: 7 | Q4: 8 | R4: 9 | S4: 10 | T4: 11 | U4: 12 | V4: 13 | W4: 14 | X4: 15 | Y4: 16 | Z4: 17 | AA4: 18 | AB4: 19 | AC4: 20 | AD4: 21 | AE4: 22 | AF4: 23 | AG4: 24 | AH4: 25 | AI4: 26 | AJ4: 27 | AK4: 28 | AL4: 29 | AM4: 30 | AN4: 31 | AO4: 32 | AP4: 33 | AQ4: 34 | AR4: 35 | AS4: 36 | AT4: 37 | AU4: 38 | AV4: 39 | AW4: 40 | AX4: 41 | AY4: 42 | AZ4: 43 | BA4: 44 | BB4: 45 | BC4: 46 | BD4: 47 | BE4: 48 | BF4: 49 | BG4: 50 | BH4: 51 | BI4: 52 | BJ4: 53 | BK4: 54 | BL4: 55 | BM4: 56 | BN4: 57 | BO4: 58 | BP4: 59 | BQ4: 60 | BR4: 61 | BS4: 62 | BT4: 63 | BU4: 64 | BV4: 65 | BW4: 66 | BX4: 67 | BY4: 68 | BZ4: 69 | CA4: 70 | CB4: 71 | CC4: 72 | CD4: 73 | CE4: 74 | CF4: 75 | CG4: 76 | CH4: 77 | CI4: 78 | CJ4: 79 | CK4: 80 | CL4: 81 | CM4: 82 | CN4: 83 | CO4: 84 | CP4: 85 | CQ4: 86 | CR4: 87 | CS4: 88 | CT4: 89 | CU4: 90 | CV4: 91 | CW4: 92 | CX4: 93 | CY4: 94 | CZ4: 95 | DA4: 96 | DB4: 97 | DC4: 98 | DD4: 99 | DE4: 100 | DF4: 101 | DG4: 102 | DH4: 103 | DI4: 104 | DJ4: 105 | DK4: 106 | DL4: 107 | DM4: 108 | DN4: 109 | DO4: 110 | DP4: 111 | DQ4: 112 | DR4: 113 | DS4: 114 | DT4: 115 | DU4: 116 | DV4: 117 | DW4: 118 | DX4: 119 | DY4: 120 | DZ4: 121 | EA4: 122 | EB4: 123 | EC4: 124 | ED4: 125 | EE4: 126 | EF4: 127 | EG4: 128 | EH4: 129 | EI4: 130 | EJ4: 131 | EK4: 132 | EL4: 133 | EM4: 134 | EN4: 135 | EO4: 136 | EP4: 137 | EQ4: 138 | ER4: 139 | ES4: 140 | ET4: 141 | EU4: 142 | EV4: 143 | EW4: 144 | EX4: 145 | EY4: 146 | EZ4: 147 | FA4: 148 | FB4: 149 | FC4: 150 | FD4: 151 | FE4: 152 | FF4: 153 | FG4: 154 | FH4: 155 | FI4: 156 | FJ4: 157 | FK4: 158 | FL4: 159 | FM4: 160 | FN4: 161 | FO4: 162 | FP4: 163 | FQ4: 164 | FR4: 165 | FS4: 166 | FT4: 167 | FU4: 168 | FV4: 169 | FW4: 170 | FX4: 171 | FY4: 172 | FZ4: 173 | GA4: 174 | GB4: 175 | GC4: 176 | GD4: 177 | GE4: 178 | GF4: 179 | GG4: 180
C6: Crescimento anual | J6: =TRANSPOSE(AUXILIARES!G12:G46) -> 0.02097289193 | K6: 0.02256550029 | L6: 0.02237651045 | M6: 0.02220260391 | N6: 0.01974576006 | O6: 0.01933119819 | P6: 0.01882301066 | Q6: 0.01832754706 | R6: 0.01784478325 | S6: 0.01736660038 | T6: 0.01688262431 | U6: 0.01639228943 | V6: 0.01590606257 | W6: 0.01542711061 | X6: 0.01494514379 | Y6: 0.01446623451 | Z6: 0.01399393122 | AA6: 0.01352566403 | AB6: 0.01359765607 | AC6: 0.0133654063 | AD6: 0.01312992816 | AE6: 0.01289345781 | AF6: 0.01265843282 | AG6: 0.01242223076 | AH6: 0.01218315801 | AI6: 0.01194277595 | AJ6: 0.0117022347 | AK6: 0.01146142397 | AL6: 0.01121665492 | AM6: 0.01096922241 | AN6: 0.01072364898 | AO6: 0.01048407787 | AP6: 0.01024513119 | AQ6: 0.01000430544 | AR6: 0.009764939967
C8: Demanda Total - Visitas guiadas
C9: Ano | J9: 2026 | K9: 2027 | L9: 2028 | M9: 2029 | N9: 2030 | O9: 2031 | P9: 2032 | Q9: 2033 | R9: 2034 | S9: 2035 | T9: 2036 | U9: 2037 | V9: 2038 | W9: 2039 | X9: 2040
C10: Visitantes | J10: 6530 | K10: =J10*(1+K6) -> 6677.352717 | L10: =K10*(1+L6) -> 6826.76857 | M10: =L10*(1+M6) -> 6978.340608 | N10: =M10*(1+N6) -> 7116.133248 | O10: =N10*(1+O6) -> 7253.69663 | P10: =O10*(1+P6) -> 7390.233039 | Q10: =P10*(1+Q6) -> 7525.677882 | R10: =Q10*(1+R6) -> 7659.971973 | S10: =R10*(1+S6) -> 7792.999645 | T10: =S10*(1+T6) -> 7924.56593 | U10: =T10*(1+U6) -> 8054.467709 | V10: =U10*(1+V6) -> 8182.582576 | W10: =V10*(1+W6) -> 8308.816183 | X10: =W10*(1+X6) -> 8432.992635
C12: Mês - Ano | J12: =J2 -> 2026-01-01 | K12: =K2 -> 2026-02-01 | L12: =L2 -> 2026-03-01 | M12: 2026-04-01 | N12: 2026-05-01 | O12: 2026-06-01 | P12: 2026-07-01 | Q12: 2026-08-01 | R12: 2026-09-01 | S12: 2026-10-01 | T12: 2026-11-01 | U12: 2026-12-01 | V12: 2027-01-01 | W12: 2027-02-01 | X12: 2027-03-01 | Y12: 2027-04-01 | Z12: 2027-05-01 | AA12: 2027-06-01 | AB12: 2027-07-01 | AC12: 2027-08-01 | AD12: 2027-09-01 | AE12: 2027-10-01 | AF12: 2027-11-01 | AG12: 2027-12-01 | AH12: 2028-01-01 | AI12: 2028-02-01 | AJ12: 2028-03-01 | AK12: 2028-04-01 | AL12: 2028-05-01 | AM12: 2028-06-01 | AN12: 2028-07-01 | AO12: 2028-08-01 | AP12: 2028-09-01 | AQ12: 2028-10-01 | AR12: 2028-11-01 | AS12: 2028-12-01 | AT12: 2029-01-01 | AU12: 2029-02-01 | AV12: 2029-03-01 | AW12: 2029-04-01 | AX12: 2029-05-01 | AY12: 2029-06-01 | AZ12: 2029-07-01 | BA12: 2029-08-01 | BB12: 2029-09-01 | BC12: 2029-10-01 | BD12: 2029-11-01 | BE12: 2029-12-01 | BF12: 2030-01-01 | BG12: 2030-02-01 | BH12: 2030-03-01 | BI12: 2030-04-01 | BJ12: 2030-05-01 | BK12: 2030-06-01 | BL12: 2030-07-01 | BM12: 2030-08-01 | BN12: 2030-09-01 | BO12: 2030-10-01 | BP12: 2030-11-01 | BQ12: 2030-12-01 | BR12: 2031-01-01 | BS12: 2031-02-01 | BT12: 2031-03-01 | BU12: 2031-04-01 | BV12: 2031-05-01 | BW12: 2031-06-01 | BX12: =BX2 -> 2031-07-01 | BY12: 2031-08-01 | BZ12: 2031-09-01 | CA12: 2031-10-01 | CB12: 2031-11-01 | CC12: 2031-12-01 | CD12: 2032-01-01 | CE12: 2032-02-01 | CF12: 2032-03-01 | CG12: 2032-04-01 | CH12: 2032-05-01 | CI12: 2032-06-01 | CJ12: 2032-07-01 | CK12: 2032-08-01 | CL12: 2032-09-01 | CM12: 2032-10-01 | CN12: 2032-11-01 | CO12: 2032-12-01 | CP12: 2033-01-01 | CQ12: 2033-02-01 | CR12: 2033-03-01 | CS12: 2033-04-01 | CT12: 2033-05-01 | CU12: 2033-06-01 | CV12: 2033-07-01 | CW12: 2033-08-01 | CX12: 2033-09-01 | CY12: 2033-10-01 | CZ12: 2033-11-01 | DA12: 2033-12-01 | DB12: 2034-01-01 | DC12: 2034-02-01 | DD12: 2034-03-01 | DE12: 2034-04-01 | DF12: 2034-05-01 | DG12: 2034-06-01 | DH12: 2034-07-01 | DI12: 2034-08-01 | DJ12: 2034-09-01 | DK12: 2034-10-01 | DL12: 2034-11-01 | DM12: 2034-12-01 | DN12: 2035-01-01 | DO12: 2035-02-01 | DP12: 2035-03-01 | DQ12: 2035-04-01 | DR12: 2035-05-01 | DS12: 2035-06-01 | DT12: 2035-07-01 | DU12: 2035-08-01 | DV12: 2035-09-01 | DW12: 2035-10-01 | DX12: 2035-11-01 | DY12: 2035-12-01 | DZ12: 2036-01-01 | EA12: 2036-02-01 | EB12: 2036-03-01 | EC12: 2036-04-01 | ED12: 2036-05-01 | EE12: 2036-06-01 | EF12: 2036-07-01 | EG12: 2036-08-01 | EH12: 2036-09-01 | EI12: 2036-10-01 | EJ12: =EJ2 -> 2036-11-01 | EK12: 2036-12-01 | EL12: 2037-01-01 | EM12: 2037-02-01 | EN12: 2037-03-01 | EO12: 2037-04-01 | EP12: 2037-05-01 | EQ12: 2037-06-01 | ER12: 2037-07-01 | ES12: 2037-08-01 | ET12: 2037-09-01 | EU12: 2037-10-01 | EV12: 2037-11-01 | EW12: 2037-12-01 | EX12: 2038-01-01 | EY12: 2038-02-01 | EZ12: 2038-03-01 | FA12: 2038-04-01 | FB12: 2038-05-01 | FC12: 2038-06-01 | FD12: 2038-07-01 | FE12: 2038-08-01 | FF12: 2038-09-01 | FG12: 2038-10-01 | FH12: 2038-11-01 | FI12: 2038-12-01 | FJ12: 2039-01-01 | FK12: 2039-02-01 | FL12: 2039-03-01 | FM12: 2039-04-01 | FN12: 2039-05-01 | FO12: 2039-06-01 | FP12: 2039-07-01 | FQ12: 2039-08-01 | FR12: 2039-09-01 | FS12: 2039-10-01 | FT12: 2039-11-01 | FU12: 2039-12-01 | FV12: 2040-01-01 | FW12: 2040-02-01 | FX12: 2040-03-01 | FY12: 2040-04-01 | FZ12: 2040-05-01 | GA12: 2040-06-01 | GB12: 2040-07-01 | GC12: 2040-08-01 | GD12: 2040-09-01 | GE12: 2040-10-01 | GF12: 2040-11-01 | GG12: 2040-12-01
C13: Visitantes | J13: =SUMIF($J$9:$GG$9,J1,$J$10:$GG$10)*HLOOKUP(MONTH(J12),$J$16:$U$17,2,FALSE) -> 520.5183619 | K13: =SUMIF($J$9:$GG$9,K1,$J$10:$GG$10)*HLOOKUP(MONTH(K12),$J$16:$U$17,2,FALSE) -> 706.6369118 | L13: =SUMIF($J$9:$GG$9,L1,$J$10:$GG$10)*HLOOKUP(MONTH(L12),$J$16:$U$17,2,FALSE) -> 501.0884034 | M13: =SUMIF($J$9:$GG$9,M1,$J$10:$GG$10)*HLOOKUP(MONTH(M12),$J$16:$U$17,2,FALSE) -> 418.7667371 | N13: =SUMIF($J$9:$GG$9,N1,$J$10:$GG$10)*HLOOKUP(MONTH(N12),$J$16:$U$17,2,FALSE) -> 904.5156996 | O13: =SUMIF($J$9:$GG$9,O1,$J$10:$GG$10)*HLOOKUP(MONTH(O12),$J$16:$U$17,2,FALSE) -> 641.1886305 | P13: =SUMIF($J$9:$GG$9,P1,$J$10:$GG$10)*HLOOKUP(MONTH(P12),$J$16:$U$17,2,FALSE) -> 692.3201002 | Q13: =SUMIF($J$9:$GG$9,Q1,$J$10:$GG$10)*HLOOKUP(MONTH(Q12),$J$16:$U$17,2,FALSE) -> 413.1422755 | R13: =SUMIF($J$9:$GG$9,R1,$J$10:$GG$10)*HLOOKUP(MONTH(R12),$J$16:$U$17,2,FALSE) -> 462.7398011 | S13: =SUMIF($J$9:$GG$9,S1,$J$10:$GG$10)*HLOOKUP(MONTH(S12),$J$16:$U$17,2,FALSE) -> 459.6719129 | T13: =SUMIF($J$9:$GG$9,T1,$J$10:$GG$10)*HLOOKUP(MONTH(T12),$J$16:$U$17,2,FALSE) -> 371.725785 | U13: =SUMIF($J$9:$GG$9,U1,$J$10:$GG$10)*HLOOKUP(MONTH(U12),$J$16:$U$17,2,FALSE) -> 437.6853809 | V13: =SUMIF($J$9:$GG$9,V1,$J$10:$GG$10)*HLOOKUP(MONTH(V12),$J$16:$U$17,2,FALSE) -> 532.2641192 | W13: =SUMIF($J$9:$GG$9,W1,$J$10:$GG$10)*HLOOKUP(MONTH(W12),$J$16:$U$17,2,FALSE) -> 722.5825272 | X13: =SUMIF($J$9:$GG$9,X1,$J$10:$GG$10)*HLOOKUP(MONTH(X12),$J$16:$U$17,2,FALSE) -> 512.3957139 | Y13: =SUMIF($J$9:$GG$9,Y1,$J$10:$GG$10)*HLOOKUP(MONTH(Y12),$J$16:$U$17,2,FALSE) -> 428.2164181 | Z13: =SUMIF($J$9:$GG$9,Z1,$J$10:$GG$10)*HLOOKUP(MONTH(Z12),$J$16:$U$17,2,FALSE) -> 924.9265489 | AA13: =SUMIF($J$9:$GG$9,AA1,$J$10:$GG$10)*HLOOKUP(MONTH(AA12),$J$16:$U$17,2,FALSE) -> 655.6573727 | AB13: =SUMIF($J$9:$GG$9,AB1,$J$10:$GG$10)*HLOOKUP(MONTH(AB12),$J$16:$U$17,2,FALSE) -> 707.9426496 | AC13: =SUMIF($J$9:$GG$9,AC1,$J$10:$GG$10)*HLOOKUP(MONTH(AC12),$J$16:$U$17,2,FALSE) -> 422.4650376 | AD13: =SUMIF($J$9:$GG$9,AD1,$J$10:$GG$10)*HLOOKUP(MONTH(AD12),$J$16:$U$17,2,FALSE) -> 473.1817562 | AE13: =SUMIF($J$9:$GG$9,AE1,$J$10:$GG$10)*HLOOKUP(MONTH(AE12),$J$16:$U$17,2,FALSE) -> 470.0446396 | AF13: =SUMIF($J$9:$GG$9,AF1,$J$10:$GG$10)*HLOOKUP(MONTH(AF12),$J$16:$U$17,2,FALSE) -> 380.1139633 | AG13: =SUMIF($J$9:$GG$9,AG1,$J$10:$GG$10)*HLOOKUP(MONTH(AG12),$J$16:$U$17,2,FALSE) -> 447.5619705 | AH13: =SUMIF($J$9:$GG$9,AH1,$J$10:$GG$10)*HLOOKUP(MONTH(AH12),$J$16:$U$17,2,FALSE) -> 544.1743328 | AI13: =SUMIF($J$9:$GG$9,AI1,$J$10:$GG$10)*HLOOKUP(MONTH(AI12),$J$16:$U$17,2,FALSE) -> 738.7514027 | AJ13: =SUMIF($J$9:$GG$9,AJ1,$J$10:$GG$10)*HLOOKUP(MONTH(AJ12),$J$16:$U$17,2,FALSE) -> 523.861342 | AK13: =SUMIF($J$9:$GG$9,AK1,$J$10:$GG$10)*HLOOKUP(MONTH(AK12),$J$16:$U$17,2,FALSE) -> 437.7984072 | AL13: =SUMIF($J$9:$GG$9,AL1,$J$10:$GG$10)*HLOOKUP(MONTH(AL12),$J$16:$U$17,2,FALSE) -> 945.6231775 | AM13: =SUMIF($J$9:$GG$9,AM1,$J$10:$GG$10)*HLOOKUP(MONTH(AM12),$J$16:$U$17,2,FALSE) -> 670.3286968 | AN13: =SUMIF($J$9:$GG$9,AN1,$J$10:$GG$10)*HLOOKUP(MONTH(AN12),$J$16:$U$17,2,FALSE) -> 723.7839357 | AO13: =SUMIF($J$9:$GG$9,AO1,$J$10:$GG$10)*HLOOKUP(MONTH(AO12),$J$16:$U$17,2,FALSE) -> 431.9183309 | AP13: =SUMIF($J$9:$GG$9,AP1,$J$10:$GG$10)*HLOOKUP(MONTH(AP12),$J$16:$U$17,2,FALSE) -> 483.7699127 | AQ13: =SUMIF($J$9:$GG$9,AQ1,$J$10:$GG$10)*HLOOKUP(MONTH(AQ12),$J$16:$U$17,2,FALSE) -> 480.5625984 | AR13: =SUMIF($J$9:$GG$9,AR1,$J$10:$GG$10)*HLOOKUP(MONTH(AR12),$J$16:$U$17,2,FALSE) -> 388.6195874 | AS13: =SUMIF($J$9:$GG$9,AS1,$J$10:$GG$10)*HLOOKUP(MONTH(AS12),$J$16:$U$17,2,FALSE) -> 457.5768456 | AT13: =SUMIF($J$9:$GG$9,AT1,$J$10:$GG$10)*HLOOKUP(MONTH(AT12),$J$16:$U$17,2,FALSE) -> 556.25642 | AU13: =SUMIF($J$9:$GG$9,AU1,$J$10:$GG$10)*HLOOKUP(MONTH(AU12),$J$16:$U$17,2,FALSE) -> 755.1536074 | AV13: =SUMIF($J$9:$GG$9,AV1,$J$10:$GG$10)*HLOOKUP(MONTH(AV12),$J$16:$U$17,2,FALSE) -> 535.4924278 | AW13: =SUMIF($J$9:$GG$9,AW1,$J$10:$GG$10)*HLOOKUP(MONTH(AW12),$J$16:$U$17,2,FALSE) -> 447.5186718 | AX13: =SUMIF($J$9:$GG$9,AX1,$J$10:$GG$10)*HLOOKUP(MONTH(AX12),$J$16:$U$17,2,FALSE) -> 966.6184744 | AY13: =SUMIF($J$9:$GG$9,AY1,$J$10:$GG$10)*HLOOKUP(MONTH(AY12),$J$16:$U$17,2,FALSE) -> 685.2117393 | AZ13: =SUMIF($J$9:$GG$9,AZ1,$J$10:$GG$10)*HLOOKUP(MONTH(AZ12),$J$16:$U$17,2,FALSE) -> 739.8538238 | BA13: =SUMIF($J$9:$GG$9,BA1,$J$10:$GG$10)*HLOOKUP(MONTH(BA12),$J$16:$U$17,2,FALSE) -> 441.5080426 | BB13: =SUMIF($J$9:$GG$9,BB1,$J$10:$GG$10)*HLOOKUP(MONTH(BB12),$J$16:$U$17,2,FALSE) -> 494.5108645 | BC13: =SUMIF($J$9:$GG$9,BC1,$J$10:$GG$10)*HLOOKUP(MONTH(BC12),$J$16:$U$17,2,FALSE) -> 491.2323394 | BD13: =SUMIF($J$9:$GG$9,BD1,$J$10:$GG$10)*HLOOKUP(MONTH(BD12),$J$16:$U$17,2,FALSE) -> 397.2479541 | BE13: =SUMIF($J$9:$GG$9,BE1,$J$10:$GG$10)*HLOOKUP(MONTH(BE12),$J$16:$U$17,2,FALSE) -> 467.7362431 | BF13: =SUMIF($J$9:$GG$9,BF1,$J$10:$GG$10)*HLOOKUP(MONTH(BF12),$J$16:$U$17,2,FALSE) -> 567.2401258 | BG13: =SUMIF($J$9:$GG$9,BG1,$J$10:$GG$10)*HLOOKUP(MONTH(BG12),$J$16:$U$17,2,FALSE) -> 770.0646894 | BH13: =SUMIF($J$9:$GG$9,BH1,$J$10:$GG$10)*HLOOKUP(MONTH(BH12),$J$16:$U$17,2,FALSE) -> 546.0661328 | BI13: =SUMIF($J$9:$GG$9,BI1,$J$10:$GG$10)*HLOOKUP(MONTH(BI12),$J$16:$U$17,2,FALSE) -> 456.3552682 | BJ13: =SUMIF($J$9:$GG$9,BJ1,$J$10:$GG$10)*HLOOKUP(MONTH(BJ12),$J$16:$U$17,2,FALSE) -> 985.7050908 | BK13: =SUMIF($J$9:$GG$9,BK1,$J$10:$GG$10)*HLOOKUP(MONTH(BK12),$J$16:$U$17,2,FALSE) -> 698.7417659 | BL13: =SUMIF($J$9:$GG$9,BL1,$J$10:$GG$10)*HLOOKUP(MONTH(BL12),$J$16:$U$17,2,FALSE) -> 754.4627999 | BM13: =SUMIF($J$9:$GG$9,BM1,$J$10:$GG$10)*HLOOKUP(MONTH(BM12),$J$16:$U$17,2,FALSE) -> 450.2259544 | BN13: =SUMIF($J$9:$GG$9,BN1,$J$10:$GG$10)*HLOOKUP(MONTH(BN12),$J$16:$U$17,2,FALSE) -> 504.2753574 | BO13: =SUMIF($J$9:$GG$9,BO1,$J$10:$GG$10)*HLOOKUP(MONTH(BO12),$J$16:$U$17,2,FALSE) -> 500.9320953 | BP13: =SUMIF($J$9:$GG$9,BP1,$J$10:$GG$10)*HLOOKUP(MONTH(BP12),$J$16:$U$17,2,FALSE) -> 405.0919169 | BQ13: =SUMIF($J$9:$GG$9,BQ1,$J$10:$GG$10)*HLOOKUP(MONTH(BQ12),$J$16:$U$17,2,FALSE) -> 476.9720507 | BR13: =SUMIF($J$9:$GG$9,BR1,$J$10:$GG$10)*HLOOKUP(MONTH(BR12),$J$16:$U$17,2,FALSE) -> 578.205557 | BS13: =SUMIF($J$9:$GG$9,BS1,$J$10:$GG$10)*HLOOKUP(MONTH(BS12),$J$16:$U$17,2,FALSE) -> 784.9509625 | BT13: =SUMIF($J$9:$GG$9,BT1,$J$10:$GG$10)*HLOOKUP(MONTH(BT12),$J$16:$U$17,2,FALSE) -> 556.6222455 | BU13: =SUMIF($J$9:$GG$9,BU1,$J$10:$GG$10)*HLOOKUP(MONTH(BU12),$J$16:$U$17,2,FALSE) -> 465.1771623 | BV13: =SUMIF($J$9:$GG$9,BV1,$J$10:$GG$10)*HLOOKUP(MONTH(BV12),$J$16:$U$17,2,FALSE) -> 1004.759951 | BW13: =SUMIF($J$9:$GG$9,BW1,$J$10:$GG$10)*HLOOKUP(MONTH(BW12),$J$16:$U$17,2,FALSE) -> 712.2492815 | BX13: =SUMIF($J$9:$GG$9,BX1,$J$10:$GG$10)*HLOOKUP(MONTH(BX12),$J$16:$U$17,2,FALSE) -> 769.0474698 | BY13: =SUMIF($J$9:$GG$9,BY1,$J$10:$GG$10)*HLOOKUP(MONTH(BY12),$J$16:$U$17,2,FALSE) -> 458.9293616 | BZ13: =SUMIF($J$9:$GG$9,BZ1,$J$10:$GG$10)*HLOOKUP(MONTH(BZ12),$J$16:$U$17,2,FALSE) -> 514.0236042 | CA13: =SUMIF($J$9:$GG$9,CA1,$J$10:$GG$10)*HLOOKUP(MONTH(CA12),$J$16:$U$17,2,FALSE) -> 510.6157129 | CB13: =SUMIF($J$9:$GG$9,CB1,$J$10:$GG$10)*HLOOKUP(MONTH(CB12),$J$16:$U$17,2,FALSE) -> 412.922829 | CC13: =SUMIF($J$9:$GG$9,CC1,$J$10:$GG$10)*HLOOKUP(MONTH(CC12),$J$16:$U$17,2,FALSE) -> 486.192492 | CD13: =SUMIF($J$9:$GG$9,CD1,$J$10:$GG$10)*HLOOKUP(MONTH(CD12),$J$16:$U$17,2,FALSE) -> 589.0891264 | CE13: =SUMIF($J$9:$GG$9,CE1,$J$10:$GG$10)*HLOOKUP(MONTH(CE12),$J$16:$U$17,2,FALSE) -> 799.7261028 | CF13: =SUMIF($J$9:$GG$9,CF1,$J$10:$GG$10)*HLOOKUP(MONTH(CF12),$J$16:$U$17,2,FALSE) -> 567.0995519 | CG13: =SUMIF($J$9:$GG$9,CG1,$J$10:$GG$10)*HLOOKUP(MONTH(CG12),$J$16:$U$17,2,FALSE) -> 473.933197 | CH13: =SUMIF($J$9:$GG$9,CH1,$J$10:$GG$10)*HLOOKUP(MONTH(CH12),$J$16:$U$17,2,FALSE) -> 1023.672559 | CI13: =SUMIF($J$9:$GG$9,CI1,$J$10:$GG$10)*HLOOKUP(MONTH(CI12),$J$16:$U$17,2,FALSE) -> 725.6559573 | CJ13: =SUMIF($J$9:$GG$9,CJ1,$J$10:$GG$10)*HLOOKUP(MONTH(CJ12),$J$16:$U$17,2,FALSE) -> 783.5232585 | CK13: =SUMIF($J$9:$GG$9,CK1,$J$10:$GG$10)*HLOOKUP(MONTH(CK12),$J$16:$U$17,2,FALSE) -> 467.5677938 | CL13: =SUMIF($J$9:$GG$9,CL1,$J$10:$GG$10)*HLOOKUP(MONTH(CL12),$J$16:$U$17,2,FALSE) -> 523.699076 | CM13: =SUMIF($J$9:$GG$9,CM1,$J$10:$GG$10)*HLOOKUP(MONTH(CM12),$J$16:$U$17,2,FALSE) -> 520.227038 | CN13: =SUMIF($J$9:$GG$9,CN1,$J$10:$GG$10)*HLOOKUP(MONTH(CN12),$J$16:$U$17,2,FALSE) -> 420.6952799 | CO13: =SUMIF($J$9:$GG$9,CO1,$J$10:$GG$10)*HLOOKUP(MONTH(CO12),$J$16:$U$17,2,FALSE) -> 495.3440984 | CP13: =SUMIF($J$9:$GG$9,CP1,$J$10:$GG$10)*HLOOKUP(MONTH(CP12),$J$16:$U$17,2,FALSE) -> 599.8856851 | CQ13: =SUMIF($J$9:$GG$9,CQ1,$J$10:$GG$10)*HLOOKUP(MONTH(CQ12),$J$16:$U$17,2,FALSE) -> 814.3831206 | CR13: =SUMIF($J$9:$GG$9,CR1,$J$10:$GG$10)*HLOOKUP(MONTH(CR12),$J$16:$U$17,2,FALSE) -> 577.4930957 | CS13: =SUMIF($J$9:$GG$9,CS1,$J$10:$GG$10)*HLOOKUP(MONTH(CS12),$J$16:$U$17,2,FALSE) -> 482.61923 | CT13: =SUMIF($J$9:$GG$9,CT1,$J$10:$GG$10)*HLOOKUP(MONTH(CT12),$J$16:$U$17,2,FALSE) -> 1042.433966 | CU13: =SUMIF($J$9:$GG$9,CU1,$J$10:$GG$10)*HLOOKUP(MONTH(CU12),$J$16:$U$17,2,FALSE) -> 738.955451 | CV13: =SUMIF($J$9:$GG$9,CV1,$J$10:$GG$10)*HLOOKUP(MONTH(CV12),$J$16:$U$17,2,FALSE) -> 797.8833179 | CW13: =SUMIF($J$9:$GG$9,CW1,$J$10:$GG$10)*HLOOKUP(MONTH(CW12),$J$16:$U$17,2,FALSE) -> 476.1371646 | CX13: =SUMIF($J$9:$GG$9,CX1,$J$10:$GG$10)*HLOOKUP(MONTH(CX12),$J$16:$U$17,2,FALSE) -> 533.2971955 | CY13: =SUMIF($J$9:$GG$9,CY1,$J$10:$GG$10)*HLOOKUP(MONTH(CY12),$J$16:$U$17,2,FALSE) -> 529.7615235 | CZ13: =SUMIF($J$9:$GG$9,CZ1,$J$10:$GG$10)*HLOOKUP(MONTH(CZ12),$J$16:$U$17,2,FALSE) -> 428.4055924 | DA13: =SUMIF($J$9:$GG$9,DA1,$J$10:$GG$10)*HLOOKUP(MONTH(DA12),$J$16:$U$17,2,FALSE) -> 504.4225407 | DB13: =SUMIF($J$9:$GG$9,DB1,$J$10:$GG$10)*HLOOKUP(MONTH(DB12),$J$16:$U$17,2,FALSE) -> 610.5905151 | DC13: =SUMIF($J$9:$GG$9,DC1,$J$10:$GG$10)*HLOOKUP(MONTH(DC12),$J$16:$U$17,2,FALSE) -> 828.9156109 | DD13: =SUMIF($J$9:$GG$9,DD1,$J$10:$GG$10)*HLOOKUP(MONTH(DD12),$J$16:$U$17,2,FALSE) -> 587.7983348 | DE13: =SUMIF($J$9:$GG$9,DE1,$J$10:$GG$10)*HLOOKUP(MONTH(DE12),$J$16:$U$17,2,FALSE) -> 491.2314655 | DF13: =SUMIF($J$9:$GG$9,DF1,$J$10:$GG$10)*HLOOKUP(MONTH(DF12),$J$16:$U$17,2,FALSE) -> 1061.035974 | DG13: =SUMIF($J$9:$GG$9,DG1,$J$10:$GG$10)*HLOOKUP(MONTH(DG12),$J$16:$U$17,2,FALSE) -> 752.1419508 | DH13: =SUMIF($J$9:$GG$9,DH1,$J$10:$GG$10)*HLOOKUP(MONTH(DH12),$J$16:$U$17,2,FALSE) -> 812.1213728 | DI13: =SUMIF($J$9:$GG$9,DI1,$J$10:$GG$10)*HLOOKUP(MONTH(DI12),$J$16:$U$17,2,FALSE) -> 484.6337291 | DJ13: =SUMIF($J$9:$GG$9,DJ1,$J$10:$GG$10)*HLOOKUP(MONTH(DJ12),$J$16:$U$17,2,FALSE) -> 542.8137684 | DK13: =SUMIF($J$9:$GG$9,DK1,$J$10:$GG$10)*HLOOKUP(MONTH(DK12),$J$16:$U$17,2,FALSE) -> 539.215003 | DL13: =SUMIF($J$9:$GG$9,DL1,$J$10:$GG$10)*HLOOKUP(MONTH(DL12),$J$16:$U$17,2,FALSE) -> 436.0503973 | DM13: =SUMIF($J$9:$GG$9,DM1,$J$10:$GG$10)*HLOOKUP(MONTH(DM12),$J$16:$U$17,2,FALSE) -> 513.4238516 | DN13: =SUMIF($J$9:$GG$9,DN1,$J$10:$GG$10)*HLOOKUP(MONTH(DN12),$J$16:$U$17,2,FALSE) -> 621.1943966 | DO13: =SUMIF($J$9:$GG$9,DO1,$J$10:$GG$10)*HLOOKUP(MONTH(DO12),$J$16:$U$17,2,FALSE) -> 843.3110571 | DP13: =SUMIF($J$9:$GG$9,DP1,$J$10:$GG$10)*HLOOKUP(MONTH(DP12),$J$16:$U$17,2,FALSE) -> 598.0063936 | DQ13: =SUMIF($J$9:$GG$9,DQ1,$J$10:$GG$10)*HLOOKUP(MONTH(DQ12),$J$16:$U$17,2,FALSE) -> 499.7624861 | DR13: =SUMIF($J$9:$GG$9,DR1,$J$10:$GG$10)*HLOOKUP(MONTH(DR12),$J$16:$U$17,2,FALSE) -> 1079.462561 | DS13: =SUMIF($J$9:$GG$9,DS1,$J$10:$GG$10)*HLOOKUP(MONTH(DS12),$J$16:$U$17,2,FALSE) -> 765.2040995 | DT13: =SUMIF($J$9:$GG$9,DT1,$J$10:$GG$10)*HLOOKUP(MONTH(DT12),$J$16:$U$17,2,FALSE) -> 826.2251601 | DU13: =SUMIF($J$9:$GG$9,DU1,$J$10:$GG$10)*HLOOKUP(MONTH(DU12),$J$16:$U$17,2,FALSE) -> 493.0501694 | DV13: =SUMIF($J$9:$GG$9,DV1,$J$10:$GG$10)*HLOOKUP(MONTH(DV12),$J$16:$U$17,2,FALSE) -> 552.2405981 | DW13: =SUMIF($J$9:$GG$9,DW1,$J$10:$GG$10)*HLOOKUP(MONTH(DW12),$J$16:$U$17,2,FALSE) -> 548.5793345 | DX13: =SUMIF($J$9:$GG$9,DX1,$J$10:$GG$10)*HLOOKUP(MONTH(DX12),$J$16:$U$17,2,FALSE) -> 443.6231103 | DY13: =SUMIF($J$9:$GG$9,DY1,$J$10:$GG$10)*HLOOKUP(MONTH(DY12),$J$16:$U$17,2,FALSE) -> 522.3402785 | DZ13: =SUMIF($J$9:$GG$9,DZ1,$J$10:$GG$10)*HLOOKUP(MONTH(DZ12),$J$16:$U$17,2,FALSE) -> 631.6817882 | EA13: =SUMIF($J$9:$GG$9,EA1,$J$10:$GG$10)*HLOOKUP(MONTH(EA12),$J$16:$U$17,2,FALSE) -> 857.5483608 | EB13: =SUMIF($J$9:$GG$9,EB1,$J$10:$GG$10)*HLOOKUP(MONTH(EB12),$J$16:$U$17,2,FALSE) -> 608.1023108 | EC13: =SUMIF($J$9:$GG$9,EC1,$J$10:$GG$10)*HLOOKUP(MONTH(EC12),$J$16:$U$17,2,FALSE) -> 508.1997884 | ED13: =SUMIF($J$9:$GG$9,ED1,$J$10:$GG$10)*HLOOKUP(MONTH(ED12),$J$16:$U$17,2,FALSE) -> 1097.686722 | EE13: =SUMIF($J$9:$GG$9,EE1,$J$10:$GG$10)*HLOOKUP(MONTH(EE12),$J$16:$U$17,2,FALSE) -> 778.1227529 | EF13: =SUMIF($J$9:$GG$9,EF1,$J$10:$GG$10)*HLOOKUP(MONTH(EF12),$J$16:$U$17,2,FALSE) -> 840.1740091 | EG13: =SUMIF($J$9:$GG$9,EG1,$J$10:$GG$10)*HLOOKUP(MONTH(EG12),$J$16:$U$17,2,FALSE) -> 501.3741502 | EH13: =SUMIF($J$9:$GG$9,EH1,$J$10:$GG$10)*HLOOKUP(MONTH(EH12),$J$16:$U$17,2,FALSE) -> 561.5638687 | EI13: =SUMIF($J$9:$GG$9,EI1,$J$10:$GG$10)*HLOOKUP(MONTH(EI12),$J$16:$U$17,2,FALSE) -> 557.8407933 | EJ13: =SUMIF($J$9:$GG$9,EJ1,$J$10:$GG$10)*HLOOKUP(MONTH(EJ12),$J$16:$U$17,2,FALSE) -> 451.1126326 | EK13: =SUMIF($J$9:$GG$9,EK1,$J$10:$GG$10)*HLOOKUP(MONTH(EK12),$J$16:$U$17,2,FALSE) -> 531.1587531 | EL13: =SUMIF($J$9:$GG$9,EL1,$J$10:$GG$10)*HLOOKUP(MONTH(EL12),$J$16:$U$17,2,FALSE) -> 642.0364989 | EM13: =SUMIF($J$9:$GG$9,EM1,$J$10:$GG$10)*HLOOKUP(MONTH(EM12),$J$16:$U$17,2,FALSE) -> 871.6055417 | EN13: =SUMIF($J$9:$GG$9,EN1,$J$10:$GG$10)*HLOOKUP(MONTH(EN12),$J$16:$U$17,2,FALSE) -> 618.0704999 | EO13: =SUMIF($J$9:$GG$9,EO1,$J$10:$GG$10)*HLOOKUP(MONTH(EO12),$J$16:$U$17,2,FALSE) -> 516.5303464 | EP13: =SUMIF($J$9:$GG$9,EP1,$J$10:$GG$10)*HLOOKUP(MONTH(EP12),$J$16:$U$17,2,FALSE) -> 1115.680321 | EQ13: =SUMIF($J$9:$GG$9,EQ1,$J$10:$GG$10)*HLOOKUP(MONTH(EQ12),$J$16:$U$17,2,FALSE) -> 790.8779662 | ER13: =SUMIF($J$9:$GG$9,ER1,$J$10:$GG$10)*HLOOKUP(MONTH(ER12),$J$16:$U$17,2,FALSE) -> 853.9463846 | ES13: =SUMIF($J$9:$GG$9,ES1,$J$10:$GG$10)*HLOOKUP(MONTH(ES12),$J$16:$U$17,2,FALSE) -> 509.5928203 | ET13: =SUMIF($J$9:$GG$9,ET1,$J$10:$GG$10)*HLOOKUP(MONTH(ET12),$J$16:$U$17,2,FALSE) -> 570.7691862 | EU13: =SUMIF($J$9:$GG$9,EU1,$J$10:$GG$10)*HLOOKUP(MONTH(EU12),$J$16:$U$17,2,FALSE) -> 566.9850811 | EV13: =SUMIF($J$9:$GG$9,EV1,$J$10:$GG$10)*HLOOKUP(MONTH(EV12),$J$16:$U$17,2,FALSE) -> 458.5074015 | EW13: =SUMIF($J$9:$GG$9,EW1,$J$10:$GG$10)*HLOOKUP(MONTH(EW12),$J$16:$U$17,2,FALSE) -> 539.8656612 | EX13: =SUMIF($J$9:$GG$9,EX1,$J$10:$GG$10)*HLOOKUP(MONTH(EX12),$J$16:$U$17,2,FALSE) -> 652.2487716 | EY13: =SUMIF($J$9:$GG$9,EY1,$J$10:$GG$10)*HLOOKUP(MONTH(EY12),$J$16:$U$17,2,FALSE) -> 885.469354 | EZ13: =SUMIF($J$9:$GG$9,EZ1,$J$10:$GG$10)*HLOOKUP(MONTH(EZ12),$J$16:$U$17,2,FALSE) -> 627.901568 | FA13: =SUMIF($J$9:$GG$9,FA1,$J$10:$GG$10)*HLOOKUP(MONTH(FA12),$J$16:$U$17,2,FALSE) -> 524.7463104 | FB13: =SUMIF($J$9:$GG$9,FB1,$J$10:$GG$10)*HLOOKUP(MONTH(FB12),$J$16:$U$17,2,FALSE) -> 1133.426402 | FC13: =SUMIF($J$9:$GG$9,FC1,$J$10:$GG$10)*HLOOKUP(MONTH(FC12),$J$16:$U$17,2,FALSE) -> 803.4577206 | FD13: =SUMIF($J$9:$GG$9,FD1,$J$10:$GG$10)*HLOOKUP(MONTH(FD12),$J$16:$U$17,2,FALSE) -> 867.5293092 | FE13: =SUMIF($J$9:$GG$9,FE1,$J$10:$GG$10)*HLOOKUP(MONTH(FE12),$J$16:$U$17,2,FALSE) -> 517.6984356 | FF13: =SUMIF($J$9:$GG$9,FF1,$J$10:$GG$10)*HLOOKUP(MONTH(FF12),$J$16:$U$17,2,FALSE) -> 579.8478765 | FG13: =SUMIF($J$9:$GG$9,FG1,$J$10:$GG$10)*HLOOKUP(MONTH(FG12),$J$16:$U$17,2,FALSE) -> 576.0035812 | FH13: =SUMIF($J$9:$GG$9,FH1,$J$10:$GG$10)*HLOOKUP(MONTH(FH12),$J$16:$U$17,2,FALSE) -> 465.8004489 | FI13: =SUMIF($J$9:$GG$9,FI1,$J$10:$GG$10)*HLOOKUP(MONTH(FI12),$J$16:$U$17,2,FALSE) -> 548.4527981 | FJ13: =SUMIF($J$9:$GG$9,FJ1,$J$10:$GG$10)*HLOOKUP(MONTH(FJ12),$J$16:$U$17,2,FALSE) -> 662.3110856 | FK13: =SUMIF($J$9:$GG$9,FK1,$J$10:$GG$10)*HLOOKUP(MONTH(FK12),$J$16:$U$17,2,FALSE) -> 899.1295877 | FL13: =SUMIF($J$9:$GG$9,FL1,$J$10:$GG$10)*HLOOKUP(MONTH(FL12),$J$16:$U$17,2,FALSE) -> 637.5882749 | FM13: =SUMIF($J$9:$GG$9,FM1,$J$10:$GG$10)*HLOOKUP(MONTH(FM12),$J$16:$U$17,2,FALSE) -> 532.8416297 | FN13: =SUMIF($J$9:$GG$9,FN1,$J$10:$GG$10)*HLOOKUP(MONTH(FN12),$J$16:$U$17,2,FALSE) -> 1150.911896 | FO13: =SUMIF($J$9:$GG$9,FO1,$J$10:$GG$10)*HLOOKUP(MONTH(FO12),$J$16:$U$17,2,FALSE) -> 815.8527518 | FP13: =SUMIF($J$9:$GG$9,FP1,$J$10:$GG$10)*HLOOKUP(MONTH(FP12),$J$16:$U$17,2,FALSE) -> 880.9127798 | FQ13: =SUMIF($J$9:$GG$9,FQ1,$J$10:$GG$10)*HLOOKUP(MONTH(FQ12),$J$16:$U$17,2,FALSE) -> 525.6850267 | FR13: =SUMIF($J$9:$GG$9,FR1,$J$10:$GG$10)*HLOOKUP(MONTH(FR12),$J$16:$U$17,2,FALSE) -> 588.7932539 | FS13: =SUMIF($J$9:$GG$9,FS1,$J$10:$GG$10)*HLOOKUP(MONTH(FS12),$J$16:$U$17,2,FALSE) -> 584.8896522 | FT13: =SUMIF($J$9:$GG$9,FT1,$J$10:$GG$10)*HLOOKUP(MONTH(FT12),$J$16:$U$17,2,FALSE) -> 472.9864039 | FU13: =SUMIF($J$9:$GG$9,FU1,$J$10:$GG$10)*HLOOKUP(MONTH(FU12),$J$16:$U$17,2,FALSE) -> 556.9138401 | FV13: =SUMIF($J$9:$GG$9,FV1,$J$10:$GG$10)*HLOOKUP(MONTH(FV12),$J$16:$U$17,2,FALSE) -> 672.20942 | FW13: =SUMIF($J$9:$GG$9,FW1,$J$10:$GG$10)*HLOOKUP(MONTH(FW12),$J$16:$U$17,2,FALSE) -> 912.5672087 | FX13: =SUMIF($J$9:$GG$9,FX1,$J$10:$GG$10)*HLOOKUP(MONTH(FX12),$J$16:$U$17,2,FALSE) -> 647.1171234 | FY13: =SUMIF($J$9:$GG$9,FY1,$J$10:$GG$10)*HLOOKUP(MONTH(FY12),$J$16:$U$17,2,FALSE) -> 540.8050245 | FZ13: =SUMIF($J$9:$GG$9,FZ1,$J$10:$GG$10)*HLOOKUP(MONTH(FZ12),$J$16:$U$17,2,FALSE) -> 1168.11244 | GA13: =SUMIF($J$9:$GG$9,GA1,$J$10:$GG$10)*HLOOKUP(MONTH(GA12),$J$16:$U$17,2,FALSE) -> 828.0457885 | GB13: =SUMIF($J$9:$GG$9,GB1,$J$10:$GG$10)*HLOOKUP(MONTH(GB12),$J$16:$U$17,2,FALSE) -> 894.078148 | GC13: =SUMIF($J$9:$GG$9,GC1,$J$10:$GG$10)*HLOOKUP(MONTH(GC12),$J$16:$U$17,2,FALSE) -> 533.541465 | GD13: =SUMIF($J$9:$GG$9,GD1,$J$10:$GG$10)*HLOOKUP(MONTH(GD12),$J$16:$U$17,2,FALSE) -> 597.5928537 | GE13: =SUMIF($J$9:$GG$9,GE1,$J$10:$GG$10)*HLOOKUP(MONTH(GE12),$J$16:$U$17,2,FALSE) -> 593.6309121 | GF13: =SUMIF($J$9:$GG$9,GF1,$J$10:$GG$10)*HLOOKUP(MONTH(GF12),$J$16:$U$17,2,FALSE) -> 480.0552538 | GG13: =SUMIF($J$9:$GG$9,GG1,$J$10:$GG$10)*HLOOKUP(MONTH(GG12),$J$16:$U$17,2,FALSE) -> 565.2369975
C15: Sazonalidade
C16: Mês | J16: 1 | K16: 2 | L16: 3 | M16: 4 | N16: 5 | O16: 6 | P16: 7 | Q16: 8 | R16: 9 | S16: 10 | T16: 11 | U16: 12
C17: Visitantes/Mês | J17: 0.07971184715 | K17: 0.1082139222 | L17: 0.07673635581 | M17: 0.06412966878 | N17: 0.1385169525 | O17: 0.09819121447 | P17: 0.1060214549 | Q17: 0.06326834234 | R17: 0.07086367551 | S17: 0.07039386109 | T17: 0.05692584762 | U17: 0.06702685772
C19: Demanda Total - Visitas Autoguiadas
C20: Ano | J20: 2026 | K20: 2027 | L20: 2028 | M20: 2029 | N20: 2030 | O20: 2031 | P20: 2032 | Q20: 2033 | R20: 2034 | S20: 2035 | T20: 2036 | U20: 2037 | V20: 2038 | W20: 2039 | X20: 2040
C21: Visitantes | J21: 91679 | K21: =J21*(1+K6) -> 93747.7825 | L21: =K21*(1+L6) -> 95845.53074 | M21: =L21*(1+M6) -> 97973.55109 | N21: =M21*(1+N6) -> 99908.11332 | O21: =N21*(1+O6) -> 101839.4569 | P21: =O21*(1+P6) -> 103756.382 | Q21: =P21*(1+Q6) -> 105657.982 | R21: =Q21*(1+R6) -> 107543.4258 | S21: =R21*(1+S6) -> 109411.0895 | T21: =S21*(1+T6) -> 111258.2358 | U21: =T21*(1+U6) -> 113082.013 | V21: =U21*(1+V6) -> 114880.7026 | W21: =V21*(1+W6) -> 116652.9799 | X21: =W21*(1+X6) -> 118396.3755
C23: Mês - Ano | J23: =J2 -> 2026-01-01 | K23: =K2 -> 2026-02-01 | L23: 2026-03-01 | M23: 2026-04-01 | N23: 2026-05-01 | O23: 2026-06-01 | P23: 2026-07-01 | Q23: 2026-08-01 | R23: 2026-09-01 | S23: 2026-10-01 | T23: 2026-11-01 | U23: 2026-12-01 | V23: 2027-01-01 | W23: 2027-02-01 | X23: 2027-03-01 | Y23: 2027-04-01 | Z23: 2027-05-01 | AA23: 2027-06-01 | AB23: 2027-07-01 | AC23: 2027-08-01 | AD23: 2027-09-01 | AE23: 2027-10-01 | AF23: 2027-11-01 | AG23: 2027-12-01 | AH23: 2028-01-01 | AI23: 2028-02-01 | AJ23: 2028-03-01 | AK23: 2028-04-01 | AL23: 2028-05-01 | AM23: 2028-06-01 | AN23: 2028-07-01 | AO23: 2028-08-01 | AP23: 2028-09-01 | AQ23: 2028-10-01 | AR23: 2028-11-01 | AS23: 2028-12-01 | AT23: 2029-01-01 | AU23: 2029-02-01 | AV23: 2029-03-01 | AW23: 2029-04-01 | AX23: 2029-05-01 | AY23: 2029-06-01 | AZ23: 2029-07-01 | BA23: 2029-08-01 | BB23: 2029-09-01 | BC23: 2029-10-01 | BD23: 2029-11-01 | BE23: 2029-12-01 | BF23: 2030-01-01 | BG23: 2030-02-01 | BH23: 2030-03-01 | BI23: 2030-04-01 | BJ23: 2030-05-01 | BK23: 2030-06-01 | BL23: 2030-07-01 | BM23: 2030-08-01 | BN23: 2030-09-01 | BO23: 2030-10-01 | BP23: 2030-11-01 | BQ23: 2030-12-01 | BR23: 2031-01-01 | BS23: 2031-02-01 | BT23: 2031-03-01 | BU23: 2031-04-01 | BV23: 2031-05-01 | BW23: =BW2 -> 2031-06-01 | BX23: 2031-07-01 | BY23: 2031-08-01 | BZ23: 2031-09-01 | CA23: 2031-10-01 | CB23: 2031-11-01 | CC23: 2031-12-01 | CD23: 2032-01-01 | CE23: 2032-02-01 | CF23: 2032-03-01 | CG23: 2032-04-01 | CH23: 2032-05-01 | CI23: 2032-06-01 | CJ23: 2032-07-01 | CK23: 2032-08-01 | CL23: 2032-09-01 | CM23: 2032-10-01 | CN23: 2032-11-01 | CO23: 2032-12-01 | CP23: 2033-01-01 | CQ23: 2033-02-01 | CR23: 2033-03-01 | CS23: 2033-04-01 | CT23: 2033-05-01 | CU23: 2033-06-01 | CV23: 2033-07-01 | CW23: 2033-08-01 | CX23: 2033-09-01 | CY23: 2033-10-01 | CZ23: 2033-11-01 | DA23: 2033-12-01 | DB23: 2034-01-01 | DC23: 2034-02-01 | DD23: 2034-03-01 | DE23: 2034-04-01 | DF23: 2034-05-01 | DG23: 2034-06-01 | DH23: 2034-07-01 | DI23: 2034-08-01 | DJ23: 2034-09-01 | DK23: 2034-10-01 | DL23: 2034-11-01 | DM23: 2034-12-01 | DN23: 2035-01-01 | DO23: 2035-02-01 | DP23: 2035-03-01 | DQ23: 2035-04-01 | DR23: 2035-05-01 | DS23: 2035-06-01 | DT23: 2035-07-01 | DU23: 2035-08-01 | DV23: 2035-09-01 | DW23: 2035-10-01 | DX23: 2035-11-01 | DY23: 2035-12-01 | DZ23: 2036-01-01 | EA23: 2036-02-01 | EB23: 2036-03-01 | EC23: 2036-04-01 | ED23: 2036-05-01 | EE23: 2036-06-01 | EF23: 2036-07-01 | EG23: 2036-08-01 | EH23: 2036-09-01 | EI23: =EI2 -> 2036-10-01 | EJ23: 2036-11-01 | EK23: 2036-12-01 | EL23: 2037-01-01 | EM23: 2037-02-01 | EN23: 2037-03-01 | EO23: 2037-04-01 | EP23: 2037-05-01 | EQ23: 2037-06-01 | ER23: 2037-07-01 | ES23: 2037-08-01 | ET23: 2037-09-01 | EU23: 2037-10-01 | EV23: 2037-11-01 | EW23: 2037-12-01 | EX23: 2038-01-01 | EY23: 2038-02-01 | EZ23: 2038-03-01 | FA23: 2038-04-01 | FB23: 2038-05-01 | FC23: 2038-06-01 | FD23: 2038-07-01 | FE23: 2038-08-01 | FF23: 2038-09-01 | FG23: 2038-10-01 | FH23: 2038-11-01 | FI23: 2038-12-01 | FJ23: 2039-01-01 | FK23: 2039-02-01 | FL23: 2039-03-01 | FM23: 2039-04-01 | FN23: 2039-05-01 | FO23: 2039-06-01 | FP23: 2039-07-01 | FQ23: 2039-08-01 | FR23: 2039-09-01 | FS23: 2039-10-01 | FT23: 2039-11-01 | FU23: 2039-12-01 | FV23: 2040-01-01 | FW23: 2040-02-01 | FX23: 2040-03-01 | FY23: 2040-04-01 | FZ23: 2040-05-01 | GA23: 2040-06-01 | GB23: 2040-07-01 | GC23: 2040-08-01 | GD23: 2040-09-01 | GE23: 2040-10-01 | GF23: 2040-11-01 | GG23: 2040-12-01
C24: Visitantes | J24: =SUMIF($J$20:$GG$20,J1,$J$21:$GG$21)*HLOOKUP(MONTH(J23),$J$27:$U$28,2,FALSE) -> 10992.42071 | K24: =SUMIF($J$20:$GG$20,K1,$J$21:$GG$21)*HLOOKUP(MONTH(K23),$J$27:$U$28,2,FALSE) -> 7694.147817 | L24: =SUMIF($J$20:$GG$20,L1,$J$21:$GG$21)*HLOOKUP(MONTH(L23),$J$27:$U$28,2,FALSE) -> 6985.916706 | M24: =SUMIF($J$20:$GG$20,M1,$J$21:$GG$21)*HLOOKUP(MONTH(M23),$J$27:$U$28,2,FALSE) -> 7061.001699 | N24: =SUMIF($J$20:$GG$20,N1,$J$21:$GG$21)*HLOOKUP(MONTH(N23),$J$27:$U$28,2,FALSE) -> 7340.143829 | O24: =SUMIF($J$20:$GG$20,O1,$J$21:$GG$21)*HLOOKUP(MONTH(O23),$J$27:$U$28,2,FALSE) -> 6779.405082 | P24: =SUMIF($J$20:$GG$20,P1,$J$21:$GG$21)*HLOOKUP(MONTH(P23),$J$27:$U$28,2,FALSE) -> 11043.96494 | Q24: =SUMIF($J$20:$GG$20,Q1,$J$21:$GG$21)*HLOOKUP(MONTH(Q23),$J$27:$U$28,2,FALSE) -> 6506.622305 | R24: =SUMIF($J$20:$GG$20,R1,$J$21:$GG$21)*HLOOKUP(MONTH(R23),$J$27:$U$28,2,FALSE) -> 6523.13431 | S24: =SUMIF($J$20:$GG$20,S1,$J$21:$GG$21)*HLOOKUP(MONTH(S23),$J$27:$U$28,2,FALSE) -> 6699.411114 | T24: =SUMIF($J$20:$GG$20,T1,$J$21:$GG$21)*HLOOKUP(MONTH(T23),$J$27:$U$28,2,FALSE) -> 6559.840049 | U24: =SUMIF($J$20:$GG$20,U1,$J$21:$GG$21)*HLOOKUP(MONTH(U23),$J$27:$U$28,2,FALSE) -> 7492.991438 | V24: =SUMIF($J$20:$GG$20,V1,$J$21:$GG$21)*HLOOKUP(MONTH(V23),$J$27:$U$28,2,FALSE) -> 11240.47018 | W24: =SUMIF($J$20:$GG$20,W1,$J$21:$GG$21)*HLOOKUP(MONTH(W23),$J$27:$U$28,2,FALSE) -> 7867.770111 | X24: =SUMIF($J$20:$GG$20,X1,$J$21:$GG$21)*HLOOKUP(MONTH(X23),$J$27:$U$28,2,FALSE) -> 7143.557411 | Y24: =SUMIF($J$20:$GG$20,Y1,$J$21:$GG$21)*HLOOKUP(MONTH(Y23),$J$27:$U$28,2,FALSE) -> 7220.336735 | Z24: =SUMIF($J$20:$GG$20,Z1,$J$21:$GG$21)*HLOOKUP(MONTH(Z23),$J$27:$U$28,2,FALSE) -> 7505.777846 | AA24: =SUMIF($J$20:$GG$20,AA1,$J$21:$GG$21)*HLOOKUP(MONTH(AA23),$J$27:$U$28,2,FALSE) -> 6932.385749 | AB24: =SUMIF($J$20:$GG$20,AB1,$J$21:$GG$21)*HLOOKUP(MONTH(AB23),$J$27:$U$28,2,FALSE) -> 11293.17754 | AC24: =SUMIF($J$20:$GG$20,AC1,$J$21:$GG$21)*HLOOKUP(MONTH(AC23),$J$27:$U$28,2,FALSE) -> 6653.447493 | AD24: =SUMIF($J$20:$GG$20,AD1,$J$21:$GG$21)*HLOOKUP(MONTH(AD23),$J$27:$U$28,2,FALSE) -> 6670.332099 | AE24: =SUMIF($J$20:$GG$20,AE1,$J$21:$GG$21)*HLOOKUP(MONTH(AE23),$J$27:$U$28,2,FALSE) -> 6850.586678 | AF24: =SUMIF($J$20:$GG$20,AF1,$J$21:$GG$21)*HLOOKUP(MONTH(AF23),$J$27:$U$28,2,FALSE) -> 6707.866122 | AG24: =SUMIF($J$20:$GG$20,AG1,$J$21:$GG$21)*HLOOKUP(MONTH(AG23),$J$27:$U$28,2,FALSE) -> 7662.074538 | AH24: =SUMIF($J$20:$GG$20,AH1,$J$21:$GG$21)*HLOOKUP(MONTH(AH23),$J$27:$U$28,2,FALSE) -> 11491.99268 | AI24: =SUMIF($J$20:$GG$20,AI1,$J$21:$GG$21)*HLOOKUP(MONTH(AI23),$J$27:$U$28,2,FALSE) -> 8043.823351 | AJ24: =SUMIF($J$20:$GG$20,AJ1,$J$21:$GG$21)*HLOOKUP(MONTH(AJ23),$J$27:$U$28,2,FALSE) -> 7303.405298 | AK24: =SUMIF($J$20:$GG$20,AK1,$J$21:$GG$21)*HLOOKUP(MONTH(AK23),$J$27:$U$28,2,FALSE) -> 7381.902675 | AL24: =SUMIF($J$20:$GG$20,AL1,$J$21:$GG$21)*HLOOKUP(MONTH(AL23),$J$27:$U$28,2,FALSE) -> 7673.730963 | AM24: =SUMIF($J$20:$GG$20,AM1,$J$21:$GG$21)*HLOOKUP(MONTH(AM23),$J$27:$U$28,2,FALSE) -> 7087.508351 | AN24: =SUMIF($J$20:$GG$20,AN1,$J$21:$GG$21)*HLOOKUP(MONTH(AN23),$J$27:$U$28,2,FALSE) -> 11545.87944 | AO24: =SUMIF($J$20:$GG$20,AO1,$J$21:$GG$21)*HLOOKUP(MONTH(AO23),$J$27:$U$28,2,FALSE) -> 6802.32843 | AP24: =SUMIF($J$20:$GG$20,AP1,$J$21:$GG$21)*HLOOKUP(MONTH(AP23),$J$27:$U$28,2,FALSE) -> 6819.590855 | AQ24: =SUMIF($J$20:$GG$20,AQ1,$J$21:$GG$21)*HLOOKUP(MONTH(AQ23),$J$27:$U$28,2,FALSE) -> 7003.878902 | AR24: =SUMIF($J$20:$GG$20,AR1,$J$21:$GG$21)*HLOOKUP(MONTH(AR23),$J$27:$U$28,2,FALSE) -> 6857.964758 | AS24: =SUMIF($J$20:$GG$20,AS1,$J$21:$GG$21)*HLOOKUP(MONTH(AS23),$J$27:$U$28,2,FALSE) -> 7833.525029 | AT24: =SUMIF($J$20:$GG$20,AT1,$J$21:$GG$21)*HLOOKUP(MONTH(AT23),$J$27:$U$28,2,FALSE) -> 11747.14484 | AU24: =SUMIF($J$20:$GG$20,AU1,$J$21:$GG$21)*HLOOKUP(MONTH(AU23),$J$27:$U$28,2,FALSE) -> 8222.417175 | AV24: =SUMIF($J$20:$GG$20,AV1,$J$21:$GG$21)*HLOOKUP(MONTH(AV23),$J$27:$U$28,2,FALSE) -> 7465.559913 | AW24: =SUMIF($J$20:$GG$20,AW1,$J$21:$GG$21)*HLOOKUP(MONTH(AW23),$J$27:$U$28,2,FALSE) -> 7545.800136 | AX24: =SUMIF($J$20:$GG$20,AX1,$J$21:$GG$21)*HLOOKUP(MONTH(AX23),$J$27:$U$28,2,FALSE) -> 7844.107772 | AY24: =SUMIF($J$20:$GG$20,AY1,$J$21:$GG$21)*HLOOKUP(MONTH(AY23),$J$27:$U$28,2,FALSE) -> 7244.869492 | AZ24: =SUMIF($J$20:$GG$20,AZ1,$J$21:$GG$21)*HLOOKUP(MONTH(AZ23),$J$27:$U$28,2,FALSE) -> 11802.22803 | BA24: =SUMIF($J$20:$GG$20,BA1,$J$21:$GG$21)*HLOOKUP(MONTH(BA23),$J$27:$U$28,2,FALSE) -> 6953.357834 | BB24: =SUMIF($J$20:$GG$20,BB1,$J$21:$GG$21)*HLOOKUP(MONTH(BB23),$J$27:$U$28,2,FALSE) -> 6971.003529 | BC24: =SUMIF($J$20:$GG$20,BC1,$J$21:$GG$21)*HLOOKUP(MONTH(BC23),$J$27:$U$28,2,FALSE) -> 7159.383251 | BD24: =SUMIF($J$20:$GG$20,BD1,$J$21:$GG$21)*HLOOKUP(MONTH(BD23),$J$27:$U$28,2,FALSE) -> 7010.229433 | BE24: =SUMIF($J$20:$GG$20,BE1,$J$21:$GG$21)*HLOOKUP(MONTH(BE23),$J$27:$U$28,2,FALSE) -> 8007.449682 | BF24: =SUMIF($J$20:$GG$20,BF1,$J$21:$GG$21)*HLOOKUP(MONTH(BF23),$J$27:$U$28,2,FALSE) -> 11979.10115 | BG24: =SUMIF($J$20:$GG$20,BG1,$J$21:$GG$21)*HLOOKUP(MONTH(BG23),$J$27:$U$28,2,FALSE) -> 8384.775052 | BH24: =SUMIF($J$20:$GG$20,BH1,$J$21:$GG$21)*HLOOKUP(MONTH(BH23),$J$27:$U$28,2,FALSE) -> 7612.973068 | BI24: =SUMIF($J$20:$GG$20,BI1,$J$21:$GG$21)*HLOOKUP(MONTH(BI23),$J$27:$U$28,2,FALSE) -> 7694.797695 | BJ24: =SUMIF($J$20:$GG$20,BJ1,$J$21:$GG$21)*HLOOKUP(MONTH(BJ23),$J$27:$U$28,2,FALSE) -> 7998.995642 | BK24: =SUMIF($J$20:$GG$20,BK1,$J$21:$GG$21)*HLOOKUP(MONTH(BK23),$J$27:$U$28,2,FALSE) -> 7387.924947 | BL24: =SUMIF($J$20:$GG$20,BL1,$J$21:$GG$21)*HLOOKUP(MONTH(BL23),$J$27:$U$28,2,FALSE) -> 12035.27199 | BM24: =SUMIF($J$20:$GG$20,BM1,$J$21:$GG$21)*HLOOKUP(MONTH(BM23),$J$27:$U$28,2,FALSE) -> 7090.657169 | BN24: =SUMIF($J$20:$GG$20,BN1,$J$21:$GG$21)*HLOOKUP(MONTH(BN23),$J$27:$U$28,2,FALSE) -> 7108.651292 | BO24: =SUMIF($J$20:$GG$20,BO1,$J$21:$GG$21)*HLOOKUP(MONTH(BO23),$J$27:$U$28,2,FALSE) -> 7300.750715 | BP24: =SUMIF($J$20:$GG$20,BP1,$J$21:$GG$21)*HLOOKUP(MONTH(BP23),$J$27:$U$28,2,FALSE) -> 7148.651742 | BQ24: =SUMIF($J$20:$GG$20,BQ1,$J$21:$GG$21)*HLOOKUP(MONTH(BQ23),$J$27:$U$28,2,FALSE) -> 8165.562863 | BR24: =SUMIF($J$20:$GG$20,BR1,$J$21:$GG$21)*HLOOKUP(MONTH(BR23),$J$27:$U$28,2,FALSE) -> 12210.67153 | BS24: =SUMIF($J$20:$GG$20,BS1,$J$21:$GG$21)*HLOOKUP(MONTH(BS23),$J$27:$U$28,2,FALSE) -> 8546.8628 | BT24: =SUMIF($J$20:$GG$20,BT1,$J$21:$GG$21)*HLOOKUP(MONTH(BT23),$J$27:$U$28,2,FALSE) -> 7760.140959 | BU24: =SUMIF($J$20:$GG$20,BU1,$J$21:$GG$21)*HLOOKUP(MONTH(BU23),$J$27:$U$28,2,FALSE) -> 7843.547354 | BV24: =SUMIF($J$20:$GG$20,BV1,$J$21:$GG$21)*HLOOKUP(MONTH(BV23),$J$27:$U$28,2,FALSE) -> 8153.625812 | BW24: =SUMIF($J$20:$GG$20,BW1,$J$21:$GG$21)*HLOOKUP(MONTH(BW23),$J$27:$U$28,2,FALSE) -> 7530.742388 | BX24: =SUMIF($J$20:$GG$20,BX1,$J$21:$GG$21)*HLOOKUP(MONTH(BX23),$J$27:$U$28,2,FALSE) -> 12267.92822 | BY24: =SUMIF($J$20:$GG$20,BY1,$J$21:$GG$21)*HLOOKUP(MONTH(BY23),$J$27:$U$28,2,FALSE) -> 7227.728068 | BZ24: =SUMIF($J$20:$GG$20,BZ1,$J$21:$GG$21)*HLOOKUP(MONTH(BZ23),$J$27:$U$28,2,FALSE) -> 7246.070039 | CA24: =SUMIF($J$20:$GG$20,CA1,$J$21:$GG$21)*HLOOKUP(MONTH(CA23),$J$27:$U$28,2,FALSE) -> 7441.882974 | CB24: =SUMIF($J$20:$GG$20,CB1,$J$21:$GG$21)*HLOOKUP(MONTH(CB23),$J$27:$U$28,2,FALSE) -> 7286.843745 | CC24: =SUMIF($J$20:$GG$20,CC1,$J$21:$GG$21)*HLOOKUP(MONTH(CC23),$J$27:$U$28,2,FALSE) -> 8323.412977 | CD24: =SUMIF($J$20:$GG$20,CD1,$J$21:$GG$21)*HLOOKUP(MONTH(CD23),$J$27:$U$28,2,FALSE) -> 12440.51313 | CE24: =SUMIF($J$20:$GG$20,CE1,$J$21:$GG$21)*HLOOKUP(MONTH(CE23),$J$27:$U$28,2,FALSE) -> 8707.74049 | CF24: =SUMIF($J$20:$GG$20,CF1,$J$21:$GG$21)*HLOOKUP(MONTH(CF23),$J$27:$U$28,2,FALSE) -> 7906.210175 | CG24: =SUMIF($J$20:$GG$20,CG1,$J$21:$GG$21)*HLOOKUP(MONTH(CG23),$J$27:$U$28,2,FALSE) -> 7991.18653 | CH24: =SUMIF($J$20:$GG$20,CH1,$J$21:$GG$21)*HLOOKUP(MONTH(CH23),$J$27:$U$28,2,FALSE) -> 8307.101597 | CI24: =SUMIF($J$20:$GG$20,CI1,$J$21:$GG$21)*HLOOKUP(MONTH(CI23),$J$27:$U$28,2,FALSE) -> 7672.493632 | CJ24: =SUMIF($J$20:$GG$20,CJ1,$J$21:$GG$21)*HLOOKUP(MONTH(CJ23),$J$27:$U$28,2,FALSE) -> 12498.84756 | CK24: =SUMIF($J$20:$GG$20,CK1,$J$21:$GG$21)*HLOOKUP(MONTH(CK23),$J$27:$U$28,2,FALSE) -> 7363.775671 | CL24: =SUMIF($J$20:$GG$20,CL1,$J$21:$GG$21)*HLOOKUP(MONTH(CL23),$J$27:$U$28,2,FALSE) -> 7382.462893 | CM24: =SUMIF($J$20:$GG$20,CM1,$J$21:$GG$21)*HLOOKUP(MONTH(CM23),$J$27:$U$28,2,FALSE) -> 7581.961617 | CN24: =SUMIF($J$20:$GG$20,CN1,$J$21:$GG$21)*HLOOKUP(MONTH(CN23),$J$27:$U$28,2,FALSE) -> 7424.004083 | CO24: =SUMIF($J$20:$GG$20,CO1,$J$21:$GG$21)*HLOOKUP(MONTH(CO23),$J$27:$U$28,2,FALSE) -> 8480.084668 | CP24: =SUMIF($J$20:$GG$20,CP1,$J$21:$GG$21)*HLOOKUP(MONTH(CP23),$J$27:$U$28,2,FALSE) -> 12668.51722 | CQ24: =SUMIF($J$20:$GG$20,CQ1,$J$21:$GG$21)*HLOOKUP(MONTH(CQ23),$J$27:$U$28,2,FALSE) -> 8867.332013 | CR24: =SUMIF($J$20:$GG$20,CR1,$J$21:$GG$21)*HLOOKUP(MONTH(CR23),$J$27:$U$28,2,FALSE) -> 8051.111614 | CS24: =SUMIF($J$20:$GG$20,CS1,$J$21:$GG$21)*HLOOKUP(MONTH(CS23),$J$27:$U$28,2,FALSE) -> 8137.645377 | CT24: =SUMIF($J$20:$GG$20,CT1,$J$21:$GG$21)*HLOOKUP(MONTH(CT23),$J$27:$U$28,2,FALSE) -> 8459.350393 | CU24: =SUMIF($J$20:$GG$20,CU1,$J$21:$GG$21)*HLOOKUP(MONTH(CU23),$J$27:$U$28,2,FALSE) -> 7813.11162 | CV24: =SUMIF($J$20:$GG$20,CV1,$J$21:$GG$21)*HLOOKUP(MONTH(CV23),$J$27:$U$28,2,FALSE) -> 12727.92078 | CW24: =SUMIF($J$20:$GG$20,CW1,$J$21:$GG$21)*HLOOKUP(MONTH(CW23),$J$27:$U$28,2,FALSE) -> 7498.735616 | CX24: =SUMIF($J$20:$GG$20,CX1,$J$21:$GG$21)*HLOOKUP(MONTH(CX23),$J$27:$U$28,2,FALSE) -> 7517.765329 | CY24: =SUMIF($J$20:$GG$20,CY1,$J$21:$GG$21)*HLOOKUP(MONTH(CY23),$J$27:$U$28,2,FALSE) -> 7720.920375 | CZ24: =SUMIF($J$20:$GG$20,CZ1,$J$21:$GG$21)*HLOOKUP(MONTH(CZ23),$J$27:$U$28,2,FALSE) -> 7560.067867 | DA24: =SUMIF($J$20:$GG$20,DA1,$J$21:$GG$21)*HLOOKUP(MONTH(DA23),$J$27:$U$28,2,FALSE) -> 8635.503819 | DB24: =SUMIF($J$20:$GG$20,DB1,$J$21:$GG$21)*HLOOKUP(MONTH(DB23),$J$27:$U$28,2,FALSE) -> 12894.58416 | DC24: =SUMIF($J$20:$GG$20,DC1,$J$21:$GG$21)*HLOOKUP(MONTH(DC23),$J$27:$U$28,2,FALSE) -> 9025.567631 | DD24: =SUMIF($J$20:$GG$20,DD1,$J$21:$GG$21)*HLOOKUP(MONTH(DD23),$J$27:$U$28,2,FALSE) -> 8194.781956 | DE24: =SUMIF($J$20:$GG$20,DE1,$J$21:$GG$21)*HLOOKUP(MONTH(DE23),$J$27:$U$28,2,FALSE) -> 8282.859895 | DF24: =SUMIF($J$20:$GG$20,DF1,$J$21:$GG$21)*HLOOKUP(MONTH(DF23),$J$27:$U$28,2,FALSE) -> 8610.305667 | DG24: =SUMIF($J$20:$GG$20,DG1,$J$21:$GG$21)*HLOOKUP(MONTH(DG23),$J$27:$U$28,2,FALSE) -> 7952.534904 | DH24: =SUMIF($J$20:$GG$20,DH1,$J$21:$GG$21)*HLOOKUP(MONTH(DH23),$J$27:$U$28,2,FALSE) -> 12955.04777 | DI24: =SUMIF($J$20:$GG$20,DI1,$J$21:$GG$21)*HLOOKUP(MONTH(DI23),$J$27:$U$28,2,FALSE) -> 7632.548928 | DJ24: =SUMIF($J$20:$GG$20,DJ1,$J$21:$GG$21)*HLOOKUP(MONTH(DJ23),$J$27:$U$28,2,FALSE) -> 7651.918222 | DK24: =SUMIF($J$20:$GG$20,DK1,$J$21:$GG$21)*HLOOKUP(MONTH(DK23),$J$27:$U$28,2,FALSE) -> 7858.698525 | DL24: =SUMIF($J$20:$GG$20,DL1,$J$21:$GG$21)*HLOOKUP(MONTH(DL23),$J$27:$U$28,2,FALSE) -> 7694.97564 | DM24: =SUMIF($J$20:$GG$20,DM1,$J$21:$GG$21)*HLOOKUP(MONTH(DM23),$J$27:$U$28,2,FALSE) -> 8789.602512 | DN24: =SUMIF($J$20:$GG$20,DN1,$J$21:$GG$21)*HLOOKUP(MONTH(DN23),$J$27:$U$28,2,FALSE) -> 13118.51925 | DO24: =SUMIF($J$20:$GG$20,DO1,$J$21:$GG$21)*HLOOKUP(MONTH(DO23),$J$27:$U$28,2,FALSE) -> 9182.311057 | DP24: =SUMIF($J$20:$GG$20,DP1,$J$21:$GG$21)*HLOOKUP(MONTH(DP23),$J$27:$U$28,2,FALSE) -> 8337.097459 | DQ24: =SUMIF($J$20:$GG$20,DQ1,$J$21:$GG$21)*HLOOKUP(MONTH(DQ23),$J$27:$U$28,2,FALSE) -> 8426.705013 | DR24: =SUMIF($J$20:$GG$20,DR1,$J$21:$GG$21)*HLOOKUP(MONTH(DR23),$J$27:$U$28,2,FALSE) -> 8759.837405 | DS24: =SUMIF($J$20:$GG$20,DS1,$J$21:$GG$21)*HLOOKUP(MONTH(DS23),$J$27:$U$28,2,FALSE) -> 8090.643399 | DT24: =SUMIF($J$20:$GG$20,DT1,$J$21:$GG$21)*HLOOKUP(MONTH(DT23),$J$27:$U$28,2,FALSE) -> 13180.0329 | DU24: =SUMIF($J$20:$GG$20,DU1,$J$21:$GG$21)*HLOOKUP(MONTH(DU23),$J$27:$U$28,2,FALSE) -> 7765.100355 | DV24: =SUMIF($J$20:$GG$20,DV1,$J$21:$GG$21)*HLOOKUP(MONTH(DV23),$J$27:$U$28,2,FALSE) -> 7784.806028 | DW24: =SUMIF($J$20:$GG$20,DW1,$J$21:$GG$21)*HLOOKUP(MONTH(DW23),$J$27:$U$28,2,FALSE) -> 7995.177402 | DX24: =SUMIF($J$20:$GG$20,DX1,$J$21:$GG$21)*HLOOKUP(MONTH(DX23),$J$27:$U$28,2,FALSE) -> 7828.611206 | DY24: =SUMIF($J$20:$GG$20,DY1,$J$21:$GG$21)*HLOOKUP(MONTH(DY23),$J$27:$U$28,2,FALSE) -> 8942.248027 | DZ24: =SUMIF($J$20:$GG$20,DZ1,$J$21:$GG$21)*HLOOKUP(MONTH(DZ23),$J$27:$U$28,2,FALSE) -> 13339.99428 | EA24: =SUMIF($J$20:$GG$20,EA1,$J$21:$GG$21)*HLOOKUP(MONTH(EA23),$J$27:$U$28,2,FALSE) -> 9337.332565 | EB24: =SUMIF($J$20:$GG$20,EB1,$J$21:$GG$21)*HLOOKUP(MONTH(EB23),$J$27:$U$28,2,FALSE) -> 8477.849543 | EC24: =SUMIF($J$20:$GG$20,EC1,$J$21:$GG$21)*HLOOKUP(MONTH(EC23),$J$27:$U$28,2,FALSE) -> 8568.969908 | ED24: =SUMIF($J$20:$GG$20,ED1,$J$21:$GG$21)*HLOOKUP(MONTH(ED23),$J$27:$U$28,2,FALSE) -> 8907.726449 | EE24: =SUMIF($J$20:$GG$20,EE1,$J$21:$GG$21)*HLOOKUP(MONTH(EE23),$J$27:$U$28,2,FALSE) -> 8227.234692 | EF24: =SUMIF($J$20:$GG$20,EF1,$J$21:$GG$21)*HLOOKUP(MONTH(EF23),$J$27:$U$28,2,FALSE) -> 13402.54645 | EG24: =SUMIF($J$20:$GG$20,EG1,$J$21:$GG$21)*HLOOKUP(MONTH(EG23),$J$27:$U$28,2,FALSE) -> 7896.195627 | EH24: =SUMIF($J$20:$GG$20,EH1,$J$21:$GG$21)*HLOOKUP(MONTH(EH23),$J$27:$U$28,2,FALSE) -> 7916.233983 | EI24: =SUMIF($J$20:$GG$20,EI1,$J$21:$GG$21)*HLOOKUP(MONTH(EI23),$J$27:$U$28,2,FALSE) -> 8130.156979 | EJ24: =SUMIF($J$20:$GG$20,EJ1,$J$21:$GG$21)*HLOOKUP(MONTH(EJ23),$J$27:$U$28,2,FALSE) -> 7960.778708 | EK24: =SUMIF($J$20:$GG$20,EK1,$J$21:$GG$21)*HLOOKUP(MONTH(EK23),$J$27:$U$28,2,FALSE) -> 9093.216641 | EL24: =SUMIF($J$20:$GG$20,EL1,$J$21:$GG$21)*HLOOKUP(MONTH(EL23),$J$27:$U$28,2,FALSE) -> 13558.66733 | EM24: =SUMIF($J$20:$GG$20,EM1,$J$21:$GG$21)*HLOOKUP(MONTH(EM23),$J$27:$U$28,2,FALSE) -> 9490.392823 | EN24: =SUMIF($J$20:$GG$20,EN1,$J$21:$GG$21)*HLOOKUP(MONTH(EN23),$J$27:$U$28,2,FALSE) -> 8616.820907 | EO24: =SUMIF($J$20:$GG$20,EO1,$J$21:$GG$21)*HLOOKUP(MONTH(EO23),$J$27:$U$28,2,FALSE) -> 8709.434943 | EP24: =SUMIF($J$20:$GG$20,EP1,$J$21:$GG$21)*HLOOKUP(MONTH(EP23),$J$27:$U$28,2,FALSE) -> 9053.744479 | EQ24: =SUMIF($J$20:$GG$20,EQ1,$J$21:$GG$21)*HLOOKUP(MONTH(EQ23),$J$27:$U$28,2,FALSE) -> 8362.097905 | ER24: =SUMIF($J$20:$GG$20,ER1,$J$21:$GG$21)*HLOOKUP(MONTH(ER23),$J$27:$U$28,2,FALSE) -> 13622.24487 | ES24: =SUMIF($J$20:$GG$20,ES1,$J$21:$GG$21)*HLOOKUP(MONTH(ES23),$J$27:$U$28,2,FALSE) -> 8025.632351 | ET24: =SUMIF($J$20:$GG$20,ET1,$J$21:$GG$21)*HLOOKUP(MONTH(ET23),$J$27:$U$28,2,FALSE) -> 8045.999182 | EU24: =SUMIF($J$20:$GG$20,EU1,$J$21:$GG$21)*HLOOKUP(MONTH(EU23),$J$27:$U$28,2,FALSE) -> 8263.428865 | EV24: =SUMIF($J$20:$GG$20,EV1,$J$21:$GG$21)*HLOOKUP(MONTH(EV23),$J$27:$U$28,2,FALSE) -> 8091.274097 | EW24: =SUMIF($J$20:$GG$20,EW1,$J$21:$GG$21)*HLOOKUP(MONTH(EW23),$J$27:$U$28,2,FALSE) -> 9242.27528 | EX24: =SUMIF($J$20:$GG$20,EX1,$J$21:$GG$21)*HLOOKUP(MONTH(EX23),$J$27:$U$28,2,FALSE) -> 13774.33234 | EY24: =SUMIF($J$20:$GG$20,EY1,$J$21:$GG$21)*HLOOKUP(MONTH(EY23),$J$27:$U$28,2,FALSE) -> 9641.347605 | EZ24: =SUMIF($J$20:$GG$20,EZ1,$J$21:$GG$21)*HLOOKUP(MONTH(EZ23),$J$27:$U$28,2,FALSE) -> 8753.880599 | FA24: =SUMIF($J$20:$GG$20,FA1,$J$21:$GG$21)*HLOOKUP(MONTH(FA23),$J$27:$U$28,2,FALSE) -> 8847.96776 | FB24: =SUMIF($J$20:$GG$20,FB1,$J$21:$GG$21)*HLOOKUP(MONTH(FB23),$J$27:$U$28,2,FALSE) -> 9197.753905 | FC24: =SUMIF($J$20:$GG$20,FC1,$J$21:$GG$21)*HLOOKUP(MONTH(FC23),$J$27:$U$28,2,FALSE) -> 8495.105957 | FD24: =SUMIF($J$20:$GG$20,FD1,$J$21:$GG$21)*HLOOKUP(MONTH(FD23),$J$27:$U$28,2,FALSE) -> 13838.92115 | FE24: =SUMIF($J$20:$GG$20,FE1,$J$21:$GG$21)*HLOOKUP(MONTH(FE23),$J$27:$U$28,2,FALSE) -> 8153.288561 | FF24: =SUMIF($J$20:$GG$20,FF1,$J$21:$GG$21)*HLOOKUP(MONTH(FF23),$J$27:$U$28,2,FALSE) -> 8173.979348 | FG24: =SUMIF($J$20:$GG$20,FG1,$J$21:$GG$21)*HLOOKUP(MONTH(FG23),$J$27:$U$28,2,FALSE) -> 8394.867481 | FH24: =SUMIF($J$20:$GG$20,FH1,$J$21:$GG$21)*HLOOKUP(MONTH(FH23),$J$27:$U$28,2,FALSE) -> 8219.974409 | FI24: =SUMIF($J$20:$GG$20,FI1,$J$21:$GG$21)*HLOOKUP(MONTH(FI23),$J$27:$U$28,2,FALSE) -> 9389.283489 | FJ24: =SUMIF($J$20:$GG$20,FJ1,$J$21:$GG$21)*HLOOKUP(MONTH(FJ23),$J$27:$U$28,2,FALSE) -> 13986.83049 | FK24: =SUMIF($J$20:$GG$20,FK1,$J$21:$GG$21)*HLOOKUP(MONTH(FK23),$J$27:$U$28,2,FALSE) -> 9790.085741 | FL24: =SUMIF($J$20:$GG$20,FL1,$J$21:$GG$21)*HLOOKUP(MONTH(FL23),$J$27:$U$28,2,FALSE) -> 8888.927683 | FM24: =SUMIF($J$20:$GG$20,FM1,$J$21:$GG$21)*HLOOKUP(MONTH(FM23),$J$27:$U$28,2,FALSE) -> 8984.466337 | FN24: =SUMIF($J$20:$GG$20,FN1,$J$21:$GG$21)*HLOOKUP(MONTH(FN23),$J$27:$U$28,2,FALSE) -> 9339.648672 | FO24: =SUMIF($J$20:$GG$20,FO1,$J$21:$GG$21)*HLOOKUP(MONTH(FO23),$J$27:$U$28,2,FALSE) -> 8626.160896 | FP24: =SUMIF($J$20:$GG$20,FP1,$J$21:$GG$21)*HLOOKUP(MONTH(FP23),$J$27:$U$28,2,FALSE) -> 14052.41572 | FQ24: =SUMIF($J$20:$GG$20,FQ1,$J$21:$GG$21)*HLOOKUP(MONTH(FQ23),$J$27:$U$28,2,FALSE) -> 8279.070246 | FR24: =SUMIF($J$20:$GG$20,FR1,$J$21:$GG$21)*HLOOKUP(MONTH(FR23),$J$27:$U$28,2,FALSE) -> 8300.080232 | FS24: =SUMIF($J$20:$GG$20,FS1,$J$21:$GG$21)*HLOOKUP(MONTH(FS23),$J$27:$U$28,2,FALSE) -> 8524.376031 | FT24: =SUMIF($J$20:$GG$20,FT1,$J$21:$GG$21)*HLOOKUP(MONTH(FT23),$J$27:$U$28,2,FALSE) -> 8346.784863 | FU24: =SUMIF($J$20:$GG$20,FU1,$J$21:$GG$21)*HLOOKUP(MONTH(FU23),$J$27:$U$28,2,FALSE) -> 9534.133003 | FV24: =SUMIF($J$20:$GG$20,FV1,$J$21:$GG$21)*HLOOKUP(MONTH(FV23),$J$27:$U$28,2,FALSE) -> 14195.86568 | FW24: =SUMIF($J$20:$GG$20,FW1,$J$21:$GG$21)*HLOOKUP(MONTH(FW23),$J$27:$U$28,2,FALSE) -> 9936.39998 | FX24: =SUMIF($J$20:$GG$20,FX1,$J$21:$GG$21)*HLOOKUP(MONTH(FX23),$J$27:$U$28,2,FALSE) -> 9021.773986 | FY24: =SUMIF($J$20:$GG$20,FY1,$J$21:$GG$21)*HLOOKUP(MONTH(FY23),$J$27:$U$28,2,FALSE) -> 9118.740478 | FZ24: =SUMIF($J$20:$GG$20,FZ1,$J$21:$GG$21)*HLOOKUP(MONTH(FZ23),$J$27:$U$28,2,FALSE) -> 9479.231064 | GA24: =SUMIF($J$20:$GG$20,GA1,$J$21:$GG$21)*HLOOKUP(MONTH(GA23),$J$27:$U$28,2,FALSE) -> 8755.080111 | GB24: =SUMIF($J$20:$GG$20,GB1,$J$21:$GG$21)*HLOOKUP(MONTH(GB23),$J$27:$U$28,2,FALSE) -> 14262.43109 | GC24: =SUMIF($J$20:$GG$20,GC1,$J$21:$GG$21)*HLOOKUP(MONTH(GC23),$J$27:$U$28,2,FALSE) -> 8402.802141 | GD24: =SUMIF($J$20:$GG$20,GD1,$J$21:$GG$21)*HLOOKUP(MONTH(GD23),$J$27:$U$28,2,FALSE) -> 8424.126124 | GE24: =SUMIF($J$20:$GG$20,GE1,$J$21:$GG$21)*HLOOKUP(MONTH(GE23),$J$27:$U$28,2,FALSE) -> 8651.774056 | GF24: =SUMIF($J$20:$GG$20,GF1,$J$21:$GG$21)*HLOOKUP(MONTH(GF23),$J$27:$U$28,2,FALSE) -> 8471.528763 | GG24: =SUMIF($J$20:$GG$20,GG1,$J$21:$GG$21)*HLOOKUP(MONTH(GG23),$J$27:$U$28,2,FALSE) -> 9676.621992
C26: Sazonalidade
C27: Mês | J27: 1 | K27: 2 | L27: 3 | M27: 4 | N27: 5 | O27: 6 | P27: 7 | Q27: 8 | R27: 9 | S27: 10 | T27: 11 | U27: 12
C28: Visitantes/Mês | J28: 0.1199011847 | K28: 0.08392486629 | L28: 0.07619974809 | M28: 0.07701874692 | N28: 0.08006352413 | O28: 0.07394719709 | P28: 0.1204634097 | Q28: 0.07097178531 | R28: 0.07115189203 | S28: 0.07307465302 | T28: 0.07155226442 | U28: 0.08173072828
C30: Demanda - Camping
C31: Otimista | J31: =IF(J3<=3,J13 * ((1 + $E$33)^J3)*$E$34,IF(J3<=7,(J13 * (1 + $E$33)^3 * (1 + $F$33)^(J3 - 3))*$E$34,(J13 * (1 + $E$33)^3 * (1 + $F$33)^4)*$E$34)) -> 61.42116671 | K31: =IF(K3<=3,K13 * ((1 + $E$33)^K3)*$E$34,IF(K3<=7,(K13 * (1 + $E$33)^3 * (1 + $F$33)^(K3 - 3))*$E$34,(K13 * (1 + $E$33)^3 * (1 + $F$33)^4)*$E$34)) -> 83.38315559 | L31: 59.1284316 | M31: 49.41447498 | N31: 106.7328526 | O31: 75.6602584 | P31: 81.69377183 | Q31: 48.75078851 | R31: 54.60329653 | S31: 54.24128573 | T31: 43.86364263 | U31: 51.64687495 | V31: 74.11245595 | W31: 100.6123911 | X31: 71.34597921 | Y31: 59.62485405 | Z31: 128.7867727 | AA31: 91.29373258 | AB31: 98.57393454 | AC31: 58.82403184 | AD31: 65.88582774 | AE31: 65.44901562 | AF31: 52.92706825 | AG31: 62.31852878 | AH31: 89.40958423 | AI31: 121.3792195 | AJ31: 86.07209484 | AK31: 71.93167926 | AL31: 155.3689141 | AM31: 110.1371499 | AN31: 118.9200168 | AO31: 70.96556391 | AP31: 79.48494473 | AQ31: 78.95797272 | AR31: 63.85144179 | AS31: 75.18133998 | AT31: 102.362075 | AU31: 138.9630527 | AV31: 98.54109381 | AW31: 82.35219983 | AX31: 177.8767295 | AY31: 126.0923792 | AZ31: 136.1475929 | BA31: 81.24612632 | BB31: 90.99968357 | BC31: 90.39637075 | BD31: 73.10140326 | BE31: 86.07262888 | BF31: 116.909287 | BG31: 158.7118218 | BH31: 112.5452861 | BI31: 94.0557034 | BJ31: 203.1557257 | BK31: 144.0120294 | BL31: 155.4962422 | BM31: 92.79243998 | BN31: 103.9321265 | BO31: 103.2430737 | BP31: 83.49022756 | BQ31: 98.30486216 | BR31: 133.4695976 | BS31: 181.1935009 | BT31: 128.4874319 | BU31: 107.3787824 | BV31: 231.9329256 | BW31: =IF(BW3<=3,BW13 * ((1 + $E$33)^BW3)*$E$34,IF(BW3<=7,(BW13 * (1 + $E$33)^3 * (1 + $F$33)^(BW3 - 3))*$E$34,(BW13 * (1 + $E$33)^3 * (1 + $F$33)^4)*$E$34)) -> 164.411469 | BX31: 177.5224314 | BY31: 105.9365765 | BZ31: 118.6542101 | CA31: 117.8675523 | CB31: 95.31669694 | CC31: 112.2298385 | CD31: 152.299725 | CE31: 206.7566011 | CF31: 146.6146665 | CG31: 122.5279713 | CH31: 264.6544337 | CI31: 187.6069304 | CJ31: 202.5676106 | CK31: 120.8822964 | CL31: 135.3941563 | CM31: 134.4965155 | CN31: 108.7641454 | CO31: 128.063423 | CP31: 155.0910053 | CQ31: 210.5459424 | CR31: 149.3017537 | CS31: 124.7736084 | CT31: 269.5049003 | CU31: 191.0453052 | CV31: 206.280178 | CW31: 123.0977724 | CX31: 137.8755991 | CY31: 136.9615067 | CZ31: 110.7575254 | DA31: 130.4105114 | DB31: 157.8585707 | DC31: 214.3030891 | DD31: 151.9660111 | DE31: 127.0001664 | DF31: 274.3141568 | DG31: 194.4544673 | DH31: 209.9612031 | DI31: 125.2944255 | DJ31: 140.3359592 | DK31: 139.4055551 | DL31: 112.7339695 | DM31: 132.7376587 | DN31: 160.6000374 | DO31: 218.0248052 | DP31: 154.6051441 | DQ31: 129.2057276 | DR31: 279.0780611 | DS31: 197.8314803 | DT31: 213.6075154 | DU31: 127.4703637 | DV31: 142.7731178 | DW31: 141.8265557 | DX31: 114.6917753 | DY31: 135.0428606 | DZ31: 163.3113875 | EA31: 221.7056361 | EB31: 157.2152847 | EC31: 131.3870593 | ED31: 283.7896312 | EE31: 201.1713949 | EF31: 217.2137708 | EG31: 129.622398 | EH31: 145.1835027 | EI31: =IF(EI3<=3,EI13 * ((1 + $E$33)^EI3)*$E$34,IF(EI3<=7,(EI13 * (1 + $E$33)^3 * (1 + $F$33)^(EI3 - 3))*$E$34,(EI13 * (1 + $E$33)^3 * (1 + $F$33)^4)*$E$34)) -> 144.2209601 | EJ31: 116.6280734 | EK31: 137.3227384 | EL31: 165.9884351 | EM31: 225.3398991 | EN31: 159.7924031 | EO31: 133.540794 | EP31: 288.4415929 | EQ31: 204.4690546 | ER31: 220.7744018 | ES31: 131.7472058 | ET31: 147.5633927 | EU31: 146.5850718 | EV31: 118.5398745 | EW31: 139.5737725 | EX31: 168.6286575 | EY31: 228.9241696 | EZ31: 162.3340711 | FA31: 135.6649022 | FB31: 293.029563 | FC31: 207.7213522 | FD31: 224.2860533 | FE31: 133.8427851 | FF31: 149.9105452 | FG31: 148.9166632 | FH31: 120.4253772 | FI31: 141.7938417 | FJ31: 171.2301104 | FK31: 232.4558081 | FL31: 164.8384167 | FM31: 137.7578197 | FN31: 297.5501625 | FO31: 210.9258924 | FP31: 227.746139 | FQ31: 135.9075926 | FR31: 152.2232318 | FS31: 151.214017 | FT31: 122.2831928 | FU31: 143.9813109 | FV31: 173.7891691 | FW31: 235.9298936 | FX31: 167.3019506 | FY31: 139.8166301 | FZ31: 301.9970924 | GA31: 214.0782102 | GB31: 231.1498378 | GC31: 137.9387511 | GD31: 154.4982299 | GE31: 153.4739322 | GF31: 124.1107327 | GG31: 146.1331323
E32: Primeiros 3 anos | F32: Entre 4° e 7° ano | G32: Até o final do projeto
D33: Ramp Up | E33: 0.18 | F33: 0.12 | G33: Segue projeção de crescimento
D34: Taxa de adesão | E34: 0.1
C36: Moderada | J36: =IF(J3<=3,J13 * ((1 + $E$38)^J3)*$E$39,IF(J3<=7,(J13 * (1 + $E$38)^3 * (1 + $F$38)^(J3 - 3))*$E$39,(J13 * (1 + $E$38)^3 * (1 + $F$38)^4)*$E$39)) -> 47.8876893 | K36: =IF(K3<=3,K13 * ((1 + $E$38)^K3)*$E$39,IF(K3<=7,(K13 * (1 + $E$38)^3 * (1 + $F$38)^(K3 - 3))*$E$39,(K13 * (1 + $E$38)^3 * (1 + $F$38)^4)*$E$39)) -> 65.01059588 | L36: 46.10013311 | M36: 38.52653982 | N36: 83.21544437 | O36: 58.98935401 | P36: 63.69344922 | Q36: 38.00908934 | R36: 42.5720617 | S36: 42.28981599 | T36: 34.19877222 | U36: 40.26705505 | V36: 56.31354381 | W36: 76.44923138 | X36: 54.21146653 | Y36: 45.30529703 | Z36: 97.85722887 | AA36: 69.36855003 | AB36: 74.90033233 | AC36: 44.69680098 | AD36: 50.06262981 | AE36: 49.73072287 | AF36: 40.21605732 | AG36: 47.35205648 | AH36: 66.20969107 | AI36: 89.88388316 | AJ36: 63.73820948 | AK36: 53.26693221 | AL36: 115.053972 | AM36: 81.55889254 | AN36: 88.06279146 | AO36: 52.55150332 | AP36: 58.86028528 | AQ36: 58.47005135 | AR36: 47.28334519 | AS36: 55.67337481 | AT36: 73.77089329 | AU36: 100.148698 | AV36: 71.01716643 | AW36: 59.35006052 | AX36: 128.1932321 | AY36: 90.87298643 | AZ36: 98.11963607 | BA36: 58.55292906 | BB36: 65.5821792 | BC36: 65.14738022 | BD36: 52.68314285 | BE36: 62.03132088 | BF36: 81.99803566 | BG36: 111.317569 | BH36: 78.93720525 | BI36: 65.9689501 | BJ36: 142.4897103 | BK36: 101.0074035 | BL36: 109.0622203 | BM36: 65.08292025 | BN36: 72.8960926 | BO36: 72.41280359 | BP36: 58.55851859 | BQ36: 68.94923234 | BR36: 91.10563997 | BS36: 123.6817234 | BT36: 87.70484005 | BU36: 73.29618776 | BV36: 158.3161858 | BW36: =IF(BW3<=3,BW13 * ((1 + $E$38)^BW3)*$E$39,IF(BW3<=7,(BW13 * (1 + $E$38)^3 * (1 + $F$38)^(BW3 - 3))*$E$39,(BW13 * (1 + $E$38)^3 * (1 + $F$38)^4)*$E$39)) -> 112.2263974 | BX36: 121.1758708 | BY36: 72.31174567 | BZ36: 80.99273494 | CA36: 80.45576654 | CB36: 65.06267216 | CC36: 76.60749294 | CD36: 101.1743694 | CE36: 137.3506665 | CF36: 97.39772302 | CG36: 81.39666852 | CH36: 175.8128286 | CI36: 124.6293313 | CJ36: 134.5678745 | CK36: 80.30342877 | CL36: 89.94381564 | CM36: 89.34750305 | CN36: 72.25320881 | CO36: 85.07392949 | CP36: 103.0286474 | CQ36: 139.8679673 | CR36: 99.18278437 | CS36: 82.88846979 | CT36: 179.0350465 | CU36: 126.9134812 | CV36: 137.0341735 | CW36: 81.77519364 | CX36: 91.59226516 | CY36: 90.98502362 | CZ36: 73.57743289 | DA36: 86.63312594 | DB36: 104.8671713 | DC36: 142.3638809 | DD36: 100.9526797 | DE36: 84.36759657 | DF36: 182.2298881 | DG36: 129.1782248 | DH36: 139.4795186 | DI36: 83.23445425 | DJ36: 93.22670928 | DK36: 92.60863164 | DL36: 74.89040624 | DM36: 88.17907529 | DN36: 106.6883576 | DO36: 144.8362575 | DP36: 102.7058845 | DQ36: 85.83277491 | DR36: 185.3946017 | DS36: 131.4216114 | DT36: 141.9018037 | DU36: 84.67995375 | DV36: 94.84574028 | DW36: 94.21692874 | DX36: 76.19099799 | DY36: 89.71044605 | DZ36: 108.489537 | EA36: 147.2814737 | EB36: 104.4398294 | EC36: 87.2818574 | ED36: 188.5245491 | EE36: 133.6403531 | EF36: 144.2974785 | EG36: 86.1095736 | EH36: 96.44698528 | EI36: =IF(EI3<=3,EI13 * ((1 + $E$38)^EI3)*$E$39,IF(EI3<=7,(EI13 * (1 + $E$38)^3 * (1 + $F$38)^(EI3 - 3))*$E$39,(EI13 * (1 + $E$38)^3 * (1 + $F$38)^4)*$E$39)) -> 95.80755775 | EJ36: 77.47730199 | EK36: 91.22499381 | EL36: 110.2679289 | EM36: 149.6957542 | EN36: 106.1518373 | EO36: 88.71260687 | EP36: 191.6148981 | EQ36: 135.8310244 | ER36: 146.6628446 | ES36: 87.52110665 | ET36: 98.02797218 | EU36: 97.37806297 | EV36: 78.74733235 | EW36: 92.72038031 | EX36: 112.0218575 | EY36: 152.0768242 | EZ36: 107.840295 | FA36: 90.12367514 | FB36: 194.6627367 | FC36: 137.9915612 | FD36: 148.9956729 | FE36: 88.91322285 | FF36: 99.58721124 | FG36: 98.92696453 | FH36: 79.99989234 | FI36: 94.19519648 | FJ36: 113.7500311 | FK36: 154.4229302 | FL36: 109.5039592 | FM36: 91.51402305 | FN36: 197.6658202 | FO36: 140.1203723 | FP36: 151.2942457 | FQ36: 90.28489697 | FR36: 101.1235542 | FS36: 100.4531218 | FT36: 81.23405953 | FU36: 95.6483562 | FV36: 115.4500417 | FW36: 156.7308031 | FX36: 111.1405116 | FY36: 92.88171328 | FZ36: 200.6199643 | GA36: 142.2144914 | GB36: 153.5553599 | GC36: 91.63421774 | GD36: 102.6348602 | GE36: 101.9544081 | GF36: 82.44811423 | GG36: 97.07783464
E37: Primeiros 2 anos | F37: Entre 3° e 5° ano | G37: Até o final do projeto
D38: Ramp Up | E38: 0.15 | F38: 0.09 | G38: Segue projeção de crescimento
D39: Taxa de adesão | E39: 0.08
C41: Pessimista | J41: =IF(J3<=3,J13 * ((1 + $E$43)^J3)*$E$44,IF(J3<=7,(J13 * (1 + $E$43)^3 * (1 + $F$43)^(J3 - 3))*$E$44,(J13 * (1 + $E$43)^3 * (1 + $F$43)^4)*$E$44)) -> 34.97883392 | K41: =IF(K3<=3,K13 * ((1 + $E$43)^K3)*$E$44,IF(K3<=7,(K13 * (1 + $E$43)^3 * (1 + $F$43)^(K3 - 3))*$E$44,(K13 * (1 + $E$43)^3 * (1 + $F$43)^4)*$E$44)) -> 47.48600047 | L41: 33.67314071 | M41: 28.14112474 | N41: 60.78345502 | O41: 43.08787597 | P41: 46.52391074 | Q41: 27.76316091 | R41: 31.09611463 | S41: 30.88995255 | T41: 24.97997275 | U41: 29.4124576 | V41: 40.06032666 | W41: 54.38445133 | X41: 38.56495101 | Y41: 32.22928049 | Z41: 69.61367178 | AA41: 49.3473965 | AB41: 53.28259558 | AC41: 31.79640859 | AD41: 35.6135517 | AE41: 35.37743976 | AF41: 28.60889733 | AG41: 33.68530415 | AH41: 45.87154542 | AI41: 62.27355184 | AJ41: 44.15924805 | AK41: 36.90451444 | AL41: 79.71194877 | AM41: 56.50581332 | AN41: 61.01185904 | AO41: 36.40884941 | AP41: 40.77971376 | AQ41: 40.50935101 | AR41: 32.75895238 | AS41: 38.57175136 | AT41: 49.70341396 | AU41: 67.47555805 | AV41: 47.84808024 | AW41: 39.9873242 | AX41: 86.37066729 | AY41: 61.22601288 | AZ41: 66.10847005 | BA41: 39.45025391 | BB41: 44.18623737 | BC41: 43.89328994 | BD41: 35.49546361 | BE41: 41.79383335 | BF41: 53.72593639 | BG41: 72.93638909 | BH41: 51.72044957 | BI41: 43.22351857 | BJ41: 93.36068907 | BK41: 66.18106506 | BL41: 71.45866196 | BM41: 42.64298291 | BN41: 47.7622519 | BO41: 47.44559608 | BP41: 38.36812943 | BQ41: 45.17622942 | BR41: 58.0503945 | BS41: 78.80711709 | BT41: 55.8834839 | BU41: 46.70262583 | BV41: 100.8753908 | BW41: =IF(BW3<=3,BW13 * ((1 + $E$43)^BW3)*$E$44,IF(BW3<=7,(BW13 * (1 + $E$43)^3 * (1 + $F$43)^(BW3 - 3))*$E$44,(BW13 * (1 + $E$43)^3 * (1 + $F$43)^4)*$E$44)) -> 71.50804981 | BX41: 77.21044612 | BY41: 46.07536224 | BZ41: 51.60668666 | CA41: 51.26454288 | CB41: 41.45642122 | CC41: 48.81251247 | CD41: 62.69166236 | CE41: 85.10793456 | CF41: 60.35150207 | CG41: 50.43661245 | CH41: 108.9406196 | CI41: 77.22528939 | CJ41: 83.38360592 | CK41: 49.75919763 | CL41: 55.73276467 | CM41: 55.36326568 | CN41: 44.77096123 | CO41: 52.71518957 | CP41: 63.84064675 | CQ41: 86.66775423 | CR41: 61.45759707 | CS41: 51.36099183 | CT41: 110.9372339 | CU41: 78.64063951 | CV41: 84.91182289 | CW41: 50.67116166 | CX41: 56.75420954 | CY41: 56.37793853 | CZ41: 45.59150313 | DA41: 53.68132968 | DB41: 64.97986925 | DC41: 88.21432152 | DD41: 62.55429457 | DE41: 52.2775176 | DF41: 112.9168848 | DG41: 80.04396468 | DH41: 86.42705596 | DI41: 51.57537756 | DJ41: 57.7669761 | DK41: 57.38399063 | DL41: 46.40507362 | DM41: 54.63926138 | DN41: 66.10834867 | DO41: 89.74630439 | DP41: 63.64065 | DQ41: 53.18540036 | DR41: 114.8778672 | DS41: 81.43405623 | DT41: 87.9280001 | DU41: 52.47106653 | DV41: 58.77019209 | DW41: 58.38055546 | DX41: 47.21097199 | DY41: 55.58815959 | DZ41: 67.22443109 | EA41: 91.26145753 | EB41: 64.71507119 | EC41: 54.08330949 | ED41: 116.8173071 | EE41: 82.8088768 | EF41: 89.4124555 | EG41: 53.35691584 | EH41: 59.76238717 | EI41: =IF(EI3<=3,EI13 * ((1 + $E$43)^EI3)*$E$44,IF(EI3<=7,(EI13 * (1 + $E$43)^3 * (1 + $F$43)^(EI3 - 3))*$E$44,(EI13 * (1 + $E$43)^3 * (1 + $F$43)^4)*$E$44)) -> 59.36617245 | EJ41: 48.00801709 | EK41: 56.52663361 | EL41: 68.32639342 | EM41: 92.75744176 | EN41: 65.77589936 | EO41: 54.96985875 | EP41: 118.7322102 | EQ41: 84.16630388 | ER41: 90.87813034 | ES41: 54.23155784 | ET41: 60.74202951 | EU41: 60.33931993 | EV41: 48.79497841 | EW41: 57.45323455 | EX41: 69.41319731 | EY41: 94.23284743 | EZ41: 66.82213493 | FA41: 55.84421277 | FB41: 120.6207721 | FC41: 85.50505837 | FD41: 92.32364357 | FE41: 55.09416839 | FF41: 61.70819604 | FG41: 61.29908092 | FH41: 49.57111438 | FI41: 58.36708929 | FJ41: 70.48404238 | FK41: 95.68658799 | FL41: 67.8530074 | FM41: 56.70572761 | FN41: 122.4816021 | FO41: 86.82415437 | FP41: 93.74793063 | FQ41: 55.94411222 | FR41: 62.6601752 | FS41: 62.24474863 | FT41: 50.33585345 | FU41: 59.26752483 | FV41: 71.53743653 | FW41: 97.1166378 | FX41: 68.86708035 | FY41: 57.55320287 | FZ41: 124.3121073 | GA41: 88.12175384 | GB41: 95.14900694 | GC41: 56.78020503 | GD41: 63.59664053 | GE41: 63.17500534 | GF41: 51.08813002 | GG41: 60.15328651
E42: Primeiros 2 anos | F42: Entre 3° e 5° ano | G42: Até o final do projeto
D43: Ramp Up | E43: 0.12 | F43: 0.06 | G43: Segue projeção de crescimento
D44: Taxa de adesão | E44: 0.06
C47: Total por cenário
C48: MÊS - ANO | J48: =J2 -> 2026-01-01 | K48: =EDATE(J48,1) -> 2026-02-01 | L48: =EDATE(K48,1) -> 2026-03-01 | M48: 2026-04-01 | N48: 2026-05-01 | O48: 2026-06-01 | P48: 2026-07-01 | Q48: 2026-08-01 | R48: 2026-09-01 | S48: 2026-10-01 | T48: 2026-11-01 | U48: 2026-12-01 | V48: 2027-01-01 | W48: 2027-02-01 | X48: 2027-03-01 | Y48: 2027-04-01 | Z48: 2027-05-01 | AA48: 2027-06-01 | AB48: 2027-07-01 | AC48: 2027-08-01 | AD48: 2027-09-01 | AE48: 2027-10-01 | AF48: 2027-11-01 | AG48: 2027-12-01 | AH48: 2028-01-01 | AI48: 2028-02-01 | AJ48: 2028-03-01 | AK48: 2028-04-01 | AL48: 2028-05-01 | AM48: 2028-06-01 | AN48: 2028-07-01 | AO48: 2028-08-01 | AP48: 2028-09-01 | AQ48: 2028-10-01 | AR48: 2028-11-01 | AS48: 2028-12-01 | AT48: 2029-01-01 | AU48: 2029-02-01 | AV48: 2029-03-01 | AW48: 2029-04-01 | AX48: 2029-05-01 | AY48: 2029-06-01 | AZ48: 2029-07-01 | BA48: 2029-08-01 | BB48: 2029-09-01 | BC48: 2029-10-01 | BD48: 2029-11-01 | BE48: 2029-12-01 | BF48: 2030-01-01 | BG48: 2030-02-01 | BH48: 2030-03-01 | BI48: 2030-04-01 | BJ48: 2030-05-01 | BK48: 2030-06-01 | BL48: 2030-07-01 | BM48: 2030-08-01 | BN48: 2030-09-01 | BO48: 2030-10-01 | BP48: 2030-11-01 | BQ48: 2030-12-01 | BR48: 2031-01-01 | BS48: 2031-02-01 | BT48: 2031-03-01 | BU48: 2031-04-01 | BV48: 2031-05-01 | BW48: 2031-06-01 | BX48: =EDATE(BW48,1) -> 2031-07-01 | BY48: 2031-08-01 | BZ48: 2031-09-01 | CA48: 2031-10-01 | CB48: 2031-11-01 | CC48: 2031-12-01 | CD48: 2032-01-01 | CE48: 2032-02-01 | CF48: 2032-03-01 | CG48: 2032-04-01 | CH48: 2032-05-01 | CI48: 2032-06-01 | CJ48: 2032-07-01 | CK48: 2032-08-01 | CL48: 2032-09-01 | CM48: 2032-10-01 | CN48: 2032-11-01 | CO48: 2032-12-01 | CP48: 2033-01-01 | CQ48: 2033-02-01 | CR48: 2033-03-01 | CS48: 2033-04-01 | CT48: 2033-05-01 | CU48: 2033-06-01 | CV48: 2033-07-01 | CW48: 2033-08-01 | CX48: 2033-09-01 | CY48: 2033-10-01 | CZ48: 2033-11-01 | DA48: 2033-12-01 | DB48: 2034-01-01 | DC48: 2034-02-01 | DD48: 2034-03-01 | DE48: 2034-04-01 | DF48: 2034-05-01 | DG48: 2034-06-01 | DH48: 2034-07-01 | DI48: 2034-08-01 | DJ48: 2034-09-01 | DK48: 2034-10-01 | DL48: 2034-11-01 | DM48: 2034-12-01 | DN48: 2035-01-01 | DO48: 2035-02-01 | DP48: 2035-03-01 | DQ48: 2035-04-01 | DR48: 2035-05-01 | DS48: 2035-06-01 | DT48: 2035-07-01 | DU48: 2035-08-01 | DV48: 2035-09-01 | DW48: 2035-10-01 | DX48: 2035-11-01 | DY48: 2035-12-01 | DZ48: 2036-01-01 | EA48: 2036-02-01 | EB48: 2036-03-01 | EC48: 2036-04-01 | ED48: 2036-05-01 | EE48: 2036-06-01 | EF48: 2036-07-01 | EG48: 2036-08-01 | EH48: 2036-09-01 | EI48: 2036-10-01 | EJ48: =EDATE(EI48,1) -> 2036-11-01 | EK48: 2036-12-01 | EL48: 2037-01-01 | EM48: 2037-02-01 | EN48: 2037-03-01 | EO48: 2037-04-01 | EP48: 2037-05-01 | EQ48: 2037-06-01 | ER48: 2037-07-01 | ES48: 2037-08-01 | ET48: 2037-09-01 | EU48: 2037-10-01 | EV48: 2037-11-01 | EW48: 2037-12-01 | EX48: 2038-01-01 | EY48: 2038-02-01 | EZ48: 2038-03-01 | FA48: 2038-04-01 | FB48: 2038-05-01 | FC48: 2038-06-01 | FD48: 2038-07-01 | FE48: 2038-08-01 | FF48: 2038-09-01 | FG48: 2038-10-01 | FH48: 2038-11-01 | FI48: 2038-12-01 | FJ48: 2039-01-01 | FK48: 2039-02-01 | FL48: 2039-03-01 | FM48: 2039-04-01 | FN48: 2039-05-01 | FO48: 2039-06-01 | FP48: 2039-07-01 | FQ48: 2039-08-01 | FR48: 2039-09-01 | FS48: 2039-10-01 | FT48: 2039-11-01 | FU48: 2039-12-01 | FV48: 2040-01-01 | FW48: 2040-02-01 | FX48: 2040-03-01 | FY48: 2040-04-01 | FZ48: 2040-05-01 | GA48: 2040-06-01 | GB48: 2040-07-01 | GC48: 2040-08-01 | GD48: 2040-09-01 | GE48: 2040-10-01 | GF48: 2040-11-01 | GG48: 2040-12-01
C49: Otimista | I49: =AVERAGE(J49:GG49) -> 142.6304968 | J49: =J31 -> 61.42116671 | K49: =K31 -> 83.38315559 | L49: 59.1284316 | M49: 49.41447498 | N49: 106.7328526 | O49: 75.6602584 | P49: 81.69377183 | Q49: 48.75078851 | R49: 54.60329653 | S49: 54.24128573 | T49: 43.86364263 | U49: 51.64687495 | V49: 74.11245595 | W49: 100.6123911 | X49: 71.34597921 | Y49: 59.62485405 | Z49: 128.7867727 | AA49: 91.29373258 | AB49: 98.57393454 | AC49: 58.82403184 | AD49: 65.88582774 | AE49: 65.44901562 | AF49: 52.92706825 | AG49: 62.31852878 | AH49: 89.40958423 | AI49: 121.3792195 | AJ49: 86.07209484 | AK49: 71.93167926 | AL49: 155.3689141 | AM49: 110.1371499 | AN49: 118.9200168 | AO49: 70.96556391 | AP49: 79.48494473 | AQ49: 78.95797272 | AR49: 63.85144179 | AS49: 75.18133998 | AT49: 102.362075 | AU49: 138.9630527 | AV49: 98.54109381 | AW49: 82.35219983 | AX49: 177.8767295 | AY49: 126.0923792 | AZ49: 136.1475929 | BA49: 81.24612632 | BB49: 90.99968357 | BC49: 90.39637075 | BD49: 73.10140326 | BE49: 86.07262888 | BF49: 116.909287 | BG49: 158.7118218 | BH49: 112.5452861 | BI49: 94.0557034 | BJ49: 203.1557257 | BK49: 144.0120294 | BL49: 155.4962422 | BM49: 92.79243998 | BN49: 103.9321265 | BO49: 103.2430737 | BP49: 83.49022756 | BQ49: 98.30486216 | BR49: 133.4695976 | BS49: 181.1935009 | BT49: 128.4874319 | BU49: 107.3787824 | BV49: 231.9329256 | BW49: =BW31 -> 164.411469 | BX49: 177.5224314 | BY49: 105.9365765 | BZ49: 118.6542101 | CA49: 117.8675523 | CB49: 95.31669694 | CC49: 112.2298385 | CD49: 152.299725 | CE49: 206.7566011 | CF49: 146.6146665 | CG49: 122.5279713 | CH49: 264.6544337 | CI49: 187.6069304 | CJ49: 202.5676106 | CK49: 120.8822964 | CL49: 135.3941563 | CM49: 134.4965155 | CN49: 108.7641454 | CO49: 128.063423 | CP49: 155.0910053 | CQ49: 210.5459424 | CR49: 149.3017537 | CS49: 124.7736084 | CT49: 269.5049003 | CU49: 191.0453052 | CV49: 206.280178 | CW49: 123.0977724 | CX49: 137.8755991 | CY49: 136.9615067 | CZ49: 110.7575254 | DA49: 130.4105114 | DB49: 157.8585707 | DC49: 214.3030891 | DD49: 151.9660111 | DE49: 127.0001664 | DF49: 274.3141568 | DG49: 194.4544673 | DH49: 209.9612031 | DI49: 125.2944255 | DJ49: 140.3359592 | DK49: 139.4055551 | DL49: 112.7339695 | DM49: 132.7376587 | DN49: 160.6000374 | DO49: 218.0248052 | DP49: 154.6051441 | DQ49: 129.2057276 | DR49: 279.0780611 | DS49: 197.8314803 | DT49: 213.6075154 | DU49: 127.4703637 | DV49: 142.7731178 | DW49: 141.8265557 | DX49: 114.6917753 | DY49: 135.0428606 | DZ49: 163.3113875 | EA49: 221.7056361 | EB49: 157.2152847 | EC49: 131.3870593 | ED49: 283.7896312 | EE49: 201.1713949 | EF49: 217.2137708 | EG49: 129.622398 | EH49: 145.1835027 | EI49: =EI31 -> 144.2209601 | EJ49: 116.6280734 | EK49: 137.3227384 | EL49: 165.9884351 | EM49: 225.3398991 | EN49: 159.7924031 | EO49: 133.540794 | EP49: 288.4415929 | EQ49: 204.4690546 | ER49: 220.7744018 | ES49: 131.7472058 | ET49: 147.5633927 | EU49: 146.5850718 | EV49: 118.5398745 | EW49: 139.5737725 | EX49: 168.6286575 | EY49: 228.9241696 | EZ49: 162.3340711 | FA49: 135.6649022 | FB49: 293.029563 | FC49: 207.7213522 | FD49: 224.2860533 | FE49: 133.8427851 | FF49: 149.9105452 | FG49: 148.9166632 | FH49: 120.4253772 | FI49: 141.7938417 | FJ49: 171.2301104 | FK49: 232.4558081 | FL49: 164.8384167 | FM49: 137.7578197 | FN49: 297.5501625 | FO49: 210.9258924 | FP49: 227.746139 | FQ49: 135.9075926 | FR49: 152.2232318 | FS49: 151.214017 | FT49: 122.2831928 | FU49: 143.9813109 | FV49: 173.7891691 | FW49: 235.9298936 | FX49: 167.3019506 | FY49: 139.8166301 | FZ49: 301.9970924 | GA49: 214.0782102 | GB49: 231.1498378 | GC49: 137.9387511 | GD49: 154.4982299 | GE49: 153.4739322 | GF49: 124.1107327 | GG49: 146.1331323
C50: Moderada | I50: =AVERAGE(J50:GG50) -> 97.08743882 | J50: =J36 -> 47.8876893 | K50: =K36 -> 65.01059588 | L50: 46.10013311 | M50: 38.52653982 | N50: 83.21544437 | O50: 58.98935401 | P50: 63.69344922 | Q50: 38.00908934 | R50: 42.5720617 | S50: 42.28981599 | T50: 34.19877222 | U50: 40.26705505 | V50: 56.31354381 | W50: 76.44923138 | X50: 54.21146653 | Y50: 45.30529703 | Z50: 97.85722887 | AA50: 69.36855003 | AB50: 74.90033233 | AC50: 44.69680098 | AD50: 50.06262981 | AE50: 49.73072287 | AF50: 40.21605732 | AG50: 47.35205648 | AH50: 66.20969107 | AI50: 89.88388316 | AJ50: 63.73820948 | AK50: 53.26693221 | AL50: 115.053972 | AM50: 81.55889254 | AN50: 88.06279146 | AO50: 52.55150332 | AP50: 58.86028528 | AQ50: 58.47005135 | AR50: 47.28334519 | AS50: 55.67337481 | AT50: 73.77089329 | AU50: 100.148698 | AV50: 71.01716643 | AW50: 59.35006052 | AX50: 128.1932321 | AY50: 90.87298643 | AZ50: 98.11963607 | BA50: 58.55292906 | BB50: 65.5821792 | BC50: 65.14738022 | BD50: 52.68314285 | BE50: 62.03132088 | BF50: 81.99803566 | BG50: 111.317569 | BH50: 78.93720525 | BI50: 65.9689501 | BJ50: 142.4897103 | BK50: 101.0074035 | BL50: 109.0622203 | BM50: 65.08292025 | BN50: 72.8960926 | BO50: 72.41280359 | BP50: 58.55851859 | BQ50: 68.94923234 | BR50: 91.10563997 | BS50: 123.6817234 | BT50: 87.70484005 | BU50: 73.29618776 | BV50: 158.3161858 | BW50: =BW36 -> 112.2263974 | BX50: 121.1758708 | BY50: 72.31174567 | BZ50: 80.99273494 | CA50: 80.45576654 | CB50: 65.06267216 | CC50: 76.60749294 | CD50: 101.1743694 | CE50: 137.3506665 | CF50: 97.39772302 | CG50: 81.39666852 | CH50: 175.8128286 | CI50: 124.6293313 | CJ50: 134.5678745 | CK50: 80.30342877 | CL50: 89.94381564 | CM50: 89.34750305 | CN50: 72.25320881 | CO50: 85.07392949 | CP50: 103.0286474 | CQ50: 139.8679673 | CR50: 99.18278437 | CS50: 82.88846979 | CT50: 179.0350465 | CU50: 126.9134812 | CV50: 137.0341735 | CW50: 81.77519364 | CX50: 91.59226516 | CY50: 90.98502362 | CZ50: 73.57743289 | DA50: 86.63312594 | DB50: 104.8671713 | DC50: 142.3638809 | DD50: 100.9526797 | DE50: 84.36759657 | DF50: 182.2298881 | DG50: 129.1782248 | DH50: 139.4795186 | DI50: 83.23445425 | DJ50: 93.22670928 | DK50: 92.60863164 | DL50: 74.89040624 | DM50: 88.17907529 | DN50: 106.6883576 | DO50: 144.8362575 | DP50: 102.7058845 | DQ50: 85.83277491 | DR50: 185.3946017 | DS50: 131.4216114 | DT50: 141.9018037 | DU50: 84.67995375 | DV50: 94.84574028 | DW50: 94.21692874 | DX50: 76.19099799 | DY50: 89.71044605 | DZ50: 108.489537 | EA50: 147.2814737 | EB50: 104.4398294 | EC50: 87.2818574 | ED50: 188.5245491 | EE50: 133.6403531 | EF50: 144.2974785 | EG50: 86.1095736 | EH50: 96.44698528 | EI50: =EI36 -> 95.80755775 | EJ50: 77.47730199 | EK50: 91.22499381 | EL50: 110.2679289 | EM50: 149.6957542 | EN50: 106.1518373 | EO50: 88.71260687 | EP50: 191.6148981 | EQ50: 135.8310244 | ER50: 146.6628446 | ES50: 87.52110665 | ET50: 98.02797218 | EU50: 97.37806297 | EV50: 78.74733235 | EW50: 92.72038031 | EX50: 112.0218575 | EY50: 152.0768242 | EZ50: 107.840295 | FA50: 90.12367514 | FB50: 194.6627367 | FC50: 137.9915612 | FD50: 148.9956729 | FE50: 88.91322285 | FF50: 99.58721124 | FG50: 98.92696453 | FH50: 79.99989234 | FI50: 94.19519648 | FJ50: 113.7500311 | FK50: 154.4229302 | FL50: 109.5039592 | FM50: 91.51402305 | FN50: 197.6658202 | FO50: 140.1203723 | FP50: 151.2942457 | FQ50: 90.28489697 | FR50: 101.1235542 | FS50: 100.4531218 | FT50: 81.23405953 | FU50: 95.6483562 | FV50: 115.4500417 | FW50: 156.7308031 | FX50: 111.1405116 | FY50: 92.88171328 | FZ50: 200.6199643 | GA50: 142.2144914 | GB50: 153.5553599 | GC50: 91.63421774 | GD50: 102.6348602 | GE50: 101.9544081 | GF50: 82.44811423 | GG50: 97.07783464
C51: Pessimista | I51: =AVERAGE(J51:GG51) -> 61.81964652 | J51: =J41 -> 34.97883392 | K51: =K41 -> 47.48600047 | L51: 33.67314071 | M51: 28.14112474 | N51: 60.78345502 | O51: 43.08787597 | P51: 46.52391074 | Q51: 27.76316091 | R51: 31.09611463 | S51: 30.88995255 | T51: 24.97997275 | U51: 29.4124576 | V51: 40.06032666 | W51: 54.38445133 | X51: 38.56495101 | Y51: 32.22928049 | Z51: 69.61367178 | AA51: 49.3473965 | AB51: 53.28259558 | AC51: 31.79640859 | AD51: 35.6135517 | AE51: 35.37743976 | AF51: 28.60889733 | AG51: 33.68530415 | AH51: 45.87154542 | AI51: 62.27355184 | AJ51: 44.15924805 | AK51: 36.90451444 | AL51: 79.71194877 | AM51: 56.50581332 | AN51: 61.01185904 | AO51: 36.40884941 | AP51: 40.77971376 | AQ51: 40.50935101 | AR51: 32.75895238 | AS51: 38.57175136 | AT51: 49.70341396 | AU51: 67.47555805 | AV51: 47.84808024 | AW51: 39.9873242 | AX51: 86.37066729 | AY51: 61.22601288 | AZ51: 66.10847005 | BA51: 39.45025391 | BB51: 44.18623737 | BC51: 43.89328994 | BD51: 35.49546361 | BE51: 41.79383335 | BF51: 53.72593639 | BG51: 72.93638909 | BH51: 51.72044957 | BI51: 43.22351857 | BJ51: 93.36068907 | BK51: 66.18106506 | BL51: 71.45866196 | BM51: 42.64298291 | BN51: 47.7622519 | BO51: 47.44559608 | BP51: 38.36812943 | BQ51: 45.17622942 | BR51: 58.0503945 | BS51: 78.80711709 | BT51: 55.8834839 | BU51: 46.70262583 | BV51: 100.8753908 | BW51: =BW41 -> 71.50804981 | BX51: 77.21044612 | BY51: 46.07536224 | BZ51: 51.60668666 | CA51: 51.26454288 | CB51: 41.45642122 | CC51: 48.81251247 | CD51: 62.69166236 | CE51: 85.10793456 | CF51: 60.35150207 | CG51: 50.43661245 | CH51: 108.9406196 | CI51: 77.22528939 | CJ51: 83.38360592 | CK51: 49.75919763 | CL51: 55.73276467 | CM51: 55.36326568 | CN51: 44.77096123 | CO51: 52.71518957 | CP51: 63.84064675 | CQ51: 86.66775423 | CR51: 61.45759707 | CS51: 51.36099183 | CT51: 110.9372339 | CU51: 78.64063951 | CV51: 84.91182289 | CW51: 50.67116166 | CX51: 56.75420954 | CY51: 56.37793853 | CZ51: 45.59150313 | DA51: 53.68132968 | DB51: 64.97986925 | DC51: 88.21432152 | DD51: 62.55429457 | DE51: 52.2775176 | DF51: 112.9168848 | DG51: 80.04396468 | DH51: 86.42705596 | DI51: 51.57537756 | DJ51: 57.7669761 | DK51: 57.38399063 | DL51: 46.40507362 | DM51: 54.63926138 | DN51: 66.10834867 | DO51: 89.74630439 | DP51: 63.64065 | DQ51: 53.18540036 | DR51: 114.8778672 | DS51: 81.43405623 | DT51: 87.9280001 | DU51: 52.47106653 | DV51: 58.77019209 | DW51: 58.38055546 | DX51: 47.21097199 | DY51: 55.58815959 | DZ51: 67.22443109 | EA51: 91.26145753 | EB51: 64.71507119 | EC51: 54.08330949 | ED51: 116.8173071 | EE51: 82.8088768 | EF51: 89.4124555 | EG51: 53.35691584 | EH51: 59.76238717 | EI51: =EI41 -> 59.36617245 | EJ51: 48.00801709 | EK51: 56.52663361 | EL51: 68.32639342 | EM51: 92.75744176 | EN51: 65.77589936 | EO51: 54.96985875 | EP51: 118.7322102 | EQ51: 84.16630388 | ER51: 90.87813034 | ES51: 54.23155784 | ET51: 60.74202951 | EU51: 60.33931993 | EV51: 48.79497841 | EW51: 57.45323455 | EX51: 69.41319731 | EY51: 94.23284743 | EZ51: 66.82213493 | FA51: 55.84421277 | FB51: 120.6207721 | FC51: 85.50505837 | FD51: 92.32364357 | FE51: 55.09416839 | FF51: 61.70819604 | FG51: 61.29908092 | FH51: 49.57111438 | FI51: 58.36708929 | FJ51: 70.48404238 | FK51: 95.68658799 | FL51: 67.8530074 | FM51: 56.70572761 | FN51: 122.4816021 | FO51: 86.82415437 | FP51: 93.74793063 | FQ51: 55.94411222 | FR51: 62.6601752 | FS51: 62.24474863 | FT51: 50.33585345 | FU51: 59.26752483 | FV51: 71.53743653 | FW51: 97.1166378 | FX51: 68.86708035 | FY51: 57.55320287 | FZ51: 124.3121073 | GA51: 88.12175384 | GB51: 95.14900694 | GC51: 56.78020503 | GD51: 63.59664053 | GE51: 63.17500534 | GF51: 51.08813002 | GG51: 60.15328651
C53: Ano | J53: =J20 -> 2026 | K53: =K20 -> 2027 | L53: 2028 | M53: 2029 | N53: 2030 | O53: 2031 | P53: 2032 | Q53: 2033 | R53: 2034 | S53: 2035 | T53: 2036 | U53: 2037 | V53: 2038 | W53: 2039 | X53: 2040 | Y53: 0 | Z53: 0 | AA53: 0 | AB53: 0 | AC53: 0 | AD53: 0 | AE53: 0 | AF53: 0 | AG53: 0 | AH53: 0 | AI53: 0 | AJ53: 0 | AK53: 0 | AL53: 0 | AM53: 0
C54: Otimista | I54: =AVERAGE(J54:GG54) -> 828.1770781 | J54: =SUMIF($J$1:$GG$1,J53,$J$49:$GG$49) -> 770.54 | K54: =SUMIF($J$1:$GG$1,K53,$J$49:$GG$49) -> 929.7545923 | L54: =SUMIF($J$1:$GG$1,L53,$J$49:$GG$49) -> 1121.659922 | M54: =SUMIF($J$1:$GG$1,M53,$J$49:$GG$49) -> 1284.151336 | N54: =SUMIF($J$1:$GG$1,N53,$J$49:$GG$49) -> 1466.648825 | O54: =SUMIF($J$1:$GG$1,O53,$J$49:$GG$49) -> 1674.401013 | P54: =SUMIF($J$1:$GG$1,P53,$J$49:$GG$49) -> 1910.628475 | Q54: =SUMIF($J$1:$GG$1,Q53,$J$49:$GG$49) -> 1945.645608 | R54: =SUMIF($J$1:$GG$1,R53,$J$49:$GG$49) -> 1980.365232 | S54: =SUMIF($J$1:$GG$1,S53,$J$49:$GG$49) -> 2014.757444 | T54: =SUMIF($J$1:$GG$1,T53,$J$49:$GG$49) -> 2048.771837 | U54: =SUMIF($J$1:$GG$1,U53,$J$49:$GG$49) -> 2082.355898 | V54: =SUMIF($J$1:$GG$1,V53,$J$49:$GG$49) -> 2115.477981 | W54: =SUMIF($J$1:$GG$1,W53,$J$49:$GG$49) -> 2148.113694 | X54: =SUMIF($J$1:$GG$1,X53,$J$49:$GG$49) -> 2180.217562 | Y54: =SUMIF($J$1:$GG$1,Y53,$J$49:$GG$49) -> 0 | Z54: =SUMIF($J$1:$GG$1,Z53,$J$49:$GG$49) -> 0 | AA54: =SUMIF($J$1:$GG$1,AA53,$J$49:$GG$49) -> 0 | AB54: =SUMIF($J$1:$GG$1,AB53,$J$49:$GG$49) -> 0 | AC54: =SUMIF($J$1:$GG$1,AC53,$J$49:$GG$49) -> 0 | AD54: =SUMIF($J$1:$GG$1,AD53,$J$49:$GG$49) -> 0 | AE54: =SUMIF($J$1:$GG$1,AE53,$J$49:$GG$49) -> 0 | AF54: =SUMIF($J$1:$GG$1,AF53,$J$49:$GG$49) -> 0 | AG54: =SUMIF($J$1:$GG$1,AG53,$J$49:$GG$49) -> 0 | AH54: =SUMIF($J$1:$GG$1,AH53,$J$49:$GG$49) -> 0 | AI54: =SUMIF($J$1:$GG$1,AI53,$J$49:$GG$49) -> 0 | AJ54: =SUMIF($J$1:$GG$1,AJ53,$J$49:$GG$49) -> 0 | AK54: =SUMIF($J$1:$GG$1,AK53,$J$49:$GG$49) -> 0 | AL54: =SUMIF($J$1:$GG$1,AL53,$J$49:$GG$49) -> 0 | AM54: =SUMIF($J$1:$GG$1,AM53,$J$49:$GG$49) -> 0 | AN54: 0
C55: Moderada | I55: =AVERAGE(J55:GG55) -> 563.7335157 | J55: =SUMIF($J$1:$GG$1,J53,$J$50:$GG$50) -> 600.76 | K55: =SUMIF($J$1:$GG$1,K53,$J$50:$GG$50) -> 706.4639174 | L55: =SUMIF($J$1:$GG$1,L53,$J$50:$GG$50) -> 830.6129319 | M55: =SUMIF($J$1:$GG$1,M53,$J$50:$GG$50) -> 925.469625 | N55: =SUMIF($J$1:$GG$1,N53,$J$50:$GG$50) -> 1028.680661 | O55: =SUMIF($J$1:$GG$1,O53,$J$50:$GG$50) -> 1142.937257 | P55: =SUMIF($J$1:$GG$1,P53,$J$50:$GG$50) -> 1269.251348 | Q55: =SUMIF($J$1:$GG$1,Q53,$J$50:$GG$50) -> 1292.513611 | R55: =SUMIF($J$1:$GG$1,R53,$J$50:$GG$50) -> 1315.578237 | S55: =SUMIF($J$1:$GG$1,S53,$J$50:$GG$50) -> 1338.425358 | T55: =SUMIF($J$1:$GG$1,T53,$J$50:$GG$50) -> 1361.021491 | U55: =SUMIF($J$1:$GG$1,U53,$J$50:$GG$50) -> 1383.331749 | V55: =SUMIF($J$1:$GG$1,V53,$J$50:$GG$50) -> 1405.33511 | W55: =SUMIF($J$1:$GG$1,W53,$J$50:$GG$50) -> 1427.01537 | X55: =SUMIF($J$1:$GG$1,X53,$J$50:$GG$50) -> 1448.34232 | Y55: =SUMIF($J$1:$GG$1,Y53,$J$50:$GG$50) -> 0 | Z55: =SUMIF($J$1:$GG$1,Z53,$J$50:$GG$50) -> 0 | AA55: =SUMIF($J$1:$GG$1,AA53,$J$50:$GG$50) -> 0 | AB55: =SUMIF($J$1:$GG$1,AB53,$J$50:$GG$50) -> 0 | AC55: =SUMIF($J$1:$GG$1,AC53,$J$50:$GG$50) -> 0 | AD55: =SUMIF($J$1:$GG$1,AD53,$J$50:$GG$50) -> 0 | AE55: =SUMIF($J$1:$GG$1,AE53,$J$50:$GG$50) -> 0 | AF55: =SUMIF($J$1:$GG$1,AF53,$J$50:$GG$50) -> 0 | AG55: =SUMIF($J$1:$GG$1,AG53,$J$50:$GG$50) -> 0 | AH55: =SUMIF($J$1:$GG$1,AH53,$J$50:$GG$50) -> 0 | AI55: =SUMIF($J$1:$GG$1,AI53,$J$50:$GG$50) -> 0 | AJ55: =SUMIF($J$1:$GG$1,AJ53,$J$50:$GG$50) -> 0 | AK55: =SUMIF($J$1:$GG$1,AK53,$J$50:$GG$50) -> 0 | AL55: =SUMIF($J$1:$GG$1,AL53,$J$50:$GG$50) -> 0 | AM55: =SUMIF($J$1:$GG$1,AM53,$J$50:$GG$50) -> 0 | AN55: 0
C56: Pessimista | I56: =AVERAGE(J56:GG56) -> 358.9527863 | J56: =SUMIF($J$1:$GG$1,J53,$J$51:$GG$51) -> 438.816 | K56: =SUMIF($J$1:$GG$1,K53,$J$51:$GG$51) -> 502.5642749 | L56: =SUMIF($J$1:$GG$1,L53,$J$51:$GG$51) -> 575.4670988 | M56: =SUMIF($J$1:$GG$1,M53,$J$51:$GG$51) -> 623.5386049 | N56: =SUMIF($J$1:$GG$1,N53,$J$51:$GG$51) -> 674.0018994 | O56: =SUMIF($J$1:$GG$1,O53,$J$51:$GG$51) -> 728.2530336 | P56: =SUMIF($J$1:$GG$1,P53,$J$51:$GG$51) -> 786.4786051 | Q56: =SUMIF($J$1:$GG$1,Q53,$J$51:$GG$51) -> 800.8928287 | R56: =SUMIF($J$1:$GG$1,R53,$J$51:$GG$51) -> 815.1845877 | S56: =SUMIF($J$1:$GG$1,S53,$J$51:$GG$51) -> 829.3415726 | T56: =SUMIF($J$1:$GG$1,T53,$J$51:$GG$51) -> 843.3430348 | U56: =SUMIF($J$1:$GG$1,U53,$J$51:$GG$51) -> 857.1673579 | V56: =SUMIF($J$1:$GG$1,V53,$J$51:$GG$51) -> 870.8015156 | W56: =SUMIF($J$1:$GG$1,W53,$J$51:$GG$51) -> 884.2354669 | X56: =SUMIF($J$1:$GG$1,X53,$J$51:$GG$51) -> 897.4504931 | Y56: =SUMIF($J$1:$GG$1,Y53,$J$51:$GG$51) -> 0 | Z56: =SUMIF($J$1:$GG$1,Z53,$J$51:$GG$51) -> 0 | AA56: =SUMIF($J$1:$GG$1,AA53,$J$51:$GG$51) -> 0 | AB56: =SUMIF($J$1:$GG$1,AB53,$J$51:$GG$51) -> 0 | AC56: =SUMIF($J$1:$GG$1,AC53,$J$51:$GG$51) -> 0 | AD56: =SUMIF($J$1:$GG$1,AD53,$J$51:$GG$51) -> 0 | AE56: =SUMIF($J$1:$GG$1,AE53,$J$51:$GG$51) -> 0 | AF56: =SUMIF($J$1:$GG$1,AF53,$J$51:$GG$51) -> 0 | AG56: =SUMIF($J$1:$GG$1,AG53,$J$51:$GG$51) -> 0 | AH56: =SUMIF($J$1:$GG$1,AH53,$J$51:$GG$51) -> 0 | AI56: =SUMIF($J$1:$GG$1,AI53,$J$51:$GG$51) -> 0 | AJ56: =SUMIF($J$1:$GG$1,AJ53,$J$51:$GG$51) -> 0 | AK56: =SUMIF($J$1:$GG$1,AK53,$J$51:$GG$51) -> 0 | AL56: =SUMIF($J$1:$GG$1,AL53,$J$51:$GG$51) -> 0 | AM56: =SUMIF($J$1:$GG$1,AM53,$J$51:$GG$51) -> 0 | AN56: 0

Sheet RECEITA
C1: ANO | J1: 2026 | K1: 2026 | L1: 2026 | M1: 2026 | N1: 2026 | O1: 2026 | P1: 2026 | Q1: 2026 | R1: 2026 | S1: 2026 | T1: 2026 | U1: 2026 | V1: =(2025+V3) -> 2027 | W1: =(2025+W3) -> 2027 | X1: =(2025+X3) -> 2027 | Y1: 2027 | Z1: 2027 | AA1: 2027 | AB1: 2027 | AC1: 2027 | AD1: 2027 | AE1: 2027 | AF1: 2027 | AG1: 2027 | AH1: 2028 | AI1: 2028 | AJ1: 2028 | AK1: 2028 | AL1: 2028 | AM1: 2028 | AN1: 2028 | AO1: 2028 | AP1: 2028 | AQ1: 2028 | AR1: 2028 | AS1: 2028 | AT1: 2029 | AU1: 2029 | AV1: 2029 | AW1: 2029 | AX1: 2029 | AY1: 2029 | AZ1: 2029 | BA1: 2029 | BB1: 2029 | BC1: 2029 | BD1: 2029 | BE1: 2029 | BF1: 2030 | BG1: 2030 | BH1: 2030 | BI1: 2030 | BJ1: 2030 | BK1: 2030 | BL1: 2030 | BM1: 2030 | BN1: 2030 | BO1: 2030 | BP1: 2030 | BQ1: 2030 | BR1: 2031 | BS1: 2031 | BT1: 2031 | BU1: 2031 | BV1: 2031 | BW1: 2031 | BX1: 2031 | BY1: 2031 | BZ1: 2031 | CA1: 2031 | CB1: 2031 | CC1: 2031 | CD1: 2032 | CE1: 2032 | CF1: 2032 | CG1: 2032 | CH1: 2032 | CI1: =(2025+CI3) -> 2032 | CJ1: 2032 | CK1: 2032 | CL1: 2032 | CM1: 2032 | CN1: 2032 | CO1: 2032 | CP1: 2033 | CQ1: 2033 | CR1: 2033 | CS1: 2033 | CT1: 2033 | CU1: 2033 | CV1: 2033 | CW1: 2033 | CX1: 2033 | CY1: 2033 | CZ1: 2033 | DA1: 2033 | DB1: 2034 | DC1: 2034 | DD1: 2034 | DE1: 2034 | DF1: 2034 | DG1: 2034 | DH1: 2034 | DI1: 2034 | DJ1: 2034 | DK1: 2034 | DL1: 2034 | DM1: 2034 | DN1: 2035 | DO1: 2035 | DP1: 2035 | DQ1: 2035 | DR1: 2035 | DS1: 2035 | DT1: 2035 | DU1: 2035 | DV1: 2035 | DW1: 2035 | DX1: 2035 | DY1: 2035 | DZ1: 2036 | EA1: 2036 | EB1: 2036 | EC1: 2036 | ED1: 2036 | EE1: 2036 | EF1: 2036 | EG1: 2036 | EH1: 2036 | EI1: 2036 | EJ1: 2036 | EK1: 2036 | EL1: 2037 | EM1: 2037 | EN1: 2037 | EO1: 2037 | EP1: 2037 | EQ1: 2037 | ER1: 2037 | ES1: 2037 | ET1: 2037 | EU1: =(2025+EU3) -> 2037 | EV1: 2037 | EW1: 2037 | EX1: 2038 | EY1: 2038 | EZ1: 2038 | FA1: 2038 | FB1: 2038 | FC1: 2038 | FD1: 2038 | FE1: 2038 | FF1: 2038 | FG1: 2038 | FH1: 2038 | FI1: 2038 | FJ1: 2039 | FK1: 2039 | FL1: 2039 | FM1: 2039 | FN1: 2039 | FO1: 2039 | FP1: 2039 | FQ1: 2039 | FR1: 2039 | FS1: 2039 | FT1: 2039 | FU1: 2039 | FV1: 2040 | FW1: 2040 | FX1: 2040 | FY1: 2040 | FZ1: 2040 | GA1: 2040 | GB1: 2040 | GC1: 2040 | GD1: 2040 | GE1: 2040 | GF1: 2040 | GG1: 2040
C2: MÊS - ANO | J2: 2026-01-01 | K2: =EDATE(J2,1) -> 2026-02-01 | L2: =EDATE(K2,1) -> 2026-03-01 | M2: 2026-04-01 | N2: 2026-05-01 | O2: 2026-06-01 | P2: 2026-07-01 | Q2: 2026-08-01 | R2: 2026-09-01 | S2: 2026-10-01 | T2: 2026-11-01 | U2: 2026-12-01 | V2: 2027-01-01 | W2: 2027-02-01 | X2: 2027-03-01 | Y2: 2027-04-01 | Z2: 2027-05-01 | AA2: 2027-06-01 | AB2: 2027-07-01 | AC2: 2027-08-01 | AD2: 2027-09-01 | AE2: 2027-10-01 | AF2: 2027-11-01 | AG2: 2027-12-01 | AH2: 2028-01-01 | AI2: 2028-02-01 | AJ2: 2028-03-01 | AK2: 2028-04-01 | AL2: 2028-05-01 | AM2: 2028-06-01 | AN2: 2028-07-01 | AO2: 2028-08-01 | AP2: 2028-09-01 | AQ2: 2028-10-01 | AR2: 2028-11-01 | AS2: 2028-12-01 | AT2: 2029-01-01 | AU2: 2029-02-01 | AV2: 2029-03-01 | AW2: 2029-04-01 | AX2: 2029-05-01 | AY2: 2029-06-01 | AZ2: 2029-07-01 | BA2: 2029-08-01 | BB2: 2029-09-01 | BC2: 2029-10-01 | BD2: 2029-11-01 | BE2: 2029-12-01 | BF2: 2030-01-01 | BG2: 2030-02-01 | BH2: 2030-03-01 | BI2: 2030-04-01 | BJ2: 2030-05-01 | BK2: 2030-06-01 | BL2: 2030-07-01 | BM2: 2030-08-01 | BN2: 2030-09-01 | BO2: 2030-10-01 | BP2: 2030-11-01 | BQ2: 2030-12-01 | BR2: 2031-01-01 | BS2: 2031-02-01 | BT2: 2031-03-01 | BU2: 2031-04-01 | BV2: 2031-05-01 | BW2: 2031-06-01 | BX2: =EDATE(BW2,1) -> 2031-07-01 | BY2: 2031-08-01 | BZ2: 2031-09-01 | CA2: 2031-10-01 | CB2: 2031-11-01 | CC2: 2031-12-01 | CD2: 2032-01-01 | CE2: 2032-02-01 | CF2: 2032-03-01 | CG2: 2032-04-01 | CH2: 2032-05-01 | CI2: 2032-06-01 | CJ2: 2032-07-01 | CK2: 2032-08-01 | CL2: 2032-09-01 | CM2: 2032-10-01 | CN2: 2032-11-01 | CO2: 2032-12-01 | CP2: 2033-01-01 | CQ2: 2033-02-01 | CR2: 2033-03-01 | CS2: 2033-04-01 | CT2: 2033-05-01 | CU2: 2033-06-01 | CV2: 2033-07-01 | CW2: 2033-08-01 | CX2: 2033-09-01 | CY2: 2033-10-01 | CZ2: 2033-11-01 | DA2: 2033-12-01 | DB2: 2034-01-01 | DC2: 2034-02-01 | DD2: 2034-03-01 | DE2: 2034-04-01 | DF2: 2034-05-01 | DG2: 2034-06-01 | DH2: 2034-07-01 | DI2: 2034-08-01 | DJ2: 2034-09-01 | DK2: 2034-10-01 | DL2: 2034-11-01 | DM2: 2034-12-01 | DN2: 2035-01-01 | DO2: 2035-02-01 | DP2: 2035-03-01 | DQ2: 2035-04-01 | DR2: 2035-05-01 | DS2: 2035-06-01 | DT2: 2035-07-01 | DU2: 2035-08-01 | DV2: 2035-09-01 | DW2: 2035-10-01 | DX2: 2035-11-01 | DY2: 2035-12-01 | DZ2: 2036-01-01 | EA2: 2036-02-01 | EB2: 2036-03-01 | EC2: 2036-04-01 | ED2: 2036-05-01 | EE2: 2036-06-01 | EF2: 2036-07-01 | EG2: 2036-08-01 | EH2: 2036-09-01 | EI2: 2036-10-01 | EJ2: =EDATE(EI2,1) -> 2036-11-01 | EK2: 2036-12-01 | EL2: 2037-01-01 | EM2: 2037-02-01 | EN2: 2037-03-01 | EO2: 2037-04-01 | EP2: 2037-05-01 | EQ2: 2037-06-01 | ER2: 2037-07-01 | ES2: 2037-08-01 | ET2: 2037-09-01 | EU2: 2037-10-01 | EV2: 2037-11-01 | EW2: 2037-12-01 | EX2: 2038-01-01 | EY2: 2038-02-01 | EZ2: 2038-03-01 | FA2: 2038-04-01 | FB2: 2038-05-01 | FC2: 2038-06-01 | FD2: 2038-07-01 | FE2: 2038-08-01 | FF2: 2038-09-01 | FG2: 2038-10-01 | FH2: 2038-11-01 | FI2: 2038-12-01 | FJ2: 2039-01-01 | FK2: 2039-02-01 | FL2: 2039-03-01 | FM2: 2039-04-01 | FN2: 2039-05-01 | FO2: 2039-06-01 | FP2: 2039-07-01 | FQ2: 2039-08-01 | FR2: 2039-09-01 | FS2: 2039-10-01 | FT2: 2039-11-01 | FU2: 2039-12-01 | FV2: 2040-01-01 | FW2: 2040-02-01 | FX2: 2040-03-01 | FY2: 2040-04-01 | FZ2: 2040-05-01 | GA2: 2040-06-01 | GB2: 2040-07-01 | GC2: 2040-08-01 | GD2: 2040-09-01 | GE2: 2040-10-01 | GF2: 2040-11-01 | GG2: 2040-12-01
C3: ANO OPERAÇÃO | J3: =ROUNDUP(J4/12,0) -> 1 | K3: =ROUNDUP(K4/12,0) -> 1 | L3: 1 | M3: 1 | N3: 1 | O3: 1 | P3: 1 | Q3: 1 | R3: 1 | S3: 1 | T3: 1 | U3: 1 | V3: 2 | W3: 2 | X3: 2 | Y3: 2 | Z3: 2 | AA3: 2 | AB3: 2 | AC3: 2 | AD3: 2 | AE3: 2 | AF3: 2 | AG3: 2 | AH3: 3 | AI3: 3 | AJ3: 3 | AK3: 3 | AL3: 3 | AM3: 3 | AN3: 3 | AO3: 3 | AP3: 3 | AQ3: 3 | AR3: 3 | AS3: 3 | AT3: 4 | AU3: 4 | AV3: 4 | AW3: 4 | AX3: 4 | AY3: 4 | AZ3: 4 | BA3: 4 | BB3: 4 | BC3: 4 | BD3: 4 | BE3: 4 | BF3: 5 | BG3: 5 | BH3: 5 | BI3: 5 | BJ3: 5 | BK3: 5 | BL3: 5 | BM3: 5 | BN3: 5 | BO3: 5 | BP3: 5 | BQ3: 5 | BR3: 6 | BS3: 6 | BT3: 6 | BU3: 6 | BV3: 6 | BW3: =ROUNDUP(BW4/12,0) -> 6 | BX3: 6 | BY3: 6 | BZ3: 6 | CA3: 6 | CB3: 6 | CC3: 6 | CD3: 7 | CE3: 7 | CF3: 7 | CG3: 7 | CH3: 7 | CI3: 7 | CJ3: 7 | CK3: 7 | CL3: 7 | CM3: 7 | CN3: 7 | CO3: 7 | CP3: 8 | CQ3: 8 | CR3: 8 | CS3: 8 | CT3: 8 | CU3: 8 | CV3: 8 | CW3: 8 | CX3: 8 | CY3: 8 | CZ3: 8 | DA3: 8 | DB3: 9 | DC3: 9 | DD3: 9 | DE3: 9 | DF3: 9 | DG3: 9 | DH3: 9 | DI3: 9 | DJ3: 9 | DK3: 9 | DL3: 9 | DM3: 9 | DN3: 10 | DO3: 10 | DP3: 10 | DQ3: 10 | DR3: 10 | DS3: 10 | DT3: 10 | DU3: 10 | DV3: 10 | DW3: 10 | DX3: 10 | DY3: 10 | DZ3: 11 | EA3: 11 | EB3: 11 | EC3: 11 | ED3: 11 | EE3: 11 | EF3: 11 | EG3: 11 | EH3: 11 | EI3: =ROUNDUP(EI4/12,0) -> 11 | EJ3: 11 | EK3: 11 | EL3: 12 | EM3: 12 | EN3: 12 | EO3: 12 | EP3: 12 | EQ3: 12 | ER3: 12 | ES3: 12 | ET3: 12 | EU3: 12 | EV3: 12 | EW3: 12 | EX3: 13 | EY3: 13 | EZ3: 13 | FA3: 13 | FB3: 13 | FC3: 13 | FD3: 13 | FE3: 13 | FF3: 13 | FG3: 13 | FH3: 13 | FI3: 13 | FJ3: 14 | FK3: 14 | FL3: 14 | FM3: 14 | FN3: 14 | FO3: 14 | FP3: 14 | FQ3: 14 | FR3: 14 | FS3: 14 | FT3: 14 | FU3: 14 | FV3: 15 | FW3: 15 | FX3: 15 | FY3: 15 | FZ3: 15 | GA3: 15 | GB3: 15 | GC3: 15 | GD3: 15 | GE3: 15 | GF3: 15 | GG3: 15
C4: MÊS | J4: 1 | K4: 2 | L4: 3 | M4: 4 | N4: 5 | O4: 6 | P4: 7 | Q4: 8 | R4: 9 | S4: 10 | T4: 11 | U4: 12 | V4: 13 | W4: 14 | X4: 15 | Y4: 16 | Z4: 17 | AA4: 18 | AB4: 19 | AC4: 20 | AD4: 21 | AE4: 22 | AF4: 23 | AG4: 24 | AH4: 25 | AI4: 26 | AJ4: 27 | AK4: 28 | AL4: 29 | AM4: 30 | AN4: 31 | AO4: 32 | AP4: 33 | AQ4: 34 | AR4: 35 | AS4: 36 | AT4: 37 | AU4: 38 | AV4: 39 | AW4: 40 | AX4: 41 | AY4: 42 | AZ4: 43 | BA4: 44 | BB4: 45 | BC4: 46 | BD4: 47 | BE4: 48 | BF4: 49 | BG4: 50 | BH4: 51 | BI4: 52 | BJ4: 53 | BK4: 54 | BL4: 55 | BM4: 56 | BN4: 57 | BO4: 58 | BP4: 59 | BQ4: 60 | BR4: 61 | BS4: 62 | BT4: 63 | BU4: 64 | BV4: 65 | BW4: 66 | BX4: 67 | BY4: 68 | BZ4: 69 | CA4: 70 | CB4: 71 | CC4: 72 | CD4: 73 | CE4: 74 | CF4: 75 | CG4: 76 | CH4: 77 | CI4: 78 | CJ4: 79 | CK4: 80 | CL4: 81 | CM4: 82 | CN4: 83 | CO4: 84 | CP4: 85 | CQ4: 86 | CR4: 87 | CS4: 88 | CT4: 89 | CU4: 90 | CV4: 91 | CW4: 92 | CX4: 93 | CY4: 94 | CZ4: 95 | DA4: 96 | DB4: 97 | DC4: 98 | DD4: 99 | DE4: 100 | DF4: 101 | DG4: 102 | DH4: 103 | DI4: 104 | DJ4: 105 | DK4: 106 | DL4: 107 | DM4: 108 | DN4: 109 | DO4: 110 | DP4: 111 | DQ4: 112 | DR4: 113 | DS4: 114 | DT4: 115 | DU4: 116 | DV4: 117 | DW4: 118 | DX4: 119 | DY4: 120 | DZ4: 121 | EA4: 122 | EB4: 123 | EC4: 124 | ED4: 125 | EE4: 126 | EF4: 127 | EG4: 128 | EH4: 129 | EI4: 130 | EJ4: 131 | EK4: 132 | EL4: 133 | EM4: 134 | EN4: 135 | EO4: 136 | EP4: 137 | EQ4: 138 | ER4: 139 | ES4: 140 | ET4: 141 | EU4: 142 | EV4: 143 | EW4: 144 | EX4: 145 | EY4: 146 | EZ4: 147 | FA4: 148 | FB4: 149 | FC4: 150 | FD4: 151 | FE4: 152 | FF4: 153 | FG4: 154 | FH4: 155 | FI4: 156 | FJ4: 157 | FK4: 158 | FL4: 159 | FM4: 160 | FN4: 161 | FO4: 162 | FP4: 163 | FQ4: 164 | FR4: 165 | FS4: 166 | FT4: 167 | FU4: 168 | FV4: 169 | FW4: 170 | FX4: 171 | FY4: 172 | FZ4: 173 | GA4: 174 | GB4: 175 | GC4: 176 | GD4: 177 | GE4: 178 | GF4: 179 | GG4: 180
C6: Demanda
C7: Total | I7: =AVERAGE(J7:GG7) -> 625.8588852 | J7: =DEMANDA!J13 -> 520.5183619 | K7: =DEMANDA!K13 -> 706.6369118 | L7: =DEMANDA!L13 -> 501.0884034 | M7: =DEMANDA!M13 -> 418.7667371 | N7: =DEMANDA!N13 -> 904.5156996 | O7: =DEMANDA!O13 -> 641.1886305 | P7: =DEMANDA!P13 -> 692.3201002 | Q7: =DEMANDA!Q13 -> 413.1422755 | R7: =DEMANDA!R13 -> 462.7398011 | S7: =DEMANDA!S13 -> 459.6719129 | T7: =DEMANDA!T13 -> 371.725785 | U7: =DEMANDA!U13 -> 437.6853809 | V7: =DEMANDA!V13 -> 532.2641192 | W7: =DEMANDA!W13 -> 722.5825272 | X7: =DEMANDA!X13 -> 512.3957139 | Y7: =DEMANDA!Y13 -> 428.2164181 | Z7: =DEMANDA!Z13 -> 924.9265489 | AA7: =DEMANDA!AA13 -> 655.6573727 | AB7: =DEMANDA!AB13 -> 707.9426496 | AC7: =DEMANDA!AC13 -> 422.4650376 | AD7: =DEMANDA!AD13 -> 473.1817562 | AE7: =DEMANDA!AE13 -> 470.0446396 | AF7: =DEMANDA!AF13 -> 380.1139633 | AG7: =DEMANDA!AG13 -> 447.5619705 | AH7: =DEMANDA!AH13 -> 544.1743328 | AI7: =DEMANDA!AI13 -> 738.7514027 | AJ7: =DEMANDA!AJ13 -> 523.861342 | AK7: =DEMANDA!AK13 -> 437.7984072 | AL7: =DEMANDA!AL13 -> 945.6231775 | AM7: =DEMANDA!AM13 -> 670.3286968 | AN7: =DEMANDA!AN13 -> 723.7839357 | AO7: =DEMANDA!AO13 -> 431.9183309 | AP7: =DEMANDA!AP13 -> 483.7699127 | AQ7: =DEMANDA!AQ13 -> 480.5625984 | AR7: =DEMANDA!AR13 -> 388.6195874 | AS7: =DEMANDA!AS13 -> 457.5768456 | AT7: =DEMANDA!AT13 -> 556.25642 | AU7: =DEMANDA!AU13 -> 755.1536074 | AV7: =DEMANDA!AV13 -> 535.4924278 | AW7: =DEMANDA!AW13 -> 447.5186718 | AX7: =DEMANDA!AX13 -> 966.6184744 | AY7: =DEMANDA!AY13 -> 685.2117393 | AZ7: =DEMANDA!AZ13 -> 739.8538238 | BA7: =DEMANDA!BA13 -> 441.5080426 | BB7: =DEMANDA!BB13 -> 494.5108645 | BC7: =DEMANDA!BC13 -> 491.2323394 | BD7: =DEMANDA!BD13 -> 397.2479541 | BE7: =DEMANDA!BE13 -> 467.7362431 | BF7: =DEMANDA!BF13 -> 567.2401258 | BG7: =DEMANDA!BG13 -> 770.0646894 | BH7: =DEMANDA!BH13 -> 546.0661328 | BI7: =DEMANDA!BI13 -> 456.3552682 | BJ7: =DEMANDA!BJ13 -> 985.7050908 | BK7: =DEMANDA!BK13 -> 698.7417659 | BL7: =DEMANDA!BL13 -> 754.4627999 | BM7: =DEMANDA!BM13 -> 450.2259544 | BN7: =DEMANDA!BN13 -> 504.2753574 | BO7: =DEMANDA!BO13 -> 500.9320953 | BP7: =DEMANDA!BP13 -> 405.0919169 | BQ7: =DEMANDA!BQ13 -> 476.9720507 | BR7: =DEMANDA!BR13 -> 578.205557 | BS7: =DEMANDA!BS13 -> 784.9509625 | BT7: =DEMANDA!BT13 -> 556.6222455 | BU7: =DEMANDA!BU13 -> 465.1771623 | BV7: =DEMANDA!BV13 -> 1004.759951 | BW7: =DEMANDA!BW13 -> 712.2492815 | BX7: =DEMANDA!BX13 -> 769.0474698 | BY7: =DEMANDA!BY13 -> 458.9293616 | BZ7: =DEMANDA!BZ13 -> 514.0236042 | CA7: =DEMANDA!CA13 -> 510.6157129 | CB7: =DEMANDA!CB13 -> 412.922829 | CC7: =DEMANDA!CC13 -> 486.192492 | CD7: =DEMANDA!CD13 -> 589.0891264 | CE7: =DEMANDA!CE13 -> 799.7261028 | CF7: =DEMANDA!CF13 -> 567.0995519 | CG7: =DEMANDA!CG13 -> 473.933197 | CH7: =DEMANDA!CH13 -> 1023.672559 | CI7: =DEMANDA!CI13 -> 725.6559573 | CJ7: =DEMANDA!CJ13 -> 783.5232585 | CK7: =DEMANDA!CK13 -> 467.5677938 | CL7: =DEMANDA!CL13 -> 523.699076 | CM7: =DEMANDA!CM13 -> 520.227038 | CN7: =DEMANDA!CN13 -> 420.6952799 | CO7: =DEMANDA!CO13 -> 495.3440984 | CP7: =DEMANDA!CP13 -> 599.8856851 | CQ7: =DEMANDA!CQ13 -> 814.3831206 | CR7: =DEMANDA!CR13 -> 577.4930957 | CS7: =DEMANDA!CS13 -> 482.61923 | CT7: =DEMANDA!CT13 -> 1042.433966 | CU7: =DEMANDA!CU13 -> 738.955451 | CV7: =DEMANDA!CV13 -> 797.8833179 | CW7: =DEMANDA!CW13 -> 476.1371646 | CX7: =DEMANDA!CX13 -> 533.2971955 | CY7: =DEMANDA!CY13 -> 529.7615235 | CZ7: =DEMANDA!CZ13 -> 428.4055924 | DA7: =DEMANDA!DA13 -> 504.4225407 | DB7: =DEMANDA!DB13 -> 610.5905151 | DC7: =DEMANDA!DC13 -> 828.9156109 | DD7: =DEMANDA!DD13 -> 587.7983348 | DE7: =DEMANDA!DE13 -> 491.2314655 | DF7: =DEMANDA!DF13 -> 1061.035974 | DG7: =DEMANDA!DG13 -> 752.1419508 | DH7: =DEMANDA!DH13 -> 812.1213728 | DI7: =DEMANDA!DI13 -> 484.6337291 | DJ7: =DEMANDA!DJ13 -> 542.8137684 | DK7: =DEMANDA!DK13 -> 539.215003 | DL7: =DEMANDA!DL13 -> 436.0503973 | DM7: =DEMANDA!DM13 -> 513.4238516 | DN7: =DEMANDA!DN13 -> 621.1943966 | DO7: =DEMANDA!DO13 -> 843.3110571 | DP7: =DEMANDA!DP13 -> 598.0063936 | DQ7: =DEMANDA!DQ13 -> 499.7624861 | DR7: =DEMANDA!DR13 -> 1079.462561 | DS7: =DEMANDA!DS13 -> 765.2040995 | DT7: =DEMANDA!DT13 -> 826.2251601 | DU7: =DEMANDA!DU13 -> 493.0501694 | DV7: =DEMANDA!DV13 -> 552.2405981 | DW7: =DEMANDA!DW13 -> 548.5793345 | DX7: =DEMANDA!DX13 -> 443.6231103 | DY7: =DEMANDA!DY13 -> 522.3402785 | DZ7: =DEMANDA!DZ13 -> 631.6817882 | EA7: =DEMANDA!EA13 -> 857.5483608 | EB7: =DEMANDA!EB13 -> 608.1023108 | EC7: =DEMANDA!EC13 -> 508.1997884 | ED7: =DEMANDA!ED13 -> 1097.686722 | EE7: =DEMANDA!EE13 -> 778.1227529 | EF7: =DEMANDA!EF13 -> 840.1740091 | EG7: =DEMANDA!EG13 -> 501.3741502 | EH7: =DEMANDA!EH13 -> 561.5638687 | EI7: =DEMANDA!EI13 -> 557.8407933 | EJ7: =DEMANDA!EJ13 -> 451.1126326 | EK7: =DEMANDA!EK13 -> 531.1587531 | EL7: =DEMANDA!EL13 -> 642.0364989 | EM7: =DEMANDA!EM13 -> 871.6055417 | EN7: =DEMANDA!EN13 -> 618.0704999 | EO7: =DEMANDA!EO13 -> 516.5303464 | EP7: =DEMANDA!EP13 -> 1115.680321 | EQ7: =DEMANDA!EQ13 -> 790.8779662 | ER7: =DEMANDA!ER13 -> 853.9463846 | ES7: =DEMANDA!ES13 -> 509.5928203 | ET7: =DEMANDA!ET13 -> 570.7691862 | EU7: =DEMANDA!EU13 -> 566.9850811 | EV7: =DEMANDA!EV13 -> 458.5074015 | EW7: =DEMANDA!EW13 -> 539.8656612 | EX7: =DEMANDA!EX13 -> 652.2487716 | EY7: =DEMANDA!EY13 -> 885.469354 | EZ7: =DEMANDA!EZ13 -> 627.901568 | FA7: =DEMANDA!FA13 -> 524.7463104 | FB7: =DEMANDA!FB13 -> 1133.426402 | FC7: =DEMANDA!FC13 -> 803.4577206 | FD7: =DEMANDA!FD13 -> 867.5293092 | FE7: =DEMANDA!FE13 -> 517.6984356 | FF7: =DEMANDA!FF13 -> 579.8478765 | FG7: =DEMANDA!FG13 -> 576.0035812 | FH7: =DEMANDA!FH13 -> 465.8004489 | FI7: =DEMANDA!FI13 -> 548.4527981 | FJ7: =DEMANDA!FJ13 -> 662.3110856 | FK7: =DEMANDA!FK13 -> 899.1295877 | FL7: =DEMANDA!FL13 -> 637.5882749 | FM7: =DEMANDA!FM13 -> 532.8416297 | FN7: =DEMANDA!FN13 -> 1150.911896 | FO7: =DEMANDA!FO13 -> 815.8527518 | FP7: =DEMANDA!FP13 -> 880.9127798 | FQ7: =DEMANDA!FQ13 -> 525.6850267 | FR7: =DEMANDA!FR13 -> 588.7932539 | FS7: =DEMANDA!FS13 -> 584.8896522 | FT7: =DEMANDA!FT13 -> 472.9864039 | FU7: =DEMANDA!FU13 -> 556.9138401 | FV7: =DEMANDA!FV13 -> 672.20942 | FW7: =DEMANDA!FW13 -> 912.5672087 | FX7: =DEMANDA!FX13 -> 647.1171234 | FY7: =DEMANDA!FY13 -> 540.8050245 | FZ7: =DEMANDA!FZ13 -> 1168.11244 | GA7: =DEMANDA!GA13 -> 828.0457885 | GB7: =DEMANDA!GB13 -> 894.078148 | GC7: =DEMANDA!GC13 -> 533.541465 | GD7: =DEMANDA!GD13 -> 597.5928537 | GE7: =DEMANDA!GE13 -> 593.6309121 | GF7: =DEMANDA!GF13 -> 480.0552538 | GG7: =DEMANDA!GG13 -> 565.2369975
C8: Camping | D8: Moderada | J8: =IF($D$8="Otimista", DEMANDA!J49,IF(RECEITA!$D$8="Moderada", DEMANDA!J50,DEMANDA!J51)) -> 47.8876893 | K8: =IF($D$8="Otimista", DEMANDA!K49,IF(RECEITA!$D$8="Moderada", DEMANDA!K50,DEMANDA!K51)) -> 65.01059588 | L8: =IF($D$8="Otimista", DEMANDA!L49,IF(RECEITA!$D$8="Moderada", DEMANDA!L50,DEMANDA!L51)) -> 46.10013311 | M8: =IF($D$8="Otimista", DEMANDA!M49,IF(RECEITA!$D$8="Moderada", DEMANDA!M50,DEMANDA!M51)) -> 38.52653982 | N8: =IF($D$8="Otimista", DEMANDA!N49,IF(RECEITA!$D$8="Moderada", DEMANDA!N50,DEMANDA!N51)) -> 83.21544437 | O8: =IF($D$8="Otimista", DEMANDA!O49,IF(RECEITA!$D$8="Moderada", DEMANDA!O50,DEMANDA!O51)) -> 58.98935401 | P8: =IF($D$8="Otimista", DEMANDA!P49,IF(RECEITA!$D$8="Moderada", DEMANDA!P50,DEMANDA!P51)) -> 63.69344922 | Q8: =IF($D$8="Otimista", DEMANDA!Q49,IF(RECEITA!$D$8="Moderada", DEMANDA!Q50,DEMANDA!Q51)) -> 38.00908934 | R8: =IF($D$8="Otimista", DEMANDA!R49,IF(RECEITA!$D$8="Moderada", DEMANDA!R50,DEMANDA!R51)) -> 42.5720617 | S8: =IF($D$8="Otimista", DEMANDA!S49,IF(RECEITA!$D$8="Moderada", DEMANDA!S50,DEMANDA!S51)) -> 42.28981599 | T8: =IF($D$8="Otimista", DEMANDA!T49,IF(RECEITA!$D$8="Moderada", DEMANDA!T50,DEMANDA!T51)) -> 34.19877222 | U8: =IF($D$8="Otimista", DEMANDA!U49,IF(RECEITA!$D$8="Moderada", DEMANDA!U50,DEMANDA!U51)) -> 40.26705505 | V8: =IF($D$8="Otimista", DEMANDA!V49,IF(RECEITA!$D$8="Moderada", DEMANDA!V50,DEMANDA!V51)) -> 56.31354381 | W8: =IF($D$8="Otimista", DEMANDA!W49,IF(RECEITA!$D$8="Moderada", DEMANDA!W50,DEMANDA!W51)) -> 76.44923138 | X8: =IF($D$8="Otimista", DEMANDA!X49,IF(RECEITA!$D$8="Moderada", DEMANDA!X50,DEMANDA!X51)) -> 54.21146653 | Y8: =IF($D$8="Otimista", DEMANDA!Y49,IF(RECEITA!$D$8="Moderada", DEMANDA!Y50,DEMANDA!Y51)) -> 45.30529703 | Z8: =IF($D$8="Otimista", DEMANDA!Z49,IF(RECEITA!$D$8="Moderada", DEMANDA!Z50,DEMANDA!Z51)) -> 97.85722887 | AA8: =IF($D$8="Otimista", DEMANDA!AA49,IF(RECEITA!$D$8="Moderada", DEMANDA!AA50,DEMANDA!AA51)) -> 69.36855003 | AB8: =IF($D$8="Otimista", DEMANDA!AB49,IF(RECEITA!$D$8="Moderada", DEMANDA!AB50,DEMANDA!AB51)) -> 74.90033233 | AC8: =IF($D$8="Otimista", DEMANDA!AC49,IF(RECEITA!$D$8="Moderada", DEMANDA!AC50,DEMANDA!AC51)) -> 44.69680098 | AD8: =IF($D$8="Otimista", DEMANDA!AD49,IF(RECEITA!$D$8="Moderada", DEMANDA!AD50,DEMANDA!AD51)) -> 50.06262981 | AE8: =IF($D$8="Otimista", DEMANDA!AE49,IF(RECEITA!$D$8="Moderada", DEMANDA!AE50,DEMANDA!AE51)) -> 49.73072287 | AF8: =IF($D$8="Otimista", DEMANDA!AF49,IF(RECEITA!$D$8="Moderada", DEMANDA!AF50,DEMANDA!AF51)) -> 40.21605732 | AG8: =IF($D$8="Otimista", DEMANDA!AG49,IF(RECEITA!$D$8="Moderada", DEMANDA!AG50,DEMANDA!AG51)) -> 47.35205648 | AH8: =IF($D$8="Otimista", DEMANDA!AH49,IF(RECEITA!$D$8="Moderada", DEMANDA!AH50,DEMANDA!AH51)) -> 66.20969107 | AI8: =IF($D$8="Otimista", DEMANDA!AI49,IF(RECEITA!$D$8="Moderada", DEMANDA!AI50,DEMANDA!AI51)) -> 89.88388316 | AJ8: =IF($D$8="Otimista", DEMANDA!AJ49,IF(RECEITA!$D$8="Moderada", DEMANDA!AJ50,DEMANDA!AJ51)) -> 63.73820948 | AK8: =IF($D$8="Otimista", DEMANDA!AK49,IF(RECEITA!$D$8="Moderada", DEMANDA!AK50,DEMANDA!AK51)) -> 53.26693221 | AL8: =IF($D$8="Otimista", DEMANDA!AL49,IF(RECEITA!$D$8="Moderada", DEMANDA!AL50,DEMANDA!AL51)) -> 115.053972 | AM8: =IF($D$8="Otimista", DEMANDA!AM49,IF(RECEITA!$D$8="Moderada", DEMANDA!AM50,DEMANDA!AM51)) -> 81.55889254 | AN8: =IF($D$8="Otimista", DEMANDA!AN49,IF(RECEITA!$D$8="Moderada", DEMANDA!AN50,DEMANDA!AN51)) -> 88.06279146 | AO8: =IF($D$8="Otimista", DEMANDA!AO49,IF(RECEITA!$D$8="Moderada", DEMANDA!AO50,DEMANDA!AO51)) -> 52.55150332 | AP8: =IF($D$8="Otimista", DEMANDA!AP49,IF(RECEITA!$D$8="Moderada", DEMANDA!AP50,DEMANDA!AP51)) -> 58.86028528 | AQ8: =IF($D$8="Otimista", DEMANDA!AQ49,IF(RECEITA!$D$8="Moderada", DEMANDA!AQ50,DEMANDA!AQ51)) -> 58.47005135 | AR8: =IF($D$8="Otimista", DEMANDA!AR49,IF(RECEITA!$D$8="Moderada", DEMANDA!AR50,DEMANDA!AR51)) -> 47.28334519 | AS8: =IF($D$8="Otimista", DEMANDA!AS49,IF(RECEITA!$D$8="Moderada", DEMANDA!AS50,DEMANDA!AS51)) -> 55.67337481 | AT8: =IF($D$8="Otimista", DEMANDA!AT49,IF(RECEITA!$D$8="Moderada", DEMANDA!AT50,DEMANDA!AT51)) -> 73.77089329 | AU8: =IF($D$8="Otimista", DEMANDA!AU49,IF(RECEITA!$D$8="Moderada", DEMANDA!AU50,DEMANDA!AU51)) -> 100.148698 | AV8: =IF($D$8="Otimista", DEMANDA!AV49,IF(RECEITA!$D$8="Moderada", DEMANDA!AV50,DEMANDA!AV51)) -> 71.01716643 | AW8: =IF($D$8="Otimista", DEMANDA!AW49,IF(RECEITA!$D$8="Moderada", DEMANDA!AW50,DEMANDA!AW51)) -> 59.35006052 | AX8: =IF($D$8="Otimista", DEMANDA!AX49,IF(RECEITA!$D$8="Moderada", DEMANDA!AX50,DEMANDA!AX51)) -> 128.1932321 | AY8: =IF($D$8="Otimista", DEMANDA!AY49,IF(RECEITA!$D$8="Moderada", DEMANDA!AY50,DEMANDA!AY51)) -> 90.87298643 | AZ8: =IF($D$8="Otimista", DEMANDA!AZ49,IF(RECEITA!$D$8="Moderada", DEMANDA!AZ50,DEMANDA!AZ51)) -> 98.11963607 | BA8: =IF($D$8="Otimista", DEMANDA!BA49,IF(RECEITA!$D$8="Moderada", DEMANDA!BA50,DEMANDA!BA51)) -> 58.55292906 | BB8: =IF($D$8="Otimista", DEMANDA!BB49,IF(RECEITA!$D$8="Moderada", DEMANDA!BB50,DEMANDA!BB51)) -> 65.5821792 | BC8: =IF($D$8="Otimista", DEMANDA!BC49,IF(RECEITA!$D$8="Moderada", DEMANDA!BC50,DEMANDA!BC51)) -> 65.14738022 | BD8: =IF($D$8="Otimista", DEMANDA!BD49,IF(RECEITA!$D$8="Moderada", DEMANDA!BD50,DEMANDA!BD51)) -> 52.68314285 | BE8: =IF($D$8="Otimista", DEMANDA!BE49,IF(RECEITA!$D$8="Moderada", DEMANDA!BE50,DEMANDA!BE51)) -> 62.03132088 | BF8: =IF($D$8="Otimista", DEMANDA!BF49,IF(RECEITA!$D$8="Moderada", DEMANDA!BF50,DEMANDA!BF51)) -> 81.99803566 | BG8: =IF($D$8="Otimista", DEMANDA!BG49,IF(RECEITA!$D$8="Moderada", DEMANDA!BG50,DEMANDA!BG51)) -> 111.317569 | BH8: =IF($D$8="Otimista", DEMANDA!BH49,IF(RECEITA!$D$8="Moderada", DEMANDA!BH50,DEMANDA!BH51)) -> 78.93720525 | BI8: =IF($D$8="Otimista", DEMANDA!BI49,IF(RECEITA!$D$8="Moderada", DEMANDA!BI50,DEMANDA!BI51)) -> 65.9689501 | BJ8: =IF($D$8="Otimista", DEMANDA!BJ49,IF(RECEITA!$D$8="Moderada", DEMANDA!BJ50,DEMANDA!BJ51)) -> 142.4897103 | BK8: =IF($D$8="Otimista", DEMANDA!BK49,IF(RECEITA!$D$8="Moderada", DEMANDA!BK50,DEMANDA!BK51)) -> 101.0074035 | BL8: =IF($D$8="Otimista", DEMANDA!BL49,IF(RECEITA!$D$8="Moderada", DEMANDA!BL50,DEMANDA!BL51)) -> 109.0622203 | BM8: =IF($D$8="Otimista", DEMANDA!BM49,IF(RECEITA!$D$8="Moderada", DEMANDA!BM50,DEMANDA!BM51)) -> 65.08292025 | BN8: =IF($D$8="Otimista", DEMANDA!BN49,IF(RECEITA!$D$8="Moderada", DEMANDA!BN50,DEMANDA!BN51)) -> 72.8960926 | BO8: =IF($D$8="Otimista", DEMANDA!BO49,IF(RECEITA!$D$8="Moderada", DEMANDA!BO50,DEMANDA!BO51)) -> 72.41280359 | BP8: =IF($D$8="Otimista", DEMANDA!BP49,IF(RECEITA!$D$8="Moderada", DEMANDA!BP50,DEMANDA!BP51)) -> 58.55851859 | BQ8: =IF($D$8="Otimista", DEMANDA!BQ49,IF(RECEITA!$D$8="Moderada", DEMANDA!BQ50,DEMANDA!BQ51)) -> 68.94923234 | BR8: =IF($D$8="Otimista", DEMANDA!BR49,IF(RECEITA!$D$8="Moderada", DEMANDA!BR50,DEMANDA!BR51)) -> 91.10563997 | BS8: =IF($D$8="Otimista", DEMANDA!BS49,IF(RECEITA!$D$8="Moderada", DEMANDA!BS50,DEMANDA!BS51)) -> 123.6817234 | BT8: =IF($D$8="Otimista", DEMANDA!BT49,IF(RECEITA!$D$8="Moderada", DEMANDA!BT50,DEMANDA!BT51)) -> 87.70484005 | BU8: =IF($D$8="Otimista", DEMANDA!BU49,IF(RECEITA!$D$8="Moderada", DEMANDA!BU50,DEMANDA!BU51)) -> 73.29618776 | BV8: =IF($D$8="Otimista", DEMANDA!BV49,IF(RECEITA!$D$8="Moderada", DEMANDA!BV50,DEMANDA!BV51)) -> 158.3161858 | BW8: =IF($D$8="Otimista", DEMANDA!BW49,IF(RECEITA!$D$8="Moderada", DEMANDA!BW50,DEMANDA!BW51)) -> 112.2263974 | BX8: =IF($D$8="Otimista", DEMANDA!BX49,IF(RECEITA!$D$8="Moderada", DEMANDA!BX50,DEMANDA!BX51)) -> 121.1758708 | BY8: =IF($D$8="Otimista", DEMANDA!BY49,IF(RECEITA!$D$8="Moderada", DEMANDA!BY50,DEMANDA!BY51)) -> 72.31174567 | BZ8: =IF($D$8="Otimista", DEMANDA!BZ49,IF(RECEITA!$D$8="Moderada", DEMANDA!BZ50,DEMANDA!BZ51)) -> 80.99273494 | CA8: =IF($D$8="Otimista", DEMANDA!CA49,IF(RECEITA!$D$8="Moderada", DEMANDA!CA50,DEMANDA!CA51)) -> 80.45576654 | CB8: =IF($D$8="Otimista", DEMANDA!CB49,IF(RECEITA!$D$8="Moderada", DEMANDA!CB50,DEMANDA!CB51)) -> 65.06267216 | CC8: =IF($D$8="Otimista", DEMANDA!CC49,IF(RECEITA!$D$8="Moderada", DEMANDA!CC50,DEMANDA!CC51)) -> 76.60749294 | CD8: =IF($D$8="Otimista", DEMANDA!CD49,IF(RECEITA!$D$8="Moderada", DEMANDA!CD50,DEMANDA!CD51)) -> 101.1743694 | CE8: =IF($D$8="Otimista", DEMANDA!CE49,IF(RECEITA!$D$8="Moderada", DEMANDA!CE50,DEMANDA!CE51)) -> 137.3506665 | CF8: =IF($D$8="Otimista", DEMANDA!CF49,IF(RECEITA!$D$8="Moderada", DEMANDA!CF50,DEMANDA!CF51)) -> 97.39772302 | CG8: =IF($D$8="Otimista", DEMANDA!CG49,IF(RECEITA!$D$8="Moderada", DEMANDA!CG50,DEMANDA!CG51)) -> 81.39666852 | CH8: =IF($D$8="Otimista", DEMANDA!CH49,IF(RECEITA!$D$8="Moderada", DEMANDA!CH50,DEMANDA!CH51)) -> 175.8128286 | CI8: =IF($D$8="Otimista", DEMANDA!CI49,IF(RECEITA!$D$8="Moderada", DEMANDA!CI50,DEMANDA!CI51)) -> 124.6293313 | CJ8: =IF($D$8="Otimista", DEMANDA!CJ49,IF(RECEITA!$D$8="Moderada", DEMANDA!CJ50,DEMANDA!CJ51)) -> 134.5678745 | CK8: =IF($D$8="Otimista", DEMANDA!CK49,IF(RECEITA!$D$8="Moderada", DEMANDA!CK50,DEMANDA!CK51)) -> 80.30342877 | CL8: =IF($D$8="Otimista", DEMANDA!CL49,IF(RECEITA!$D$8="Moderada", DEMANDA!CL50,DEMANDA!CL51)) -> 89.94381564 | CM8: =IF($D$8="Otimista", DEMANDA!CM49,IF(RECEITA!$D$8="Moderada", DEMANDA!CM50,DEMANDA!CM51)) -> 89.34750305 | CN8: =IF($D$8="Otimista", DEMANDA!CN49,IF(RECEITA!$D$8="Moderada", DEMANDA!CN50,DEMANDA!CN51)) -> 72.25320881 | CO8: =IF($D$8="Otimista", DEMANDA!CO49,IF(RECEITA!$D$8="Moderada", DEMANDA!CO50,DEMANDA!CO51)) -> 85.07392949 | CP8: =IF($D$8="Otimista", DEMANDA!CP49,IF(RECEITA!$D$8="Moderada", DEMANDA!CP50,DEMANDA!CP51)) -> 103.0286474 | CQ8: =IF($D$8="Otimista", DEMANDA!CQ49,IF(RECEITA!$D$8="Moderada", DEMANDA!CQ50,DEMANDA!CQ51)) -> 139.8679673 | CR8: =IF($D$8="Otimista", DEMANDA!CR49,IF(RECEITA!$D$8="Moderada", DEMANDA!CR50,DEMANDA!CR51)) -> 99.18278437 | CS8: =IF($D$8="Otimista", DEMANDA!CS49,IF(RECEITA!$D$8="Moderada", DEMANDA!CS50,DEMANDA!CS51)) -> 82.88846979 | CT8: =IF($D$8="Otimista", DEMANDA!CT49,IF(RECEITA!$D$8="Moderada", DEMANDA!CT50,DEMANDA!CT51)) -> 179.0350465 | CU8: =IF($D$8="Otimista", DEMANDA!CU49,IF(RECEITA!$D$8="Moderada", DEMANDA!CU50,DEMANDA!CU51)) -> 126.9134812 | CV8: =IF($D$8="Otimista", DEMANDA!CV49,IF(RECEITA!$D$8="Moderada", DEMANDA!CV50,DEMANDA!CV51)) -> 137.0341735 | CW8: =IF($D$8="Otimista", DEMANDA!CW49,IF(RECEITA!$D$8="Moderada", DEMANDA!CW50,DEMANDA!CW51)) -> 81.77519364 | CX8: =IF($D$8="Otimista", DEMANDA!CX49,IF(RECEITA!$D$8="Moderada", DEMANDA!CX50,DEMANDA!CX51)) -> 91.59226516 | CY8: =IF($D$8="Otimista", DEMANDA!CY49,IF(RECEITA!$D$8="Moderada", DEMANDA!CY50,DEMANDA!CY51)) -> 90.98502362 | CZ8: =IF($D$8="Otimista", DEMANDA!CZ49,IF(RECEITA!$D$8="Moderada", DEMANDA!CZ50,DEMANDA!CZ51)) -> 73.57743289 | DA8: =IF($D$8="Otimista", DEMANDA!DA49,IF(RECEITA!$D$8="Moderada", DEMANDA!DA50,DEMANDA!DA51)) -> 86.63312594 | DB8: =IF($D$8="Otimista", DEMANDA!DB49,IF(RECEITA!$D$8="Moderada", DEMANDA!DB50,DEMANDA!DB51)) -> 104.8671713 | DC8: =IF($D$8="Otimista", DEMANDA!DC49,IF(RECEITA!$D$8="Moderada", DEMANDA!DC50,DEMANDA!DC51)) -> 142.3638809 | DD8: =IF($D$8="Otimista", DEMANDA!DD49,IF(RECEITA!$D$8="Moderada", DEMANDA!DD50,DEMANDA!DD51)) -> 100.9526797 | DE8: =IF($D$8="Otimista", DEMANDA!DE49,IF(RECEITA!$D$8="Moderada", DEMANDA!DE50,DEMANDA!DE51)) -> 84.36759657 | DF8: =IF($D$8="Otimista", DEMANDA!DF49,IF(RECEITA!$D$8="Moderada", DEMANDA!DF50,DEMANDA!DF51)) -> 182.2298881 | DG8: =IF($D$8="Otimista", DEMANDA!DG49,IF(RECEITA!$D$8="Moderada", DEMANDA!DG50,DEMANDA!DG51)) -> 129.1782248 | DH8: =IF($D$8="Otimista", DEMANDA!DH49,IF(RECEITA!$D$8="Moderada", DEMANDA!DH50,DEMANDA!DH51)) -> 139.4795186 | DI8: =IF($D$8="Otimista", DEMANDA!DI49,IF(RECEITA!$D$8="Moderada", DEMANDA!DI50,DEMANDA!DI51)) -> 83.23445425 | DJ8: =IF($D$8="Otimista", DEMANDA!DJ49,IF(RECEITA!$D$8="Moderada", DEMANDA!DJ50,DEMANDA!DJ51)) -> 93.22670928 | DK8: =IF($D$8="Otimista", DEMANDA!DK49,IF(RECEITA!$D$8="Moderada", DEMANDA!DK50,DEMANDA!DK51)) -> 92.60863164 | DL8: =IF($D$8="Otimista", DEMANDA!DL49,IF(RECEITA!$D$8="Moderada", DEMANDA!DL50,DEMANDA!DL51)) -> 74.89040624 | DM8: =IF($D$8="Otimista", DEMANDA!DM49,IF(RECEITA!$D$8="Moderada", DEMANDA!DM50,DEMANDA!DM51)) -> 88.17907529 | DN8: =IF($D$8="Otimista", DEMANDA!DN49,IF(RECEITA!$D$8="Moderada", DEMANDA!DN50,DEMANDA!DN51)) -> 106.6883576 | DO8: =IF($D$8="Otimista", DEMANDA!DO49,IF(RECEITA!$D$8="Moderada", DEMANDA!DO50,DEMANDA!DO51)) -> 144.8362575 | DP8: =IF($D$8="Otimista", DEMANDA!DP49,IF(RECEITA!$D$8="Moderada", DEMANDA!DP50,DEMANDA!DP51)) -> 102.7058845 | DQ8: =IF($D$8="Otimista", DEMANDA!DQ49,IF(RECEITA!$D$8="Moderada", DEMANDA!DQ50,DEMANDA!DQ51)) -> 85.83277491 | DR8: =IF($D$8="Otimista", DEMANDA!DR49,IF(RECEITA!$D$8="Moderada", DEMANDA!DR50,DEMANDA!DR51)) -> 185.3946017 | DS8: =IF($D$8="Otimista", DEMANDA!DS49,IF(RECEITA!$D$8="Moderada", DEMANDA!DS50,DEMANDA!DS51)) -> 131.4216114 | DT8: =IF($D$8="Otimista", DEMANDA!DT49,IF(RECEITA!$D$8="Moderada", DEMANDA!DT50,DEMANDA!DT51)) -> 141.9018037 | DU8: =IF($D$8="Otimista", DEMANDA!DU49,IF(RECEITA!$D$8="Moderada", DEMANDA!DU50,DEMANDA!DU51)) -> 84.67995375 | DV8: =IF($D$8="Otimista", DEMANDA!DV49,IF(RECEITA!$D$8="Moderada", DEMANDA!DV50,DEMANDA!DV51)) -> 94.84574028 | DW8: =IF($D$8="Otimista", DEMANDA!DW49,IF(RECEITA!$D$8="Moderada", DEMANDA!DW50,DEMANDA!DW51)) -> 94.21692874 | DX8: =IF($D$8="Otimista", DEMANDA!DX49,IF(RECEITA!$D$8="Moderada", DEMANDA!DX50,DEMANDA!DX51)) -> 76.19099799 | DY8: =IF($D$8="Otimista", DEMANDA!DY49,IF(RECEITA!$D$8="Moderada", DEMANDA!DY50,DEMANDA!DY51)) -> 89.71044605 | DZ8: =IF($D$8="Otimista", DEMANDA!DZ49,IF(RECEITA!$D$8="Moderada", DEMANDA!DZ50,DEMANDA!DZ51)) -> 108.489537 | EA8: =IF($D$8="Otimista", DEMANDA!EA49,IF(RECEITA!$D$8="Moderada", DEMANDA!EA50,DEMANDA!EA51)) -> 147.2814737 | EB8: =IF($D$8="Otimista", DEMANDA!EB49,IF(RECEITA!$D$8="Moderada", DEMANDA!EB50,DEMANDA!EB51)) -> 104.4398294 | EC8: =IF($D$8="Otimista", DEMANDA!EC49,IF(RECEITA!$D$8="Moderada", DEMANDA!EC50,DEMANDA!EC51)) -> 87.2818574 | ED8: =IF($D$8="Otimista", DEMANDA!ED49,IF(RECEITA!$D$8="Moderada", DEMANDA!ED50,DEMANDA!ED51)) -> 188.5245491 | EE8: =IF($D$8="Otimista", DEMANDA!EE49,IF(RECEITA!$D$8="Moderada", DEMANDA!EE50,DEMANDA!EE51)) -> 133.6403531 | EF8: =IF($D$8="Otimista", DEMANDA!EF49,IF(RECEITA!$D$8="Moderada", DEMANDA!EF50,DEMANDA!EF51)) -> 144.2974785 | EG8: =IF($D$8="Otimista", DEMANDA!EG49,IF(RECEITA!$D$8="Moderada", DEMANDA!EG50,DEMANDA!EG51)) -> 86.1095736 | EH8: =IF($D$8="Otimista", DEMANDA!EH49,IF(RECEITA!$D$8="Moderada", DEMANDA!EH50,DEMANDA!EH51)) -> 96.44698528 | EI8: =IF($D$8="Otimista", DEMANDA!EI49,IF(RECEITA!$D$8="Moderada", DEMANDA!EI50,DEMANDA!EI51)) -> 95.80755775 | EJ8: =IF($D$8="Otimista", DEMANDA!EJ49,IF(RECEITA!$D$8="Moderada", DEMANDA!EJ50,DEMANDA!EJ51)) -> 77.47730199 | EK8: =IF($D$8="Otimista", DEMANDA!EK49,IF(RECEITA!$D$8="Moderada", DEMANDA!EK50,DEMANDA!EK51)) -> 91.22499381 | EL8: =IF($D$8="Otimista", DEMANDA!EL49,IF(RECEITA!$D$8="Moderada", DEMANDA!EL50,DEMANDA!EL51)) -> 110.2679289 | EM8: =IF($D$8="Otimista", DEMANDA!EM49,IF(RECEITA!$D$8="Moderada", DEMANDA!EM50,DEMANDA!EM51)) -> 149.6957542 | EN8: =IF($D$8="Otimista", DEMANDA!EN49,IF(RECEITA!$D$8="Moderada", DEMANDA!EN50,DEMANDA!EN51)) -> 106.1518373 | EO8: =IF($D$8="Otimista", DEMANDA!EO49,IF(RECEITA!$D$8="Moderada", DEMANDA!EO50,DEMANDA!EO51)) -> 88.71260687 | EP8: =IF($D$8="Otimista", DEMANDA!EP49,IF(RECEITA!$D$8="Moderada", DEMANDA!EP50,DEMANDA!EP51)) -> 191.6148981 | EQ8: =IF($D$8="Otimista", DEMANDA!EQ49,IF(RECEITA!$D$8="Moderada", DEMANDA!EQ50,DEMANDA!EQ51)) -> 135.8310244 | ER8: =IF($D$8="Otimista", DEMANDA!ER49,IF(RECEITA!$D$8="Moderada", DEMANDA!ER50,DEMANDA!ER51)) -> 146.6628446 | ES8: =IF($D$8="Otimista", DEMANDA!ES49,IF(RECEITA!$D$8="Moderada", DEMANDA!ES50,DEMANDA!ES51)) -> 87.52110665 | ET8: =IF($D$8="Otimista", DEMANDA!ET49,IF(RECEITA!$D$8="Moderada", DEMANDA!ET50,DEMANDA!ET51)) -> 98.02797218 | EU8: =IF($D$8="Otimista", DEMANDA!EU49,IF(RECEITA!$D$8="Moderada", DEMANDA!EU50,DEMANDA!EU51)) -> 97.37806297 | EV8: =IF($D$8="Otimista", DEMANDA!EV49,IF(RECEITA!$D$8="Moderada", DEMANDA!EV50,DEMANDA!EV51)) -> 78.74733235 | EW8: =IF($D$8="Otimista", DEMANDA!EW49,IF(RECEITA!$D$8="Moderada", DEMANDA!EW50,DEMANDA!EW51)) -> 92.72038031 | EX8: =IF($D$8="Otimista", DEMANDA!EX49,IF(RECEITA!$D$8="Moderada", DEMANDA!EX50,DEMANDA!EX51)) -> 112.0218575 | EY8: =IF($D$8="Otimista", DEMANDA!EY49,IF(RECEITA!$D$8="Moderada", DEMANDA!EY50,DEMANDA!EY51)) -> 152.0768242 | EZ8: =IF($D$8="Otimista", DEMANDA!EZ49,IF(RECEITA!$D$8="Moderada", DEMANDA!EZ50,DEMANDA!EZ51)) -> 107.840295 | FA8: =IF($D$8="Otimista", DEMANDA!FA49,IF(RECEITA!$D$8="Moderada", DEMANDA!FA50,DEMANDA!FA51)) -> 90.12367514 | FB8: =IF($D$8="Otimista", DEMANDA!FB49,IF(RECEITA!$D$8="Moderada", DEMANDA!FB50,DEMANDA!FB51)) -> 194.6627367 | FC8: =IF($D$8="Otimista", DEMANDA!FC49,IF(RECEITA!$D$8="Moderada", DEMANDA!FC50,DEMANDA!FC51)) -> 137.9915612 | FD8: =IF($D$8="Otimista", DEMANDA!FD49,IF(RECEITA!$D$8="Moderada", DEMANDA!FD50,DEMANDA!FD51)) -> 148.9956729 | FE8: =IF($D$8="Otimista", DEMANDA!FE49,IF(RECEITA!$D$8="Moderada", DEMANDA!FE50,DEMANDA!FE51)) -> 88.91322285 | FF8: =IF($D$8="Otimista", DEMANDA!FF49,IF(RECEITA!$D$8="Moderada", DEMANDA!FF50,DEMANDA!FF51)) -> 99.58721124 | FG8: =IF($D$8="Otimista", DEMANDA!FG49,IF(RECEITA!$D$8="Moderada", DEMANDA!FG50,DEMANDA!FG51)) -> 98.92696453 | FH8: =IF($D$8="Otimista", DEMANDA!FH49,IF(RECEITA!$D$8="Moderada", DEMANDA!FH50,DEMANDA!FH51)) -> 79.99989234 | FI8: =IF($D$8="Otimista", DEMANDA!FI49,IF(RECEITA!$D$8="Moderada", DEMANDA!FI50,DEMANDA!FI51)) -> 94.19519648 | FJ8: =IF($D$8="Otimista", DEMANDA!FJ49,IF(RECEITA!$D$8="Moderada", DEMANDA!FJ50,DEMANDA!FJ51)) -> 113.7500311 | FK8: =IF($D$8="Otimista", DEMANDA!FK49,IF(RECEITA!$D$8="Moderada", DEMANDA!FK50,DEMANDA!FK51)) -> 154.4229302 | FL8: =IF($D$8="Otimista", DEMANDA!FL49,IF(RECEITA!$D$8="Moderada", DEMANDA!FL50,DEMANDA!FL51)) -> 109.5039592 | FM8: =IF($D$8="Otimista", DEMANDA!FM49,IF(RECEITA!$D$8="Moderada", DEMANDA!FM50,DEMANDA!FM51)) -> 91.51402305 | FN8: =IF($D$8="Otimista", DEMANDA!FN49,IF(RECEITA!$D$8="Moderada", DEMANDA!FN50,DEMANDA!FN51)) -> 197.6658202 | FO8: =IF($D$8="Otimista", DEMANDA!FO49,IF(RECEITA!$D$8="Moderada", DEMANDA!FO50,DEMANDA!FO51)) -> 140.1203723 | FP8: =IF($D$8="Otimista", DEMANDA!FP49,IF(RECEITA!$D$8="Moderada", DEMANDA!FP50,DEMANDA!FP51)) -> 151.2942457 | FQ8: =IF($D$8="Otimista", DEMANDA!FQ49,IF(RECEITA!$D$8="Moderada", DEMANDA!FQ50,DEMANDA!FQ51)) -> 90.28489697 | FR8: =IF($D$8="Otimista", DEMANDA!FR49,IF(RECEITA!$D$8="Moderada", DEMANDA!FR50,DEMANDA!FR51)) -> 101.1235542 | FS8: =IF($D$8="Otimista", DEMANDA!FS49,IF(RECEITA!$D$8="Moderada", DEMANDA!FS50,DEMANDA!FS51)) -> 100.4531218 | FT8: =IF($D$8="Otimista", DEMANDA!FT49,IF(RECEITA!$D$8="Moderada", DEMANDA!FT50,DEMANDA!FT51)) -> 81.23405953 | FU8: =IF($D$8="Otimista", DEMANDA!FU49,IF(RECEITA!$D$8="Moderada", DEMANDA!FU50,DEMANDA!FU51)) -> 95.6483562 | FV8: =IF($D$8="Otimista", DEMANDA!FV49,IF(RECEITA!$D$8="Moderada", DEMANDA!FV50,DEMANDA!FV51)) -> 115.4500417 | FW8: =IF($D$8="Otimista", DEMANDA!FW49,IF(RECEITA!$D$8="Moderada", DEMANDA!FW50,DEMANDA!FW51)) -> 156.7308031 | FX8: =IF($D$8="Otimista", DEMANDA!FX49,IF(RECEITA!$D$8="Moderada", DEMANDA!FX50,DEMANDA!FX51)) -> 111.1405116 | FY8: =IF($D$8="Otimista", DEMANDA!FY49,IF(RECEITA!$D$8="Moderada", DEMANDA!FY50,DEMANDA!FY51)) -> 92.88171328 | FZ8: =IF($D$8="Otimista", DEMANDA!FZ49,IF(RECEITA!$D$8="Moderada", DEMANDA!FZ50,DEMANDA!FZ51)) -> 200.6199643 | GA8: =IF($D$8="Otimista", DEMANDA!GA49,IF(RECEITA!$D$8="Moderada", DEMANDA!GA50,DEMANDA!GA51)) -> 142.2144914 | GB8: =IF($D$8="Otimista", DEMANDA!GB49,IF(RECEITA!$D$8="Moderada", DEMANDA!GB50,DEMANDA!GB51)) -> 153.5553599 | GC8: =IF($D$8="Otimista", DEMANDA!GC49,IF(RECEITA!$D$8="Moderada", DEMANDA!GC50,DEMANDA!GC51)) -> 91.63421774 | GD8: =IF($D$8="Otimista", DEMANDA!GD49,IF(RECEITA!$D$8="Moderada", DEMANDA!GD50,DEMANDA!GD51)) -> 102.6348602 | GE8: =IF($D$8="Otimista", DEMANDA!GE49,IF(RECEITA!$D$8="Moderada", DEMANDA!GE50,DEMANDA!GE51)) -> 101.9544081 | GF8: =IF($D$8="Otimista", DEMANDA!GF49,IF(RECEITA!$D$8="Moderada", DEMANDA!GF50,DEMANDA!GF51)) -> 82.44811423 | GG8: =IF($D$8="Otimista", DEMANDA!GG49,IF(RECEITA!$D$8="Moderada", DEMANDA!GG50,DEMANDA!GG51)) -> 97.07783464
C10: Receita Bruta
C11: Total | J11: =SUM(J12:J15) -> 12896.36293 | K11: =SUM(K12:K15) -> 17507.63613 | L11: 12414.96628 | M11: 10375.36468 | N11: 22410.28097 | O11: 15886.08951 | P11: 17152.9228 | Q11: 10236.01302 | R11: 11464.84131 | S11: 11388.83131 | T11: 9209.878049 | U11: 10844.093 | V11: 13760.30491 | W11: 18680.49253 | X11: 13246.65895 | Y11: 11070.42213 | Z11: 23911.57111 | AA11: 16950.31666 | AB11: 18302.01656 | AC11: 10921.73514 | AD11: 12232.88403 | AE11: 12151.78204 | AF11: 9826.858225 | AG11: 11570.55109 | AH11: 14741.82416 | AI11: 20012.96757 | AJ11: 14191.53996 | AK11: 11860.07268 | AL11: 25617.17774 | AM11: 18159.37868 | AN11: 19607.495 | AO11: 11700.77988 | AP11: 13105.45272 | AQ11: 13018.56574 | AR11: 10527.80566 | AS11: 12395.87572 | AT11: 15544.24267 | AU11: 21102.30193 | AV11: 14964.00571 | AW11: 12505.63334 | AX11: 27011.55725 | AY11: 19147.81955 | AZ11: 20674.75891 | BA11: 12337.67002 | BB11: 13818.80119 | BC11: 13727.18483 | BD11: 11100.84914 | BE11: 13070.60091 | BF11: 16379.27299 | BG11: 22235.90892 | BH11: 15767.86595 | BI11: 13177.43083 | BJ11: 28462.607 | BK11: 20176.43255 | BL11: 21785.39846 | BM11: 13000.44458 | BN11: 14561.14151 | BO11: 14464.60356 | BP11: 11697.18219 | BQ11: 13772.74822 | BR11: 17282.65772 | BS11: 23462.31137 | BT11: 16637.52904 | BU11: 13904.2207 | BV11: 30032.43763 | BW11: =SUM(BW12:BW15) -> 21289.24635 | BX11: 22986.95339 | BY11: 13717.47293 | BZ11: 15364.24876 | CA11: 15262.38634 | CB11: 12342.33022 | CC11: 14532.37231 | CD11: 18259.56944 | CE11: 24788.5314 | CF11: 17577.97451 | CG11: 14690.16441 | CH11: 31730.03766 | CI11: 22492.63269 | CJ11: 24286.30356 | CK11: 14492.86062 | CL11: 16232.72136 | CM11: 16125.10111 | CN11: 13039.98721 | CO11: 15353.82263 | CP11: 18594.22256 | CQ11: 25242.84438 | CR11: 17900.13566 | CS11: 14959.39909 | CT11: 32311.57142 | CU11: 22904.86747 | CV11: 24731.41193 | CW11: 14758.4792 | CX11: 16530.22732 | CY11: 16420.63466 | CZ11: 11733.67072 | DA11: 15635.22054 | DB11: 18926.03243 | DC11: 25693.29746 | DD11: 18219.55971 | DE11: 15226.34633 | DF11: 32888.16441 | DG11: 23313.59987 | DH11: 25172.73861 | DI11: 15021.84106 | DJ11: 16825.20565 | DK11: 16713.65732 | DL11: 13515.93868 | DM11: 15914.22766 | DN11: 19254.71327 | DO11: 26139.50269 | DP11: 18535.97152 | DQ11: 15490.7762 | DR11: 33459.32002 | DS11: 23718.47784 | DT11: 25609.90351 | DU11: 15282.71937 | DV11: 17117.40227 | DW11: 17003.91673 | DX11: 13750.66459 | DY11: 16190.60369 | DZ11: 19579.78336 | EA11: 26580.8061 | EB11: 18848.90736 | EC11: 15752.30115 | ED11: 34024.20115 | EE11: 24118.90799 | EF11: 26042.26588 | EG11: 15540.73178 | EH11: 17406.38894 | EI11: =SUM(EI12:EI15) -> 17290.98747 | EJ11: 13982.81189 | EK11: 16463.94357 | EL11: 19900.74084 | EM11: 27016.52636 | EN11: 19157.88411 | EO11: 16010.51743 | EP11: 34581.9357 | EQ11: 24514.27211 | ER11: 26469.15824 | ES11: 15795.47996 | ET11: 17691.71951 | EU11: 17574.42634 | EV11: 14212.02219 | EW11: 16733.8253 | EX11: 20217.28327 | EY11: 27446.25292 | EZ11: 19462.61061 | FA11: 16265.18172 | FB11: 35131.99813 | FC11: 24904.19766 | FD11: 26890.17833 | FE11: 16046.72385 | FF11: 17973.1251 | FG11: 17853.96626 | FH11: 14438.0795 | FI11: 16999.99457 | FJ11: 20529.17753 | FK11: 27869.6693 | FL11: 19762.86246 | FM11: 16516.10648 | FN11: 35673.98335 | FO11: 25288.39747 | FP11: 27305.01609 | FQ11: 16294.27843 | FR11: 18250.39849 | FS11: 18129.40138 | FT11: 14660.81735 | FU11: 17262.25537 | FV11: 20835.98904 | FW11: 28286.18552 | FX11: 20058.22128 | FY11: 16762.94207 | FZ11: 36207.13616 | GA11: 22681.24935 | GB11: 27713.09348 | GC11: 16537.79877 | GD11: 18523.15332 | GE11: 18400.34789 | GF11: 14879.92538 | GG11: 17520.24226
C12: Receita - Camping | J12: =J25 -> 3591.576697 | K12: =K25 -> 4875.794691 | L12: =L25 -> 3457.509984 | M12: 2889.490486 | N12: 6241.158327 | O12: 4424.20155 | P12: 4777.008692 | Q12: 2850.681701 | R12: 3192.904628 | S12: 3171.736199 | T12: 2564.907916 | U12: 3020.029128 | V12: 4223.515786 | W12: 5733.692353 | X12: 4065.85999 | Y12: 3397.897277 | Z12: 7339.292166 | AA12: 5202.641253 | AB12: 5617.524925 | AC12: 3352.260073 | AD12: 3754.697236 | AE12: 3729.804215 | AF12: 3016.204299 | AG12: 3551.404236 | AH12: 4965.72683 | AI12: 6741.291237 | AJ12: 4780.365711 | AK12: 3995.019915 | AL12: 8629.0479 | AM12: 6116.91694 | AN12: 6604.70936 | AO12: 3941.362749 | AP12: 4414.521396 | AQ12: 4385.253851 | AR12: 3546.25089 | AS12: 4175.503111 | AT12: 5532.816997 | AU12: 7511.152347 | AV12: 5326.287482 | AW12: 4451.254539 | AX12: 9614.492404 | AY12: 6815.473982 | AZ12: 7358.972705 | BA12: 4391.469679 | BB12: 4918.66344 | BC12: 4886.053517 | BD12: 3951.235714 | BE12: 4652.349066 | BF12: 6149.852674 | BG12: 8348.817678 | BH12: 5920.290394 | BI12: 4947.671258 | BJ12: 10686.72827 | BK12: 7575.555259 | BL12: 8179.666524 | BM12: 4881.219019 | BN12: 5467.206945 | BO12: 5430.960269 | BP12: 4391.888894 | BQ12: 5171.192426 | BR12: 6832.922998 | BS12: 9276.129256 | BT12: 6577.863004 | BU12: 5497.214082 | BV12: 11873.71393 | BW12: 8416.979803 | BX12: =BX25 -> 9088.190313 | BY12: 5423.380926 | BZ12: 6074.455121 | CA12: 6034.18249 | CB12: 4879.700412 | CC12: 5745.561971 | CD12: 7588.077706 | CE12: 10301.29999 | CF12: 7304.829226 | CG12: 6104.750139 | CH12: 13185.96214 | CI12: 9347.199847 | CJ12: 10092.59058 | CK12: 6022.757158 | CL12: 6745.786173 | CM12: 6701.062729 | CN12: 5418.990661 | CO12: 6380.544712 | CP12: 7727.148558 | CQ12: 10490.09755 | CR12: 7438.708828 | CS12: 6216.635234 | CT12: 13427.62849 | CU12: 9518.511092 | CV12: 10277.56301 | CW12: 6133.139523 | CX12: 6869.419887 | CY12: 6823.876771 | CZ12: 3973 | DA12: 6497.484445 | DB12: 7865.037849 | DC12: 10677.29107 | DD12: 7571.450974 | DE12: 6327.569743 | DF12: 13667.24161 | DG12: 9688.366859 | DH12: 10460.9639 | DI12: 6242.584069 | DJ12: 6992.003196 | DK12: 6945.647373 | DL12: 5616.780468 | DM12: 6613.430647 | DN12: 8001.626818 | DO12: 10862.71931 | DP12: 7702.941338 | DQ12: 6437.458118 | DR12: 13904.59513 | DS12: 9856.620854 | DT12: 10642.63528 | DU12: 6350.996531 | DV12: 7113.430521 | DW12: 7066.269656 | DX12: 5714.324849 | DY12: 6728.283454 | DZ12: 8136.715277 | EA12: 11046.11052 | EB12: 7832.987202 | EC12: 6546.139305 | ED12: 14139.34118 | EE12: 10023.02648 | EF12: 10822.31089 | EG12: 6458.21802 | EH12: 7233.523896 | EI12: 7185.566831 | EJ12: =EJ25 -> 5810.797649 | EK12: 6841.874536 | EL12: 8270.094669 | EM12: 11227.18156 | EN12: 7961.387796 | EO12: 6653.445515 | EP12: 14371.11736 | EQ12: 10187.32683 | ER12: 10999.71334 | ES12: 6564.082999 | ET12: 7352.097913 | EU12: 7303.354723 | EV12: 5906.049926 | EW12: 6954.028523 | EX12: 8401.639313 | EY12: 11405.76182 | EZ12: 8088.022128 | FA12: 6759.275636 | FB12: 14599.70525 | FC12: 10349.36709 | FD12: 11174.67547 | FE12: 6668.491714 | FF12: 7469.040843 | FG12: 7419.52234 | FH12: 5999.991926 | FI12: 7064.639736 | FJ12: 8531.252332 | FK12: 11581.71977 | FL12: 8212.79694 | FM12: 6863.551728 | FN12: 14824.93652 | FO12: 10509.02792 | FP12: 11347.06843 | FQ12: 6771.367273 | FR12: 7584.266562 | FS12: 7533.984132 | FT12: 6092.554465 | FU12: 7173.626715 | FV12: 8658.753124 | FW12: 11754.81023 | FX12: 8335.538371 | FY12: 6966.128496 | FZ12: 15046.49733 | GA12: 7681 | GB12: 11516.65199 | GC12: 6872.566331 | GD12: 7697.614516 | GE12: 7646.580608 | GF12: 6183.608567 | GG12: 7280.837598
C13: Receita - Alimentação | J13: =J31 -> 6246.220343 | K13: =K31 -> 8479.642941 | L13: =L31 -> 6013.060841 | M13: 5025.200846 | N13: 10854.1884 | O13: 7694.263566 | P13: 8307.841203 | Q13: 4957.707306 | R13: 5552.877613 | S13: 5516.062955 | T13: 4460.70942 | U13: 5252.224571 | V13: 6387.16943 | W13: 8670.990326 | X13: 6148.748567 | Y13: 5138.597017 | Z13: 11099.11859 | AA13: 7867.888473 | AB13: 8495.311796 | AC13: 5069.580451 | AD13: 5678.181075 | AE13: 5640.535675 | AF13: 4561.367559 | AG13: 5370.743646 | AH13: 6530.091993 | AI13: 8865.016832 | AJ13: 6286.336104 | AK13: 5253.580887 | AL13: 11347.47813 | AM13: 8043.944361 | AN13: 8685.407229 | AO13: 5183.019971 | AP13: 5805.238953 | AQ13: 5766.751181 | AR13: 4663.435048 | AS13: 5490.922148 | AT13: 6675.077039 | AU13: 9061.843289 | AV13: 6425.909134 | AW13: 5370.224062 | AX13: 11599.42169 | AY13: 8222.540872 | AZ13: 8878.245885 | BA13: 5298.096511 | BB13: 5934.130374 | BC13: 5894.788073 | BD13: 4766.97545 | BE13: 5612.834917 | BF13: 6806.881509 | BG13: 9240.776273 | BH13: 6552.793594 | BI13: 5476.263218 | BJ13: 11828.46109 | BK13: 8384.901191 | BL13: 9053.553598 | BM13: 5402.711453 | BN13: 6051.304288 | BO13: 6011.185144 | BP13: 4861.103003 | BQ13: 5723.664609 | BR13: 6938.466684 | BS13: 9419.41155 | BT13: 6679.466946 | BU13: 5582.125948 | BV13: 12057.11942 | BW13: 8546.991378 | BX13: =BX31 -> 9228.569637 | BY13: 5507.152339 | BZ13: 6168.283251 | CA13: 6127.388555 | CB13: 4955.073949 | CC13: 5834.309904 | CD13: 7069.069517 | CE13: 9596.713234 | CF13: 6805.194623 | CG13: 5687.198364 | CH13: 12284.0707 | CI13: 8707.871487 | CJ13: 9402.279102 | CK13: 5610.813526 | CL13: 6284.388912 | CM13: 6242.724455 | CN13: 5048.343358 | CO13: 5944.129181 | CP13: 7198.628221 | CQ13: 9772.597447 | CR13: 6929.917148 | CS13: 5791.430759 | CT13: 12509.20759 | CU13: 8867.465412 | CV13: 9574.599815 | CW13: 5713.645975 | CX13: 6399.566346 | CY13: 6357.138282 | CZ13: 5140.867109 | DA13: 6053.070488 | DB13: 7327.086181 | DC13: 9946.987331 | DD13: 7053.580017 | DE13: 5894.777586 | DF13: 12732.43168 | DG13: 9025.70341 | DH13: 9745.456473 | DI13: 5815.604749 | DJ13: 6513.76522 | DK13: 6470.580036 | DL13: 5232.604768 | DM13: 6161.086219 | DN13: 7454.332759 | DO13: 10119.73268 | DP13: 7176.076723 | DQ13: 5997.149833 | DR13: 12953.55074 | DS13: 9182.449194 | DT13: 9914.701921 | DU13: 5916.602033 | DV13: 6626.887178 | DW13: 6582.952014 | DX13: 5323.477324 | DY13: 6268.083342 | DZ13: 7580.181458 | EA13: 10290.58033 | EB13: 7297.22773 | EC13: 6098.39746 | ED13: 13172.24067 | EE13: 9337.473034 | EF13: 10082.08811 | EG13: 6016.489802 | EH13: 6738.766424 | EI13: 6694.08952 | EJ13: =EJ31 -> 5413.351592 | EK13: 6373.905038 | EL13: 7704.437987 | EM13: 10459.2665 | EN13: 7416.845999 | EO13: 6198.364156 | EP13: 13388.16385 | EQ13: 9490.535595 | ER13: 10247.35662 | ES13: 6115.113844 | ET13: 6849.230234 | EU13: 6803.820973 | EV13: 5502.088818 | EW13: 6478.387934 | EX13: 7826.98526 | EY13: 10625.63225 | EZ13: 7534.818816 | FA13: 6296.955725 | FB13: 13601.11682 | FC13: 9641.492648 | FD13: 10410.35171 | FE13: 6212.381228 | FF13: 6958.174519 | FG13: 6912.042975 | FH13: 5589.605387 | FI13: 6581.433578 | FJ13: 7947.733027 | FK13: 10789.55505 | FL13: 7651.059299 | FM13: 6394.099557 | FN13: 13810.94275 | FO13: 9790.233021 | FP13: 10570.95336 | FQ13: 6308.22032 | FR13: 7065.519046 | FS13: 7018.675826 | FT13: 5675.836847 | FU13: 6682.966082 | FV13: 8066.51304 | FW13: 10950.8065 | FX13: 7765.40548 | FY13: 6489.660294 | FZ13: 14017.34928 | GA13: 9936.549462 | GB13: 10728.93778 | GC13: 6402.49758 | GD13: 7171.114245 | GE13: 7123.570946 | GF13: 5760.663045 | GG13: 6782.843971
C14: Receita - Varejo | J14: =J35 -> 2602.59181 | K14: =K35 -> 3533.184559 | L14: =L35 -> 2505.442017 | M14: 2093.833686 | N14: 4522.578498 | O14: 3205.943152 | P14: 3461.600501 | Q14: 2065.711377 | R14: 2313.699006 | S14: 2298.359565 | T14: 1858.628925 | U14: 2188.426905 | V14: 2661.320596 | W14: 3612.912636 | X14: 2561.97857 | Y14: 2141.08209 | Z14: 4624.632745 | AA14: 3278.286864 | AB14: 3539.713248 | AC14: 2112.325188 | AD14: 2365.908781 | AE14: 2350.223198 | AF14: 1900.569816 | AG14: 2237.809853 | AH14: 2720.871664 | AI14: 3693.757013 | AJ14: 2619.30671 | AK14: 2188.992036 | AL14: 4728.115887 | AM14: 3351.643484 | AN14: 3618.919679 | AO14: 2159.591655 | AP14: 2418.849564 | AQ14: 2402.812992 | AR14: 1943.097937 | AS14: 2287.884228 | AT14: 2781.2821 | AU14: 3775.768037 | AV14: 2677.462139 | AW14: 2237.593359 | AX14: 4833.092372 | AY14: 3426.058697 | AZ14: 3699.269119 | BA14: 2207.540213 | BB14: 2472.554322 | BC14: 2456.161697 | BD14: 1986.239771 | BE14: 2338.681216 | BF14: 2836.200629 | BG14: 3850.323447 | BH14: 2730.330664 | BI14: 2281.776341 | BJ14: 4928.525454 | BK14: 3493.70883 | BL14: 3772.313999 | BM14: 2251.129772 | BN14: 2521.376787 | BO14: 2504.660477 | BP14: 2025.459585 | BQ14: 2384.860254 | BR14: 2891.027785 | BS14: 3924.754813 | BT14: 2783.111227 | BU14: 2325.885811 | BV14: 5023.799756 | BW14: 3561.246407 | BX14: =BX35 -> 3845.237349 | BY14: 2294.646808 | BZ14: 2570.118021 | CA14: 2553.078565 | CB14: 2064.614145 | CC14: 2430.96246 | CD14: 2945.445632 | CE14: 3998.630514 | CF14: 2835.49776 | CG14: 2369.665985 | CH14: 5118.362793 | CI14: 3628.279786 | CJ14: 3917.616292 | CK14: 2337.838969 | CL14: 2618.49538 | CM14: 2601.13519 | CN14: 2103.476399 | CO14: 2476.720492 | CP14: 2999.428425 | CQ14: 4071.915603 | CR14: 2887.465478 | CS14: 2413.09615 | CT14: 5212.169828 | CU14: 3694.777255 | CV14: 3989.416589 | CW14: 2380.685823 | CX14: 2666.485977 | CY14: 2648.807617 | CZ14: 2142.027962 | DA14: 2522.112704 | DB14: 3052.952576 | DC14: 4144.578054 | DD14: 2938.991674 | DE14: 2456.157328 | DF14: 5305.179869 | DG14: 3760.709754 | DH14: 4060.606864 | DI14: 2423.168645 | DJ14: 2714.068842 | DK14: 2696.075015 | DL14: 2180.251987 | DM14: 2567.119258 | DN14: 3105.971983 | DO14: 4216.555285 | DP14: 2990.031968 | DQ14: 2498.81243 | DR14: 5397.312807 | DS14: 3826.020498 | DT14: 4131.1258 | DU14: 2465.250847 | DV14: 2761.202991 | DW14: 2742.896673 | DX14: 2218.115552 | DY14: 2611.701392 | DZ14: 3158.408941 | EA14: 4287.741804 | EB14: 3040.511554 | EC14: 2540.998942 | ED14: 5488.433612 | EE14: 3890.613764 | EF14: 4200.870045 | EG14: 2506.870751 | EH14: 2807.819343 | EI14: 2789.203967 | EJ14: =EJ35 -> 2255.563163 | EK14: 2655.793766 | EL14: 3210.182495 | EM14: 4358.027709 | EN14: 3090.3525 | EO14: 2582.651732 | EP14: 5578.401604 | EQ14: 3954.389831 | ER14: 4269.731923 | ES14: 2547.964102 | ET14: 2853.845931 | EU14: 2834.925405 | EV14: 2292.537007 | EW14: 2699.328306 | EX14: 3261.243858 | EY14: 4427.34677 | EZ14: 3139.50784 | FA14: 2623.731552 | FB14: 5667.132009 | FC14: 4017.288603 | FD14: 4337.646546 | FE14: 2588.492178 | FF14: 2899.239383 | FG14: 2880.017906 | FH14: 2329.002244 | FI14: 2742.263991 | FJ14: 3311.555428 | FK14: 4495.647938 | FL14: 3187.941375 | FM14: 2664.208149 | FN14: 5754.559481 | FO14: 4079.263759 | FP14: 4404.563899 | FQ14: 2628.425133 | FR14: 2943.966269 | FS14: 2924.448261 | FT14: 2364.93202 | FU14: 2784.569201 | FV14: 3361.0471 | FW14: 4562.836043 | FX14: 3235.585617 | FY14: 2704.025123 | FZ14: 5840.5622 | GA14: 4140.228942 | GB14: 4470.39074 | GC14: 2667.707325 | GD14: 2987.964269 | GE14: 2968.154561 | GF14: 2400.276269 | GG14: 2826.184988
C15: Receita - Internet | J15: =J39 -> 455.974085 | K15: =K39 -> 619.0139347 | L15: =L39 -> 438.9534414 | M15: 366.8396617 | N15: 792.3557529 | O15: 561.6812403 | P15: 606.4724078 | Q15: 361.9126333 | R15: 405.3600658 | S15: 402.6725957 | T15: 325.6317876 | U15: 383.4123937 | V15: 488.2991029 | W15: 662.8972104 | X15: 470.071828 | Y15: 392.8457419 | Z15: 848.527616 | AA15: 601.5000737 | AB15: 649.4665868 | AC15: 387.5694255 | AD15: 434.0969432 | AE15: 431.2189524 | AF15: 348.7165499 | AG15: 410.5933518 | AH15: 525.1336729 | AI15: 712.9024911 | AJ15: 505.5314336 | AK15: 422.4798409 | AL15: 912.5358225 | AM15: 646.8738957 | AN15: 698.4587358 | AO15: 416.8055085 | AP15: 466.8428035 | AQ15: 463.7477131 | AR15: 375.021788 | AS15: 441.5662318 | AT15: 555.0665318 | AU15: 753.5382584 | AV15: 534.346956 | AW15: 446.5613847 | AX15: 964.5507808 | AY15: 683.7460029 | AZ15: 738.2712025 | BA15: 440.5636127 | BB15: 493.4530563 | BC15: 490.1815443 | BD15: 396.398201 | BE15: 466.7357085 | BF15: 586.3381824 | BG15: 795.9915207 | BH15: 564.4512955 | BI15: 471.7200112 | BJ15: 1018.892185 | BK15: 722.2672699 | BL15: 779.8643409 | BM15: 465.3843334 | BN15: 521.2534922 | BO15: 517.797668 | BP15: 418.7307059 | BQ15: 493.0309275 | BR15: 620.2402541 | BS15: 842.0157478 | BT15: 597.0878674 | BU15: 498.9948606 | BV15: 1077.804528 | BW15: 764.028761 | BX15: =BX39 -> 824.9560944 | BY15: 492.292854 | BZ15: 551.3923674 | CA15: 547.7367274 | CB15: 442.9417139 | CC15: 521.537974 | CD15: 656.9765841 | CE15: 891.8876613 | CF15: 632.4529002 | CG15: 528.5499237 | CH15: 1141.642021 | CI15: 809.2815682 | CJ15: 873.8175785 | CK15: 521.4509626 | CL15: 584.0508925 | CM15: 580.1787319 | CN15: 469.1767943 | CO15: 552.4282475 | CP15: 669.0173534 | CQ15: 908.2337744 | CR15: 644.0442105 | CS15: 538.2369473 | CT15: 1162.565519 | CU15: 824.1137143 | CV15: 889.8325112 | CW15: 531.0078797 | CX15: 594.7551128 | CY15: 590.8119849 | CZ15: 477.7756541 | DA15: 562.5529022 | DB15: 680.955823 | DC15: 924.4410093 | DD15: 655.5370398 | DE15: 547.841669 | DF15: 1183.311248 | DG15: 838.8198449 | DH15: 905.7113795 | DI15: 540.4836002 | DJ15: 605.3683888 | DK15: 601.3548968 | DL15: 486.3014571 | DM15: 572.5915368 | DN15: 692.7817107 | DO15: 940.4954068 | DP15: 666.9214896 | DQ15: 557.3558163 | DR15: 1203.861342 | DS15: 853.3872939 | DT15: 921.4405071 | DU15: 549.8699629 | DV15: 615.8815797 | DW15: 611.7983869 | DX15: 494.7468602 | DY15: 582.5355052 | DZ15: 704.477684 | EA15: 956.3734374 | EB15: 678.1808746 | EC15: 566.7654452 | ED15: 1224.185681 | EE15: 867.794711 | EF15: 936.996841 | EG15: 559.1532109 | EH15: 626.2792771 | EI15: 622.1271493 | EJ15: =EJ39 -> 503.0994855 | EK15: 592.3702333 | EL15: 716.0256861 | EM15: 972.0505876 | EN15: 689.2978118 | EO15: 576.0560284 | EP15: 1244.252887 | EQ15: 882.019853 | ER15: 952.3563644 | ES15: 568.3190122 | ET15: 636.5454282 | EU15: 632.3252375 | EV15: 511.3464379 | EW15: 602.0805376 | EX15: 727.4148355 | EY15: 987.5120851 | EZ15: 700.2618259 | FA15: 585.2188116 | FB15: 1264.044051 | FC15: 896.049316 | FD15: 967.5046044 | FE15: 577.3587299 | FF15: 646.6703596 | FG15: 642.3830423 | FH15: 519.4799464 | FI15: 611.6572683 | FJ15: 738.6367446 | FK15: 1002.746543 | FL15: 711.0648425 | FM15: 594.247047 | FN15: 1283.544598 | FO15: 909.8727679 | FP15: 982.4304049 | FQ15: 586.2657069 | FR15: 656.6466148 | FS15: 652.2931566 | FT15: 527.494021 | FU15: 621.0933727 | FV15: 749.675777 | FW15: 1017.732735 | FX15: 721.6918089 | FY15: 603.1281546 | FZ15: 1302.727357 | GA15: 923.4709473 | GB15: 997.1129686 | GC15: 595.0275322 | GD15: 666.4602929 | GE15: 662.0417716 | GF15: 535.3774949 | GG15: 630.3757024
C17: Ano | J17: 1 | K17: 2 | L17: 3 | M17: 4 | N17: 5 | O17: 6 | P17: 7 | Q17: 8 | R17: 9 | S17: 10 | T17: 11 | U17: 12 | V17: 13 | W17: 14 | X17: 15 | Y17: 16 | Z17: 17 | AA17: 18 | AB17: 19 | AC17: 20 | AD17: 21 | AE17: 22 | AF17: 23 | AG17: 24 | AH17: 25 | AI17: 26 | AJ17: 27 | AK17: 28 | AL17: 29 | AM17: 30
C18: Total | J18: =SUM(J19:J22) -> 161.78728 | K18: =SUM(K19:K22) -> 172.6255934 | L18: 184.9389355 | M18: 195.0054255 | N18: 205.4810368 | O18: 216.8141668 | P18: 229.0697066 | Q18: 231.722685 | R18: 237.4306092 | S18: 241.5539717 | T18: 245.6320366 | U18: 249.6585081 | V18: 253.6295919 | W18: 257.5423637 | X18: 258.4062845 | Y18: =SUM(Y19:Y21) -> 0 | Z18: 0 | AA18: 0 | AB18: 0 | AC18: 0 | AD18: 0 | AE18: 0 | AF18: 0 | AG18: 0 | AH18: 0 | AI18: 0 | AJ18: 0 | AK18: 0 | AL18: 0 | AM18: 0
C19: Receita - Camping | J19: =SUMIF($J$3:$GG$3, J17,$J$12:$GG$12)/1000 -> 45.057 | K19: =SUMIF($J$3:$GG$3, K17,$J$12:$GG$12)/1000 -> 52.98479381 | L19: =SUMIF($J$3:$GG$3, L17,$J$12:$GG$12)/1000 -> 62.29596989 | M19: =SUMIF($J$3:$GG$3, M17,$J$12:$GG$12)/1000 -> 69.41022187 | N19: =SUMIF($J$3:$GG$3, N17,$J$12:$GG$12)/1000 -> 77.15104961 | O19: =SUMIF($J$3:$GG$3, O17,$J$12:$GG$12)/1000 -> 85.72029431 | P19: =SUMIF($J$3:$GG$3, P17,$J$12:$GG$12)/1000 -> 95.19385107 | Q19: =SUMIF($J$3:$GG$3, Q17,$J$12:$GG$12)/1000 -> 95.39321339 | R19: =SUMIF($J$3:$GG$3, R17,$J$12:$GG$12)/1000 -> 98.66836775 | S19: =SUMIF($J$3:$GG$3, S17,$J$12:$GG$12)/1000 -> 100.3819019 | T19: =SUMIF($J$3:$GG$3, T17,$J$12:$GG$12)/1000 -> 102.0766118 | U19: =SUMIF($J$3:$GG$3, U17,$J$12:$GG$12)/1000 -> 103.7498812 | V19: =SUMIF($J$3:$GG$3, V17,$J$12:$GG$12)/1000 -> 105.4001333 | W19: =SUMIF($J$3:$GG$3, W17,$J$12:$GG$12)/1000 -> 107.0261528 | X19: =SUMIF($J$3:$GG$3, X17,$J$12:$GG$12)/1000 -> 105.6405872 | Y19: =SUMIF($J$3:$GG$3, Y17,$J$12:$GG$12)/1000 -> 0 | Z19: =SUMIF($J$3:$GG$3, Z17,$J$12:$GG$12)/1000 -> 0 | AA19: =SUMIF($J$3:$GG$3, AA17,$J$12:$GG$12)/1000 -> 0 | AB19: =SUMIF($J$3:$GG$3, AB17,$J$12:$GG$12)/1000 -> 0 | AC19: =SUMIF($J$3:$GG$3, AC17,$J$12:$GG$12)/1000 -> 0 | AD19: =SUMIF($J$3:$GG$3, AD17,$J$12:$GG$12)/1000 -> 0 | AE19: =SUMIF($J$3:$GG$3, AE17,$J$12:$GG$12)/1000 -> 0 | AF19: =SUMIF($J$3:$GG$3, AF17,$J$12:$GG$12)/1000 -> 0 | AG19: =SUMIF($J$3:$GG$3, AG17,$J$12:$GG$12)/1000 -> 0 | AH19: =SUMIF($J$3:$GG$3, AH17,$J$12:$GG$12)/1000 -> 0 | AI19: =SUMIF($J$3:$GG$3, AI17,$J$12:$GG$12)/1000 -> 0 | AJ19: =SUMIF($J$3:$GG$3, AJ17,$J$12:$GG$12)/1000 -> 0 | AK19: =SUMIF($J$3:$GG$3, AK17,$J$12:$GG$12)/1000 -> 0 | AL19: =SUMIF($J$3:$GG$3, AL17,$J$12:$GG$12)/1000 -> 0 | AM19: =SUMIF($J$3:$GG$3, AM17,$J$12:$GG$12)/1000 -> 0
C20: Receita - Alimentação | J20: =SUMIF($J$3:$GG$3, J17,$J$13:$GG$13)/1000 -> 78.36 | K20: =SUMIF($J$3:$GG$3, K17,$J$13:$GG$13)/1000 -> 80.1282326 | L20: =SUMIF($J$3:$GG$3, L17,$J$13:$GG$13)/1000 -> 81.92122284 | M20: =SUMIF($J$3:$GG$3, M17,$J$13:$GG$13)/1000 -> 83.7400873 | N20: =SUMIF($J$3:$GG$3, N17,$J$13:$GG$13)/1000 -> 85.39359897 | O20: =SUMIF($J$3:$GG$3, O17,$J$13:$GG$13)/1000 -> 87.04435956 | P20: =SUMIF($J$3:$GG$3, P17,$J$13:$GG$13)/1000 -> 88.68279646 | Q20: =SUMIF($J$3:$GG$3, Q17,$J$13:$GG$13)/1000 -> 90.30813459 | R20: =SUMIF($J$3:$GG$3, R17,$J$13:$GG$13)/1000 -> 91.91966368 | S20: =SUMIF($J$3:$GG$3, S17,$J$13:$GG$13)/1000 -> 93.51599574 | T20: =SUMIF($J$3:$GG$3, T17,$J$13:$GG$13)/1000 -> 95.09479117 | U20: =SUMIF($J$3:$GG$3, U17,$J$13:$GG$13)/1000 -> 96.65361251 | V20: =SUMIF($J$3:$GG$3, V17,$J$13:$GG$13)/1000 -> 98.19099091 | W20: =SUMIF($J$3:$GG$3, W17,$J$13:$GG$13)/1000 -> 99.70579419 | X20: =SUMIF($J$3:$GG$3, X17,$J$13:$GG$13)/1000 -> 101.1959116 | Y20: =SUMIF($J$3:$GG$3, Y17,$J$13:$GG$13)/1000 -> 0 | Z20: =SUMIF($J$3:$GG$3, Z17,$J$13:$GG$13)/1000 -> 0 | AA20: =SUMIF($J$3:$GG$3, AA17,$J$13:$GG$13)/1000 -> 0 | AB20: =SUMIF($J$3:$GG$3, AB17,$J$13:$GG$13)/1000 -> 0 | AC20: =SUMIF($J$3:$GG$3, AC17,$J$13:$GG$13)/1000 -> 0 | AD20: =SUMIF($J$3:$GG$3, AD17,$J$13:$GG$13)/1000 -> 0 | AE20: =SUMIF($J$3:$GG$3, AE17,$J$13:$GG$13)/1000 -> 0 | AF20: =SUMIF($J$3:$GG$3, AF17,$J$13:$GG$13)/1000 -> 0 | AG20: =SUMIF($J$3:$GG$3, AG17,$J$13:$GG$13)/1000 -> 0 | AH20: =SUMIF($J$3:$GG$3, AH17,$J$13:$GG$13)/1000 -> 0 | AI20: =SUMIF($J$3:$GG$3, AI17,$J$13:$GG$13)/1000 -> 0 | AJ20: =SUMIF($J$3:$GG$3, AJ17,$J$13:$GG$13)/1000 -> 0 | AK20: =SUMIF($J$3:$GG$3, AK17,$J$13:$GG$13)/1000 -> 0 | AL20: =SUMIF($J$3:$GG$3, AL17,$J$13:$GG$13)/1000 -> 0 | AM20: =SUMIF($J$3:$GG$3, AM17,$J$13:$GG$13)/1000 -> 0
C21: Receita - Varejo | J21: =SUMIF($J$3:$GG$3, J17,$J$14:$GG$14)/1000 -> 32.65 | K21: =SUMIF($J$3:$GG$3, K17,$J$14:$GG$14)/1000 -> 33.38676358 | L21: =SUMIF($J$3:$GG$3, L17,$J$14:$GG$14)/1000 -> 34.13384285 | M21: =SUMIF($J$3:$GG$3, M17,$J$14:$GG$14)/1000 -> 34.89170304 | N21: =SUMIF($J$3:$GG$3, N17,$J$14:$GG$14)/1000 -> 35.58066624 | O21: =SUMIF($J$3:$GG$3, O17,$J$14:$GG$14)/1000 -> 36.26848315 | P21: =SUMIF($J$3:$GG$3, P17,$J$14:$GG$14)/1000 -> 36.95116519 | Q21: =SUMIF($J$3:$GG$3, Q17,$J$14:$GG$14)/1000 -> 37.62838941 | R21: =SUMIF($J$3:$GG$3, R17,$J$14:$GG$14)/1000 -> 38.29985987 | S21: =SUMIF($J$3:$GG$3, S17,$J$14:$GG$14)/1000 -> 38.96499823 | T21: =SUMIF($J$3:$GG$3, T17,$J$14:$GG$14)/1000 -> 39.62282965 | U21: =SUMIF($J$3:$GG$3, U17,$J$14:$GG$14)/1000 -> 40.27233854 | V21: =SUMIF($J$3:$GG$3, V17,$J$14:$GG$14)/1000 -> 40.91291288 | W21: =SUMIF($J$3:$GG$3, W17,$J$14:$GG$14)/1000 -> 41.54408091 | X21: =SUMIF($J$3:$GG$3, X17,$J$14:$GG$14)/1000 -> 42.16496318 | Y21: =SUMIF($J$3:$GG$3, Y17,$J$14:$GG$14)/1000 -> 0 | Z21: =SUMIF($J$3:$GG$3, Z17,$J$14:$GG$14)/1000 -> 0 | AA21: =SUMIF($J$3:$GG$3, AA17,$J$14:$GG$14)/1000 -> 0 | AB21: =SUMIF($J$3:$GG$3, AB17,$J$14:$GG$14)/1000 -> 0 | AC21: =SUMIF($J$3:$GG$3, AC17,$J$14:$GG$14)/1000 -> 0 | AD21: =SUMIF($J$3:$GG$3, AD17,$J$14:$GG$14)/1000 -> 0 | AE21: =SUMIF($J$3:$GG$3, AE17,$J$14:$GG$14)/1000 -> 0 | AF21: =SUMIF($J$3:$GG$3, AF17,$J$14:$GG$14)/1000 -> 0 | AG21: =SUMIF($J$3:$GG$3, AG17,$J$14:$GG$14)/1000 -> 0 | AH21: =SUMIF($J$3:$GG$3, AH17,$J$14:$GG$14)/1000 -> 0 | AI21: =SUMIF($J$3:$GG$3, AI17,$J$14:$GG$14)/1000 -> 0 | AJ21: =SUMIF($J$3:$GG$3, AJ17,$J$14:$GG$14)/1000 -> 0 | AK21: =SUMIF($J$3:$GG$3, AK17,$J$14:$GG$14)/1000 -> 0 | AL21: =SUMIF($J$3:$GG$3, AL17,$J$14:$GG$14)/1000 -> 0 | AM21: =SUMIF($J$3:$GG$3, AM17,$J$14:$GG$14)/1000 -> 0
C22: Receita - Internet | J22: =SUMIF($J$3:$GG$3, J17,$J$15:$GG$15)/1000 -> 5.72028 | K22: =SUMIF($J$3:$GG$3, K17,$J$15:$GG$15)/1000 -> 6.125803382 | L22: 6.587899937 | M22: 6.96341324 | N22: 7.355721933 | O22: 7.78102975 | P22: 8.241893866 | Q22: 8.392947564 | R22: 8.542717894 | S22: 8.691075862 | T22: 8.83780403 | U22: 8.982675872 | V22: 9.125554876 | W22: 9.266335821 | X22: 9.404822542
C24: Camping
C25: Total | J25: =SUM(J26:J26) -> 3591.576697 | K25: =SUM(K26:K26) -> 4875.794691 | L25: =SUM(L26:L26) -> 3457.509984 | M25: =SUM(M26:M26) -> 2889.490486 | N25: =SUM(N26:N26) -> 6241.158327 | O25: =SUM(O26:O26) -> 4424.20155 | P25: =SUM(P26:P26) -> 4777.008692 | Q25: =SUM(Q26:Q26) -> 2850.681701 | R25: =SUM(R26:R26) -> 3192.904628 | S25: =SUM(S26:S26) -> 3171.736199 | T25: =SUM(T26:T26) -> 2564.907916 | U25: =SUM(U26:U26) -> 3020.029128 | V25: =SUM(V26:V26) -> 4223.515786 | W25: =SUM(W26:W26) -> 5733.692353 | X25: =SUM(X26:X26) -> 4065.85999 | Y25: =SUM(Y26:Y26) -> 3397.897277 | Z25: =SUM(Z26:Z26) -> 7339.292166 | AA25: =SUM(AA26:AA26) -> 5202.641253 | AB25: =SUM(AB26:AB26) -> 5617.524925 | AC25: =SUM(AC26:AC26) -> 3352.260073 | AD25: =SUM(AD26:AD26) -> 3754.697236 | AE25: =SUM(AE26:AE26) -> 3729.804215 | AF25: =SUM(AF26:AF26) -> 3016.204299 | AG25: =SUM(AG26:AG26) -> 3551.404236 | AH25: =SUM(AH26:AH26) -> 4965.72683 | AI25: =SUM(AI26:AI26) -> 6741.291237 | AJ25: =SUM(AJ26:AJ26) -> 4780.365711 | AK25: =SUM(AK26:AK26) -> 3995.019915 | AL25: =SUM(AL26:AL26) -> 8629.0479 | AM25: =SUM(AM26:AM26) -> 6116.91694 | AN25: =SUM(AN26:AN26) -> 6604.70936 | AO25: =SUM(AO26:AO26) -> 3941.362749 | AP25: =SUM(AP26:AP26) -> 4414.521396 | AQ25: =SUM(AQ26:AQ26) -> 4385.253851 | AR25: =SUM(AR26:AR26) -> 3546.25089 | AS25: =SUM(AS26:AS26) -> 4175.503111 | AT25: =SUM(AT26:AT26) -> 5532.816997 | AU25: =SUM(AU26:AU26) -> 7511.152347 | AV25: =SUM(AV26:AV26) -> 5326.287482 | AW25: =SUM(AW26:AW26) -> 4451.254539 | AX25: =SUM(AX26:AX26) -> 9614.492404 | AY25: =SUM(AY26:AY26) -> 6815.473982 | AZ25: =SUM(AZ26:AZ26) -> 7358.972705 | BA25: =SUM(BA26:BA26) -> 4391.469679 | BB25: =SUM(BB26:BB26) -> 4918.66344 | BC25: =SUM(BC26:BC26) -> 4886.053517 | BD25: =SUM(BD26:BD26) -> 3951.235714 | BE25: =SUM(BE26:BE26) -> 4652.349066 | BF25: =SUM(BF26:BF26) -> 6149.852674 | BG25: =SUM(BG26:BG26) -> 8348.817678 | BH25: =SUM(BH26:BH26) -> 5920.290394 | BI25: =SUM(BI26:BI26) -> 4947.671258 | BJ25: =SUM(BJ26:BJ26) -> 10686.72827 | BK25: =SUM(BK26:BK26) -> 7575.555259 | BL25: =SUM(BL26:BL26) -> 8179.666524 | BM25: =SUM(BM26:BM26) -> 4881.219019 | BN25: =SUM(BN26:BN26) -> 5467.206945 | BO25: =SUM(BO26:BO26) -> 5430.960269 | BP25: =SUM(BP26:BP26) -> 4391.888894 | BQ25: =SUM(BQ26:BQ26) -> 5171.192426 | BR25: =SUM(BR26:BR26) -> 6832.922998 | BS25: =SUM(BS26:BS26) -> 9276.129256 | BT25: =SUM(BT26:BT26) -> 6577.863004 | BU25: =SUM(BU26:BU26) -> 5497.214082 | BV25: =SUM(BV26:BV26) -> 11873.71393 | BW25: =SUM(BW26:BW26) -> 8416.979803 | BX25: =SUM(BX26:BX26) -> 9088.190313 | BY25: =SUM(BY26:BY26) -> 5423.380926 | BZ25: =SUM(BZ26:BZ26) -> 6074.455121 | CA25: =SUM(CA26:CA26) -> 6034.18249 | CB25: =SUM(CB26:CB26) -> 4879.700412 | CC25: =SUM(CC26:CC26) -> 5745.561971 | CD25: =SUM(CD26:CD26) -> 7588.077706 | CE25: =SUM(CE26:CE26) -> 10301.29999 | CF25: =SUM(CF26:CF26) -> 7304.829226 | CG25: =SUM(CG26:CG26) -> 6104.750139 | CH25: =SUM(CH26:CH26) -> 13185.96214 | CI25: =SUM(CI26:CI26) -> 9347.199847 | CJ25: =SUM(CJ26:CJ26) -> 10092.59058 | CK25: =SUM(CK26:CK26) -> 6022.757158 | CL25: =SUM(CL26:CL26) -> 6745.786173 | CM25: =SUM(CM26:CM26) -> 6701.062729 | CN25: =SUM(CN26:CN26) -> 5418.990661 | CO25: =SUM(CO26:CO26) -> 6380.544712 | CP25: =SUM(CP26:CP26) -> 7727.148558 | CQ25: =SUM(CQ26:CQ26) -> 10490.09755 | CR25: =SUM(CR26:CR26) -> 7438.708828 | CS25: =SUM(CS26:CS26) -> 6216.635234 | CT25: =SUM(CT26:CT26) -> 13427.62849 | CU25: =SUM(CU26:CU26) -> 9518.511092 | CV25: =SUM(CV26:CV26) -> 10277.56301 | CW25: =SUM(CW26:CW26) -> 6133.139523 | CX25: =SUM(CX26:CX26) -> 6869.419887 | CY25: =SUM(CY26:CY26) -> 6823.876771 | CZ25: =SUM(CZ26:CZ26) -> 3973 | DA25: =SUM(DA26:DA26) -> 6497.484445 | DB25: =SUM(DB26:DB26) -> 7865.037849 | DC25: =SUM(DC26:DC26) -> 10677.29107 | DD25: =SUM(DD26:DD26) -> 7571.450974 | DE25: =SUM(DE26:DE26) -> 6327.569743 | DF25: =SUM(DF26:DF26) -> 13667.24161 | DG25: =SUM(DG26:DG26) -> 9688.366859 | DH25: =SUM(DH26:DH26) -> 10460.9639 | DI25: =SUM(DI26:DI26) -> 6242.584069 | DJ25: =SUM(DJ26:DJ26) -> 6992.003196 | DK25: =SUM(DK26:DK26) -> 6945.647373 | DL25: =SUM(DL26:DL26) -> 5616.780468 | DM25: =SUM(DM26:DM26) -> 6613.430647 | DN25: =SUM(DN26:DN26) -> 8001.626818 | DO25: =SUM(DO26:DO26) -> 10862.71931 | DP25: =SUM(DP26:DP26) -> 7702.941338 | DQ25: =SUM(DQ26:DQ26) -> 6437.458118 | DR25: =SUM(DR26:DR26) -> 13904.59513 | DS25: =SUM(DS26:DS26) -> 9856.620854 | DT25: =SUM(DT26:DT26) -> 10642.63528 | DU25: =SUM(DU26:DU26) -> 6350.996531 | DV25: =SUM(DV26:DV26) -> 7113.430521 | DW25: =SUM(DW26:DW26) -> 7066.269656 | DX25: =SUM(DX26:DX26) -> 5714.324849 | DY25: =SUM(DY26:DY26) -> 6728.283454 | DZ25: =SUM(DZ26:DZ26) -> 8136.715277 | EA25: =SUM(EA26:EA26) -> 11046.11052 | EB25: =SUM(EB26:EB26) -> 7832.987202 | EC25: =SUM(EC26:EC26) -> 6546.139305 | ED25: =SUM(ED26:ED26) -> 14139.34118 | EE25: =SUM(EE26:EE26) -> 10023.02648 | EF25: =SUM(EF26:EF26) -> 10822.31089 | EG25: =SUM(EG26:EG26) -> 6458.21802 | EH25: =SUM(EH26:EH26) -> 7233.523896 | EI25: =SUM(EI26:EI26) -> 7185.566831 | EJ25: =SUM(EJ26:EJ26) -> 5810.797649 | EK25: =SUM(EK26:EK26) -> 6841.874536 | EL25: =SUM(EL26:EL26) -> 8270.094669 | EM25: =SUM(EM26:EM26) -> 11227.18156 | EN25: =SUM(EN26:EN26) -> 7961.387796 | EO25: =SUM(EO26:EO26) -> 6653.445515 | EP25: =SUM(EP26:EP26) -> 14371.11736 | EQ25: =SUM(EQ26:EQ26) -> 10187.32683 | ER25: =SUM(ER26:ER26) -> 10999.71334 | ES25: =SUM(ES26:ES26) -> 6564.082999 | ET25: =SUM(ET26:ET26) -> 7352.097913 | EU25: =SUM(EU26:EU26) -> 7303.354723 | EV25: =SUM(EV26:EV26) -> 5906.049926 | EW25: =SUM(EW26:EW26) -> 6954.028523 | EX25: =SUM(EX26:EX26) -> 8401.639313 | EY25: =SUM(EY26:EY26) -> 11405.76182 | EZ25: =SUM(EZ26:EZ26) -> 8088.022128 | FA25: =SUM(FA26:FA26) -> 6759.275636 | FB25: =SUM(FB26:FB26) -> 14599.70525 | FC25: =SUM(FC26:FC26) -> 10349.36709 | FD25: =SUM(FD26:FD26) -> 11174.67547 | FE25: =SUM(FE26:FE26) -> 6668.491714 | FF25: =SUM(FF26:FF26) -> 7469.040843 | FG25: =SUM(FG26:FG26) -> 7419.52234 | FH25: =SUM(FH26:FH26) -> 5999.991926 | FI25: =SUM(FI26:FI26) -> 7064.639736 | FJ25: =SUM(FJ26:FJ26) -> 8531.252332 | FK25: =SUM(FK26:FK26) -> 11581.71977 | FL25: =SUM(FL26:FL26) -> 8212.79694 | FM25: =SUM(FM26:FM26) -> 6863.551728 | FN25: =SUM(FN26:FN26) -> 14824.93652 | FO25: =SUM(FO26:FO26) -> 10509.02792 | FP25: =SUM(FP26:FP26) -> 11347.06843 | FQ25: =SUM(FQ26:FQ26) -> 6771.367273 | FR25: =SUM(FR26:FR26) -> 7584.266562 | FS25: =SUM(FS26:FS26) -> 7533.984132 | FT25: =SUM(FT26:FT26) -> 6092.554465 | FU25: =SUM(FU26:FU26) -> 7173.626715 | FV25: =SUM(FV26:FV26) -> 8658.753124 | FW25: =SUM(FW26:FW26) -> 11754.81023 | FX25: =SUM(FX26:FX26) -> 8335.538371 | FY25: =SUM(FY26:FY26) -> 6966.128496 | FZ25: =SUM(FZ26:FZ26) -> 15046.49733 | GA25: =SUM(GA26:GA26) -> 7681 | GB25: =SUM(GB26:GB26) -> 11516.65199 | GC25: =SUM(GC26:GC26) -> 6872.566331 | GD25: =SUM(GD26:GD26) -> 7697.614516 | GE25: =SUM(GE26:GE26) -> 7646.580608 | GF25: =SUM(GF26:GF26) -> 6183.608567 | GG25: =SUM(GG26:GG26) -> 7280.837598
J26: =J8*$D$27 -> 3591.576697 | K26: =K8*$D$27 -> 4875.794691 | L26: 3457.509984 | M26: 2889.490486 | N26: 6241.158327 | O26: 4424.20155 | P26: 4777.008692 | Q26: 2850.681701 | R26: 3192.904628 | S26: 3171.736199 | T26: 2564.907916 | U26: 3020.029128 | V26: 4223.515786 | W26: 5733.692353 | X26: 4065.85999 | Y26: 3397.897277 | Z26: 7339.292166 | AA26: 5202.641253 | AB26: 5617.524925 | AC26: 3352.260073 | AD26: 3754.697236 | AE26: 3729.804215 | AF26: 3016.204299 | AG26: 3551.404236 | AH26: 4965.72683 | AI26: 6741.291237 | AJ26: 4780.365711 | AK26: 3995.019915 | AL26: 8629.0479 | AM26: 6116.91694 | AN26: 6604.70936 | AO26: 3941.362749 | AP26: 4414.521396 | AQ26: 4385.253851 | AR26: 3546.25089 | AS26: 4175.503111 | AT26: 5532.816997 | AU26: 7511.152347 | AV26: 5326.287482 | AW26: 4451.254539 | AX26: 9614.492404 | AY26: 6815.473982 | AZ26: 7358.972705 | BA26: 4391.469679 | BB26: 4918.66344 | BC26: 4886.053517 | BD26: 3951.235714 | BE26: 4652.349066 | BF26: 6149.852674 | BG26: 8348.817678 | BH26: 5920.290394 | BI26: 4947.671258 | BJ26: 10686.72827 | BK26: 7575.555259 | BL26: 8179.666524 | BM26: 4881.219019 | BN26: 5467.206945 | BO26: 5430.960269 | BP26: 4391.888894 | BQ26: 5171.192426 | BR26: 6832.922998 | BS26: 9276.129256 | BT26: 6577.863004 | BU26: 5497.214082 | BV26: 11873.71393 | BW26: =BW8*$D$27 -> 8416.979803 | BX26: 9088.190313 | BY26: 5423.380926 | BZ26: 6074.455121 | CA26: 6034.18249 | CB26: 4879.700412 | CC26: 5745.561971 | CD26: 7588.077706 | CE26: 10301.29999 | CF26: 7304.829226 | CG26: 6104.750139 | CH26: 13185.96214 | CI26: 9347.199847 | CJ26: 10092.59058 | CK26: 6022.757158 | CL26: 6745.786173 | CM26: 6701.062729 | CN26: 5418.990661 | CO26: 6380.544712 | CP26: 7727.148558 | CQ26: 10490.09755 | CR26: 7438.708828 | CS26: 6216.635234 | CT26: 13427.62849 | CU26: 9518.511092 | CV26: 10277.56301 | CW26: 6133.139523 | CX26: 6869.419887 | CY26: 6823.876771 | CZ26: 3973 | DA26: 6497.484445 | DB26: 7865.037849 | DC26: 10677.29107 | DD26: 7571.450974 | DE26: 6327.569743 | DF26: 13667.24161 | DG26: 9688.366859 | DH26: 10460.9639 | DI26: 6242.584069 | DJ26: 6992.003196 | DK26: 6945.647373 | DL26: 5616.780468 | DM26: 6613.430647 | DN26: 8001.626818 | DO26: 10862.71931 | DP26: 7702.941338 | DQ26: 6437.458118 | DR26: 13904.59513 | DS26: 9856.620854 | DT26: 10642.63528 | DU26: 6350.996531 | DV26: 7113.430521 | DW26: 7066.269656 | DX26: 5714.324849 | DY26: 6728.283454 | DZ26: 8136.715277 | EA26: 11046.11052 | EB26: 7832.987202 | EC26: 6546.139305 | ED26: 14139.34118 | EE26: 10023.02648 | EF26: 10822.31089 | EG26: 6458.21802 | EH26: 7233.523896 | EI26: =EI8*$D$27 -> 7185.566831 | EJ26: 5810.797649 | EK26: 6841.874536 | EL26: 8270.094669 | EM26: 11227.18156 | EN26: 7961.387796 | EO26: 6653.445515 | EP26: 14371.11736 | EQ26: 10187.32683 | ER26: 10999.71334 | ES26: 6564.082999 | ET26: 7352.097913 | EU26: 7303.354723 | EV26: 5906.049926 | EW26: 6954.028523 | EX26: 8401.639313 | EY26: 11405.76182 | EZ26: 8088.022128 | FA26: 6759.275636 | FB26: 14599.70525 | FC26: 10349.36709 | FD26: 11174.67547 | FE26: 6668.491714 | FF26: 7469.040843 | FG26: 7419.52234 | FH26: 5999.991926 | FI26: 7064.639736 | FJ26: 8531.252332 | FK26: 11581.71977 | FL26: 8212.79694 | FM26: 6863.551728 | FN26: 14824.93652 | FO26: 10509.02792 | FP26: 11347.06843 | FQ26: 6771.367273 | FR26: 7584.266562 | FS26: 7533.984132 | FT26: 6092.554465 | FU26: 7173.626715 | FV26: 8658.753124 | FW26: 11754.81023 | FX26: 8335.538371 | FY26: 6966.128496 | FZ26: 15046.49733 | GA26: 7681 | GB26: 11516.65199 | GC26: 6872.566331 | GD26: 7697.614516 | GE26: 7646.580608 | GF26: 6183.608567 | GG26: 7280.837598
C27: Preço | D27: 75
C30: Alimentação
C31: Total | J31: =(J7*$G$32)*$E$32 -> 6246.220343 | K31: =(K7*$G$32)*$E$32 -> 8479.642941 | L31: 6013.060841 | M31: 5025.200846 | N31: 10854.1884 | O31: 7694.263566 | P31: 8307.841203 | Q31: 4957.707306 | R31: 5552.877613 | S31: 5516.062955 | T31: 4460.70942 | U31: 5252.224571 | V31: 6387.16943 | W31: 8670.990326 | X31: 6148.748567 | Y31: 5138.597017 | Z31: 11099.11859 | AA31: 7867.888473 | AB31: 8495.311796 | AC31: 5069.580451 | AD31: 5678.181075 | AE31: 5640.535675 | AF31: 4561.367559 | AG31: 5370.743646 | AH31: 6530.091993 | AI31: 8865.016832 | AJ31: 6286.336104 | AK31: 5253.580887 | AL31: 11347.47813 | AM31: 8043.944361 | AN31: 8685.407229 | AO31: 5183.019971 | AP31: 5805.238953 | AQ31: 5766.751181 | AR31: 4663.435048 | AS31: 5490.922148 | AT31: 6675.077039 | AU31: 9061.843289 | AV31: 6425.909134 | AW31: 5370.224062 | AX31: 11599.42169 | AY31: 8222.540872 | AZ31: 8878.245885 | BA31: 5298.096511 | BB31: 5934.130374 | BC31: 5894.788073 | BD31: 4766.97545 | BE31: 5612.834917 | BF31: 6806.881509 | BG31: 9240.776273 | BH31: 6552.793594 | BI31: 5476.263218 | BJ31: 11828.46109 | BK31: 8384.901191 | BL31: 9053.553598 | BM31: 5402.711453 | BN31: 6051.304288 | BO31: 6011.185144 | BP31: 4861.103003 | BQ31: 5723.664609 | BR31: 6938.466684 | BS31: 9419.41155 | BT31: 6679.466946 | BU31: 5582.125948 | BV31: 12057.11942 | BW31: =(BW7*$G$32)*$E$32 -> 8546.991378 | BX31: 9228.569637 | BY31: 5507.152339 | BZ31: 6168.283251 | CA31: 6127.388555 | CB31: 4955.073949 | CC31: 5834.309904 | CD31: 7069.069517 | CE31: 9596.713234 | CF31: 6805.194623 | CG31: 5687.198364 | CH31: 12284.0707 | CI31: 8707.871487 | CJ31: 9402.279102 | CK31: 5610.813526 | CL31: 6284.388912 | CM31: 6242.724455 | CN31: 5048.343358 | CO31: 5944.129181 | CP31: 7198.628221 | CQ31: 9772.597447 | CR31: 6929.917148 | CS31: 5791.430759 | CT31: 12509.20759 | CU31: 8867.465412 | CV31: 9574.599815 | CW31: 5713.645975 | CX31: 6399.566346 | CY31: 6357.138282 | CZ31: 5140.867109 | DA31: 6053.070488 | DB31: 7327.086181 | DC31: 9946.987331 | DD31: 7053.580017 | DE31: 5894.777586 | DF31: 12732.43168 | DG31: 9025.70341 | DH31: 9745.456473 | DI31: 5815.604749 | DJ31: 6513.76522 | DK31: 6470.580036 | DL31: 5232.604768 | DM31: 6161.086219 | DN31: 7454.332759 | DO31: 10119.73268 | DP31: 7176.076723 | DQ31: 5997.149833 | DR31: 12953.55074 | DS31: 9182.449194 | DT31: 9914.701921 | DU31: 5916.602033 | DV31: 6626.887178 | DW31: 6582.952014 | DX31: 5323.477324 | DY31: 6268.083342 | DZ31: 7580.181458 | EA31: 10290.58033 | EB31: 7297.22773 | EC31: 6098.39746 | ED31: 13172.24067 | EE31: 9337.473034 | EF31: 10082.08811 | EG31: 6016.489802 | EH31: 6738.766424 | EI31: =(EI7*$G$32)*$E$32 -> 6694.08952 | EJ31: 5413.351592 | EK31: 6373.905038 | EL31: 7704.437987 | EM31: 10459.2665 | EN31: 7416.845999 | EO31: 6198.364156 | EP31: 13388.16385 | EQ31: 9490.535595 | ER31: 10247.35662 | ES31: 6115.113844 | ET31: 6849.230234 | EU31: 6803.820973 | EV31: 5502.088818 | EW31: 6478.387934 | EX31: 7826.98526 | EY31: 10625.63225 | EZ31: 7534.818816 | FA31: 6296.955725 | FB31: 13601.11682 | FC31: 9641.492648 | FD31: 10410.35171 | FE31: 6212.381228 | FF31: 6958.174519 | FG31: 6912.042975 | FH31: 5589.605387 | FI31: 6581.433578 | FJ31: 7947.733027 | FK31: 10789.55505 | FL31: 7651.059299 | FM31: 6394.099557 | FN31: 13810.94275 | FO31: 9790.233021 | FP31: 10570.95336 | FQ31: 6308.22032 | FR31: 7065.519046 | FS31: 7018.675826 | FT31: 5675.836847 | FU31: 6682.966082 | FV31: 8066.51304 | FW31: 10950.8065 | FX31: 7765.40548 | FY31: 6489.660294 | FZ31: 14017.34928 | GA31: 9936.549462 | GB31: 10728.93778 | GC31: 6402.49758 | GD31: 7171.114245 | GE31: 7123.570946 | GF31: 5760.663045 | GG31: 6782.843971
C32: Café-restaurante / lanchonete | D32: Ticket médio por visitante | E32: 30 | F32: Adesão | G32: 0.4
C34: Varejo
C35: Total | J35: =(J7*$G$36)*$E$36 -> 2602.59181 | K35: =(K7*$G$36)*$E$36 -> 3533.184559 | L35: =(L7*$G$36)*$E$36 -> 2505.442017 | M35: =(M7*$G$36)*$E$36 -> 2093.833686 | N35: =(N7*$G$36)*$E$36 -> 4522.578498 | O35: =(O7*$G$36)*$E$36 -> 3205.943152 | P35: =(P7*$G$36)*$E$36 -> 3461.600501 | Q35: =(Q7*$G$36)*$E$36 -> 2065.711377 | R35: =(R7*$G$36)*$E$36 -> 2313.699006 | S35: =(S7*$G$36)*$E$36 -> 2298.359565 | T35: =(T7*$G$36)*$E$36 -> 1858.628925 | U35: =(U7*$G$36)*$E$36 -> 2188.426905 | V35: =(V7*$G$36)*$E$36 -> 2661.320596 | W35: =(W7*$G$36)*$E$36 -> 3612.912636 | X35: =(X7*$G$36)*$E$36 -> 2561.97857 | Y35: =(Y7*$G$36)*$E$36 -> 2141.08209 | Z35: =(Z7*$G$36)*$E$36 -> 4624.632745 | AA35: =(AA7*$G$36)*$E$36 -> 3278.286864 | AB35: =(AB7*$G$36)*$E$36 -> 3539.713248 | AC35: =(AC7*$G$36)*$E$36 -> 2112.325188 | AD35: =(AD7*$G$36)*$E$36 -> 2365.908781 | AE35: =(AE7*$G$36)*$E$36 -> 2350.223198 | AF35: =(AF7*$G$36)*$E$36 -> 1900.569816 | AG35: =(AG7*$G$36)*$E$36 -> 2237.809853 | AH35: =(AH7*$G$36)*$E$36 -> 2720.871664 | AI35: =(AI7*$G$36)*$E$36 -> 3693.757013 | AJ35: =(AJ7*$G$36)*$E$36 -> 2619.30671 | AK35: =(AK7*$G$36)*$E$36 -> 2188.992036 | AL35: =(AL7*$G$36)*$E$36 -> 4728.115887 | AM35: =(AM7*$G$36)*$E$36 -> 3351.643484 | AN35: =(AN7*$G$36)*$E$36 -> 3618.919679 | AO35: =(AO7*$G$36)*$E$36 -> 2159.591655 | AP35: =(AP7*$G$36)*$E$36 -> 2418.849564 | AQ35: =(AQ7*$G$36)*$E$36 -> 2402.812992 | AR35: =(AR7*$G$36)*$E$36 -> 1943.097937 | AS35: =(AS7*$G$36)*$E$36 -> 2287.884228 | AT35: =(AT7*$G$36)*$E$36 -> 2781.2821 | AU35: =(AU7*$G$36)*$E$36 -> 3775.768037 | AV35: =(AV7*$G$36)*$E$36 -> 2677.462139 | AW35: =(AW7*$G$36)*$E$36 -> 2237.593359 | AX35: =(AX7*$G$36)*$E$36 -> 4833.092372 | AY35: =(AY7*$G$36)*$E$36 -> 3426.058697 | AZ35: =(AZ7*$G$36)*$E$36 -> 3699.269119 | BA35: =(BA7*$G$36)*$E$36 -> 2207.540213 | BB35: =(BB7*$G$36)*$E$36 -> 2472.554322 | BC35: =(BC7*$G$36)*$E$36 -> 2456.161697 | BD35: =(BD7*$G$36)*$E$36 -> 1986.239771 | BE35: =(BE7*$G$36)*$E$36 -> 2338.681216 | BF35: =(BF7*$G$36)*$E$36 -> 2836.200629 | BG35: =(BG7*$G$36)*$E$36 -> 3850.323447 | BH35: =(BH7*$G$36)*$E$36 -> 2730.330664 | BI35: =(BI7*$G$36)*$E$36 -> 2281.776341 | BJ35: =(BJ7*$G$36)*$E$36 -> 4928.525454 | BK35: =(BK7*$G$36)*$E$36 -> 3493.70883 | BL35: =(BL7*$G$36)*$E$36 -> 3772.313999 | BM35: =(BM7*$G$36)*$E$36 -> 2251.129772 | BN35: =(BN7*$G$36)*$E$36 -> 2521.376787 | BO35: =(BO7*$G$36)*$E$36 -> 2504.660477 | BP35: =(BP7*$G$36)*$E$36 -> 2025.459585 | BQ35: =(BQ7*$G$36)*$E$36 -> 2384.860254 | BR35: =(BR7*$G$36)*$E$36 -> 2891.027785 | BS35: =(BS7*$G$36)*$E$36 -> 3924.754813 | BT35: =(BT7*$G$36)*$E$36 -> 2783.111227 | BU35: =(BU7*$G$36)*$E$36 -> 2325.885811 | BV35: =(BV7*$G$36)*$E$36 -> 5023.799756 | BW35: =(BW7*$G$36)*$E$36 -> 3561.246407 | BX35: =(BX7*$G$36)*$E$36 -> 3845.237349 | BY35: =(BY7*$G$36)*$E$36 -> 2294.646808 | BZ35: =(BZ7*$G$36)*$E$36 -> 2570.118021 | CA35: =(CA7*$G$36)*$E$36 -> 2553.078565 | CB35: =(CB7*$G$36)*$E$36 -> 2064.614145 | CC35: =(CC7*$G$36)*$E$36 -> 2430.96246 | CD35: =(CD7*$G$36)*$E$36 -> 2945.445632 | CE35: =(CE7*$G$36)*$E$36 -> 3998.630514 | CF35: =(CF7*$G$36)*$E$36 -> 2835.49776 | CG35: =(CG7*$G$36)*$E$36 -> 2369.665985 | CH35: =(CH7*$G$36)*$E$36 -> 5118.362793 | CI35: =(CI7*$G$36)*$E$36 -> 3628.279786 | CJ35: =(CJ7*$G$36)*$E$36 -> 3917.616292 | CK35: =(CK7*$G$36)*$E$36 -> 2337.838969 | CL35: =(CL7*$G$36)*$E$36 -> 2618.49538 | CM35: =(CM7*$G$36)*$E$36 -> 2601.13519 | CN35: =(CN7*$G$36)*$E$36 -> 2103.476399 | CO35: =(CO7*$G$36)*$E$36 -> 2476.720492 | CP35: =(CP7*$G$36)*$E$36 -> 2999.428425 | CQ35: =(CQ7*$G$36)*$E$36 -> 4071.915603 | CR35: =(CR7*$G$36)*$E$36 -> 2887.465478 | CS35: =(CS7*$G$36)*$E$36 -> 2413.09615 | CT35: =(CT7*$G$36)*$E$36 -> 5212.169828 | CU35: =(CU7*$G$36)*$E$36 -> 3694.777255 | CV35: =(CV7*$G$36)*$E$36 -> 3989.416589 | CW35: =(CW7*$G$36)*$E$36 -> 2380.685823 | CX35: =(CX7*$G$36)*$E$36 -> 2666.485977 | CY35: =(CY7*$G$36)*$E$36 -> 2648.807617 | CZ35: =(CZ7*$G$36)*$E$36 -> 2142.027962 | DA35: =(DA7*$G$36)*$E$36 -> 2522.112704 | DB35: =(DB7*$G$36)*$E$36 -> 3052.952576 | DC35: =(DC7*$G$36)*$E$36 -> 4144.578054 | DD35: =(DD7*$G$36)*$E$36 -> 2938.991674 | DE35: =(DE7*$G$36)*$E$36 -> 2456.157328 | DF35: =(DF7*$G$36)*$E$36 -> 5305.179869 | DG35: =(DG7*$G$36)*$E$36 -> 3760.709754 | DH35: =(DH7*$G$36)*$E$36 -> 4060.606864 | DI35: =(DI7*$G$36)*$E$36 -> 2423.168645 | DJ35: =(DJ7*$G$36)*$E$36 -> 2714.068842 | DK35: =(DK7*$G$36)*$E$36 -> 2696.075015 | DL35: =(DL7*$G$36)*$E$36 -> 2180.251987 | DM35: =(DM7*$G$36)*$E$36 -> 2567.119258 | DN35: =(DN7*$G$36)*$E$36 -> 3105.971983 | DO35: =(DO7*$G$36)*$E$36 -> 4216.555285 | DP35: =(DP7*$G$36)*$E$36 -> 2990.031968 | DQ35: =(DQ7*$G$36)*$E$36 -> 2498.81243 | DR35: =(DR7*$G$36)*$E$36 -> 5397.312807 | DS35: =(DS7*$G$36)*$E$36 -> 3826.020498 | DT35: =(DT7*$G$36)*$E$36 -> 4131.1258 | DU35: =(DU7*$G$36)*$E$36 -> 2465.250847 | DV35: =(DV7*$G$36)*$E$36 -> 2761.202991 | DW35: =(DW7*$G$36)*$E$36 -> 2742.896673 | DX35: =(DX7*$G$36)*$E$36 -> 2218.115552 | DY35: 2611.701392 | DZ35: =(DZ7*$G$36)*$E$36 -> 3158.408941 | EA35: =(EA7*$G$36)*$E$36 -> 4287.741804 | EB35: =(EB7*$G$36)*$E$36 -> 3040.511554 | EC35: =(EC7*$G$36)*$E$36 -> 2540.998942 | ED35: =(ED7*$G$36)*$E$36 -> 5488.433612 | EE35: =(EE7*$G$36)*$E$36 -> 3890.613764 | EF35: =(EF7*$G$36)*$E$36 -> 4200.870045 | EG35: =(EG7*$G$36)*$E$36 -> 2506.870751 | EH35: =(EH7*$G$36)*$E$36 -> 2807.819343 | EI35: =(EI7*$G$36)*$E$36 -> 2789.203967 | EJ35: =(EJ7*$G$36)*$E$36 -> 2255.563163 | EK35: =(EK7*$G$36)*$E$36 -> 2655.793766 | EL35: =(EL7*$G$36)*$E$36 -> 3210.182495 | EM35: =(EM7*$G$36)*$E$36 -> 4358.027709 | EN35: =(EN7*$G$36)*$E$36 -> 3090.3525 | EO35: =(EO7*$G$36)*$E$36 -> 2582.651732 | EP35: =(EP7*$G$36)*$E$36 -> 5578.401604 | EQ35: =(EQ7*$G$36)*$E$36 -> 3954.389831 | ER35: =(ER7*$G$36)*$E$36 -> 4269.731923 | ES35: =(ES7*$G$36)*$E$36 -> 2547.964102 | ET35: =(ET7*$G$36)*$E$36 -> 2853.845931 | EU35: =(EU7*$G$36)*$E$36 -> 2834.925405 | EV35: =(EV7*$G$36)*$E$36 -> 2292.537007 | EW35: =(EW7*$G$36)*$E$36 -> 2699.328306 | EX35: =(EX7*$G$36)*$E$36 -> 3261.243858 | EY35: =(EY7*$G$36)*$E$36 -> 4427.34677 | EZ35: =(EZ7*$G$36)*$E$36 -> 3139.50784 | FA35: =(FA7*$G$36)*$E$36 -> 2623.731552 | FB35: =(FB7*$G$36)*$E$36 -> 5667.132009 | FC35: =(FC7*$G$36)*$E$36 -> 4017.288603 | FD35: =(FD7*$G$36)*$E$36 -> 4337.646546 | FE35: =(FE7*$G$36)*$E$36 -> 2588.492178 | FF35: =(FF7*$G$36)*$E$36 -> 2899.239383 | FG35: =(FG7*$G$36)*$E$36 -> 2880.017906 | FH35: =(FH7*$G$36)*$E$36 -> 2329.002244 | FI35: =(FI7*$G$36)*$E$36 -> 2742.263991 | FJ35: =(FJ7*$G$36)*$E$36 -> 3311.555428 | FK35: =(FK7*$G$36)*$E$36 -> 4495.647938 | FL35: =(FL7*$G$36)*$E$36 -> 3187.941375 | FM35: =(FM7*$G$36)*$E$36 -> 2664.208149 | FN35: =(FN7*$G$36)*$E$36 -> 5754.559481 | FO35: =(FO7*$G$36)*$E$36 -> 4079.263759 | FP35: =(FP7*$G$36)*$E$36 -> 4404.563899 | FQ35: =(FQ7*$G$36)*$E$36 -> 2628.425133 | FR35: =(FR7*$G$36)*$E$36 -> 2943.966269 | FS35: =(FS7*$G$36)*$E$36 -> 2924.448261 | FT35: =(FT7*$G$36)*$E$36 -> 2364.93202 | FU35: =(FU7*$G$36)*$E$36 -> 2784.569201 | FV35: =(FV7*$G$36)*$E$36 -> 3361.0471 | FW35: =(FW7*$G$36)*$E$36 -> 4562.836043 | FX35: =(FX7*$G$36)*$E$36 -> 3235.585617 | FY35: =(FY7*$G$36)*$E$36 -> 2704.025123 | FZ35: =(FZ7*$G$36)*$E$36 -> 5840.5622 | GA35: =(GA7*$G$36)*$E$36 -> 4140.228942 | GB35: =(GB7*$G$36)*$E$36 -> 4470.39074 | GC35: =(GC7*$G$36)*$E$36 -> 2667.707325 | GD35: =(GD7*$G$36)*$E$36 -> 2987.964269 | GE35: =(GE7*$G$36)*$E$36 -> 2968.154561 | GF35: =(GF7*$G$36)*$E$36 -> 2400.276269 | GG35: =(GG7*$G$36)*$E$36 -> 2826.184988
C36: Loja de souvenir | D36: Ticket médio por visitante | E36: 25 | F36: Adesão | G36: 0.2
C38: Internet
C39: Total | J39: =SUM(J40:J41) -> 455.974085 | K39: =SUM(K40:K41) -> 619.0139347 | L39: 438.9534414 | M39: 366.8396617 | N39: 792.3557529 | O39: 561.6812403 | P39: 606.4724078 | Q39: 361.9126333 | R39: 405.3600658 | S39: 402.6725957 | T39: 325.6317876 | U39: 383.4123937 | V39: 488.2991029 | W39: 662.8972104 | X39: 470.071828 | Y39: 392.8457419 | Z39: 848.527616 | AA39: 601.5000737 | AB39: 649.4665868 | AC39: 387.5694255 | AD39: 434.0969432 | AE39: 431.2189524 | AF39: 348.7165499 | AG39: 410.5933518 | AH39: 525.1336729 | AI39: 712.9024911 | AJ39: 505.5314336 | AK39: 422.4798409 | AL39: 912.5358225 | AM39: 646.8738957 | AN39: 698.4587358 | AO39: 416.8055085 | AP39: 466.8428035 | AQ39: 463.7477131 | AR39: 375.021788 | AS39: 441.5662318 | AT39: 555.0665318 | AU39: 753.5382584 | AV39: 534.346956 | AW39: 446.5613847 | AX39: 964.5507808 | AY39: 683.7460029 | AZ39: 738.2712025 | BA39: 440.5636127 | BB39: 493.4530563 | BC39: 490.1815443 | BD39: 396.398201 | BE39: 466.7357085 | BF39: 586.3381824 | BG39: 795.9915207 | BH39: 564.4512955 | BI39: 471.7200112 | BJ39: 1018.892185 | BK39: 722.2672699 | BL39: 779.8643409 | BM39: 465.3843334 | BN39: 521.2534922 | BO39: 517.797668 | BP39: 418.7307059 | BQ39: 493.0309275 | BR39: 620.2402541 | BS39: 842.0157478 | BT39: 597.0878674 | BU39: 498.9948606 | BV39: 1077.804528 | BW39: =SUM(BW40:BW41) -> 764.028761 | BX39: 824.9560944 | BY39: 492.292854 | BZ39: 551.3923674 | CA39: 547.7367274 | CB39: 442.9417139 | CC39: 521.537974 | CD39: 656.9765841 | CE39: 891.8876613 | CF39: 632.4529002 | CG39: 528.5499237 | CH39: 1141.642021 | CI39: 809.2815682 | CJ39: 873.8175785 | CK39: 521.4509626 | CL39: 584.0508925 | CM39: 580.1787319 | CN39: 469.1767943 | CO39: 552.4282475 | CP39: 669.0173534 | CQ39: 908.2337744 | CR39: 644.0442105 | CS39: 538.2369473 | CT39: 1162.565519 | CU39: 824.1137143 | CV39: 889.8325112 | CW39: 531.0078797 | CX39: 594.7551128 | CY39: 590.8119849 | CZ39: 477.7756541 | DA39: 562.5529022 | DB39: 680.955823 | DC39: 924.4410093 | DD39: 655.5370398 | DE39: 547.841669 | DF39: 1183.311248 | DG39: 838.8198449 | DH39: 905.7113795 | DI39: 540.4836002 | DJ39: 605.3683888 | DK39: 601.3548968 | DL39: 486.3014571 | DM39: 572.5915368 | DN39: 692.7817107 | DO39: 940.4954068 | DP39: 666.9214896 | DQ39: 557.3558163 | DR39: 1203.861342 | DS39: 853.3872939 | DT39: 921.4405071 | DU39: 549.8699629 | DV39: 615.8815797 | DW39: 611.7983869 | DX39: 494.7468602 | DY39: 582.5355052 | DZ39: 704.477684 | EA39: 956.3734374 | EB39: 678.1808746 | EC39: 566.7654452 | ED39: 1224.185681 | EE39: 867.794711 | EF39: 936.996841 | EG39: 559.1532109 | EH39: 626.2792771 | EI39: =SUM(EI40:EI41) -> 622.1271493 | EJ39: 503.0994855 | EK39: 592.3702333 | EL39: 716.0256861 | EM39: 972.0505876 | EN39: 689.2978118 | EO39: 576.0560284 | EP39: 1244.252887 | EQ39: 882.019853 | ER39: 952.3563644 | ES39: 568.3190122 | ET39: 636.5454282 | EU39: 632.3252375 | EV39: 511.3464379 | EW39: 602.0805376 | EX39: 727.4148355 | EY39: 987.5120851 | EZ39: 700.2618259 | FA39: 585.2188116 | FB39: 1264.044051 | FC39: 896.049316 | FD39: 967.5046044 | FE39: 577.3587299 | FF39: 646.6703596 | FG39: 642.3830423 | FH39: 519.4799464 | FI39: 611.6572683 | FJ39: 738.6367446 | FK39: 1002.746543 | FL39: 711.0648425 | FM39: 594.247047 | FN39: 1283.544598 | FO39: 909.8727679 | FP39: 982.4304049 | FQ39: 586.2657069 | FR39: 656.6466148 | FS39: 652.2931566 | FT39: 527.494021 | FU39: 621.0933727 | FV39: 749.675777 | FW39: 1017.732735 | FX39: 721.6918089 | FY39: 603.1281546 | FZ39: 1302.727357 | GA39: 923.4709473 | GB39: 997.1129686 | GC39: 595.0275322 | GD39: 666.4602929 | GE39: 662.0417716 | GF39: 535.3774949 | GG39: 630.3757024
C40: Internet por horas de uso | D40: R$/Hora | E40: 12 | F40: Adesão | G40: 0.05 | J40: =J7*$G$40*$E$40 -> 312.3110171 | K40: =K7*$G$40*$E$40 -> 423.9821471 | L40: 300.653042 | M40: 251.2600423 | N40: 542.7094198 | O40: 384.7131783 | P40: 415.3920601 | Q40: 247.8853653 | R40: 277.6438807 | S40: 275.8031478 | T40: 223.035471 | U40: 262.6112286 | V40: 319.3584715 | W40: 433.5495163 | X40: 307.4374284 | Y40: 256.9298508 | Z40: 554.9559293 | AA40: 393.3944236 | AB40: 424.7655898 | AC40: 253.4790226 | AD40: 283.9090537 | AE40: 282.0267838 | AF40: 228.068378 | AG40: 268.5371823 | AH40: 326.5045997 | AI40: 443.2508416 | AJ40: 314.3168052 | AK40: 262.6790443 | AL40: 567.3739065 | AM40: 402.1972181 | AN40: 434.2703614 | AO40: 259.1509986 | AP40: 290.2619476 | AQ40: 288.337559 | AR40: 233.1717524 | AS40: 274.5461074 | AT40: 333.753852 | AU40: 453.0921645 | AV40: 321.2954567 | AW40: 268.5112031 | AX40: 579.9710846 | AY40: 411.1270436 | AZ40: 443.9122943 | BA40: 264.9048255 | BB40: 296.7065187 | BC40: 294.7394037 | BD40: 238.3487725 | BE40: 280.6417459 | BF40: 340.3440755 | BG40: 462.0388136 | BH40: 327.6396797 | BI40: 273.8131609 | BJ40: 591.4230545 | BK40: 419.2450595 | BL40: 452.6776799 | BM40: 270.1355727 | BN40: 302.5652144 | BO40: 300.5592572 | BP40: 243.0551501 | BQ40: 286.1832304 | BR40: 346.9233342 | BS40: 470.9705775 | BT40: 333.9733473 | BU40: 279.1062974 | BV40: 602.8559708 | BW40: =BW7*$G$40*$E$40 -> 427.3495689 | BX40: 461.4284819 | BY40: 275.3576169 | BZ40: 308.4141625 | CA40: 306.3694278 | CB40: 247.7536974 | CC40: 291.7154952 | CD40: 353.4534758 | CE40: 479.8356617 | CF40: 340.2597312 | CG40: 284.3599182 | CH40: 614.2035351 | CI40: 435.3935744 | CJ40: 470.1139551 | CK40: 280.5406763 | CL40: 314.2194456 | CM40: 312.1362228 | CN40: 252.4171679 | CO40: 297.2064591 | CP40: 359.9314111 | CQ40: 488.6298724 | CR40: 346.4958574 | CS40: 289.571538 | CT40: 625.4603793 | CU40: 443.3732706 | CV40: 478.7299907 | CW40: 285.6822988 | CX40: 319.9783173 | CY40: 317.8569141 | CZ40: 257.0433554 | DA40: 302.6535244 | DB40: 366.3543091 | DC40: 497.3493665 | DD40: 352.6790009 | DE40: 294.7388793 | DF40: 636.6215842 | DG40: 451.2851705 | DH40: 487.2728237 | DI40: 290.7802375 | DJ40: 325.688261 | DK40: 323.5290018 | DL40: 261.6302384 | DM40: 308.054311 | DN40: 372.716638 | DO40: 505.9866342 | DP40: 358.8038361 | DQ40: 299.8574916 | DR40: 647.6775369 | DS40: 459.1224597 | DT40: 495.7350961 | DU40: 295.8301016 | DV40: 331.3443589 | DW40: 329.1476007 | DX40: 266.1738662 | DY40: 313.4041671 | DZ40: =DZ7*$G$40*$E$40 -> 379.0090729 | EA40: =EA7*$G$40*$E$40 -> 514.5290165 | EB40: 364.8613865 | EC40: 304.919873 | ED40: 658.6120334 | EE40: 466.8736517 | EF40: 504.1044054 | EG40: 300.8244901 | EH40: 336.9383212 | EI40: 334.704476 | EJ40: 270.6675796 | EK40: 318.6952519 | EL40: 385.2218993 | EM40: 522.963325 | EN40: =EN7*$G$40*$E$40 -> 370.8423 | EO40: 309.9182078 | EP40: 669.4081925 | EQ40: 474.5267797 | ER40: 512.3678308 | ES40: 305.7556922 | ET40: 342.4615117 | EU40: 340.1910486 | EV40: 275.1044409 | EW40: 323.9193967 | EX40: 391.349263 | EY40: 531.2816124 | EZ40: 376.7409408 | FA40: 314.8477862 | FB40: 680.0558411 | FC40: 482.0746324 | FD40: 520.5175855 | FE40: 310.6190614 | FF40: 347.9087259 | FG40: 345.6021487 | FH40: 279.4802693 | FI40: 329.0716789 | FJ40: 397.3866513 | FK40: 539.4777526 | FL40: 382.5529649 | FM40: 319.7049778 | FN40: 690.5471377 | FO40: 489.5116511 | FP40: 528.5476679 | FQ40: 315.411016 | FR40: 353.2759523 | FS40: 350.9337913 | FT40: 283.7918424 | FU40: 334.1483041 | FV40: 403.325652 | FW40: 547.5403252 | FX40: 388.270274 | FY40: 324.4830147 | FZ40: 700.867464 | GA40: 496.8274731 | GB40: 536.4468888 | GC40: 320.124879 | GD40: 358.5557122 | GE40: 356.1785473 | GF40: 288.0331523 | GG40: 339.1421985
D41: Pacote diário | E41: 30 | F41: Adesão | G41: 0.1 | J41: =J8*$G$41*$E$41 -> 143.6630679 | K41: =K8*$G$41*$E$41 -> 195.0317876 | L41: 138.3003993 | M41: 115.5796195 | N41: 249.6463331 | O41: 176.968062 | P41: 191.0803477 | Q41: 114.027268 | R41: 127.7161851 | S41: 126.869448 | T41: 102.5963167 | U41: 120.8011651 | V41: 168.9406314 | W41: 229.3476941 | X41: 162.6343996 | Y41: 135.9158911 | Z41: 293.5716866 | AA41: 208.1056501 | AB41: 224.700997 | AC41: 134.0904029 | AD41: 150.1878894 | AE41: 149.1921686 | AF41: 120.6481719 | AG41: 142.0561694 | AH41: 198.6290732 | AI41: 269.6516495 | AJ41: 191.2146284 | AK41: 159.8007966 | AL41: 345.161916 | AM41: 244.6766776 | AN41: 264.1883744 | AO41: 157.65451 | AP41: 176.5808558 | AQ41: 175.410154 | AR41: 141.8500356 | AS41: 167.0201244 | AT41: 221.3126799 | AU41: 300.4460939 | AV41: 213.0514993 | AW41: 178.0501815 | AX41: 384.5796962 | AY41: 272.6189593 | AZ41: 294.3589082 | BA41: 175.6587872 | BB41: 196.7465376 | BC41: 195.4421407 | BD41: 158.0494286 | BE41: 186.0939626 | BF41: 245.994107 | BG41: 333.9527071 | BH41: 236.8116157 | BI41: 197.9068503 | BJ41: 427.4691309 | BK41: 303.0222104 | BL41: 327.1866609 | BM41: 195.2487607 | BN41: 218.6882778 | BO41: 217.2384108 | BP41: 175.6755558 | BQ41: 206.847697 | BR41: 273.3169199 | BS41: 371.0451703 | BT41: 263.1145201 | BU41: 219.8885633 | BV41: 474.9485573 | BW41: =BW8*$G$41*$E$41 -> 336.6791921 | BX41: 363.5276125 | BY41: 216.935237 | BZ41: 242.9782048 | CA41: 241.3672996 | CB41: 195.1880165 | CC41: 229.8224788 | CD41: 303.5231083 | CE41: 412.0519996 | CF41: 292.193169 | CG41: 244.1900056 | CH41: 527.4384858 | CI41: 373.8879939 | CJ41: 403.7036234 | CK41: 240.9102863 | CL41: 269.8314469 | CM41: 268.0425092 | CN41: 216.7596264 | CO41: 255.2217885 | CP41: 309.0859423 | CQ41: 419.603902 | CR41: 297.5483531 | CS41: 248.6654094 | CT41: 537.1051394 | CU41: 380.7404437 | CV41: 411.1025205 | CW41: 245.3255809 | CX41: 274.7767955 | CY41: 272.9550709 | CZ41: 220.7322987 | DA41: 259.8993778 | DB41: 314.601514 | DC41: 427.0916427 | DD41: 302.858039 | DE41: 253.1027897 | DF41: 546.6896642 | DG41: 387.5346744 | DH41: 418.4385559 | DI41: 249.7033627 | DJ41: 279.6801278 | DK41: 277.8258949 | DL41: 224.6712187 | DM41: 264.5372259 | DN41: 320.0650727 | DO41: 434.5087726 | DP41: 308.1176535 | DQ41: 257.4983247 | DR41: 556.1838052 | DS41: 394.2648342 | DT41: 425.7054111 | DU41: 254.0398613 | DV41: 284.5372208 | DW41: 282.6507862 | DX41: 228.572994 | DY41: 269.1313382 | DZ41: =DZ8*$G$41*$E$41 -> 325.4686111 | EA41: =EA8*$G$41*$E$41 -> 441.844421 | EB41: 313.3194881 | EC41: 261.8455722 | ED41: 565.5736474 | EE41: 400.9210593 | EF41: 432.8924356 | EG41: 258.3287208 | EH41: 289.3409558 | EI41: 287.4226733 | EJ41: 232.431906 | EK41: 273.6749814 | EL41: 330.8037868 | EM41: 449.0872626 | EN41: =EN8*$G$41*$E$41 -> 318.4555118 | EO41: 266.1378206 | EP41: 574.8446943 | EQ41: 407.4930733 | ER41: 439.9885337 | ES41: 262.56332 | ET41: 294.0839165 | EU41: 292.1341889 | EV41: 236.241997 | EW41: 278.1611409 | EX41: 336.0655725 | EY41: 456.2304727 | EZ41: 323.5208851 | FA41: 270.3710254 | FB41: 583.98821 | FC41: 413.9746836 | FD41: 446.9870188 | FE41: 266.7396685 | FF41: 298.7616337 | FG41: 296.7808936 | FH41: 239.999677 | FI41: 282.5855895 | FJ41: 341.2500933 | FK41: 463.2687907 | FL41: 328.5118776 | FM41: 274.5420691 | FN41: 592.9974607 | FO41: 420.3611168 | FP41: 453.882737 | FQ41: 270.8546909 | FR41: 303.3706625 | FS41: 301.3593653 | FT41: 243.7021786 | FU41: 286.9450686 | FV41: 346.350125 | FW41: 470.1924093 | FX41: 333.4215348 | FY41: 278.6451398 | FZ41: 601.859893 | GA41: 426.6434742 | GB41: 460.6660798 | GC41: 274.9026532 | GD41: 307.9045807 | GE41: 305.8632243 | GF41: 247.3443427 | GG41: 291.2335039

Sheet OPEX
C1: ANO | J1: 2026 | K1: 2026 | L1: 2026 | M1: 2026 | N1: 2026 | O1: 2026 | P1: 2026 | Q1: 2026 | R1: 2026 | S1: 2026 | T1: 2026 | U1: 2026 | V1: =(2025+V3) -> 2027 | W1: =(2025+W3) -> 2027 | X1: 2027 | Y1: 2027 | Z1: 2027 | AA1: 2027 | AB1: 2027 | AC1: 2027 | AD1: 2027 | AE1: 2027 | AF1: 2027 | AG1: 2027 | AH1: 2028 | AI1: 2028 | AJ1: 2028 | AK1: 2028 | AL1: 2028 | AM1: 2028 | AN1: 2028 | AO1: 2028 | AP1: 2028 | AQ1: 2028 | AR1: 2028 | AS1: 2028 | AT1: 2029 | AU1: 2029 | AV1: 2029 | AW1: 2029 | AX1: 2029 | AY1: 2029 | AZ1: 2029 | BA1: 2029 | BB1: 2029 | BC1: 2029 | BD1: 2029 | BE1: 2029 | BF1: 2030 | BG1: 2030 | BH1: 2030 | BI1: 2030 | BJ1: 2030 | BK1: 2030 | BL1: 2030 | BM1: 2030 | BN1: 2030 | BO1: 2030 | BP1: 2030 | BQ1: 2030 | BR1: 2031 | BS1: 2031 | BT1: 2031 | BU1: 2031 | BV1: 2031 | BW1: 2031 | BX1: 2031 | BY1: 2031 | BZ1: 2031 | CA1: 2031 | CB1: 2031 | CC1: 2031 | CD1: 2032 | CE1: 2032 | CF1: 2032 | CG1: 2032 | CH1: 2032 | CI1: =(2025+CI3) -> 2032 | CJ1: 2032 | CK1: 2032 | CL1: 2032 | CM1: 2032 | CN1: 2032 | CO1: 2032 | CP1: 2033 | CQ1: 2033 | CR1: 2033 | CS1: 2033 | CT1: 2033 | CU1: 2033 | CV1: 2033 | CW1: 2033 | CX1: 2033 | CY1: 2033 | CZ1: 2033 | DA1: 2033 | DB1: 2034 | DC1: 2034 | DD1: 2034 | DE1: 2034 | DF1: 2034 | DG1: 2034 | DH1: 2034 | DI1: 2034 | DJ1: 2034 | DK1: 2034 | DL1: 2034 | DM1: 2034 | DN1: 2035 | DO1: 2035 | DP1: 2035 | DQ1: 2035 | DR1: 2035 | DS1: 2035 | DT1: 2035 | DU1: 2035 | DV1: 2035 | DW1: 2035 | DX1: 2035 | DY1: 2035 | DZ1: 2036 | EA1: 2036 | EB1: 2036 | EC1: 2036 | ED1: 2036 | EE1: 2036 | EF1: 2036 | EG1: 2036 | EH1: 2036 | EI1: 2036 | EJ1: 2036 | EK1: 2036 | EL1: 2037 | EM1: 2037 | EN1: 2037 | EO1: 2037 | EP1: 2037 | EQ1: 2037 | ER1: 2037 | ES1: 2037 | ET1: 2037 | EU1: =(2025+EU3) -> 2037 | EV1: 2037 | EW1: 2037 | EX1: 2038 | EY1: 2038 | EZ1: 2038 | FA1: 2038 | FB1: 2038 | FC1: 2038 | FD1: 2038 | FE1: 2038 | FF1: 2038 | FG1: 2038 | FH1: 2038 | FI1: 2038 | FJ1: 2039 | FK1: 2039 | FL1: 2039 | FM1: 2039 | FN1: 2039 | FO1: 2039 | FP1: 2039 | FQ1: 2039 | FR1: 2039 | FS1: 2039 | FT1: 2039 | FU1: 2039 | FV1: 2040 | FW1: 2040 | FX1: 2040 | FY1: 2040 | FZ1: 2040 | GA1: 2040 | GB1: 2040 | GC1: 2040 | GD1: 2040 | GE1: 2040 | GF1: 2040 | GG1: 2040
C2: MÊS - ANO | J2: 2026-01-01 | K2: =EDATE(J2,1) -> 2026-02-01 | L2: =EDATE(K2,1) -> 2026-03-01 | M2: 2026-04-01 | N2: 2026-05-01 | O2: 2026-06-01 | P2: 2026-07-01 | Q2: 2026-08-01 | R2: 2026-09-01 | S2: 2026-10-01 | T2: 2026-11-01 | U2: 2026-12-01 | V2: 2027-01-01 | W2: 2027-02-01 | X2: 2027-03-01 | Y2: 2027-04-01 | Z2: 2027-05-01 | AA2: 2027-06-01 | AB2: 2027-07-01 | AC2: 2027-08-01 | AD2: 2027-09-01 | AE2: 2027-10-01 | AF2: 2027-11-01 | AG2: 2027-12-01 | AH2: 2028-01-01 | AI2: 2028-02-01 | AJ2: 2028-03-01 | AK2: 2028-04-01 | AL2: 2028-05-01 | AM2: 2028-06-01 | AN2: 2028-07-01 | AO2: 2028-08-01 | AP2: 2028-09-01 | AQ2: 2028-10-01 | AR2: 2028-11-01 | AS2: 2028-12-01 | AT2: 2029-01-01 | AU2: 2029-02-01 | AV2: 2029-03-01 | AW2: 2029-04-01 | AX2: 2029-05-01 | AY2: 2029-06-01 | AZ2: 2029-07-01 | BA2: 2029-08-01 | BB2: 2029-09-01 | BC2: 2029-10-01 | BD2: 2029-11-01 | BE2: 2029-12-01 | BF2: 2030-01-01 | BG2: 2030-02-01 | BH2: 2030-03-01 | BI2: 2030-04-01 | BJ2: 2030-05-01 | BK2: 2030-06-01 | BL2: 2030-07-01 | BM2: 2030-08-01 | BN2: 2030-09-01 | BO2: 2030-10-01 | BP2: 2030-11-01 | BQ2: 2030-12-01 | BR2: 2031-01-01 | BS2: 2031-02-01 | BT2: 2031-03-01 | BU2: 2031-04-01 | BV2: 2031-05-01 | BW2: 2031-06-01 | BX2: =EDATE(BW2,1) -> 2031-07-01 | BY2: 2031-08-01 | BZ2: 2031-09-01 | CA2: 2031-10-01 | CB2: 2031-11-01 | CC2: 2031-12-01 | CD2: 2032-01-01 | CE2: 2032-02-01 | CF2: 2032-03-01 | CG2: 2032-04-01 | CH2: 2032-05-01 | CI2: 2032-06-01 | CJ2: 2032-07-01 | CK2: 2032-08-01 | CL2: 2032-09-01 | CM2: 2032-10-01 | CN2: 2032-11-01 | CO2: 2032-12-01 | CP2: 2033-01-01 | CQ2: 2033-02-01 | CR2: 2033-03-01 | CS2: 2033-04-01 | CT2: 2033-05-01 | CU2: 2033-06-01 | CV2: 2033-07-01 | CW2: 2033-08-01 | CX2: 2033-09-01 | CY2: 2033-10-01 | CZ2: 2033-11-01 | DA2: 2033-12-01 | DB2: 2034-01-01 | DC2: 2034-02-01 | DD2: 2034-03-01 | DE2: 2034-04-01 | DF2: 2034-05-01 | DG2: 2034-06-01 | DH2: 2034-07-01 | DI2: 2034-08-01 | DJ2: 2034-09-01 | DK2: 2034-10-01 | DL2: 2034-11-01 | DM2: 2034-12-01 | DN2: 2035-01-01 | DO2: 2035-02-01 | DP2: 2035-03-01 | DQ2: 2035-04-01 | DR2: 2035-05-01 | DS2: 2035-06-01 | DT2: 2035-07-01 | DU2: 2035-08-01 | DV2: 2035-09-01 | DW2: 2035-10-01 | DX2: 2035-11-01 | DY2: 2035-12-01 | DZ2: 2036-01-01 | EA2: 2036-02-01 | EB2: 2036-03-01 | EC2: 2036-04-01 | ED2: 2036-05-01 | EE2: 2036-06-01 | EF2: 2036-07-01 | EG2: 2036-08-01 | EH2: 2036-09-01 | EI2: 2036-10-01 | EJ2: =EDATE(EI2,1) -> 2036-11-01 | EK2: 2036-12-01 | EL2: 2037-01-01 | EM2: 2037-02-01 | EN2: 2037-03-01 | EO2: 2037-04-01 | EP2: 2037-05-01 | EQ2: 2037-06-01 | ER2: 2037-07-01 | ES2: 2037-08-01 | ET2: 2037-09-01 | EU2: 2037-10-01 | EV2: 2037-11-01 | EW2: 2037-12-01 | EX2: 2038-01-01 | EY2: 2038-02-01 | EZ2: 2038-03-01 | FA2: 2038-04-01 | FB2: 2038-05-01 | FC2: 2038-06-01 | FD2: 2038-07-01 | FE2: 2038-08-01 | FF2: 2038-09-01 | FG2: 2038-10-01 | FH2: 2038-11-01 | FI2: 2038-12-01 | FJ2: 2039-01-01 | FK2: 2039-02-01 | FL2: 2039-03-01 | FM2: 2039-04-01 | FN2: 2039-05-01 | FO2: 2039-06-01 | FP2: 2039-07-01 | FQ2: 2039-08-01 | FR2: 2039-09-01 | FS2: 2039-10-01 | FT2: 2039-11-01 | FU2: 2039-12-01 | FV2: 2040-01-01 | FW2: 2040-02-01 | FX2: 2040-03-01 | FY2: 2040-04-01 | FZ2: 2040-05-01 | GA2: 2040-06-01 | GB2: 2040-07-01 | GC2: 2040-08-01 | GD2: 2040-09-01 | GE2: 2040-10-01 | GF2: 2040-11-01 | GG2: 2040-12-01
C3: ANO OPERAÇÃO | J3: =ROUNDUP(J4/12,0) -> 1 | K3: =ROUNDUP(K4/12,0) -> 1 | L3: 1 | M3: 1 | N3: 1 | O3: 1 | P3: 1 | Q3: 1 | R3: 1 | S3: 1 | T3: 1 | U3: 1 | V3: 2 | W3: 2 | X3: 2 | Y3: 2 | Z3: 2 | AA3: 2 | AB3: 2 | AC3: 2 | AD3: 2 | AE3: 2 | AF3: 2 | AG3: 2 | AH3: 3 | AI3: 3 | AJ3: 3 | AK3: 3 | AL3: 3 | AM3: 3 | AN3: 3 | AO3: 3 | AP3: 3 | AQ3: 3 | AR3: 3 | AS3: 3 | AT3: 4 | AU3: 4 | AV3: 4 | AW3: 4 | AX3: 4 | AY3: 4 | AZ3: 4 | BA3: 4 | BB3: 4 | BC3: 4 | BD3: 4 | BE3: 4 | BF3: 5 | BG3: 5 | BH3: 5 | BI3: 5 | BJ3: 5 | BK3: 5 | BL3: 5 | BM3: 5 | BN3: 5 | BO3: 5 | BP3: 5 | BQ3: 5 | BR3: 6 | BS3: 6 | BT3: 6 | BU3: 6 | BV3: 6 | BW3: =ROUNDUP(BW4/12,0) -> 6 | BX3: 6 | BY3: 6 | BZ3: 6 | CA3: 6 | CB3: 6 | CC3: 6 | CD3: 7 | CE3: 7 | CF3: 7 | CG3: 7 | CH3: 7 | CI3: 7 | CJ3: 7 | CK3: 7 | CL3: 7 | CM3: 7 | CN3: 7 | CO3: 7 | CP3: 8 | CQ3: 8 | CR3: 8 | CS3: 8 | CT3: 8 | CU3: 8 | CV3: 8 | CW3: 8 | CX3: 8 | CY3: 8 | CZ3: 8 | DA3: 8 | DB3: 9 | DC3: 9 | DD3: 9 | DE3: 9 | DF3: 9 | DG3: =ROUNDUP(DG4/12,0) -> 9 | DH3: =ROUNDUP(DH4/12,0) -> 9 | DI3: =ROUNDUP(DI4/12,0) -> 9 | DJ3: =ROUNDUP(DJ4/12,0) -> 9 | DK3: =ROUNDUP(DK4/12,0) -> 9 | DL3: =ROUNDUP(DL4/12,0) -> 9 | DM3: =ROUNDUP(DM4/12,0) -> 9 | DN3: =ROUNDUP(DN4/12,0) -> 10 | DO3: =ROUNDUP(DO4/12,0) -> 10 | DP3: =ROUNDUP(DP4/12,0) -> 10 | DQ3: =ROUNDUP(DQ4/12,0) -> 10 | DR3: =ROUNDUP(DR4/12,0) -> 10 | DS3: =ROUNDUP(DS4/12,0) -> 10 | DT3: =ROUNDUP(DT4/12,0) -> 10 | DU3: =ROUNDUP(DU4/12,0) -> 10 | DV3: =ROUNDUP(DV4/12,0) -> 10 | DW3: =ROUNDUP(DW4/12,0) -> 10 | DX3: =ROUNDUP(DX4/12,0) -> 10 | DY3: =ROUNDUP(DY4/12,0) -> 10 | DZ3: =ROUNDUP(DZ4/12,0) -> 11 | EA3: =ROUNDUP(EA4/12,0) -> 11 | EB3: =ROUNDUP(EB4/12,0) -> 11 | EC3: =ROUNDUP(EC4/12,0) -> 11 | ED3: =ROUNDUP(ED4/12,0) -> 11 | EE3: =ROUNDUP(EE4/12,0) -> 11 | EF3: =ROUNDUP(EF4/12,0) -> 11 | EG3: =ROUNDUP(EG4/12,0) -> 11 | EH3: =ROUNDUP(EH4/12,0) -> 11 | EI3: =ROUNDUP(EI4/12,0) -> 11 | EJ3: =ROUNDUP(EJ4/12,0) -> 11 | EK3: =ROUNDUP(EK4/12,0) -> 11 | EL3: =ROUNDUP(EL4/12,0) -> 12 | EM3: =ROUNDUP(EM4/12,0) -> 12 | EN3: =ROUNDUP(EN4/12,0) -> 12 | EO3: =ROUNDUP(EO4/12,0) -> 12 | EP3: =ROUNDUP(EP4/12,0) -> 12 | EQ3: =ROUNDUP(EQ4/12,0) -> 12 | ER3: =ROUNDUP(ER4/12,0) -> 12 | ES3: =ROUNDUP(ES4/12,0) -> 12 | ET3: =ROUNDUP(ET4/12,0) -> 12 | EU3: =ROUNDUP(EU4/12,0) -> 12 | EV3: =ROUNDUP(EV4/12,0) -> 12 | EW3: =ROUNDUP(EW4/12,0) -> 12 | EX3: =ROUNDUP(EX4/12,0) -> 13 | EY3: =ROUNDUP(EY4/12,0) -> 13 | EZ3: =ROUNDUP(EZ4/12,0) -> 13 | FA3: =ROUNDUP(FA4/12,0) -> 13 | FB3: =ROUNDUP(FB4/12,0) -> 13 | FC3: =ROUNDUP(FC4/12,0) -> 13 | FD3: =ROUNDUP(FD4/12,0) -> 13 | FE3: =ROUNDUP(FE4/12,0) -> 13 | FF3: =ROUNDUP(FF4/12,0) -> 13 | FG3: =ROUNDUP(FG4/12,0) -> 13 | FH3: =ROUNDUP(FH4/12,0) -> 13 | FI3: =ROUNDUP(FI4/12,0) -> 13 | FJ3: =ROUNDUP(FJ4/12,0) -> 14 | FK3: =ROUNDUP(FK4/12,0) -> 14 | FL3: =ROUNDUP(FL4/12,0) -> 14 | FM3: =ROUNDUP(FM4/12,0) -> 14 | FN3: =ROUNDUP(FN4/12,0) -> 14 | FO3: =ROUNDUP(FO4/12,0) -> 14 | FP3: =ROUNDUP(FP4/12,0) -> 14 | FQ3: =ROUNDUP(FQ4/12,0) -> 14 | FR3: =ROUNDUP(FR4/12,0) -> 14 | FS3: =ROUNDUP(FS4/12,0) -> 14 | FT3: =ROUNDUP(FT4/12,0) -> 14 | FU3: =ROUNDUP(FU4/12,0) -> 14 | FV3: =ROUNDUP(FV4/12,0) -> 15 | FW3: =ROUNDUP(FW4/12,0) -> 15 | FX3: =ROUNDUP(FX4/12,0) -> 15 | FY3: =ROUNDUP(FY4/12,0) -> 15 | FZ3: =ROUNDUP(FZ4/12,0) -> 15 | GA3: =ROUNDUP(GA4/12,0) -> 15 | GB3: =ROUNDUP(GB4/12,0) -> 15 | GC3: =ROUNDUP(GC4/12,0) -> 15 | GD3: =ROUNDUP(GD4/12,0) -> 15 | GE3: =ROUNDUP(GE4/12,0) -> 15 | GF3: =ROUNDUP(GF4/12,0) -> 15 | GG3: =ROUNDUP(GG4/12,0) -> 15
C4: MÊS | J4: 1 | K4: 2 | L4: 3 | M4: 4 | N4: 5 | O4: 6 | P4: 7 | Q4: 8 | R4: 9 | S4: 10 | T4: 11 | U4: 12 | V4: 13 | W4: 14 | X4: 15 | Y4: 16 | Z4: 17 | AA4: 18 | AB4: 19 | AC4: 20 | AD4: 21 | AE4: 22 | AF4: 23 | AG4: 24 | AH4: 25 | AI4: 26 | AJ4: 27 | AK4: 28 | AL4: 29 | AM4: 30 | AN4: 31 | AO4: 32 | AP4: 33 | AQ4: 34 | AR4: 35 | AS4: 36 | AT4: 37 | AU4: 38 | AV4: 39 | AW4: 40 | AX4: 41 | AY4: 42 | AZ4: 43 | BA4: 44 | BB4: 45 | BC4: 46 | BD4: 47 | BE4: 48 | BF4: 49 | BG4: 50 | BH4: 51 | BI4: 52 | BJ4: 53 | BK4: 54 | BL4: 55 | BM4: 56 | BN4: 57 | BO4: 58 | BP4: 59 | BQ4: 60 | BR4: 61 | BS4: 62 | BT4: 63 | BU4: 64 | BV4: 65 | BW4: 66 | BX4: 67 | BY4: 68 | BZ4: 69 | CA4: 70 | CB4: 71 | CC4: 72 | CD4: 73 | CE4: 74 | CF4: 75 | CG4: 76 | CH4: 77 | CI4: 78 | CJ4: 79 | CK4: 80 | CL4: 81 | CM4: 82 | CN4: 83 | CO4: 84 | CP4: 85 | CQ4: 86 | CR4: 87 | CS4: 88 | CT4: 89 | CU4: 90 | CV4: 91 | CW4: 92 | CX4: 93 | CY4: 94 | CZ4: 95 | DA4: 96 | DB4: 97 | DC4: 98 | DD4: 99 | DE4: 100 | DF4: 101 | DG4: 102 | DH4: 103 | DI4: 104 | DJ4: 105 | DK4: 106 | DL4: 107 | DM4: 108 | DN4: 109 | DO4: 110 | DP4: 111 | DQ4: 112 | DR4: 113 | DS4: 114 | DT4: 115 | DU4: 116 | DV4: 117 | DW4: 118 | DX4: 119 | DY4: 120 | DZ4: 121 | EA4: 122 | EB4: 123 | EC4: 124 | ED4: 125 | EE4: 126 | EF4: 127 | EG4: 128 | EH4: 129 | EI4: 130 | EJ4: 131 | EK4: 132 | EL4: 133 | EM4: 134 | EN4: 135 | EO4: 136 | EP4: 137 | EQ4: 138 | ER4: 139 | ES4: 140 | ET4: 141 | EU4: 142 | EV4: 143 | EW4: 144 | EX4: 145 | EY4: 146 | EZ4: 147 | FA4: 148 | FB4: 149 | FC4: 150 | FD4: 151 | FE4: 152 | FF4: 153 | FG4: 154 | FH4: 155 | FI4: 156 | FJ4: 157 | FK4: 158 | FL4: 159 | FM4: 160 | FN4: 161 | FO4: 162 | FP4: 163 | FQ4: 164 | FR4: 165 | FS4: 166 | FT4: 167 | FU4: 168 | FV4: 169 | FW4: 170 | FX4: 171 | FY4: 172 | FZ4: 173 | GA4: 174 | GB4: 175 | GC4: 176 | GD4: 177 | GE4: 178 | GF4: 179 | GG4: 180
C6: Custos Totais
C7: Total | I7: =AVERAGE(J7:GG7) -> 16450.13854 | J7: =SUM(J8:J12) -> 14043.42383 | K7: =SUM(K8:K12) -> 17530.64137 | L7: =SUM(L8:L12) -> 13835.96706 | M7: 12957.00546 | N7: 19643.42485 | O7: 18831.8396 | P7: 17377.77848 | Q7: 12896.95218 | R7: 13426.51289 | S7: 13393.75656 | T7: 12454.74168 | U7: 16659.00284 | V7: 14188.88768 | W7: 17728.11783 | X7: 13976.00102 | Y7: 13074.03384 | Z7: 19896.20043 | AA7: 19011.02591 | AB7: 17571.25397 | AC7: 13012.40875 | AD7: 13555.82997 | AE7: 13522.21629 | AF7: 12558.62402 | AG7: 16781.31822 | AH7: 14340.08005 | AI7: 17933.37113 | AJ7: 14121.54966 | AK7: 13195.67092 | AL7: 20158.93059 | AM7: 19197.26877 | AN7: 17772.34873 | AO7: 13132.41212 | AP7: 13690.23969 | AQ7: 13655.73489 | AR7: 12666.59735 | AS7: 16908.45051 | AT7: 14486.68997 | AU7: 18132.40346 | AV7: 14262.68692 | AW7: 13313.62134 | AX7: 20413.69774 | AY7: 19377.86685 | AZ7: 17967.34857 | BA7: 13248.77835 | BB7: 13820.57562 | BC7: 13785.20672 | BD7: 12771.29815 | BE7: 17031.72958 | BF7: 14623.66619 | BG7: 18318.35741 | BH7: 14394.55007 | BI7: 13423.82126 | BJ7: 20651.72419 | BK7: 19546.59786 | BL7: 18149.53501 | BM7: 13357.49817 | BN7: 13942.34721 | BO7: 13906.17098 | BP7: 12869.11908 | BQ7: 17146.90801 | BR7: 16262.85553 | BS7: 18507.31584 | BT7: 14528.54374 | BU7: 13535.80169 | BV7: 20893.59644 | BW7: 19718.05507 | BX7: =SUM(BX8:BX12) -> 18334.66505 | BY7: 13467.97459 | BZ7: 14066.08626 | CA7: 14029.08967 | CB7: 12968.52051 | CC7: 17263.94738 | CD7: 16403.81526 | CE7: 18698.67767 | CF7: 14664.24171 | CG7: 13649.20642 | CH7: 21138.54512 | CI7: 19891.69308 | CJ7: 18522.14979 | CK7: 13579.85618 | CL7: 14191.39918 | CM7: 14153.57178 | CN7: 13069.18625 | CO7: 17382.4754 | CP7: 16521.44236 | CQ7: 18858.36397 | CR7: 16277.47802 | CS7: 13743.83961 | CT7: 21342.9482 | CU7: 20036.58934 | CV7: 18678.60077 | CW7: 13673.21836 | CX7: 14295.96944 | CY7: 14257.44876 | CZ7: 13099.10334 | DA7: 17481.38384 | DB7: 16638.07009 | DC7: 19016.69355 | DD7: 16389.75225 | DE7: 13837.6688 | DF7: 21545.61466 | DG7: 20180.25453 | DH7: 18833.72252 | DI7: 13765.78732 | DJ7: 14399.65127 | DK7: 14360.44319 | DL7: 13236.47825 | DM7: 17579.45195 | DN7: 16753.59799 | DO7: 19173.53006 | DP7: 16500.96772 | DQ7: 13930.61316 | DR7: 21746.36993 | DS7: 20322.56494 | DT7: 18987.38144 | DU7: 13857.48334 | DV7: 14502.35535 | DW7: 14462.46636 | DX7: 13318.98197 | DY7: 17676.59526 | DZ7: 16867.85676 | EA7: 19328.64363 | EB7: 16610.96143 | EC7: 14022.53646 | ED7: 21944.91979 | EE7: 20463.31199 | EF7: 19139.35233 | EG7: 13948.17203 | EH7: 14603.93116 | EI7: 14563.36874 | EJ7: =SUM(EJ8:EJ12) -> 13400.57934 | EK7: 17772.67139 | EL7: 16980.66998 | EM7: 19481.79479 | EN7: 16719.56355 | EO7: 14113.29681 | EP7: 22140.9577 | EQ7: 20602.27837 | ER7: 19289.40057 | ES7: 14037.71337 | ET7: 14704.2219 | EU7: 14662.99457 | EV7: 13481.14439 | EW7: 17867.53202 | EX7: 17091.93136 | EY7: 19632.83922 | EZ7: 16826.67175 | FA7: 14202.80867 | FB7: 22334.29894 | FC7: 20739.33316 | FD7: 19437.38477 | FE7: 14126.02299 | FF7: 16303.13305 | FG7: 16261.24995 | FH7: 13560.60119 | FI7: 17961.08776 | FJ7: 17201.55896 | FK7: 19781.66568 | FL7: 16932.20716 | FM7: 14291.00611 | FN7: 24024.80112 | FO7: 20874.37541 | FP7: 19583.19593 | FQ7: 14213.03586 | FR7: 16400.59177 | FS7: 16358.06254 | FT7: 13638.89123 | FU7: 18053.26971 | FV7: 17309.40003 | FW7: 19928.06681 | FX7: 17036.02272 | FY7: 14377.76626 | FZ7: 24212.1988 | GA7: 20902.73891 | GB7: 19726.6309 | GC7: 14298.63073 | GD7: 16496.46226 | GE7: 16453.29742 | GF7: 13715.90543 | GG7: 18143.94943
C8: Custo - Operacional | J8: =J23 -> 3175.85702 | K8: =K23 -> 4696.33006 | L8: =L23 -> 3173.719724 | M8: 3164.664341 | N8: 4718.096727 | O8: 6689.130749 | P8: 4694.755211 | Q8: 3164.04565 | R8: 3169.501378 | S8: 3169.16391 | T8: 3159.489836 | U8: 6666.745392 | V8: 3177.149053 | W8: 4698.084078 | X8: 3174.963529 | Y8: 3165.703806 | Z8: 4720.34192 | AA8: 6690.722311 | AB8: 4696.473691 | AC8: 3165.071154 | AD8: 3170.649993 | AE8: 3170.30491 | AF8: 3160.412536 | AG8: 6667.831817 | AH8: 3178.459177 | AI8: 4699.862654 | AJ8: 3176.224748 | AK8: 3166.757825 | AL8: 4722.61855 | AM8: 6692.336157 | AN8: 4698.216233 | AO8: 3166.111016 | AP8: 3171.81469 | AQ8: 3171.461886 | AR8: 3161.348155 | AS8: 6668.933453 | AT8: 3179.788206 | AU8: 4701.666897 | AV8: 3177.504167 | AW8: 3167.827054 | AX8: 4724.928032 | AY8: 6693.973291 | AZ8: 4699.983921 | BA8: 3167.165885 | BB8: 3172.996195 | BC8: 3172.635557 | BD8: 3162.297275 | BE8: 6670.050987 | BF8: 3180.996414 | BG8: 4703.307116 | BH8: 3178.667275 | BI8: 3168.799079 | BJ8: 4727.02756 | BK8: 6695.461594 | BL8: 4701.590908 | BM8: 3168.124855 | BN8: 3174.070289 | BO8: 3173.70253 | BP8: 3163.160111 | BQ8: 6671.066926 | BR8: 4682.202611 | BS8: 4704.944606 | BT8: 3179.828447 | BU8: 3169.769488 | BV8: 4729.123595 | BW8: 6696.947421 | BX8: =BX23 -> 4703.195222 | BY8: 3169.08223 | BZ8: 3175.142596 | CA8: 3174.767728 | CB8: 3164.021511 | CC8: 6672.081174 | CD8: 4683.399804 | CE8: 4706.569871 | CF8: 3180.980951 | CG8: 3170.732652 | CH8: 4731.203981 | CI8: 6698.422155 | CJ8: 4704.787558 | CK8: 3170.032457 | CL8: 3176.206898 | CM8: 3175.824974 | CN8: 3164.876481 | CO8: 6673.087851 | CP8: 4684.587425 | CQ8: 4708.182143 | CR8: 4682.124241 | CS8: 3171.688115 | CT8: 4733.267736 | CU8: 6699.8851 | CV8: 4706.367165 | CW8: 3170.975088 | CX8: 3177.262692 | CY8: 3176.873768 | CZ8: 3165.724615 | DA8: 6674.086479 | DB8: 4685.764957 | DC8: 4709.780717 | DD8: 4683.257817 | DE8: 3172.635461 | DF8: 4735.313957 | DG8: 6701.335615 | DH8: 4707.933351 | DI8: 3171.90971 | DJ8: 3178.309515 | DK8: 3177.91365 | DL8: 3166.565544 | DM8: 6675.076624 | DN8: 4686.931384 | DO8: 4711.364216 | DP8: 4684.380703 | DQ8: 3173.573873 | DR8: 4737.340882 | DS8: 6702.772451 | DT8: 4709.484768 | DU8: 3172.835519 | DV8: 3179.346466 | DW8: 3178.943727 | DX8: 3167.398542 | DY8: 6676.057431 | DZ8: 4688.084997 | EA8: 4712.93032 | EB8: 4685.491254 | EC8: 3174.501977 | ED8: 4739.345539 | EE8: 6704.193503 | EF8: 4711.019141 | EG8: 3173.751157 | EH8: 3180.372026 | EI8: 3179.962487 | EJ8: =EJ23 -> 3168.22239 | EK8: 6677.027463 | EL8: 4689.224015 | EM8: 4714.47661 | EN8: 4686.587755 | EO8: 3175.418338 | EP8: 4741.324835 | EQ8: 6705.596576 | ER8: 4712.534102 | ES8: 3174.65521 | ET8: 3181.38461 | EU8: 3180.968359 | EV8: 3169.035814 | EW8: 6677.985223 | EX8: 4690.347365 | EY8: 4716.001629 | EZ8: 4687.669172 | FA8: 3176.322094 | FB8: 4743.276904 | FC8: 6706.980349 | FD8: 4714.028224 | FE8: 3175.546828 | FF8: 4682.383266 | FG8: 4681.960394 | FH8: 3169.838049 | FI8: 6678.929808 | FJ8: 4691.454219 | FK8: 4717.504255 | FL8: 4688.73471 | FM8: 3177.212579 | FN8: 6245.200309 | FO8: 6708.343803 | FP8: 4715.500406 | FQ8: 3176.425353 | FR8: 4683.367258 | FS8: 4682.937862 | FT8: 3170.628504 | FU8: 6679.860522 | FV8: 4692.543036 | FW8: 4718.982393 | FX8: 4689.782884 | FY8: 3178.088553 | FZ8: 6247.092368 | GA8: 6709.685037 | GB8: 4716.948596 | GC8: 3177.289561 | GD8: 4684.335214 | GE8: 4683.8994 | GF8: 3171.406078 | GG8: 6680.77607
C9: Custo - Pessoal | J9: =J39 -> 5367.166 | K9: =K39 -> 5367.166 | L9: =L39 -> 5367.166 | M9: 5367.166 | N9: 5367.166 | O9: 5367.166 | P9: 5367.166 | Q9: 5367.166 | R9: 5367.166 | S9: 5367.166 | T9: 5367.166 | U9: 5367.166 | V9: 5367.166 | W9: 5367.166 | X9: 5367.166 | Y9: 5367.166 | Z9: 5367.166 | AA9: 5367.166 | AB9: 5367.166 | AC9: 5367.166 | AD9: 5367.166 | AE9: 5367.166 | AF9: 5367.166 | AG9: 5367.166 | AH9: 5367.166 | AI9: 5367.166 | AJ9: 5367.166 | AK9: 5367.166 | AL9: 5367.166 | AM9: 5367.166 | AN9: 5367.166 | AO9: 5367.166 | AP9: 5367.166 | AQ9: 5367.166 | AR9: 5367.166 | AS9: 5367.166 | AT9: 5367.166 | AU9: 5367.166 | AV9: 5367.166 | AW9: 5367.166 | AX9: 5367.166 | AY9: 5367.166 | AZ9: 5367.166 | BA9: 5367.166 | BB9: 5367.166 | BC9: 5367.166 | BD9: 5367.166 | BE9: 5367.166 | BF9: 5367.166 | BG9: 5367.166 | BH9: 5367.166 | BI9: 5367.166 | BJ9: 5367.166 | BK9: 5367.166 | BL9: 5367.166 | BM9: 5367.166 | BN9: 5367.166 | BO9: 5367.166 | BP9: 5367.166 | BQ9: 5367.166 | BR9: 5367.166 | BS9: 5367.166 | BT9: 5367.166 | BU9: 5367.166 | BV9: 5367.166 | BW9: 5367.166 | BX9: =BX39 -> 5367.166 | BY9: 5367.166 | BZ9: 5367.166 | CA9: 5367.166 | CB9: 5367.166 | CC9: 5367.166 | CD9: 5367.166 | CE9: 5367.166 | CF9: 5367.166 | CG9: 5367.166 | CH9: 5367.166 | CI9: 5367.166 | CJ9: 5367.166 | CK9: 5367.166 | CL9: 5367.166 | CM9: 5367.166 | CN9: 5367.166 | CO9: 5367.166 | CP9: 5367.166 | CQ9: 5367.166 | CR9: 5367.166 | CS9: 5367.166 | CT9: 5367.166 | CU9: 5367.166 | CV9: 5367.166 | CW9: 5367.166 | CX9: 5367.166 | CY9: 5367.166 | CZ9: 5367.166 | DA9: 5367.166 | DB9: 5367.166 | DC9: 5367.166 | DD9: 5367.166 | DE9: 5367.166 | DF9: 5367.166 | DG9: 5367.166 | DH9: 5367.166 | DI9: 5367.166 | DJ9: 5367.166 | DK9: 5367.166 | DL9: 5367.166 | DM9: 5367.166 | DN9: 5367.166 | DO9: 5367.166 | DP9: 5367.166 | DQ9: 5367.166 | DR9: 5367.166 | DS9: 5367.166 | DT9: 5367.166 | DU9: 5367.166 | DV9: 5367.166 | DW9: 5367.166 | DX9: 5367.166 | DY9: 5367.166 | DZ9: 5367.166 | EA9: 5367.166 | EB9: 5367.166 | EC9: 5367.166 | ED9: 5367.166 | EE9: 5367.166 | EF9: 5367.166 | EG9: 5367.166 | EH9: 5367.166 | EI9: 5367.166 | EJ9: =EJ39 -> 5367.166 | EK9: 5367.166 | EL9: 5367.166 | EM9: 5367.166 | EN9: 5367.166 | EO9: 5367.166 | EP9: 5367.166 | EQ9: 5367.166 | ER9: 5367.166 | ES9: 5367.166 | ET9: 5367.166 | EU9: 5367.166 | EV9: 5367.166 | EW9: 5367.166 | EX9: 5367.166 | EY9: 5367.166 | EZ9: 5367.166 | FA9: 5367.166 | FB9: 5367.166 | FC9: 5367.166 | FD9: 5367.166 | FE9: 5367.166 | FF9: 5367.166 | FG9: 5367.166 | FH9: 5367.166 | FI9: 5367.166 | FJ9: 5367.166 | FK9: 5367.166 | FL9: 5367.166 | FM9: 5367.166 | FN9: 5367.166 | FO9: 5367.166 | FP9: 5367.166 | FQ9: 5367.166 | FR9: 5367.166 | FS9: 5367.166 | FT9: 5367.166 | FU9: 5367.166 | FV9: 5367.166 | FW9: 5367.166 | FX9: 5367.166 | FY9: 5367.166 | FZ9: 5367.166 | GA9: 5367.166 | GB9: 5367.166 | GC9: 5367.166 | GD9: 5367.166 | GE9: 5367.166 | GF9: 5367.166 | GG9: 5367.166
C10: Custo - Seguros | J10: =J44 -> 128.9636293 | K10: =K44 -> 175.0763613 | L10: =L44 -> 124.1496628 | M10: 103.7536468 | N10: 224.1028097 | O10: 158.8608951 | P10: 171.529228 | Q10: 102.3601302 | R10: 114.6484131 | S10: 113.8883131 | T10: 92.09878049 | U10: 108.44093 | V10: 137.6030491 | W10: 186.8049253 | X10: 132.4665895 | Y10: 110.7042213 | Z10: 239.1157111 | AA10: 169.5031666 | AB10: 183.0201656 | AC10: 109.2173514 | AD10: 122.3288403 | AE10: 121.5178204 | AF10: 98.26858225 | AG10: 115.7055109 | AH10: 147.4182416 | AI10: 200.1296757 | AJ10: 141.9153996 | AK10: 118.6007268 | AL10: 256.1717774 | AM10: 181.5937868 | AN10: 196.07495 | AO10: 117.0077988 | AP10: 131.0545272 | AQ10: 130.1856574 | AR10: 105.2780566 | AS10: 123.9587572 | AT10: 155.4424267 | AU10: 211.0230193 | AV10: 149.6400571 | AW10: 125.0563334 | AX10: 270.1155725 | AY10: 191.4781955 | AZ10: 206.7475891 | BA10: 123.3767002 | BB10: 138.1880119 | BC10: 137.2718483 | BD10: 111.0084914 | BE10: 130.7060091 | BF10: 163.7927299 | BG10: 222.3590892 | BH10: 157.6786595 | BI10: 131.7743083 | BJ10: 284.62607 | BK10: 201.7643255 | BL10: 217.8539846 | BM10: 130.0044458 | BN10: 145.6114151 | BO10: 144.6460356 | BP10: 116.9718219 | BQ10: 137.7274822 | BR10: 172.8265772 | BS10: 234.6231137 | BT10: 166.3752904 | BU10: 139.042207 | BV10: 300.3243763 | BW10: 212.8924635 | BX10: =BX44 -> 229.8695339 | BY10: 137.1747293 | BZ10: 153.6424876 | CA10: 152.6238634 | CB10: 123.4233022 | CC10: 145.3237231 | CD10: 182.5956944 | CE10: 247.885314 | CF10: 175.7797451 | CG10: 146.9016441 | CH10: 317.3003766 | CI10: 224.9263269 | CJ10: 242.8630356 | CK10: 144.9286062 | CL10: 162.3272136 | CM10: 161.2510111 | CN10: 130.3998721 | CO10: 153.5382263 | CP10: 185.9422256 | CQ10: 252.4284438 | CR10: 179.0013566 | CS10: 149.5939909 | CT10: 323.1157142 | CU10: 229.0486747 | CV10: 247.3141193 | CW10: 147.584792 | CX10: 165.3022732 | CY10: 164.2063466 | CZ10: 117.3367072 | DA10: 156.3522054 | DB10: 189.2603243 | DC10: 256.9329746 | DD10: 182.1955971 | DE10: 152.2634633 | DF10: 328.8816441 | DG10: 233.1359987 | DH10: 251.7273861 | DI10: 150.2184106 | DJ10: 168.2520565 | DK10: 167.1365732 | DL10: 135.1593868 | DM10: 159.1422766 | DN10: 192.5471327 | DO10: 261.3950269 | DP10: 185.3597152 | DQ10: 154.907762 | DR10: 334.5932002 | DS10: 237.1847784 | DT10: 256.0990351 | DU10: 152.8271937 | DV10: 171.1740227 | DW10: 170.0391673 | DX10: 137.5066459 | DY10: 161.9060369 | DZ10: 195.7978336 | EA10: 265.808061 | EB10: 188.4890736 | EC10: 157.5230115 | ED10: 340.2420115 | EE10: 241.1890799 | EF10: 260.4226588 | EG10: 155.4073178 | EH10: 174.0638894 | EI10: 172.9098747 | EJ10: =EJ44 -> 139.8281189 | EK10: 164.6394357 | EL10: 199.0074084 | EM10: 270.1652636 | EN10: 191.5788411 | EO10: 160.1051743 | EP10: 345.819357 | EQ10: 245.1427211 | ER10: 264.6915824 | ES10: 157.9547996 | ET10: 176.9171951 | EU10: 175.7442634 | EV10: 142.1202219 | EW10: 167.338253 | EX10: 202.1728327 | EY10: 274.4625292 | EZ10: 194.6261061 | FA10: 162.6518172 | FB10: 351.3199813 | FC10: 249.0419766 | FD10: 268.9017833 | FE10: 160.4672385 | FF10: 179.731251 | FG10: 178.5396626 | FH10: 144.380795 | FI10: 169.9999457 | FJ10: 205.2917753 | FK10: 278.696693 | FL10: 197.6286246 | FM10: 165.1610648 | FN10: 356.7398335 | FO10: 252.8839747 | FP10: 273.0501609 | FQ10: 162.9427843 | FR10: 182.5039849 | FS10: 181.2940138 | FT10: 146.6081735 | FU10: 172.6225537 | FV10: 208.3598904 | FW10: 282.8618552 | FX10: 200.5822128 | FY10: 167.6294207 | FZ10: 362.0713616 | GA10: 226.8124935 | GB10: 277.1309348 | GC10: 165.3779877 | GD10: 185.2315332 | GE10: 184.0034789 | GF10: 148.7992538 | GG10: 175.2024226
C11: Custo - Comercial | J11: =J48 -> 322.4090734 | K11: =K48 -> 437.6909031 | L11: =L48 -> 310.3741571 | M11: 259.384117 | N11: 560.2570244 | O11: 397.1522377 | P11: 428.8230701 | Q11: 255.9003254 | R11: 286.6210328 | S11: 284.7207829 | T11: 230.2469512 | U11: 271.102325 | V11: 344.0076229 | W11: 467.0123131 | X11: 331.1664739 | Y11: 276.7605532 | Z11: 597.7892778 | AA11: 423.7579166 | AB11: 457.5504139 | AC11: 273.0433785 | AD11: 305.8221009 | AE11: 303.794551 | AF11: 245.6714556 | AG11: 289.2637772 | AH11: 368.545604 | AI11: 500.3241893 | AJ11: 354.7884989 | AK11: 296.501817 | AL11: 640.4294435 | AM11: 453.984467 | AN11: 490.1873751 | AO11: 292.5194971 | AP11: 327.6363179 | AQ11: 325.4641434 | AR11: 263.1951416 | AS11: 309.896893 | AT11: 388.6060667 | AU11: 527.5575483 | AV11: 374.1001428 | AW11: 312.6408336 | AX11: 675.2889312 | AY11: 478.6954888 | AZ11: 516.8689728 | BA11: 308.4417504 | BB11: 345.4700298 | BC11: 343.1796208 | BD11: 277.5212284 | BE11: 326.7650227 | BF11: 409.4818249 | BG11: 555.8977229 | BH11: 394.1966487 | BI11: 329.4357707 | BJ11: 711.565175 | BK11: 504.4108137 | BL11: 544.6349616 | BM11: 325.0111144 | BN11: 364.0285378 | BO11: 361.615089 | BP11: 292.4295547 | BQ11: 344.3187054 | BR11: 432.066443 | BS11: 586.5577842 | BT11: 415.9382261 | BU11: 347.6055175 | BV11: 750.8109408 | BW11: 532.2311587 | BX11: =BX48 -> 574.6738348 | BY11: 342.9368232 | BZ11: 384.106219 | CA11: 381.5596584 | CB11: 308.5582555 | CC11: 363.3093077 | CD11: 456.489236 | CE11: 619.713285 | CF11: 439.4493627 | CG11: 367.2541103 | CH11: 793.2509415 | CI11: 562.3158172 | CJ11: 607.1575889 | CK11: 362.3215154 | CL11: 405.818034 | CM11: 403.1275277 | CN11: 325.9996803 | CO11: 383.8455658 | CP11: 464.8555639 | CQ11: 631.0711094 | CR11: 447.5033916 | CS11: 373.9849773 | CT11: 807.7892855 | CU11: 572.6216868 | CV11: 618.2852982 | CW11: 368.96198 | CX11: 413.2556831 | CY11: 410.5158664 | CZ11: 293.3417681 | DA11: 390.8805135 | DB11: 473.1508107 | DC11: 642.3324366 | DD11: 455.4889926 | DE11: 380.6586581 | DF11: 822.2041102 | DG11: 582.8399967 | DH11: 629.3184653 | DI11: 375.5460266 | DJ11: 420.6301412 | DK11: 417.841433 | DL11: 337.898467 | DM11: 397.8556915 | DN11: 481.3678318 | DO11: 653.4875673 | DP11: 463.3992879 | DQ11: 387.2694049 | DR11: 836.4830004 | DS11: 592.961946 | DT11: 640.2475876 | DU11: 382.0679844 | DV11: 427.9350567 | DW11: 425.0979182 | DX11: 343.7666146 | DY11: 404.7650923 | DZ11: 489.494584 | EA11: 664.5201524 | EB11: 471.222684 | EC11: 393.8075288 | ED11: 850.6050286 | EE11: 602.9726998 | EF11: 651.0566471 | EG11: 388.5182946 | EH11: 435.1597235 | EI11: 432.2746867 | EJ11: =EJ48 -> 349.5702972 | EK11: 411.5985893 | EL11: 497.5185209 | EM11: 675.413159 | EN11: 478.9471027 | EO11: 400.2629358 | EP11: 864.5483924 | EQ11: 612.8568028 | ER11: 661.7289561 | ES11: 394.8869989 | ET11: 442.2929877 | EU11: 439.3606585 | EV11: 355.3005547 | EW11: 418.3456325 | EX11: 505.4320816 | EY11: 686.156323 | EZ11: 486.5652652 | FA11: 406.6295431 | FB11: 878.2999533 | FC11: 622.6049414 | FD11: 672.2544583 | FE11: 401.1680962 | FF11: 449.3281276 | FG11: 446.3491566 | FH11: 360.9519876 | FI11: 424.9998643 | FJ11: 513.2294383 | FK11: 696.7417325 | FL11: 494.0715614 | FM11: 412.902662 | FN11: 891.8495838 | FO11: 632.2099367 | FP11: 682.6254022 | FQ11: 407.3569608 | FR11: 456.2599623 | FS11: 453.2350344 | FT11: 366.5204338 | FU11: 431.5563842 | FV11: 520.899726 | FW11: 707.1546379 | FX11: 501.4555319 | FY11: 419.0735517 | FZ11: 905.1784041 | GA11: 567.0312338 | GB11: 692.827337 | GC11: 413.4449692 | GD11: 463.0788331 | GE11: 460.0086971 | GF11: 371.9981344 | GG11: 438.0060565
C12: Custo UGC's | J12: =J54 -> 5049.028111 | K12: =K54 -> 6854.378044 | L12: =L54 -> 4860.557513 | M12: 4062.03735 | N12: 8773.802286 | O12: 6219.529716 | P12: 6715.504972 | Q12: 4007.480072 | R12: 4488.576071 | S12: 4458.817555 | T12: 3605.740114 | U12: 4245.548195 | V12: 5162.961956 | W12: 7009.050514 | X12: 4970.238425 | Y12: 4153.699255 | Z12: 8971.787524 | AA12: 6359.876515 | AB12: 6867.043702 | AC12: 4097.910865 | AD12: 4589.863035 | AE12: 4559.433004 | AF12: 3687.105444 | AG12: 4341.351114 | AH12: 5278.491028 | AI12: 7165.888606 | AJ12: 5081.455017 | AK12: 4246.64455 | AL12: 9172.544822 | AM12: 6502.188359 | AN12: 7020.704177 | AO12: 4189.60781 | AP12: 4692.568154 | AQ12: 4661.457204 | AR12: 3769.609997 | AS12: 4438.495403 | AT12: 5395.687274 | AU12: 7324.989992 | AV12: 5194.27655 | AW12: 4340.931117 | AX12: 9376.199201 | AY12: 6646.553871 | AZ12: 7176.582091 | BA12: 4282.628013 | BB12: 4796.755386 | BC12: 4764.953692 | BD12: 3853.305155 | BE12: 4537.041558 | BF12: 5502.22922 | BG12: 7469.627487 | BH12: 5296.841489 | BI12: 4426.646101 | BJ12: 9561.339381 | BK12: 6777.795129 | BL12: 7318.289159 | BM12: 4367.191758 | BN12: 4891.470967 | BO12: 4859.041325 | BP12: 3929.391594 | BQ12: 4626.628892 | BR12: 5608.593903 | BS12: 7614.024336 | BT12: 5399.235781 | BU12: 4512.218474 | BV12: 9746.171527 | BW12: 6908.81803 | BX12: =BX54 -> 7459.760457 | BY12: 4451.614807 | BZ12: 4986.028961 | CA12: 4952.972416 | CB12: 4005.351442 | CC12: 4716.067172 | CD12: 5714.164526 | CE12: 7757.343198 | CF12: 5500.865654 | CG12: 4597.152011 | CH12: 9929.623818 | CI12: 7038.862786 | CJ12: 7600.175607 | CK12: 4535.4076 | CL12: 5079.881037 | CM12: 5046.202268 | CN12: 4080.744215 | CO12: 4804.837755 | CP12: 5818.891145 | CQ12: 7899.51627 | CR12: 5601.683028 | CS12: 4681.406531 | CT12: 10111.60947 | CU12: 7167.867875 | CV12: 7739.468184 | CW12: 4618.530497 | CX12: 5172.982796 | CY12: 5138.686778 | CZ12: 4155.534246 | DA12: 4892.898645 | DB12: 5922.727997 | DC12: 8040.481426 | DD12: 5701.643847 | DE12: 4764.945215 | DF12: 10292.04895 | DG12: 7295.776923 | DH12: 7877.577316 | DI12: 4700.947172 | DJ12: 5265.293553 | DK12: 5230.385529 | DL12: 4229.688854 | DM12: 4980.211361 | DN12: 6025.585647 | DO12: 8180.117253 | DP12: 5800.662018 | DQ12: 4847.696115 | DR12: 10470.78685 | DS12: 7422.479765 | DT12: 8014.384053 | DU12: 4782.586643 | DV12: 5356.733802 | DW12: 5321.219545 | DX12: 4303.14417 | DY12: 5066.700701 | DZ12: 6127.313346 | EA12: 8318.2191 | EB12: 5898.592415 | EC12: 4929.537947 | ED12: 10647.56121 | EE12: 7547.790703 | EF12: 8149.687888 | EG12: 4863.329257 | EH12: 5447.169526 | EI12: 5411.055695 | EJ12: =EJ54 -> 4375.792537 | EK12: 5152.239906 | EL12: 6227.754039 | EM12: 8454.573755 | EN12: 5995.283849 | EO12: 5010.34436 | EP12: 10822.09911 | EQ12: 7671.516272 | ER12: 8283.279931 | ES12: 4943.050357 | ET12: 5536.461106 | EU12: 5499.755286 | EV12: 4447.521794 | EW12: 5236.696913 | EX12: 6326.813085 | EY12: 8589.052734 | EZ12: 6090.645209 | FA12: 5090.039211 | FB12: 10994.2361 | FC12: 7793.53989 | FD12: 8415.034299 | FE12: 5021.674826 | FF12: 5624.524402 | FG12: 5587.234738 | FH12: 4518.264354 | FI12: 5319.992142 | FJ12: 6424.41753 | FK12: 8721.557001 | FL12: 6184.606267 | FM12: 5168.563809 | FN12: 11163.84539 | FO12: 7913.771692 | FP12: 8544.853964 | FQ12: 5099.144759 | FR12: 5711.294563 | FS12: 5673.429626 | FT12: 4587.968118 | FU12: 5402.064249 | FV12: 6520.431374 | FW12: 8851.901924 | FX12: 6277.036097 | FY12: 5245.808738 | FZ12: 11330.69067 | GA12: 8032.044148 | GB12: 8672.558036 | GC12: 5175.35221 | GD12: 5796.650681 | GE12: 5758.219848 | GF12: 4656.535961 | GG12: 5482.798876
C14: Ano | J14: 1 | K14: 2 | L14: 3 | M14: 4 | N14: 5 | O14: 6 | P14: 7 | Q14: 8 | R14: 9 | S14: 10 | T14: 11 | U14: 12 | V14: 13 | W14: 14 | X14: 15 | Y14: 16 | Z14: 17 | AA14: 18 | AB14: 19 | AC14: 20 | AD14: 21 | AE14: 22 | AF14: 23 | AG14: 24 | AH14: 25 | AI14: 26 | AJ14: 27 | AK14: 28 | AL14: 29 | AM14: 30
C15: Total | J15: =SUM(J16:J20) -> 183.0510468 | K15: =SUM(K16:K20) -> 184.8759179 | L15: 186.7726544 | M15: 188.6119033 | N15: 190.3302954 | O15: 193.5764518 | P15: 195.3448178 | Q15: 198.266386 | R15: 199.7835884 | S15: 201.2329075 | T15: 202.6663051 | U15: 204.081568 | V15: 208.4773628 | W15: 211.3526615 | X15: 212.6010697 | Y15: 0 | Z15: 0 | AA15: 0 | AB15: 0 | AC15: 0 | AD15: 0 | AE15: 0 | AF15: 0 | AG15: 0 | AH15: 0 | AI15: 0 | AJ15: 0 | AK15: 0 | AL15: 0 | AM15: 0
C16: Custo - Operacional | J16: =SUMIF($J$3:$GG$3, J14,$J$8:$GG$8)/1000 -> 49.6415 | K16: =SUMIF($J$3:$GG$3, K14,$J$8:$GG$8)/1000 -> 49.6577088 | L16: =SUMIF($J$3:$GG$3, L14,$J$8:$GG$8)/1000 -> 49.67414454 | M16: =SUMIF($J$3:$GG$3, M14,$J$8:$GG$8)/1000 -> 49.69081747 | N16: =SUMIF($J$3:$GG$3, N14,$J$8:$GG$8)/1000 -> 49.70597466 | O16: =SUMIF($J$3:$GG$3, O14,$J$8:$GG$8)/1000 -> 51.22110663 | P16: =SUMIF($J$3:$GG$3, P14,$J$8:$GG$8)/1000 -> 51.23612563 | Q16: =SUMIF($J$3:$GG$3, Q14,$J$8:$GG$8)/1000 -> 52.75102457 | R16: =SUMIF($J$3:$GG$3, R14,$J$8:$GG$8)/1000 -> 52.76579692 | S16: =SUMIF($J$3:$GG$3, S14,$J$8:$GG$8)/1000 -> 52.78042996 | T16: =SUMIF($J$3:$GG$3, T14,$J$8:$GG$8)/1000 -> 52.79490225 | U16: =SUMIF($J$3:$GG$3, U14,$J$8:$GG$8)/1000 -> 52.80919145 | V16: =SUMIF($J$3:$GG$3, V14,$J$8:$GG$8)/1000 -> 55.82328408 | W16: =SUMIF($J$3:$GG$3, W14,$J$8:$GG$8)/1000 -> 57.33716978 | X16: =SUMIF($J$3:$GG$3, X14,$J$8:$GG$8)/1000 -> 57.35082919 | Y16: =SUMIF($J$3:$GG$3, Y14,$J$8:$GG$8)/1000 -> 0 | Z16: =SUMIF($J$3:$GG$3, Z14,$J$8:$GG$8)/1000 -> 0 | AA16: =SUMIF($J$3:$GG$3, AA14,$J$8:$GG$8)/1000 -> 0 | AB16: =SUMIF($J$3:$GG$3, AB14,$J$8:$GG$8)/1000 -> 0 | AC16: =SUMIF($J$3:$GG$3, AC14,$J$8:$GG$8)/1000 -> 0 | AD16: =SUMIF($J$3:$GG$3, AD14,$J$8:$GG$8)/1000 -> 0 | AE16: =SUMIF($J$3:$GG$3, AE14,$J$8:$GG$8)/1000 -> 0 | AF16: =SUMIF($J$3:$GG$3, AF14,$J$8:$GG$8)/1000 -> 0 | AG16: =SUMIF($J$3:$GG$3, AG14,$J$8:$GG$8)/1000 -> 0 | AH16: =SUMIF($J$3:$GG$3, AH14,$J$8:$GG$8)/1000 -> 0 | AI16: =SUMIF($J$3:$GG$3, AI14,$J$8:$GG$8)/1000 -> 0 | AJ16: =SUMIF($J$3:$GG$3, AJ14,$J$8:$GG$8)/1000 -> 0 | AK16: =SUMIF($J$3:$GG$3, AK14,$J$8:$GG$8)/1000 -> 0 | AL16: =SUMIF($J$3:$GG$3, AL14,$J$8:$GG$8)/1000 -> 0 | AM16: =SUMIF($J$3:$GG$3, AM14,$J$8:$GG$8)/1000 -> 0 | AN16: 0
C17: Custo - Pessoal | J17: =SUMIF($J$3:$GG$3, J14,$J$9:$GG$9)/1000 -> 64.405992 | K17: =SUMIF($J$3:$GG$3, K14,$J$9:$GG$9)/1000 -> 64.405992 | L17: =SUMIF($J$3:$GG$3, L14,$J$9:$GG$9)/1000 -> 64.405992 | M17: =SUMIF($J$3:$GG$3, M14,$J$9:$GG$9)/1000 -> 64.405992 | N17: =SUMIF($J$3:$GG$3, N14,$J$9:$GG$9)/1000 -> 64.405992 | O17: =SUMIF($J$3:$GG$3, O14,$J$9:$GG$9)/1000 -> 64.405992 | P17: =SUMIF($J$3:$GG$3, P14,$J$9:$GG$9)/1000 -> 64.405992 | Q17: =SUMIF($J$3:$GG$3, Q14,$J$9:$GG$9)/1000 -> 64.405992 | R17: =SUMIF($J$3:$GG$3, R14,$J$9:$GG$9)/1000 -> 64.405992 | S17: =SUMIF($J$3:$GG$3, S14,$J$9:$GG$9)/1000 -> 64.405992 | T17: =SUMIF($J$3:$GG$3, T14,$J$9:$GG$9)/1000 -> 64.405992 | U17: =SUMIF($J$3:$GG$3, U14,$J$9:$GG$9)/1000 -> 64.405992 | V17: =SUMIF($J$3:$GG$3, V14,$J$9:$GG$9)/1000 -> 64.405992 | W17: =SUMIF($J$3:$GG$3, W14,$J$9:$GG$9)/1000 -> 64.405992 | X17: =SUMIF($J$3:$GG$3, X14,$J$9:$GG$9)/1000 -> 64.405992 | Y17: =SUMIF($J$3:$GG$3, Y14,$J$9:$GG$9)/1000 -> 0 | Z17: =SUMIF($J$3:$GG$3, Z14,$J$9:$GG$9)/1000 -> 0 | AA17: =SUMIF($J$3:$GG$3, AA14,$J$9:$GG$9)/1000 -> 0 | AB17: =SUMIF($J$3:$GG$3, AB14,$J$9:$GG$9)/1000 -> 0 | AC17: =SUMIF($J$3:$GG$3, AC14,$J$9:$GG$9)/1000 -> 0 | AD17: =SUMIF($J$3:$GG$3, AD14,$J$9:$GG$9)/1000 -> 0 | AE17: =SUMIF($J$3:$GG$3, AE14,$J$9:$GG$9)/1000 -> 0 | AF17: =SUMIF($J$3:$GG$3, AF14,$J$9:$GG$9)/1000 -> 0 | AG17: =SUMIF($J$3:$GG$3, AG14,$J$9:$GG$9)/1000 -> 0 | AH17: =SUMIF($J$3:$GG$3, AH14,$J$9:$GG$9)/1000 -> 0 | AI17: =SUMIF($J$3:$GG$3, AI14,$J$9:$GG$9)/1000 -> 0 | AJ17: =SUMIF($J$3:$GG$3, AJ14,$J$9:$GG$9)/1000 -> 0 | AK17: =SUMIF($J$3:$GG$3, AK14,$J$9:$GG$9)/1000 -> 0 | AL17: =SUMIF($J$3:$GG$3, AL14,$J$9:$GG$9)/1000 -> 0 | AM17: =SUMIF($J$3:$GG$3, AM14,$J$9:$GG$9)/1000 -> 0 | AN17: 0
C18: Custo - Seguros | J18: =SUMIF($J$3:$GG$3, J14,$J$10:$GG$10)/1000 -> 1.6178728 | K18: =SUMIF($J$3:$GG$3, K14,$J$10:$GG$10)/1000 -> 1.726255934 | L18: =SUMIF($J$3:$GG$3, L14,$J$10:$GG$10)/1000 -> 1.849389355 | M18: =SUMIF($J$3:$GG$3, M14,$J$10:$GG$10)/1000 -> 1.950054255 | N18: =SUMIF($J$3:$GG$3, N14,$J$10:$GG$10)/1000 -> 2.054810368 | O18: =SUMIF($J$3:$GG$3, O14,$J$10:$GG$10)/1000 -> 2.168141668 | P18: =SUMIF($J$3:$GG$3, P14,$J$10:$GG$10)/1000 -> 2.290697066 | Q18: =SUMIF($J$3:$GG$3, Q14,$J$10:$GG$10)/1000 -> 2.31722685 | R18: =SUMIF($J$3:$GG$3, R14,$J$10:$GG$10)/1000 -> 2.374306092 | S18: =SUMIF($J$3:$GG$3, S14,$J$10:$GG$10)/1000 -> 2.415539717 | T18: =SUMIF($J$3:$GG$3, T14,$J$10:$GG$10)/1000 -> 2.456320366 | U18: =SUMIF($J$3:$GG$3, U14,$J$10:$GG$10)/1000 -> 2.496585081 | V18: =SUMIF($J$3:$GG$3, V14,$J$10:$GG$10)/1000 -> 2.536295919 | W18: =SUMIF($J$3:$GG$3, W14,$J$10:$GG$10)/1000 -> 2.575423637 | X18: =SUMIF($J$3:$GG$3, X14,$J$10:$GG$10)/1000 -> 2.584062845 | Y18: =SUMIF($J$3:$GG$3, Y14,$J$10:$GG$10)/1000 -> 0 | Z18: =SUMIF($J$3:$GG$3, Z14,$J$10:$GG$10)/1000 -> 0 | AA18: =SUMIF($J$3:$GG$3, AA14,$J$10:$GG$10)/1000 -> 0 | AB18: =SUMIF($J$3:$GG$3, AB14,$J$10:$GG$10)/1000 -> 0 | AC18: =SUMIF($J$3:$GG$3, AC14,$J$10:$GG$10)/1000 -> 0 | AD18: =SUMIF($J$3:$GG$3, AD14,$J$10:$GG$10)/1000 -> 0 | AE18: =SUMIF($J$3:$GG$3, AE14,$J$10:$GG$10)/1000 -> 0 | AF18: =SUMIF($J$3:$GG$3, AF14,$J$10:$GG$10)/1000 -> 0 | AG18: =SUMIF($J$3:$GG$3, AG14,$J$10:$GG$10)/1000 -> 0 | AH18: =SUMIF($J$3:$GG$3, AH14,$J$10:$GG$10)/1000 -> 0 | AI18: =SUMIF($J$3:$GG$3, AI14,$J$10:$GG$10)/1000 -> 0 | AJ18: =SUMIF($J$3:$GG$3, AJ14,$J$10:$GG$10)/1000 -> 0 | AK18: =SUMIF($J$3:$GG$3, AK14,$J$10:$GG$10)/1000 -> 0 | AL18: =SUMIF($J$3:$GG$3, AL14,$J$10:$GG$10)/1000 -> 0 | AM18: =SUMIF($J$3:$GG$3, AM14,$J$10:$GG$10)/1000 -> 0 | AN18: 0
C19: Custo - Comercial | J19: =SUMIF($J$3:$GG$3, J14,$J$11:$GG$11)/1000 -> 4.044682 | K19: =SUMIF($J$3:$GG$3, K14,$J$11:$GG$11)/1000 -> 4.315639834 | L19: =SUMIF($J$3:$GG$3, L14,$J$11:$GG$11)/1000 -> 4.623473388 | M19: =SUMIF($J$3:$GG$3, M14,$J$11:$GG$11)/1000 -> 4.875135636 | N19: =SUMIF($J$3:$GG$3, N14,$J$11:$GG$11)/1000 -> 5.137025919 | O19: =SUMIF($J$3:$GG$3, O14,$J$11:$GG$11)/1000 -> 5.420354169 | P19: =SUMIF($J$3:$GG$3, P14,$J$11:$GG$11)/1000 -> 5.726742665 | Q19: =SUMIF($J$3:$GG$3, Q14,$J$11:$GG$11)/1000 -> 5.793067124 | R19: =SUMIF($J$3:$GG$3, R14,$J$11:$GG$11)/1000 -> 5.93576523 | S19: =SUMIF($J$3:$GG$3, S14,$J$11:$GG$11)/1000 -> 6.038849292 | T19: =SUMIF($J$3:$GG$3, T14,$J$11:$GG$11)/1000 -> 6.140800916 | U19: =SUMIF($J$3:$GG$3, U14,$J$11:$GG$11)/1000 -> 6.241462702 | V19: =SUMIF($J$3:$GG$3, V14,$J$11:$GG$11)/1000 -> 6.340739798 | W19: =SUMIF($J$3:$GG$3, W14,$J$11:$GG$11)/1000 -> 6.438559093 | X19: =SUMIF($J$3:$GG$3, X14,$J$11:$GG$11)/1000 -> 6.460157113 | Y19: =SUMIF($J$3:$GG$3, Y14,$J$11:$GG$11)/1000 -> 0 | Z19: =SUMIF($J$3:$GG$3, Z14,$J$11:$GG$11)/1000 -> 0 | AA19: =SUMIF($J$3:$GG$3, AA14,$J$11:$GG$11)/1000 -> 0 | AB19: =SUMIF($J$3:$GG$3, AB14,$J$11:$GG$11)/1000 -> 0 | AC19: =SUMIF($J$3:$GG$3, AC14,$J$11:$GG$11)/1000 -> 0 | AD19: =SUMIF($J$3:$GG$3, AD14,$J$11:$GG$11)/1000 -> 0 | AE19: =SUMIF($J$3:$GG$3, AE14,$J$11:$GG$11)/1000 -> 0 | AF19: =SUMIF($J$3:$GG$3, AF14,$J$11:$GG$11)/1000 -> 0 | AG19: =SUMIF($J$3:$GG$3, AG14,$J$11:$GG$11)/1000 -> 0 | AH19: =SUMIF($J$3:$GG$3, AH14,$J$11:$GG$11)/1000 -> 0 | AI19: =SUMIF($J$3:$GG$3, AI14,$J$11:$GG$11)/1000 -> 0 | AJ19: =SUMIF($J$3:$GG$3, AJ14,$J$11:$GG$11)/1000 -> 0 | AK19: =SUMIF($J$3:$GG$3, AK14,$J$11:$GG$11)/1000 -> 0 | AL19: =SUMIF($J$3:$GG$3, AL14,$J$11:$GG$11)/1000 -> 0 | AM19: =SUMIF($J$3:$GG$3, AM14,$J$11:$GG$11)/1000 -> 0 | AN19: 0
C20: Custo UGC's | J20: =SUMIF($J$3:$GG$3, J14,$J$12:$GG$12)/1000 -> 63.341 | K20: =SUMIF($J$3:$GG$3, K14,$J$12:$GG$12)/1000 -> 64.77032135 | L20: =SUMIF($J$3:$GG$3, L14,$J$12:$GG$12)/1000 -> 66.21965513 | M20: =SUMIF($J$3:$GG$3, M14,$J$12:$GG$12)/1000 -> 67.6899039 | N20: =SUMIF($J$3:$GG$3, N14,$J$12:$GG$12)/1000 -> 69.0264925 | O20: =SUMIF($J$3:$GG$3, O14,$J$12:$GG$12)/1000 -> 70.36085731 | P20: =SUMIF($J$3:$GG$3, P14,$J$12:$GG$12)/1000 -> 71.68526047 | Q20: =SUMIF($J$3:$GG$3, Q14,$J$12:$GG$12)/1000 -> 72.99907546 | R20: =SUMIF($J$3:$GG$3, R14,$J$12:$GG$12)/1000 -> 74.30172814 | S20: =SUMIF($J$3:$GG$3, S14,$J$12:$GG$12)/1000 -> 75.59209656 | T20: =SUMIF($J$3:$GG$3, T14,$J$12:$GG$12)/1000 -> 76.86828953 | U20: =SUMIF($J$3:$GG$3, U14,$J$12:$GG$12)/1000 -> 78.12833677 | V20: =SUMIF($J$3:$GG$3, V14,$J$12:$GG$12)/1000 -> 79.37105099 | W20: =SUMIF($J$3:$GG$3, W14,$J$12:$GG$12)/1000 -> 80.59551697 | X20: =SUMIF($J$3:$GG$3, X14,$J$12:$GG$12)/1000 -> 81.80002856 | Y20: =SUMIF($J$3:$GG$3, Y14,$J$12:$GG$12)/1000 -> 0 | Z20: =SUMIF($J$3:$GG$3, Z14,$J$12:$GG$12)/1000 -> 0 | AA20: =SUMIF($J$3:$GG$3, AA14,$J$12:$GG$12)/1000 -> 0 | AB20: =SUMIF($J$3:$GG$3, AB14,$J$12:$GG$12)/1000 -> 0 | AC20: =SUMIF($J$3:$GG$3, AC14,$J$12:$GG$12)/1000 -> 0 | AD20: =SUMIF($J$3:$GG$3, AD14,$J$12:$GG$12)/1000 -> 0 | AE20: =SUMIF($J$3:$GG$3, AE14,$J$12:$GG$12)/1000 -> 0 | AF20: =SUMIF($J$3:$GG$3, AF14,$J$12:$GG$12)/1000 -> 0 | AG20: =SUMIF($J$3:$GG$3, AG14,$J$12:$GG$12)/1000 -> 0 | AH20: =SUMIF($J$3:$GG$3, AH14,$J$12:$GG$12)/1000 -> 0 | AI20: =SUMIF($J$3:$GG$3, AI14,$J$12:$GG$12)/1000 -> 0 | AJ20: =SUMIF($J$3:$GG$3, AJ14,$J$12:$GG$12)/1000 -> 0 | AK20: =SUMIF($J$3:$GG$3, AK14,$J$12:$GG$12)/1000 -> 0 | AL20: =SUMIF($J$3:$GG$3, AL14,$J$12:$GG$12)/1000 -> 0 | AM20: =SUMIF($J$3:$GG$3, AM14,$J$12:$GG$12)/1000 -> 0 | AN20: 0
AN21: 0
C22: Operacional
C23: Total | I23: =AVERAGE(J23:GG23) -> 4362.444477 | J23: =J24+J28+J33 -> 3175.85702 | K23: =K24+K28+K33 -> 4696.33006 | L23: =L24+L28+L33 -> 3173.719724 | M23: 3164.664341 | N23: 4718.096727 | O23: 6689.130749 | P23: 4694.755211 | Q23: 3164.04565 | R23: 3169.501378 | S23: 3169.16391 | T23: 3159.489836 | U23: 6666.745392 | V23: 3177.149053 | W23: 4698.084078 | X23: 3174.963529 | Y23: 3165.703806 | Z23: 4720.34192 | AA23: 6690.722311 | AB23: 4696.473691 | AC23: 3165.071154 | AD23: 3170.649993 | AE23: 3170.30491 | AF23: 3160.412536 | AG23: 6667.831817 | AH23: 3178.459177 | AI23: 4699.862654 | AJ23: 3176.224748 | AK23: 3166.757825 | AL23: 4722.61855 | AM23: 6692.336157 | AN23: 4698.216233 | AO23: 3166.111016 | AP23: 3171.81469 | AQ23: 3171.461886 | AR23: 3161.348155 | AS23: 6668.933453 | AT23: 3179.788206 | AU23: 4701.666897 | AV23: 3177.504167 | AW23: 3167.827054 | AX23: 4724.928032 | AY23: 6693.973291 | AZ23: 4699.983921 | BA23: 3167.165885 | BB23: 3172.996195 | BC23: 3172.635557 | BD23: 3162.297275 | BE23: 6670.050987 | BF23: 3180.996414 | BG23: 4703.307116 | BH23: 3178.667275 | BI23: 3168.799079 | BJ23: 4727.02756 | BK23: 6695.461594 | BL23: 4701.590908 | BM23: 3168.124855 | BN23: 3174.070289 | BO23: 3173.70253 | BP23: 3163.160111 | BQ23: 6671.066926 | BR23: 4682.202611 | BS23: 4704.944606 | BT23: 3179.828447 | BU23: 3169.769488 | BV23: 4729.123595 | BW23: 6696.947421 | BX23: =BX24+BX28+BX33 -> 4703.195222 | BY23: 3169.08223 | BZ23: 3175.142596 | CA23: 3174.767728 | CB23: 3164.021511 | CC23: 6672.081174 | CD23: 4683.399804 | CE23: 4706.569871 | CF23: 3180.980951 | CG23: 3170.732652 | CH23: 4731.203981 | CI23: 6698.422155 | CJ23: 4704.787558 | CK23: 3170.032457 | CL23: 3176.206898 | CM23: 3175.824974 | CN23: 3164.876481 | CO23: 6673.087851 | CP23: 4684.587425 | CQ23: 4708.182143 | CR23: 4682.124241 | CS23: 3171.688115 | CT23: 4733.267736 | CU23: 6699.8851 | CV23: 4706.367165 | CW23: 3170.975088 | CX23: 3177.262692 | CY23: 3176.873768 | CZ23: 3165.724615 | DA23: 6674.086479 | DB23: 4685.764957 | DC23: 4709.780717 | DD23: 4683.257817 | DE23: 3172.635461 | DF23: 4735.313957 | DG23: 6701.335615 | DH23: 4707.933351 | DI23: 3171.90971 | DJ23: 3178.309515 | DK23: 3177.91365 | DL23: 3166.565544 | DM23: 6675.076624 | DN23: 4686.931384 | DO23: 4711.364216 | DP23: 4684.380703 | DQ23: 3173.573873 | DR23: 4737.340882 | DS23: 6702.772451 | DT23: 4709.484768 | DU23: 3172.835519 | DV23: 3179.346466 | DW23: 3178.943727 | DX23: 3167.398542 | DY23: 6676.057431 | DZ23: 4688.084997 | EA23: 4712.93032 | EB23: 4685.491254 | EC23: 3174.501977 | ED23: 4739.345539 | EE23: 6704.193503 | EF23: 4711.019141 | EG23: 3173.751157 | EH23: 3180.372026 | EI23: 3179.962487 | EJ23: =EJ24+EJ28+EJ33 -> 3168.22239 | EK23: 6677.027463 | EL23: 4689.224015 | EM23: 4714.47661 | EN23: 4686.587755 | EO23: 3175.418338 | EP23: 4741.324835 | EQ23: 6705.596576 | ER23: 4712.534102 | ES23: 3174.65521 | ET23: 3181.38461 | EU23: 3180.968359 | EV23: 3169.035814 | EW23: 6677.985223 | EX23: 4690.347365 | EY23: 4716.001629 | EZ23: 4687.669172 | FA23: 3176.322094 | FB23: 4743.276904 | FC23: 6706.980349 | FD23: 4714.028224 | FE23: 3175.546828 | FF23: 4682.383266 | FG23: 4681.960394 | FH23: 3169.838049 | FI23: 6678.929808 | FJ23: 4691.454219 | FK23: 4717.504255 | FL23: 4688.73471 | FM23: 3177.212579 | FN23: 6245.200309 | FO23: 6708.343803 | FP23: 4715.500406 | FQ23: 3176.425353 | FR23: 4683.367258 | FS23: 4682.937862 | FT23: 3170.628504 | FU23: 6679.860522 | FV23: 4692.543036 | FW23: 4718.982393 | FX23: 4689.782884 | FY23: 3178.088553 | FZ23: 6247.092368 | GA23: 6709.685037 | GB23: 4716.948596 | GC23: 3177.289561 | GD23: 4684.335214 | GE23: 4683.8994 | GF23: 3171.406078 | GG23: 6680.77607
C24: Manutenção | I24: =AVERAGE(J24:GG24) -> 758.3333333 | J24: =SUM(J25:J27) -> 300 | K24: =SUM(K25:K27) -> 300 | L24: 300 | M24: 300 | N24: =SUM(N25:N27) -> 300 | O24: 2300 | P24: 300 | Q24: 300 | R24: 300 | S24: 300 | T24: 300 | U24: 3800 | V24: 300 | W24: 300 | X24: 300 | Y24: 300 | Z24: 300 | AA24: 2300 | AB24: 300 | AC24: 300 | AD24: 300 | AE24: 300 | AF24: 300 | AG24: 3800 | AH24: 300 | AI24: 300 | AJ24: 300 | AK24: 300 | AL24: 300 | AM24: 2300 | AN24: 300 | AO24: 300 | AP24: 300 | AQ24: 300 | AR24: 300 | AS24: 3800 | AT24: 300 | AU24: 300 | AV24: 300 | AW24: 300 | AX24: 300 | AY24: 2300 | AZ24: 300 | BA24: 300 | BB24: 300 | BC24: 300 | BD24: 300 | BE24: 3800 | BF24: 300 | BG24: 300 | BH24: 300 | BI24: 300 | BJ24: 300 | BK24: 2300 | BL24: 300 | BM24: 300 | BN24: 300 | BO24: 300 | BP24: 300 | BQ24: 3800 | BR24: 300 | BS24: 300 | BT24: 300 | BU24: 300 | BV24: 300 | BW24: =SUM(BW25:BW27) -> 2300 | BX24: 300 | BY24: 300 | BZ24: 300 | CA24: 300 | CB24: 300 | CC24: 3800 | CD24: 300 | CE24: 300 | CF24: 300 | CG24: 300 | CH24: 300 | CI24: 2300 | CJ24: 300 | CK24: 300 | CL24: 300 | CM24: 300 | CN24: 300 | CO24: 3800 | CP24: 300 | CQ24: 300 | CR24: 300 | CS24: 300 | CT24: 300 | CU24: 2300 | CV24: 300 | CW24: 300 | CX24: 300 | CY24: 300 | CZ24: 300 | DA24: 3800 | DB24: 300 | DC24: 300 | DD24: 300 | DE24: 300 | DF24: 300 | DG24: 2300 | DH24: 300 | DI24: 300 | DJ24: 300 | DK24: 300 | DL24: 300 | DM24: 3800 | DN24: 300 | DO24: 300 | DP24: 300 | DQ24: 300 | DR24: 300 | DS24: 2300 | DT24: 300 | DU24: 300 | DV24: 300 | DW24: 300 | DX24: 300 | DY24: 3800 | DZ24: 300 | EA24: 300 | EB24: 300 | EC24: 300 | ED24: 300 | EE24: 2300 | EF24: 300 | EG24: 300 | EH24: 300 | EI24: =SUM(EI25:EI27) -> 300 | EJ24: 300 | EK24: 3800 | EL24: 300 | EM24: 300 | EN24: 300 | EO24: 300 | EP24: 300 | EQ24: 2300 | ER24: 300 | ES24: 300 | ET24: 300 | EU24: 300 | EV24: 300 | EW24: 3800 | EX24: 300 | EY24: 300 | EZ24: 300 | FA24: 300 | FB24: 300 | FC24: 2300 | FD24: 300 | FE24: 300 | FF24: 300 | FG24: 300 | FH24: 300 | FI24: 3800 | FJ24: 300 | FK24: 300 | FL24: 300 | FM24: 300 | FN24: 300 | FO24: 2300 | FP24: 300 | FQ24: 300 | FR24: 300 | FS24: 300 | FT24: 300 | FU24: 3800 | FV24: 300 | FW24: 300 | FX24: 300 | FY24: 300 | FZ24: 300 | GA24: 2300 | GB24: 300 | GC24: 300 | GD24: 300 | GE24: 300 | GF24: 300 | GG24: 3800
D25: Tratamento de madeira | E25: =PREMISSÁRIO!$D$29 -> 2000 | F25: Semestral | I25: =AVERAGE(J25:GG25) -> 333.3333333 | J25: =IF(MOD(J$4,6)=0, $E$25, 0) -> 0 | K25: =IF(MOD(K$4,6)=0, $E$25, 0) -> 0 | L25: =IF(MOD(L$4,6)=0, $E$25, 0) -> 0 | M25: =IF(MOD(M$4,6)=0, $E$25, 0) -> 0 | N25: =IF(MOD(N$4,6)=0, $E$25, 0) -> 0 | O25: =IF(MOD(O$4,6)=0, $E$25, 0) -> 2000 | P25: =IF(MOD(P$4,6)=0, $E$25, 0) -> 0 | Q25: =IF(MOD(Q$4,6)=0, $E$25, 0) -> 0 | R25: =IF(MOD(R$4,6)=0, $E$25, 0) -> 0 | S25: =IF(MOD(S$4,6)=0, $E$25, 0) -> 0 | T25: =IF(MOD(T$4,6)=0, $E$25, 0) -> 0 | U25: =IF(MOD(U$4,6)=0, $E$25, 0) -> 2000 | V25: =IF(MOD(V$4,6)=0, $E$25, 0) -> 0 | W25: =IF(MOD(W$4,6)=0, $E$25, 0) -> 0 | X25: =IF(MOD(X$4,6)=0, $E$25, 0) -> 0 | Y25: =IF(MOD(Y$4,6)=0, $E$25, 0) -> 0 | Z25: =IF(MOD(Z$4,6)=0, $E$25, 0) -> 0 | AA25: =IF(MOD(AA$4,6)=0, $E$25, 0) -> 2000 | AB25: =IF(MOD(AB$4,6)=0, $E$25, 0) -> 0 | AC25: =IF(MOD(AC$4,6)=0, $E$25, 0) -> 0 | AD25: =IF(MOD(AD$4,6)=0, $E$25, 0) -> 0 | AE25: =IF(MOD(AE$4,6)=0, $E$25, 0) -> 0 | AF25: =IF(MOD(AF$4,6)=0, $E$25, 0) -> 0 | AG25: =IF(MOD(AG$4,6)=0, $E$25, 0) -> 2000 | AH25: =IF(MOD(AH$4,6)=0, $E$25, 0) -> 0 | AI25: =IF(MOD(AI$4,6)=0, $E$25, 0) -> 0 | AJ25: =IF(MOD(AJ$4,6)=0, $E$25, 0) -> 0 | AK25: =IF(MOD(AK$4,6)=0, $E$25, 0) -> 0 | AL25: =IF(MOD(AL$4,6)=0, $E$25, 0) -> 0 | AM25: =IF(MOD(AM$4,6)=0, $E$25, 0) -> 2000 | AN25: =IF(MOD(AN$4,6)=0, $E$25, 0) -> 0 | AO25: =IF(MOD(AO$4,6)=0, $E$25, 0) -> 0 | AP25: =IF(MOD(AP$4,6)=0, $E$25, 0) -> 0 | AQ25: =IF(MOD(AQ$4,6)=0, $E$25, 0) -> 0 | AR25: =IF(MOD(AR$4,6)=0, $E$25, 0) -> 0 | AS25: =IF(MOD(AS$4,6)=0, $E$25, 0) -> 2000 | AT25: =IF(MOD(AT$4,6)=0, $E$25, 0) -> 0 | AU25: =IF(MOD(AU$4,6)=0, $E$25, 0) -> 0 | AV25: =IF(MOD(AV$4,6)=0, $E$25, 0) -> 0 | AW25: =IF(MOD(AW$4,6)=0, $E$25, 0) -> 0 | AX25: =IF(MOD(AX$4,6)=0, $E$25, 0) -> 0 | AY25: =IF(MOD(AY$4,6)=0, $E$25, 0) -> 2000 | AZ25: =IF(MOD(AZ$4,6)=0, $E$25, 0) -> 0 | BA25: =IF(MOD(BA$4,6)=0, $E$25, 0) -> 0 | BB25: =IF(MOD(BB$4,6)=0, $E$25, 0) -> 0 | BC25: =IF(MOD(BC$4,6)=0, $E$25, 0) -> 0 | BD25: =IF(MOD(BD$4,6)=0, $E$25, 0) -> 0 | BE25: =IF(MOD(BE$4,6)=0, $E$25, 0) -> 2000 | BF25: =IF(MOD(BF$4,6)=0, $E$25, 0) -> 0 | BG25: =IF(MOD(BG$4,6)=0, $E$25, 0) -> 0 | BH25: =IF(MOD(BH$4,6)=0, $E$25, 0) -> 0 | BI25: =IF(MOD(BI$4,6)=0, $E$25, 0) -> 0 | BJ25: =IF(MOD(BJ$4,6)=0, $E$25, 0) -> 0 | BK25: =IF(MOD(BK$4,6)=0, $E$25, 0) -> 2000 | BL25: =IF(MOD(BL$4,6)=0, $E$25, 0) -> 0 | BM25: =IF(MOD(BM$4,6)=0, $E$25, 0) -> 0 | BN25: =IF(MOD(BN$4,6)=0, $E$25, 0) -> 0 | BO25: =IF(MOD(BO$4,6)=0, $E$25, 0) -> 0 | BP25: =IF(MOD(BP$4,6)=0, $E$25, 0) -> 0 | BQ25: =IF(MOD(BQ$4,6)=0, $E$25, 0) -> 2000 | BR25: =IF(MOD(BR$4,6)=0, $E$25, 0) -> 0 | BS25: =IF(MOD(BS$4,6)=0, $E$25, 0) -> 0 | BT25: =IF(MOD(BT$4,6)=0, $E$25, 0) -> 0 | BU25: =IF(MOD(BU$4,6)=0, $E$25, 0) -> 0 | BV25: =IF(MOD(BV$4,6)=0, $E$25, 0) -> 0 | BW25: =IF(MOD(BW$4,6)=0, $E$25, 0) -> 2000 | BX25: =IF(MOD(BX$4,6)=0, $E$25, 0) -> 0 | BY25: =IF(MOD(BY$4,6)=0, $E$25, 0) -> 0 | BZ25: =IF(MOD(BZ$4,6)=0, $E$25, 0) -> 0 | CA25: =IF(MOD(CA$4,6)=0, $E$25, 0) -> 0 | CB25: =IF(MOD(CB$4,6)=0, $E$25, 0) -> 0 | CC25: =IF(MOD(CC$4,6)=0, $E$25, 0) -> 2000 | CD25: =IF(MOD(CD$4,6)=0, $E$25, 0) -> 0 | CE25: =IF(MOD(CE$4,6)=0, $E$25, 0) -> 0 | CF25: =IF(MOD(CF$4,6)=0, $E$25, 0) -> 0 | CG25: =IF(MOD(CG$4,6)=0, $E$25, 0) -> 0 | CH25: =IF(MOD(CH$4,6)=0, $E$25, 0) -> 0 | CI25: =IF(MOD(CI$4,6)=0, $E$25, 0) -> 2000 | CJ25: =IF(MOD(CJ$4,6)=0, $E$25, 0) -> 0 | CK25: =IF(MOD(CK$4,6)=0, $E$25, 0) -> 0 | CL25: =IF(MOD(CL$4,6)=0, $E$25, 0) -> 0 | CM25: =IF(MOD(CM$4,6)=0, $E$25, 0) -> 0 | CN25: =IF(MOD(CN$4,6)=0, $E$25, 0) -> 0 | CO25: =IF(MOD(CO$4,6)=0, $E$25, 0) -> 2000 | CP25: =IF(MOD(CP$4,6)=0, $E$25, 0) -> 0 | CQ25: =IF(MOD(CQ$4,6)=0, $E$25, 0) -> 0 | CR25: =IF(MOD(CR$4,6)=0, $E$25, 0) -> 0 | CS25: =IF(MOD(CS$4,6)=0, $E$25, 0) -> 0 | CT25: =IF(MOD(CT$4,6)=0, $E$25, 0) -> 0 | CU25: =IF(MOD(CU$4,6)=0, $E$25, 0) -> 2000 | CV25: =IF(MOD(CV$4,6)=0, $E$25, 0) -> 0 | CW25: =IF(MOD(CW$4,6)=0, $E$25, 0) -> 0 | CX25: =IF(MOD(CX$4,6)=0, $E$25, 0) -> 0 | CY25: =IF(MOD(CY$4,6)=0, $E$25, 0) -> 0 | CZ25: =IF(MOD(CZ$4,6)=0, $E$25, 0) -> 0 | DA25: =IF(MOD(DA$4,6)=0, $E$25, 0) -> 2000 | DB25: =IF(MOD(DB$4,6)=0, $E$25, 0) -> 0 | DC25: =IF(MOD(DC$4,6)=0, $E$25, 0) -> 0 | DD25: =IF(MOD(DD$4,6)=0, $E$25, 0) -> 0 | DE25: =IF(MOD(DE$4,6)=0, $E$25, 0) -> 0 | DF25: =IF(MOD(DF$4,6)=0, $E$25, 0) -> 0 | DG25: =IF(MOD(DG$4,6)=0, $E$25, 0) -> 2000 | DH25: =IF(MOD(DH$4,6)=0, $E$25, 0) -> 0 | DI25: =IF(MOD(DI$4,6)=0, $E$25, 0) -> 0 | DJ25: =IF(MOD(DJ$4,6)=0, $E$25, 0) -> 0 | DK25: =IF(MOD(DK$4,6)=0, $E$25, 0) -> 0 | DL25: =IF(MOD(DL$4,6)=0, $E$25, 0) -> 0 | DM25: =IF(MOD(DM$4,6)=0, $E$25, 0) -> 2000 | DN25: =IF(MOD(DN$4,6)=0, $E$25, 0) -> 0 | DO25: =IF(MOD(DO$4,6)=0, $E$25, 0) -> 0 | DP25: =IF(MOD(DP$4,6)=0, $E$25, 0) -> 0 | DQ25: =IF(MOD(DQ$4,6)=0, $E$25, 0) -> 0 | DR25: =IF(MOD(DR$4,6)=0, $E$25, 0) -> 0 | DS25: =IF(MOD(DS$4,6)=0, $E$25, 0) -> 2000 | DT25: =IF(MOD(DT$4,6)=0, $E$25, 0) -> 0 | DU25: =IF(MOD(DU$4,6)=0, $E$25, 0) -> 0 | DV25: =IF(MOD(DV$4,6)=0, $E$25, 0) -> 0 | DW25: =IF(MOD(DW$4,6)=0, $E$25, 0) -> 0 | DX25: =IF(MOD(DX$4,6)=0, $E$25, 0) -> 0 | DY25: =IF(MOD(DY$4,6)=0, $E$25, 0) -> 2000 | DZ25: =IF(MOD(DZ$4,6)=0, $E$25, 0) -> 0 | EA25: =IF(MOD(EA$4,6)=0, $E$25, 0) -> 0 | EB25: =IF(MOD(EB$4,6)=0, $E$25, 0) -> 0 | EC25: =IF(MOD(EC$4,6)=0, $E$25, 0) -> 0 | ED25: =IF(MOD(ED$4,6)=0, $E$25, 0) -> 0 | EE25: =IF(MOD(EE$4,6)=0, $E$25, 0) -> 2000 | EF25: =IF(MOD(EF$4,6)=0, $E$25, 0) -> 0 | EG25: =IF(MOD(EG$4,6)=0, $E$25, 0) -> 0 | EH25: =IF(MOD(EH$4,6)=0, $E$25, 0) -> 0 | EI25: =IF(MOD(EI$4,6)=0, $E$25, 0) -> 0 | EJ25: =IF(MOD(EJ$4,6)=0, $E$25, 0) -> 0 | EK25: =IF(MOD(EK$4,6)=0, $E$25, 0) -> 2000 | EL25: =IF(MOD(EL$4,6)=0, $E$25, 0) -> 0 | EM25: =IF(MOD(EM$4,6)=0, $E$25, 0) -> 0 | EN25: =IF(MOD(EN$4,6)=0, $E$25, 0) -> 0 | EO25: =IF(MOD(EO$4,6)=0, $E$25, 0) -> 0 | EP25: =IF(MOD(EP$4,6)=0, $E$25, 0) -> 0 | EQ25: =IF(MOD(EQ$4,6)=0, $E$25, 0) -> 2000 | ER25: =IF(MOD(ER$4,6)=0, $E$25, 0) -> 0 | ES25: =IF(MOD(ES$4,6)=0, $E$25, 0) -> 0 | ET25: =IF(MOD(ET$4,6)=0, $E$25, 0) -> 0 | EU25: =IF(MOD(EU$4,6)=0, $E$25, 0) -> 0 | EV25: =IF(MOD(EV$4,6)=0, $E$25, 0) -> 0 | EW25: =IF(MOD(EW$4,6)=0, $E$25, 0) -> 2000 | EX25: =IF(MOD(EX$4,6)=0, $E$25, 0) -> 0 | EY25: =IF(MOD(EY$4,6)=0, $E$25, 0) -> 0 | EZ25: =IF(MOD(EZ$4,6)=0, $E$25, 0) -> 0 | FA25: =IF(MOD(FA$4,6)=0, $E$25, 0) -> 0 | FB25: =IF(MOD(FB$4,6)=0, $E$25, 0) -> 0 | FC25: =IF(MOD(FC$4,6)=0, $E$25, 0) -> 2000 | FD25: =IF(MOD(FD$4,6)=0, $E$25, 0) -> 0 | FE25: =IF(MOD(FE$4,6)=0, $E$25, 0) -> 0 | FF25: =IF(MOD(FF$4,6)=0, $E$25, 0) -> 0 | FG25: =IF(MOD(FG$4,6)=0, $E$25, 0) -> 0 | FH25: =IF(MOD(FH$4,6)=0, $E$25, 0) -> 0 | FI25: =IF(MOD(FI$4,6)=0, $E$25, 0) -> 2000 | FJ25: =IF(MOD(FJ$4,6)=0, $E$25, 0) -> 0 | FK25: =IF(MOD(FK$4,6)=0, $E$25, 0) -> 0 | FL25: =IF(MOD(FL$4,6)=0, $E$25, 0) -> 0 | FM25: =IF(MOD(FM$4,6)=0, $E$25, 0) -> 0 | FN25: =IF(MOD(FN$4,6)=0, $E$25, 0) -> 0 | FO25: =IF(MOD(FO$4,6)=0, $E$25, 0) -> 2000 | FP25: =IF(MOD(FP$4,6)=0, $E$25, 0) -> 0 | FQ25: =IF(MOD(FQ$4,6)=0, $E$25, 0) -> 0 | FR25: =IF(MOD(FR$4,6)=0, $E$25, 0) -> 0 | FS25: =IF(MOD(FS$4,6)=0, $E$25, 0) -> 0 | FT25: =IF(MOD(FT$4,6)=0, $E$25, 0) -> 0 | FU25: =IF(MOD(FU$4,6)=0, $E$25, 0) -> 2000 | FV25: =IF(MOD(FV$4,6)=0, $E$25, 0) -> 0 | FW25: =IF(MOD(FW$4,6)=0, $E$25, 0) -> 0 | FX25: =IF(MOD(FX$4,6)=0, $E$25, 0) -> 0 | FY25: =IF(MOD(FY$4,6)=0, $E$25, 0) -> 0 | FZ25: =IF(MOD(FZ$4,6)=0, $E$25, 0) -> 0 | GA25: =IF(MOD(GA$4,6)=0, $E$25, 0) -> 2000 | GB25: =IF(MOD(GB$4,6)=0, $E$25, 0) -> 0 | GC25: =IF(MOD(GC$4,6)=0, $E$25, 0) -> 0 | GD25: =IF(MOD(GD$4,6)=0, $E$25, 0) -> 0 | GE25: =IF(MOD(GE$4,6)=0, $E$25, 0) -> 0 | GF25: =IF(MOD(GF$4,6)=0, $E$25, 0) -> 0 | GG25: =IF(MOD(GG$4,6)=0, $E$25, 0) -> 2000
D26: Fossa séptica | E26: =PREMISSÁRIO!$D$26 -> 300 | F26: Mensal | I26: =AVERAGE(J26:GG26) -> 300 | J26: =$E$26 -> 300 | K26: =$E$26 -> 300 | L26: 300 | M26: 300 | N26: 300 | O26: 300 | P26: 300 | Q26: 300 | R26: 300 | S26: 300 | T26: 300 | U26: 300 | V26: 300 | W26: 300 | X26: 300 | Y26: 300 | Z26: 300 | AA26: 300 | AB26: 300 | AC26: 300 | AD26: 300 | AE26: 300 | AF26: 300 | AG26: 300 | AH26: 300 | AI26: 300 | AJ26: 300 | AK26: 300 | AL26: 300 | AM26: 300 | AN26: 300 | AO26: 300 | AP26: 300 | AQ26: 300 | AR26: 300 | AS26: 300 | AT26: 300 | AU26: 300 | AV26: 300 | AW26: 300 | AX26: 300 | AY26: 300 | AZ26: 300 | BA26: 300 | BB26: 300 | BC26: 300 | BD26: 300 | BE26: 300 | BF26: 300 | BG26: 300 | BH26: 300 | BI26: 300 | BJ26: 300 | BK26: 300 | BL26: 300 | BM26: 300 | BN26: 300 | BO26: 300 | BP26: 300 | BQ26: 300 | BR26: 300 | BS26: 300 | BT26: 300 | BU26: 300 | BV26: 300 | BW26: =$E$26 -> 300 | BX26: 300 | BY26: 300 | BZ26: 300 | CA26: 300 | CB26: 300 | CC26: 300 | CD26: 300 | CE26: 300 | CF26: 300 | CG26: 300 | CH26: 300 | CI26: 300 | CJ26: 300 | CK26: 300 | CL26: 300 | CM26: 300 | CN26: 300 | CO26: 300 | CP26: 300 | CQ26: 300 | CR26: 300 | CS26: 300 | CT26: 300 | CU26: 300 | CV26: 300 | CW26: 300 | CX26: 300 | CY26: 300 | CZ26: 300 | DA26: 300 | DB26: 300 | DC26: 300 | DD26: 300 | DE26: 300 | DF26: 300 | DG26: 300 | DH26: 300 | DI26: 300 | DJ26: 300 | DK26: 300 | DL26: 300 | DM26: 300 | DN26: 300 | DO26: 300 | DP26: 300 | DQ26: 300 | DR26: 300 | DS26: 300 | DT26: 300 | DU26: 300 | DV26: 300 | DW26: 300 | DX26: 300 | DY26: 300 | DZ26: 300 | EA26: 300 | EB26: 300 | EC26: 300 | ED26: 300 | EE26: 300 | EF26: 300 | EG26: 300 | EH26: 300 | EI26: =$E$26 -> 300 | EJ26: 300 | EK26: 300 | EL26: 300 | EM26: 300 | EN26: 300 | EO26: 300 | EP26: 300 | EQ26: 300 | ER26: 300 | ES26: 300 | ET26: 300 | EU26: 300 | EV26: 300 | EW26: 300 | EX26: 300 | EY26: 300 | EZ26: 300 | FA26: 300 | FB26: 300 | FC26: 300 | FD26: 300 | FE26: 300 | FF26: 300 | FG26: 300 | FH26: 300 | FI26: 300 | FJ26: 300 | FK26: 300 | FL26: 300 | FM26: 300 | FN26: 300 | FO26: 300 | FP26: 300 | FQ26: 300 | FR26: 300 | FS26: 300 | FT26: 300 | FU26: 300 | FV26: 300 | FW26: 300 | FX26: 300 | FY26: 300 | FZ26: 300 | GA26: 300 | GB26: 300 | GC26: 300 | GD26: 300 | GE26: 300 | GF26: 300 | GG26: 300
D27: Fossa séptica | E27: =PREMISSÁRIO!$D$27 -> 1500 | F27: Anual | I27: =AVERAGE(J27:GG27) -> 125 | J27: =IF(MOD(J$4,12)=0, $E$27, 0) -> 0 | K27: =IF(MOD(K$4,12)=0, $E$27, 0) -> 0 | L27: =IF(MOD(L$4,12)=0, $E$27, 0) -> 0 | M27: =IF(MOD(M$4,12)=0, $E$27, 0) -> 0 | N27: =IF(MOD(N$4,12)=0, $E$27, 0) -> 0 | O27: =IF(MOD(O$4,12)=0, $E$27, 0) -> 0 | P27: =IF(MOD(P$4,12)=0, $E$27, 0) -> 0 | Q27: =IF(MOD(Q$4,12)=0, $E$27, 0) -> 0 | R27: =IF(MOD(R$4,12)=0, $E$27, 0) -> 0 | S27: =IF(MOD(S$4,12)=0, $E$27, 0) -> 0 | T27: =IF(MOD(T$4,12)=0, $E$27, 0) -> 0 | U27: =IF(MOD(U$4,12)=0, $E$27, 0) -> 1500 | V27: =IF(MOD(V$4,12)=0, $E$27, 0) -> 0 | W27: =IF(MOD(W$4,12)=0, $E$27, 0) -> 0 | X27: =IF(MOD(X$4,12)=0, $E$27, 0) -> 0 | Y27: =IF(MOD(Y$4,12)=0, $E$27, 0) -> 0 | Z27: =IF(MOD(Z$4,12)=0, $E$27, 0) -> 0 | AA27: =IF(MOD(AA$4,12)=0, $E$27, 0) -> 0 | AB27: =IF(MOD(AB$4,12)=0, $E$27, 0) -> 0 | AC27: =IF(MOD(AC$4,12)=0, $E$27, 0) -> 0 | AD27: =IF(MOD(AD$4,12)=0, $E$27, 0) -> 0 | AE27: =IF(MOD(AE$4,12)=0, $E$27, 0) -> 0 | AF27: =IF(MOD(AF$4,12)=0, $E$27, 0) -> 0 | AG27: =IF(MOD(AG$4,12)=0, $E$27, 0) -> 1500 | AH27: =IF(MOD(AH$4,12)=0, $E$27, 0) -> 0 | AI27: =IF(MOD(AI$4,12)=0, $E$27, 0) -> 0 | AJ27: =IF(MOD(AJ$4,12)=0, $E$27, 0) -> 0 | AK27: =IF(MOD(AK$4,12)=0, $E$27, 0) -> 0 | AL27: =IF(MOD(AL$4,12)=0, $E$27, 0) -> 0 | AM27: =IF(MOD(AM$4,12)=0, $E$27, 0) -> 0 | AN27: =IF(MOD(AN$4,12)=0, $E$27, 0) -> 0 | AO27: =IF(MOD(AO$4,12)=0, $E$27, 0) -> 0 | AP27: =IF(MOD(AP$4,12)=0, $E$27, 0) -> 0 | AQ27: =IF(MOD(AQ$4,12)=0, $E$27, 0) -> 0 | AR27: =IF(MOD(AR$4,12)=0, $E$27, 0) -> 0 | AS27: =IF(MOD(AS$4,12)=0, $E$27, 0) -> 1500 | AT27: =IF(MOD(AT$4,12)=0, $E$27, 0) -> 0 | AU27: =IF(MOD(AU$4,12)=0, $E$27, 0) -> 0 | AV27: =IF(MOD(AV$4,12)=0, $E$27, 0) -> 0 | AW27: =IF(MOD(AW$4,12)=0, $E$27, 0) -> 0 | AX27: =IF(MOD(AX$4,12)=0, $E$27, 0) -> 0 | AY27: =IF(MOD(AY$4,12)=0, $E$27, 0) -> 0 | AZ27: =IF(MOD(AZ$4,12)=0, $E$27, 0) -> 0 | BA27: =IF(MOD(BA$4,12)=0, $E$27, 0) -> 0 | BB27: =IF(MOD(BB$4,12)=0, $E$27, 0) -> 0 | BC27: =IF(MOD(BC$4,12)=0, $E$27, 0) -> 0 | BD27: =IF(MOD(BD$4,12)=0, $E$27, 0) -> 0 | BE27: =IF(MOD(BE$4,12)=0, $E$27, 0) -> 1500 | BF27: =IF(MOD(BF$4,12)=0, $E$27, 0) -> 0 | BG27: =IF(MOD(BG$4,12)=0, $E$27, 0) -> 0 | BH27: =IF(MOD(BH$4,12)=0, $E$27, 0) -> 0 | BI27: =IF(MOD(BI$4,12)=0, $E$27, 0) -> 0 | BJ27: =IF(MOD(BJ$4,12)=0, $E$27, 0) -> 0 | BK27: =IF(MOD(BK$4,12)=0, $E$27, 0) -> 0 | BL27: =IF(MOD(BL$4,12)=0, $E$27, 0) -> 0 | BM27: =IF(MOD(BM$4,12)=0, $E$27, 0) -> 0 | BN27: =IF(MOD(BN$4,12)=0, $E$27, 0) -> 0 | BO27: =IF(MOD(BO$4,12)=0, $E$27, 0) -> 0 | BP27: =IF(MOD(BP$4,12)=0, $E$27, 0) -> 0 | BQ27: =IF(MOD(BQ$4,12)=0, $E$27, 0) -> 1500 | BR27: =IF(MOD(BR$4,12)=0, $E$27, 0) -> 0 | BS27: =IF(MOD(BS$4,12)=0, $E$27, 0) -> 0 | BT27: =IF(MOD(BT$4,12)=0, $E$27, 0) -> 0 | BU27: =IF(MOD(BU$4,12)=0, $E$27, 0) -> 0 | BV27: =IF(MOD(BV$4,12)=0, $E$27, 0) -> 0 | BW27: =IF(MOD(BW$4,12)=0, $E$27, 0) -> 0 | BX27: =IF(MOD(BX$4,12)=0, $E$27, 0) -> 0 | BY27: =IF(MOD(BY$4,12)=0, $E$27, 0) -> 0 | BZ27: =IF(MOD(BZ$4,12)=0, $E$27, 0) -> 0 | CA27: =IF(MOD(CA$4,12)=0, $E$27, 0) -> 0 | CB27: =IF(MOD(CB$4,12)=0, $E$27, 0) -> 0 | CC27: =IF(MOD(CC$4,12)=0, $E$27, 0) -> 1500 | CD27: =IF(MOD(CD$4,12)=0, $E$27, 0) -> 0 | CE27: =IF(MOD(CE$4,12)=0, $E$27, 0) -> 0 | CF27: =IF(MOD(CF$4,12)=0, $E$27, 0) -> 0 | CG27: =IF(MOD(CG$4,12)=0, $E$27, 0) -> 0 | CH27: =IF(MOD(CH$4,12)=0, $E$27, 0) -> 0 | CI27: =IF(MOD(CI$4,12)=0, $E$27, 0) -> 0 | CJ27: =IF(MOD(CJ$4,12)=0, $E$27, 0) -> 0 | CK27: =IF(MOD(CK$4,12)=0, $E$27, 0) -> 0 | CL27: =IF(MOD(CL$4,12)=0, $E$27, 0) -> 0 | CM27: =IF(MOD(CM$4,12)=0, $E$27, 0) -> 0 | CN27: =IF(MOD(CN$4,12)=0, $E$27, 0) -> 0 | CO27: =IF(MOD(CO$4,12)=0, $E$27, 0) -> 1500 | CP27: =IF(MOD(CP$4,12)=0, $E$27, 0) -> 0 | CQ27: =IF(MOD(CQ$4,12)=0, $E$27, 0) -> 0 | CR27: =IF(MOD(CR$4,12)=0, $E$27, 0) -> 0 | CS27: =IF(MOD(CS$4,12)=0, $E$27, 0) -> 0 | CT27: =IF(MOD(CT$4,12)=0, $E$27, 0) -> 0 | CU27: =IF(MOD(CU$4,12)=0, $E$27, 0) -> 0 | CV27: =IF(MOD(CV$4,12)=0, $E$27, 0) -> 0 | CW27: =IF(MOD(CW$4,12)=0, $E$27, 0) -> 0 | CX27: =IF(MOD(CX$4,12)=0, $E$27, 0) -> 0 | CY27: =IF(MOD(CY$4,12)=0, $E$27, 0) -> 0 | CZ27: =IF(MOD(CZ$4,12)=0, $E$27, 0) -> 0 | DA27: =IF(MOD(DA$4,12)=0, $E$27, 0) -> 1500 | DB27: =IF(MOD(DB$4,12)=0, $E$27, 0) -> 0 | DC27: =IF(MOD(DC$4,12)=0, $E$27, 0) -> 0 | DD27: =IF(MOD(DD$4,12)=0, $E$27, 0) -> 0 | DE27: =IF(MOD(DE$4,12)=0, $E$27, 0) -> 0 | DF27: =IF(MOD(DF$4,12)=0, $E$27, 0) -> 0 | DG27: =IF(MOD(DG$4,12)=0, $E$27, 0) -> 0 | DH27: =IF(MOD(DH$4,12)=0, $E$27, 0) -> 0 | DI27: =IF(MOD(DI$4,12)=0, $E$27, 0) -> 0 | DJ27: =IF(MOD(DJ$4,12)=0, $E$27, 0) -> 0 | DK27: =IF(MOD(DK$4,12)=0, $E$27, 0) -> 0 | DL27: =IF(MOD(DL$4,12)=0, $E$27, 0) -> 0 | DM27: =IF(MOD(DM$4,12)=0, $E$27, 0) -> 1500 | DN27: =IF(MOD(DN$4,12)=0, $E$27, 0) -> 0 | DO27: =IF(MOD(DO$4,12)=0, $E$27, 0) -> 0 | DP27: =IF(MOD(DP$4,12)=0, $E$27, 0) -> 0 | DQ27: =IF(MOD(DQ$4,12)=0, $E$27, 0) -> 0 | DR27: =IF(MOD(DR$4,12)=0, $E$27, 0) -> 0 | DS27: =IF(MOD(DS$4,12)=0, $E$27, 0) -> 0 | DT27: =IF(MOD(DT$4,12)=0, $E$27, 0) -> 0 | DU27: =IF(MOD(DU$4,12)=0, $E$27, 0) -> 0 | DV27: =IF(MOD(DV$4,12)=0, $E$27, 0) -> 0 | DW27: =IF(MOD(DW$4,12)=0, $E$27, 0) -> 0 | DX27: =IF(MOD(DX$4,12)=0, $E$27, 0) -> 0 | DY27: =IF(MOD(DY$4,12)=0, $E$27, 0) -> 1500 | DZ27: =IF(MOD(DZ$4,12)=0, $E$27, 0) -> 0 | EA27: =IF(MOD(EA$4,12)=0, $E$27, 0) -> 0 | EB27: =IF(MOD(EB$4,12)=0, $E$27, 0) -> 0 | EC27: =IF(MOD(EC$4,12)=0, $E$27, 0) -> 0 | ED27: =IF(MOD(ED$4,12)=0, $E$27, 0) -> 0 | EE27: =IF(MOD(EE$4,12)=0, $E$27, 0) -> 0 | EF27: =IF(MOD(EF$4,12)=0, $E$27, 0) -> 0 | EG27: =IF(MOD(EG$4,12)=0, $E$27, 0) -> 0 | EH27: =IF(MOD(EH$4,12)=0, $E$27, 0) -> 0 | EI27: =IF(MOD(EI$4,12)=0, $E$27, 0) -> 0 | EJ27: =IF(MOD(EJ$4,12)=0, $E$27, 0) -> 0 | EK27: =IF(MOD(EK$4,12)=0, $E$27, 0) -> 1500 | EL27: =IF(MOD(EL$4,12)=0, $E$27, 0) -> 0 | EM27: =IF(MOD(EM$4,12)=0, $E$27, 0) -> 0 | EN27: =IF(MOD(EN$4,12)=0, $E$27, 0) -> 0 | EO27: =IF(MOD(EO$4,12)=0, $E$27, 0) -> 0 | EP27: =IF(MOD(EP$4,12)=0, $E$27, 0) -> 0 | EQ27: =IF(MOD(EQ$4,12)=0, $E$27, 0) -> 0 | ER27: =IF(MOD(ER$4,12)=0, $E$27, 0) -> 0 | ES27: =IF(MOD(ES$4,12)=0, $E$27, 0) -> 0 | ET27: =IF(MOD(ET$4,12)=0, $E$27, 0) -> 0 | EU27: =IF(MOD(EU$4,12)=0, $E$27, 0) -> 0 | EV27: =IF(MOD(EV$4,12)=0, $E$27, 0) -> 0 | EW27: =IF(MOD(EW$4,12)=0, $E$27, 0) -> 1500 | EX27: =IF(MOD(EX$4,12)=0, $E$27, 0) -> 0 | EY27: =IF(MOD(EY$4,12)=0, $E$27, 0) -> 0 | EZ27: =IF(MOD(EZ$4,12)=0, $E$27, 0) -> 0 | FA27: =IF(MOD(FA$4,12)=0, $E$27, 0) -> 0 | FB27: =IF(MOD(FB$4,12)=0, $E$27, 0) -> 0 | FC27: =IF(MOD(FC$4,12)=0, $E$27, 0) -> 0 | FD27: =IF(MOD(FD$4,12)=0, $E$27, 0) -> 0 | FE27: =IF(MOD(FE$4,12)=0, $E$27, 0) -> 0 | FF27: =IF(MOD(FF$4,12)=0, $E$27, 0) -> 0 | FG27: =IF(MOD(FG$4,12)=0, $E$27, 0) -> 0 | FH27: =IF(MOD(FH$4,12)=0, $E$27, 0) -> 0 | FI27: =IF(MOD(FI$4,12)=0, $E$27, 0) -> 1500 | FJ27: =IF(MOD(FJ$4,12)=0, $E$27, 0) -> 0 | FK27: =IF(MOD(FK$4,12)=0, $E$27, 0) -> 0 | FL27: =IF(MOD(FL$4,12)=0, $E$27, 0) -> 0 | FM27: =IF(MOD(FM$4,12)=0, $E$27, 0) -> 0 | FN27: =IF(MOD(FN$4,12)=0, $E$27, 0) -> 0 | FO27: =IF(MOD(FO$4,12)=0, $E$27, 0) -> 0 | FP27: =IF(MOD(FP$4,12)=0, $E$27, 0) -> 0 | FQ27: =IF(MOD(FQ$4,12)=0, $E$27, 0) -> 0 | FR27: =IF(MOD(FR$4,12)=0, $E$27, 0) -> 0 | FS27: =IF(MOD(FS$4,12)=0, $E$27, 0) -> 0 | FT27: =IF(MOD(FT$4,12)=0, $E$27, 0) -> 0 | FU27: =IF(MOD(FU$4,12)=0, $E$27, 0) -> 1500 | FV27: =IF(MOD(FV$4,12)=0, $E$27, 0) -> 0 | FW27: =IF(MOD(FW$4,12)=0, $E$27, 0) -> 0 | FX27: =IF(MOD(FX$4,12)=0, $E$27, 0) -> 0 | FY27: =IF(MOD(FY$4,12)=0, $E$27, 0) -> 0 | FZ27: =IF(MOD(FZ$4,12)=0, $E$27, 0) -> 0 | GA27: =IF(MOD(GA$4,12)=0, $E$27, 0) -> 0 | GB27: =IF(MOD(GB$4,12)=0, $E$27, 0) -> 0 | GC27: =IF(MOD(GC$4,12)=0, $E$27, 0) -> 0 | GD27: =IF(MOD(GD$4,12)=0, $E$27, 0) -> 0 | GE27: =IF(MOD(GE$4,12)=0, $E$27, 0) -> 0 | GF27: =IF(MOD(GF$4,12)=0, $E$27, 0) -> 0 | GG27: =IF(MOD(GG$4,12)=0, $E$27, 0) -> 1500
C28: Limpeza e conservação | I28: =AVERAGE(J28:GG28) -> 2356.511144 | J28: =SUM(J29:J32) -> 1628.25702 | K28: =SUM(K29:K32) -> 3148.73006 | L28: =SUM(L29:L32) -> 1626.119724 | M28: =SUM(M29:M32) -> 1617.064341 | N28: =SUM(N29:N32) -> 3170.496727 | O28: =SUM(O29:O32) -> 3141.530749 | P28: =SUM(P29:P32) -> 3147.155211 | Q28: =SUM(Q29:Q32) -> 1616.44565 | R28: =SUM(R29:R32) -> 1621.901378 | S28: =SUM(S29:S32) -> 1621.56391 | T28: =SUM(T29:T32) -> 1611.889836 | U28: =SUM(U29:U32) -> 1619.145392 | V28: =SUM(V29:V32) -> 1629.549053 | W28: =SUM(W29:W32) -> 3150.484078 | X28: =SUM(X29:X32) -> 1627.363529 | Y28: =SUM(Y29:Y32) -> 1618.103806 | Z28: =SUM(Z29:Z32) -> 3172.74192 | AA28: =SUM(AA29:AA32) -> 3143.122311 | AB28: =SUM(AB29:AB32) -> 3148.873691 | AC28: =SUM(AC29:AC32) -> 1617.471154 | AD28: =SUM(AD29:AD32) -> 1623.049993 | AE28: =SUM(AE29:AE32) -> 1622.70491 | AF28: =SUM(AF29:AF32) -> 1612.812536 | AG28: =SUM(AG29:AG32) -> 1620.231817 | AH28: =SUM(AH29:AH32) -> 1630.859177 | AI28: =SUM(AI29:AI32) -> 3152.262654 | AJ28: =SUM(AJ29:AJ32) -> 1628.624748 | AK28: =SUM(AK29:AK32) -> 1619.157825 | AL28: =SUM(AL29:AL32) -> 3175.01855 | AM28: =SUM(AM29:AM32) -> 3144.736157 | AN28: =SUM(AN29:AN32) -> 3150.616233 | AO28: =SUM(AO29:AO32) -> 1618.511016 | AP28: =SUM(AP29:AP32) -> 1624.21469 | AQ28: =SUM(AQ29:AQ32) -> 1623.861886 | AR28: =SUM(AR29:AR32) -> 1613.748155 | AS28: =SUM(AS29:AS32) -> 1621.333453 | AT28: =SUM(AT29:AT32) -> 1632.188206 | AU28: =SUM(AU29:AU32) -> 3154.066897 | AV28: =SUM(AV29:AV32) -> 1629.904167 | AW28: =SUM(AW29:AW32) -> 1620.227054 | AX28: =SUM(AX29:AX32) -> 3177.328032 | AY28: =SUM(AY29:AY32) -> 3146.373291 | AZ28: =SUM(AZ29:AZ32) -> 3152.383921 | BA28: =SUM(BA29:BA32) -> 1619.565885 | BB28: =SUM(BB29:BB32) -> 1625.396195 | BC28: =SUM(BC29:BC32) -> 1625.035557 | BD28: =SUM(BD29:BD32) -> 1614.697275 | BE28: =SUM(BE29:BE32) -> 1622.450987 | BF28: =SUM(BF29:BF32) -> 1633.396414 | BG28: =SUM(BG29:BG32) -> 3155.707116 | BH28: =SUM(BH29:BH32) -> 1631.067275 | BI28: =SUM(BI29:BI32) -> 1621.199079 | BJ28: =SUM(BJ29:BJ32) -> 3179.42756 | BK28: =SUM(BK29:BK32) -> 3147.861594 | BL28: =SUM(BL29:BL32) -> 3153.990908 | BM28: =SUM(BM29:BM32) -> 1620.524855 | BN28: =SUM(BN29:BN32) -> 1626.470289 | BO28: =SUM(BO29:BO32) -> 1626.10253 | BP28: =SUM(BP29:BP32) -> 1615.560111 | BQ28: =SUM(BQ29:BQ32) -> 1623.466926 | BR28: =SUM(BR29:BR32) -> 3134.602611 | BS28: =SUM(BS29:BS32) -> 3157.344606 | BT28: =SUM(BT29:BT32) -> 1632.228447 | BU28: =SUM(BU29:BU32) -> 1622.169488 | BV28: =SUM(BV29:BV32) -> 3181.523595 | BW28: =SUM(BW29:BW32) -> 3149.347421 | BX28: =SUM(BX29:BX32) -> 3155.595222 | BY28: =SUM(BY29:BY32) -> 1621.48223 | BZ28: =SUM(BZ29:BZ32) -> 1627.542596 | CA28: =SUM(CA29:CA32) -> 1627.167728 | CB28: =SUM(CB29:CB32) -> 1616.421511 | CC28: =SUM(CC29:CC32) -> 1624.481174 | CD28: =SUM(CD29:CD32) -> 3135.799804 | CE28: =SUM(CE29:CE32) -> 3158.969871 | CF28: =SUM(CF29:CF32) -> 1633.380951 | CG28: =SUM(CG29:CG32) -> 1623.132652 | CH28: =SUM(CH29:CH32) -> 3183.603981 | CI28: =SUM(CI29:CI32) -> 3150.822155 | CJ28: =SUM(CJ29:CJ32) -> 3157.187558 | CK28: =SUM(CK29:CK32) -> 1622.432457 | CL28: =SUM(CL29:CL32) -> 1628.606898 | CM28: =SUM(CM29:CM32) -> 1628.224974 | CN28: =SUM(CN29:CN32) -> 1617.276481 | CO28: =SUM(CO29:CO32) -> 1625.487851 | CP28: =SUM(CP29:CP32) -> 3136.987425 | CQ28: =SUM(CQ29:CQ32) -> 3160.582143 | CR28: =SUM(CR29:CR32) -> 3134.524241 | CS28: =SUM(CS29:CS32) -> 1624.088115 | CT28: =SUM(CT29:CT32) -> 3185.667736 | CU28: =SUM(CU29:CU32) -> 3152.2851 | CV28: =SUM(CV29:CV32) -> 3158.767165 | CW28: =SUM(CW29:CW32) -> 1623.375088 | CX28: =SUM(CX29:CX32) -> 1629.662692 | CY28: =SUM(CY29:CY32) -> 1629.273768 | CZ28: =SUM(CZ29:CZ32) -> 1618.124615 | DA28: =SUM(DA29:DA32) -> 1626.486479 | DB28: =SUM(DB29:DB32) -> 3138.164957 | DC28: =SUM(DC29:DC32) -> 3162.180717 | DD28: =SUM(DD29:DD32) -> 3135.657817 | DE28: =SUM(DE29:DE32) -> 1625.035461 | DF28: =SUM(DF29:DF32) -> 3187.713957 | DG28: =SUM(DG29:DG32) -> 3153.735615 | DH28: =SUM(DH29:DH32) -> 3160.333351 | DI28: =SUM(DI29:DI32) -> 1624.30971 | DJ28: =SUM(DJ29:DJ32) -> 1630.709515 | DK28: =SUM(DK29:DK32) -> 1630.31365 | DL28: =SUM(DL29:DL32) -> 1618.965544 | DM28: =SUM(DM29:DM32) -> 1627.476624 | DN28: =SUM(DN29:DN32) -> 3139.331384 | DO28: =SUM(DO29:DO32) -> 3163.764216 | DP28: =SUM(DP29:DP32) -> 3136.780703 | DQ28: =SUM(DQ29:DQ32) -> 1625.973873 | DR28: =SUM(DR29:DR32) -> 3189.740882 | DS28: =SUM(DS29:DS32) -> 3155.172451 | DT28: =SUM(DT29:DT32) -> 3161.884768 | DU28: =SUM(DU29:DU32) -> 1625.235519 | DV28: =SUM(DV29:DV32) -> 1631.746466 | DW28: =SUM(DW29:DW32) -> 1631.343727 | DX28: =SUM(DX29:DX32) -> 1619.798542 | DY28: =SUM(DY29:DY32) -> 1628.457431 | DZ28: =SUM(DZ29:DZ32) -> 3140.484997 | EA28: =SUM(EA29:EA32) -> 3165.33032 | EB28: =SUM(EB29:EB32) -> 3137.891254 | EC28: =SUM(EC29:EC32) -> 1626.901977 | ED28: =SUM(ED29:ED32) -> 3191.745539 | EE28: =SUM(EE29:EE32) -> 3156.593503 | EF28: =SUM(EF29:EF32) -> 3163.419141 | EG28: =SUM(EG29:EG32) -> 1626.151157 | EH28: =SUM(EH29:EH32) -> 1632.772026 | EI28: =SUM(EI29:EI32) -> 1632.362487 | EJ28: =SUM(EJ29:EJ32) -> 1620.62239 | EK28: =SUM(EK29:EK32) -> 1629.427463 | EL28: =SUM(EL29:EL32) -> 3141.624015 | EM28: =SUM(EM29:EM32) -> 3166.87661 | EN28: =SUM(EN29:EN32) -> 3138.987755 | EO28: =SUM(EO29:EO32) -> 1627.818338 | EP28: =SUM(EP29:EP32) -> 3193.724835 | EQ28: =SUM(EQ29:EQ32) -> 3157.996576 | ER28: =SUM(ER29:ER32) -> 3164.934102 | ES28: =SUM(ES29:ES32) -> 1627.05521 | ET28: =SUM(ET29:ET32) -> 1633.78461 | EU28: =SUM(EU29:EU32) -> 1633.368359 | EV28: =SUM(EV29:EV32) -> 1621.435814 | EW28: =SUM(EW29:EW32) -> 1630.385223 | EX28: =SUM(EX29:EX32) -> 3142.747365 | EY28: =SUM(EY29:EY32) -> 3168.401629 | EZ28: =SUM(EZ29:EZ32) -> 3140.069172 | FA28: =SUM(FA29:FA32) -> 1628.722094 | FB28: =SUM(FB29:FB32) -> 3195.676904 | FC28: =SUM(FC29:FC32) -> 3159.380349 | FD28: =SUM(FD29:FD32) -> 3166.428224 | FE28: =SUM(FE29:FE32) -> 1627.946828 | FF28: =SUM(FF29:FF32) -> 3134.783266 | FG28: =SUM(FG29:FG32) -> 3134.360394 | FH28: =SUM(FH29:FH32) -> 1622.238049 | FI28: =SUM(FI29:FI32) -> 1631.329808 | FJ28: =SUM(FJ29:FJ32) -> 3143.854219 | FK28: =SUM(FK29:FK32) -> 3169.904255 | FL28: =SUM(FL29:FL32) -> 3141.13471 | FM28: =SUM(FM29:FM32) -> 1629.612579 | FN28: =SUM(FN29:FN32) -> 4697.600309 | FO28: =SUM(FO29:FO32) -> 3160.743803 | FP28: =SUM(FP29:FP32) -> 3167.900406 | FQ28: =SUM(FQ29:FQ32) -> 1628.825353 | FR28: =SUM(FR29:FR32) -> 3135.767258 | FS28: =SUM(FS29:FS32) -> 3135.337862 | FT28: =SUM(FT29:FT32) -> 1623.028504 | FU28: =SUM(FU29:FU32) -> 1632.260522 | FV28: =SUM(FV29:FV32) -> 3144.943036 | FW28: =SUM(FW29:FW32) -> 3171.382393 | FX28: =SUM(FX29:FX32) -> 3142.182884 | FY28: =SUM(FY29:FY32) -> 1630.488553 | FZ28: =SUM(FZ29:FZ32) -> 4699.492368 | GA28: =SUM(GA29:GA32) -> 3162.085037 | GB28: =SUM(GB29:GB32) -> 3169.348596 | GC28: =SUM(GC29:GC32) -> 1629.689561 | GD28: =SUM(GD29:GD32) -> 3136.735214 | GE28: =SUM(GE29:GE32) -> 3136.2994 | GF28: =SUM(GF29:GF32) -> 1623.806078 | GG28: =SUM(GG29:GG32) -> 1633.17607
